Workbook

Sheet 1 Indice - Sommario
A2: Comune di Guardiagrele
A3: Concessione per l'affidamento dei lavori di efficientamento energetico della piscina comunale e del successivo servizio di gestione dell'impianto natatorio
A4: PIANO ECONOMICO FINANZIARIO
A5: 1 | B5: Indice
A6: 1 | B6: Sommario
A7: 2 | B7: Descrizione del Progetto
A8: 2 | B8: Ipotesi investimento
A9: 3A | B9: Retta
A10: 3B | B10: Ricavi da Retta
A11: 3 | B11: Costi e Ricavi Ante Adeguamento Istat
A12: 4 | B12: Costi e Ricavi Adeguati Istat (Sviluppo Domanda e Gestione)
A13: 5 | B13: Foglio di elaborazione
A14: 6 | B14: Flussi di cassa e indici di redditività economica e finanziaria (rendiconto finanziario)
A15: 6a | B15: Indici della sostenibilità finanziaria
A16: 6a | B16: Conto Economico
A17: 7 | B17: Stato Patrimoniale
A18: 8 | B18: Indici di Bilancio
A19: 9 | B19: Riepilogo Imposte
A20: 10 | B20: Scheda di Sintesi
A21: 11
A22: 12
A23: 13
A24: 14
A25: 15
E27: Luglio 2024

Sheet 2 Descrizione Progetto
B2: 2 | C2: Descrizione del Progetto
C3: ='1 Indice - Sommario'!A2 -> Comune di Guardiagrele
C4: ='1 Indice - Sommario'!A3 -> Concessione per l'affidamento dei lavori di efficientamento energetico della piscina comunale e del successivo servizio di gestione dell'impianto natatorio
C5: Gestione in Assenza di Investimento Iniziale
C6: Valore della Concessione
C7: =C16 -> Periodo previsto fino al rilascio della concessione (specificare se anni o mesi) | D7: Se annualità intermedie usare 1,2,3 e cambiare anche anni in manutenzioni straord. In scheda inv.ti righi 49-52
C8: =C17 -> Anno di inizio costruzione
C9: Anni di costruzione (min=1, max=6) | D9: =D18 -> 1
C10: Anno di fine costruzione
C11: Anno di inizio gestione
C12: Anni di gestione | D12: =D21 -> 10
C13: Anno di fine gestione | D13: =D12+D9 -> 11
C14: =C24 -> Anni di durata del progetto (costruzione + gestione) | D14: 11
C16: Periodo previsto fino al rilascio della concessione (specificare se anni o mesi) | D16: Se annualità intermedie usare 1,2,3 e cambiare anche anni in manutenzioni straord. In scheda inv.ti righi 49-52
C17: Anno di inizio costruzione | D17: 1
C18: Anni di costruzione (min=1, max=6) | D18: 1 | E18: =IF((AND(D18>=1,D18<=6)=TRUE),"OK","verificare!") -> OK
C19: Anno di fine costruzione | D19: =D17+D18-1 -> 1
C20: Anno di inizio gestione | D20: 1
C21: Anni di gestione | D21: 10
C22: Anno di fine gestione | D22: =D20+D21-1 -> 10
C23: Anno di fine ammortamento | D23: 5 | E23: =IF(D23>D22,"fine amm.to dopo fine esercizio","OK") -> OK
C24: Anni di durata del progetto (costruzione + gestione) | D24: =D18+D21 -> 11
C25: Anni di vita utile del progetto stimati oltre fine esercizio (min=0, max=10) | D25: 6 | E25: =IF((AND(D25>=0,D25<=10)=TRUE),"OK","errore!") -> OK
C26: Ultimo anno di vita utile del progetto (extra-esercizio) | D26: =+D22+D25 -> 16
C27: ADEGUAMENTO ISTAT | D27: 0.02
C29: Indicatori di Convenienza Economica e Sostenibilità Finanziaria
C30: WACC (Weighted Average Cost of Capital - costo medio delle fonti di finanziamento) | D30: ='6 Rendiconto Finanz'!D40 -> 0.0382
D31: 0
C32: Tasso di Sconto/Attualizzazione | D32: ='6 Rendiconto Finanz'!D41 -> 0.058964 | F32: (Tasso CDP + Istat del Pef aggiustato con equazione di Fisher)
C33: Valore Aggiunto Netto - VAN della Gestione | D33: ='6 Rendiconto Finanz'!D42 -> 178003.7504
C34: Rendimento Globale dei Costi Gestione - ante imposte | D34: =SUM('6 Rendiconto Finanz'!D43) -> 0.08935143053
C35: Redditività Utile Netto sul Totale Ricavi - adeguati Istat | D35: ='6 Rendiconto Finanz'!D21/'6 Rendiconto Finanz'!D5 -> 0.0574941046
C36: Redditività del Capitale Netto - ROE | D36: ='10 Schema Sintesi'!D69 -> 0.8110159365
C37: TIR OPERATIVO DEL PROGETTO (Tasso Interno di Rendimento del Progetto) | D37: ='6 Rendiconto Finanz'!#REF! -> 
C38: RENDIMENTO ATTESO DEL CAPITALE PRIVATO (Ke) | D38: ='6 Rendiconto Finanz'!D68 -> 0
C39: VAN FINANZIARIO PER L'INVESTITORE (Valore Attuale Netto per l'investitore) | D39: ='6 Rendiconto Finanz'!D69 -> 251613.0115
C40: TIR FINANZIARIO PER L'INVESTITORE (Tasso Interno di Rendimento per l'investitore) | D40: ='6 Rendiconto Finanz'!D70 -> 0.6739428933
C41: VAN SU UTILI DISTRIBUITI (Valore Attuale Netto degli utili distribuiti) | D41: ='6 Rendiconto Finanz'!D71 -> -10000
C42: TIR SU UTILI DISTRIBUITI (Tasso Interno di Rendimento dei mezzi propri su utili distribuiti) | D42: ='6 Rendiconto Finanz'!D72 -> 
C43: PAYBACK PERIOD OPERATIVO (N. di anni necessari per il ritorno dell'investimento) | D43: ='6 Rendiconto Finanz'!D35 -> 3
C44: DISCOUNTED PAYBACK PERIOD (Evidenza annualità in cui si verifica il recupero dell'investimento e delle Fonti) | D44: ='6 Rendiconto Finanz'!D38 -> 3
C45: Redditività dell'Attivo Netto - ROA | D45: ='10 Schema Sintesi'!D70 -> 0.3649998617
C46: MOL (EBITDA) - Valore Medio Annuo | D46: ='6a Conto Economico'!D11/D21 -> 37136.73108
C47: ROA (EBIT) - Valore Medio Annuo | D47: ='6a Conto Economico'!D18/D21 -> 37136.73108 | F47: Reddito Operativo Aziendale - EBIT - Valore Medio Annuo
C48: LLCR - Indice di sostenibilità dei debiti finanziari residui (valore minimo) | D48: ='6 Rendiconto Finanz'!E82 -> n.c.
C49: LEVERAGE - Valore Medio Annuo | D49: ='8 Indici'!BO5 -> 0.8847681942
C50: Oneri Finanziari sul MOL | D50: ND
C51: Redditività delle Vendite - ROS | D51: ='8 Indici'!BO14 -> 0.07622854964 | F51: da 8% in su
C52: Utile Netto - Valore Medio Annuo | D52: ='6a Conto Economico'!D23/D21 -> 26031.15784
C53: Utile Netto su MOL | D53: ='6a Conto Economico'!D23/'6a Conto Economico'!D11 -> 0.7009544752
B55: NOTA PER DISINVESTIMENTI DURANTE LA GESTIONE: | D55: DA VALUTARE CASO PER CASO
B56: 1. Inserire in SDG la vendita dei beni (per i soli anni interessati) aumentata di una certa percentuale rispetto al costo iniziale (il costo iniziale deve essere quantificato come nota nella Scheda Investimenti).
B57: 2. In F. ELAB., riquadro 14 rigo 34, il valore di disinvestimento (costo iniziale) và diviso per il numero totale di anni di ammortamento e moltiplicato per gli anni residui (escluso quello corrente in cui avviene il disinvestimento) per la valorizzazione del valore di ammortamento residuo.
B58: 3. Aggiungere il valore ricavato a rigo 125 di F.ELAB (già inserito nella formula).
B60: INSERIMENTO MEZZI PROPRI (MP) DURANTE LA CONCESSIONE
B61: Inserire (+) nuovi MP in Foglio 5 rigo 28
B62: In Foglio 6 creare coefficienti di attualizzazione su Ke
B63: In foglio 6 casella D62: incrementare (con segno meno) con i nuovi MP versati (di segno +) attualizzati al Ke
B64: PRELEVAMENTO MEZZI PROPRI (MP) DURANTE LA CONCESSIONE
B65: Prelevare (-) MP in Foglio 5 rigo 28
B66: In Foglio 6 creare coefficienti di attualizzazione su Ke
B67: In foglio 6 casella D62: ridurre (con segno meno) con i valori prelevati (di segno -) di MP attualizzati al Ke
B69: NOTA: QUALUNQUE SIA IL SUCCESSIVO PRELIEVO O IMMISSIONE DI MEZZI PROPRI, SE SI ATTUALIZZA AL TIR.F IL VALORE FINALE DEL TIR.F NON CAMBIA MAI. MA, POICHE' SI PROCEDE A FARE UN'OPERAZIONE PRIMA DELLA FINE DELLA CONCESSIONE, PER L'ATTUALIZZAZIONE SI UTILIZZA IL TASSO DI SCONTO PER L'EQUITY (Ke).
B70: UTILIZZO DI RISCONTI PASSIVI (se non si intende contabilizzare i contributi pubblici in conto impianti/capitale con il metodo della nettizzazione) ESEMPIO DI COME AGIRE SU PEF - Metter in foglio 6 casella d30 l’intero valore dell’investimento con segno – - Azzerare in foglio 6 rigo 24 (riduzione contributi) - In foglio 5 si ammortizza il valore intero degli investimenti - Si comincia a mettere in avere il contributo dal 1° anno di gestione sino alla fine (foglio 6 rigo 9 altri costi o ricavi) - Si mettono i contributi in foglio 7 SP passivo (risconti passivi) e si riducono per il contributo dal primo anno di gestione in poi (alla fine si deve azzerare il valore) - In foglio 6 (dopo rigo "Variazioni ccn") inserire nuovo rigo (Variazione risconti passivi) con questi dati presi da foglio 7: =B25 poi =C25-B25 ....... etc.

Sheet 2 Investimento (hidden)
B1: ='2 Descrizione Progetto'!C3 -> Comune di Guardiagrele
B2: ='2 Descrizione Progetto'!C4 -> Concessione per l'affidamento dei lavori di efficientamento energetico della piscina comunale e del successivo servizio di gestione dell'impianto natatorio
B4: 2 | C4: IPOTESI INVESTIMENTO
B5: ='2 Descrizione Progetto'!#REF!+1 ->  | C5: Costi di Investimento - Valori alla data di valutazione al netto di Iva
B6: IVA%
B7: 10 | C7: Opere civili | E7: 1e-10
B8: 22 | C8: Impianti e Macchinari | E8: 0
C9: Espropri (<10% spese ammissibili) | E9: 0 | F9: =IF(E9/E28<=10%,"OK","verificare valore!") -> OK
C10: Manodopera | E10: 0
C11: Progettazione consulenze e spese tecniche | E11: =SUM(E14:E17) -> 0
C12: Altro (spese generali + imprevisti) | E12: =SUM(E19:E21) -> 0
C13: *COMPRENSIVE DI:
B14: 22 | C14: Spese per la predisposizione del Progetto | E14: 0
B15: 22 | C15: Spese per | E15: 0
B16: 22 | C16: Consulenza Legale | E16: 0
B17: 22 | C17: Spese tecniche | E17: 0
C18: **COMPRENSIVE DI:
B19: 22 | C19: MMMMM | E19: 0
B20: 10 | C20: Imprevisti su lavori | E20: 0
B21: 22 | C21: BBBBBB
C22: = | D22: Sub-totale investimento iniziale | E22: =SUM(E7:E12) -> 1e-10
D23: Altri costi su investimento iniziale (quota percentuale) | E23: 0 | F23: =IF((AND(E23<=10%,E23>=5%)=TRUE),"OK","errore!") -> errore!
B24: 0 | C24: + | D24: Altri costi in % su investimento iniziale | E24: =E22*E23 -> 0
B25: 0 | C25: Investimento non ammissibile al contributo pubblico | E25: 0 | F25: SE OCCORRE CALCOLARE GLI IMPREVISTI IN % APRIRE RIGHI 23 e 24, NONCHE' RIGO 22 DI F.ELAB. e 29 DI RIEPILOGO FINALE
C26: Manutenzioni straordinarie negli anni di esercizio (da capitalizzare) ATTENZIONE: Se utilizzo diverso da man. stra. Vedere bene rigo 31 di scheda 6 | E26: 0 | F26: Valore alla data di valutazione, per valore adeguato Istat negli anni di realizzo vedi Scheda Foglio di Elaborazione punto 14
C27: = | D27: Costo totale investimento | E27: =(E22+E24+E25+E26)*(1+'10 Schema Sintesi'!E200) -> 1e-10 | G27: =E27+G34 -> 1.1e-10 | H27: Costo totale Iva inclusa
D28: di cui Spese ammissibili a contributo | E28: =E22+E24 -> 1e-10
C30: TOTALE INVESTIMENTO NETTO MANUTENZIONI STRAORDINARIE CAPITALIZZATE | E30: =SUM(E31:E33) -> 1e-10 | F30: % IVA | G30: IMPORTO IVA
C31: TOTALE INVESTIMENTI INIZIALI CON IVA AL 22% | E31: =E14+E19 -> 0 | F31: 0.22 | G31: =E31*F31 -> 0
C32: TOTALE INVESTIMENTI INIZIALI CON IVA AL 10% | E32: =E7 -> 1e-10 | F32: 0.1 | G32: 1e-11
C33: TOTALE INVESTIMENTI INIZIALI CON IVA A 0% | E33: =E20+E25 -> 0 | F33: 0 | G33: 0
C34: TOTALE IVA SU INVESTIMENTI INIZIALI (escluse manutenzioni straordinarie) | G34: =SUM(G31:G33) -> 1e-11
C35: IVA MEDIA SU INVESTIMENTI INIZIALI (escluse manutenzioni straordinarie) | F35: =G34/E30 -> 0.1
C36: IVA SU MANUTENZIONI STRAORDINARIE | F36: 0.22
B38: 6 | C38: Ripartizione temporale dei costi di investimento
C39: Anno | D39: =C7 -> Opere civili | E39: =C8 -> Impianti e Macchinari | F39: Espropri | G39: =C10 -> Manodopera | H39: =C11 -> Progettazione consulenze e spese tecniche | I39: =C12 -> Altro (spese generali + imprevisti) | J39: =C25 -> Investimento non ammissibile al contributo pubblico
C40: cantiere chiuso | D40: 1 | E40: 1 | F40: 1 | G40: 1 | H40: 1 | I40: 1 | J40: 1
C41: cantiere chiuso | D41: 0 | E41: 0 | F41: 0 | G41: 0 | H41: 0 | I41: 0 | J41: 0
C42: =IF(C41="cantiere chiuso","cantiere chiuso",IF(C41+1<='2 Descrizione Progetto'!$D$19,C41+1,"cantiere chiuso")) -> cantiere chiuso | D42: 0 | E42: 0 | F42: 0 | G42: 0 | H42: 0 | I42: 0 | J42: 0
C43: =IF(C42="cantiere chiuso","cantiere chiuso",IF(C42+1<='2 Descrizione Progetto'!$D$19,C42+1,"cantiere chiuso")) -> cantiere chiuso | D43: 0 | E43: 0 | F43: 0 | G43: 0 | H43: 0 | I43: 0 | J43: 0
C44: =IF(C43="cantiere chiuso","cantiere chiuso",IF(C43+1<='2 Descrizione Progetto'!$D$19,C43+1,"cantiere chiuso")) -> cantiere chiuso | D44: 0 | E44: 0 | F44: 0 | G44: 0 | H44: 0 | I44: 0 | J44: 0
C45: =IF(C44="cantiere chiuso","cantiere chiuso",IF(C44+1<='2 Descrizione Progetto'!$D$19,C44+1,"cantiere chiuso")) -> cantiere chiuso | D45: 0 | E45: 0 | F45: 0 | G45: 0 | H45: 0 | I45: 0 | J45: 0
C46: check somma a 100 | D46: =IF(COUNTIF(D40:D45,">0")=0,"Null",IF(SUM(D40:INDIRECT(ADDRESS(ROW(D40)+'2 Descrizione Progetto'!$D$18-1,COLUMN())))=1,"OK","Errore")) -> OK | E46: =IF(COUNTIF(E40:E45,">0")=0,"Null",IF(SUM(E40:INDIRECT(ADDRESS(ROW(E40)+'2 Descrizione Progetto'!$D$18-1,COLUMN())))=1,"OK","Errore")) -> OK | F46: =IF(COUNTIF(F40:F45,">0")=0,"Null",IF(SUM(F40:INDIRECT(ADDRESS(ROW(F40)+'2 Descrizione Progetto'!$D$18-1,COLUMN())))=1,"OK","Errore")) -> OK | G46: =IF(COUNTIF(G40:G45,">0")=0,"Null",IF(SUM(G40:INDIRECT(ADDRESS(ROW(G40)+'2 Descrizione Progetto'!$D$18-1,COLUMN())))=1,"OK","Errore")) -> OK | H46: =IF(COUNTIF(H40:H45,">0")=0,"Null",IF(SUM(H40:INDIRECT(ADDRESS(ROW(H40)+'2 Descrizione Progetto'!$D$18-1,COLUMN())))=1,"OK","Errore")) -> OK | I46: =IF(COUNTIF(I40:I45,">0")=0,"Null",IF(SUM(I40:INDIRECT(ADDRESS(ROW(I40)+'2 Descrizione Progetto'!$D$18-1,COLUMN())))=1,"OK","Errore")) -> OK | J46: =IF(COUNTIF(J40:J45,">0")=0,"Null",IF(SUM(J40:INDIRECT(ADDRESS(ROW(J40)+'2 Descrizione Progetto'!$D$18-1,COLUMN())))=1,"OK","Errore")) -> OK
B48: =B38+1 -> 7 | C48: Esercizi in cui sono previste manutenzioni straordinarie (max 4) | E48: =IF(AND($E$26>0,COUNTIF(D49:D52,">0")=0),"ATTENZIONE: Nessun esercizio specificato!","OK") -> OK
B49: =COUNTIF(D49:D52,">0") -> 0 | C49: I | E49: =IF(AND(D49<'2 Descrizione Progetto'!$D$20,D49<>0),"ATTENZIONE: Anno di manutenzione antecedente all'inizio della gestione!",IF(D49="","",IF(D49=0,"","OK"))) -> OK
C50: II | E50: =IF(AND(D50<'2 Descrizione Progetto'!$D$20,D50<>0),"ATTENZIONE: Anno di manutenzione antecedente all'inizio della gestione!",IF(D50="","",IF(D50=0,"","OK"))) -> OK
C51: III | E51: =IF(AND(D51<'2 Descrizione Progetto'!$D$20,D51<>0),"ATTENZIONE: Anno di manutenzione antecedente all'inizio della gestione!",IF(D51="","",IF(D51=0,"","OK"))) -> OK
C52: IV | E52: =IF(AND(D52<'2 Descrizione Progetto'!$D$20,D52<>0),"ATTENZIONE: Anno di manutenzione antecedente all'inizio della gestione!",IF(D52="","",IF(D52=0,"","OK"))) -> OK
B54: =B48+1 -> 8 | C54: Fonti di copertura dell'investimento - Valori alla data di valutazione | F54: L'importo dell'investimento specificato è pari a (euro) | I54: =E27 -> 1e-10
C55: + | D55: Capitale Sociale | E55: 10000
D56: Capitale privato (quota % del costo totale dell'investimento) | E56: =E55/E27 -> 100000000000000 | F56: =IF((E55/E27)>=0.15,"OK","verificare, la quota del capitale privato eccede il 15% del totale delle fonti!") -> OK
D57: Contributo Regionale | E57: 0 | F57: =E59/E27 -> 0
D58: Altri Contributi Pubblici | E58: 0
C59: + | D59: Totale contributi pubblici | E59: =SUM(E57:E58) -> 0 | F59: =E59/(E22-'6 Rendiconto Finanz'!D55-'7 Stato-Patr'!BK36) -> 0 | G59: Quota di contributo pubblico su investimento ammissibile inclusi oneri finanziari (art. 165, comma 2, D.Lgs 50/16)
C60: + | D60: Finanziamento m/l termine (I banca) | E60: 0 | F60: =(E60+E61)/E27 -> 0
C61: + | D61: Finanziamento m/l termine (altre banche) | E61: 0
C62: = | D62: Totale finanziamenti a copertura | E62: =+E55+E59+E60+E61 -> 10000
B64: =B54+1 -> 9 | C64: Elementi per la gestione finanziaria
D65: Remunerazione liquidità | E65: 0 | F65: ← A titolo prudenziale non si prevede la remunerazione dei saldi positivi di c/corrente al fine di tenere conto della verosimile distribuzione del flusso di cassa disponibile.
D66: Remunerazione riserva DSRA | E66: 0
D67: Remunerazione altre immobilizzazioni finanziarie | E67: 0
D68: Rendimento atteso del Capitale Privato (Ke) | E68: 1e-13
D69: Tasso d'interesse sul Fin. m/l term (I banca) | E69: 1e-14
D70: Anni di rimborso del Finanziamento (I banca) | E70: 1e-09
D71: Anno di fine rimborso del Finanziamento | E71: 1e-08 | F71: =IF(E71>'2 Descrizione Progetto'!D22,"data fine rimborso non ammessa","OK") -> OK
D72: Tasso d'interesse sul Fin. m/l term (altre banche) | E72: 0
D73: Anni di rimborso del Finanziamento (altre banche) | E73: 0
D74: Anno di fine rimborso del Finanziamento | E74: 1e-10 | F74: =IF(E74>'2 Descrizione Progetto'!D22,"data fine rimborso non ammessa","OK") -> OK
D75: Tasso di interesse su finanziamenti a bt | E75: 1e-13
B76: Il valore residuo finale concorre a determinare la redditività globale del progetto ed include le seguenti componenti:
B77: 10 | C77: Scelta componenti del Valore Residuo
D78: Valore residuo contabile | E78: no | F78: 1. Differenza fra il costo dell’investimento e la cumulata delle rate di ammortamento.
D79: Valore residuo finanziario (CCN ultimo anno esercizio) | E79: no | F79: 2. Valore a fine esercizio del Capitale Circolante Netto.
D80: Valore residuo di avviamento | E80: no | F80: 3. Valore medio attualizzato dei flussi annuali di cassa netti, ottenibili dopo la fine di esercizio.
C81: Il punto 22 del foglio di lavoro (foglio di elaborazione) riporta il valore residuo del progetto alla data di fine concessione, qualora per esso vi siano componenti positive oggetto di valutazione. Si ricorda altresì, la centralità del valore residuo nella strutturazione dell’eventuale convenzione da stipularsi tra il concedente e il concessionario e le relative modalità di subentro di una terza parte, sia alla fine naturale della concessione stessa, sia qualora a causa di imprevisti, ciò avvenga durante la gestione del normale esercizio concessorio. In altre parole, occorre trovare un reciproco accordo tra le parti sull’inclusione o meno di una o più delle tre componenti del valore residuo, esse riguardano: 1) il valore residuo contabile; 2) il valore residuo finanziario; 3) il valore residuo di avviamento (cioè il valore medio attualizzato dei flussi annuali di cassa netti, ottenibili dopo la fine di esercizio, in un arco temporale di durata scelta dal compilatore tra 0 e 10 anni, in funzione del grado di innovatività del progetto e della sua stimata capacità di generare reddito anche dopo il termine dell’esercizio).
C82: Per la stesura del presente Piano Economico Finanziario, per una corretta imputazione contabile, si è tenuto presente il valore residuo finanziario, cioè il valore a fine esercizio del Capitale Circolante Netto che, dunque, concorrerà al calcolo degli indicatori di redditività e di sostenibilità finanziaria del progetto.

Sheet 2a Spec.ricavi-costi (hidden)
A1: 3 | B1: ='2 Descrizione Progetto'!C3 -> Comune di Guardiagrele | F1: ='2 Descrizione Progetto'!C4 -> Concessione per l'affidamento dei lavori di efficientamento energetico della piscina comunale e del successivo servizio di gestione dell'impianto natatorio | M1: Importi non rivalutati
A3: 11 | B3: Importi in Euro | C3: ='4 Sviluppo Domanda e Gestione'!D26 -> PROGETTO: domanda stimata primo anno di gestione NON TOCCARE | D3: ='4 Sviluppo Domanda e Gestione'!E26 -> PROGETTO: livello domanda massima stimata NON TOCCARE | E3: ='4 Sviluppo Domanda e Gestione'!F26 -> Tariffa unitaria - livello iniziale (euro) NON TOCCARE | F3: Ricavi del primo anno di gestione Anno 200….. | G3: IVA | H3: Ricavi a regime Anno 20….- | I3: IVA | J3: Costi per servizi (come da specifica) | K3: ='4 Sviluppo Domanda e Gestione'!E259 -> Costi del personale (al lordo degli oneri sociali) | L3: Oneri diversi di gestione (come da specifica) | M3: ='4 Sviluppo Domanda e Gestione'!G259 -> Manutenzioni ordinarie (valore suggerito: min 0,5%, max 2%) | N3: ='4 Sviluppo Domanda e Gestione'!H259 -> Totale costi operativi / Ricavi tariffari
A4: IVA% | B4: RICAVI DI GESTIONE (descrizione)
A5: 22 | B5: ='4 Sviluppo Domanda e Gestione'!D9 -> Ricavi Istituzionali | C5: ='4 Sviluppo Domanda e Gestione'!D27 -> 0 | D5: ='4 Sviluppo Domanda e Gestione'!E27 -> 0 | E5: ='4 Sviluppo Domanda e Gestione'!F27 -> 1 | F5: =C5*E5 -> 0 | G5: =F5*A5/100 -> 0 | H5: =D5*E5 -> 0 | I5: =H5*A5/100 -> 0 | J5: ='4 Sviluppo Domanda e Gestione'!D260 -> 0 | K5: ='4 Sviluppo Domanda e Gestione'!E260 -> 0 | L5: ='4 Sviluppo Domanda e Gestione'!F260 -> 0 | M5: ='4 Sviluppo Domanda e Gestione'!G260 -> 0 | N5: ='4 Sviluppo Domanda e Gestione'!H260 -> 0
A6: 22 | B6: ='4 Sviluppo Domanda e Gestione'!D10 -> Ricavi Commerciali | C6: ='4 Sviluppo Domanda e Gestione'!D28 -> 0 | D6: ='4 Sviluppo Domanda e Gestione'!E28 -> 0 | E6: ='4 Sviluppo Domanda e Gestione'!F28 -> 1 | F6: 0 | G6: 0 | H6: 0 | I6: 0 | J6: ='4 Sviluppo Domanda e Gestione'!D261 -> 0 | K6: ='4 Sviluppo Domanda e Gestione'!E261 -> 0 | L6: ='4 Sviluppo Domanda e Gestione'!F261 -> 0 | M6: ='4 Sviluppo Domanda e Gestione'!G261 -> 0 | N6: ='4 Sviluppo Domanda e Gestione'!H261 -> 0
A7: 22 | B7: ='4 Sviluppo Domanda e Gestione'!D11 -> Ricavi Bar | C7: ='4 Sviluppo Domanda e Gestione'!D29 -> 0 | D7: ='4 Sviluppo Domanda e Gestione'!E29 -> 0 | E7: ='4 Sviluppo Domanda e Gestione'!F29 -> 1 | F7: 0 | G7: 0 | H7: 0 | I7: 0 | J7: ='4 Sviluppo Domanda e Gestione'!D262 -> 0 | K7: ='4 Sviluppo Domanda e Gestione'!E262 -> 0 | L7: ='4 Sviluppo Domanda e Gestione'!F262 -> 0 | M7: ='4 Sviluppo Domanda e Gestione'!G262 -> 0 | N7: ='4 Sviluppo Domanda e Gestione'!H262 -> 0
A8: 22 | B8: ='4 Sviluppo Domanda e Gestione'!D12 -> Proventi diversi/pubblicità | C8: ='4 Sviluppo Domanda e Gestione'!D30 -> 0 | D8: ='4 Sviluppo Domanda e Gestione'!E30 -> 0 | E8: ='4 Sviluppo Domanda e Gestione'!F30 -> 1 | F8: 0 | G8: 0 | H8: 0 | I8: 0 | J8: ='4 Sviluppo Domanda e Gestione'!D263 -> 0 | K8: ='4 Sviluppo Domanda e Gestione'!E263 -> 0 | L8: ='4 Sviluppo Domanda e Gestione'!F263 -> 0 | M8: ='4 Sviluppo Domanda e Gestione'!G263 -> 0 | N8: ='4 Sviluppo Domanda e Gestione'!H263 -> 0
A9: 0 | B9: ='4 Sviluppo Domanda e Gestione'!D13 -> b | C9: ='4 Sviluppo Domanda e Gestione'!D31 -> 0 | D9: ='4 Sviluppo Domanda e Gestione'!E31 -> 0 | E9: ='4 Sviluppo Domanda e Gestione'!F31 -> 1 | F9: 0 | G9: 0 | H9: 0 | I9: 0 | J9: ='4 Sviluppo Domanda e Gestione'!D264 -> 0 | K9: ='4 Sviluppo Domanda e Gestione'!E264 -> 0 | L9: ='4 Sviluppo Domanda e Gestione'!F264 -> 0 | M9: ='4 Sviluppo Domanda e Gestione'!G264 -> 0 | N9: ='4 Sviluppo Domanda e Gestione'!H264 -> 0
A10: 0 | B10: ='4 Sviluppo Domanda e Gestione'!D14 -> c | C10: ='4 Sviluppo Domanda e Gestione'!D32 -> 0 | D10: ='4 Sviluppo Domanda e Gestione'!E32 -> 0 | E10: 0 | F10: 0 | G10: 0 | H10: 0 | I10: 0 | J10: ='4 Sviluppo Domanda e Gestione'!D265 -> 0 | K10: ='4 Sviluppo Domanda e Gestione'!E265 -> 0 | L10: ='4 Sviluppo Domanda e Gestione'!F265 -> 0 | M10: ='4 Sviluppo Domanda e Gestione'!G265 -> 0 | N10: ='4 Sviluppo Domanda e Gestione'!H265 -> 0
A11: 0 | B11: ='4 Sviluppo Domanda e Gestione'!D15 -> d | C11: ='4 Sviluppo Domanda e Gestione'!D33 -> 0 | D11: ='4 Sviluppo Domanda e Gestione'!E33 -> 0 | E11: 0 | F11: 0 | G11: 0 | H11: 0 | I11: 0 | J11: ='4 Sviluppo Domanda e Gestione'!D266 -> 0 | K11: ='4 Sviluppo Domanda e Gestione'!E266 -> 0 | L11: ='4 Sviluppo Domanda e Gestione'!F266 -> 0 | M11: ='4 Sviluppo Domanda e Gestione'!G266 -> 0 | N11: ='4 Sviluppo Domanda e Gestione'!H266 -> 0
A12: 0 | B12: ='4 Sviluppo Domanda e Gestione'!D16 -> e | C12: ='4 Sviluppo Domanda e Gestione'!D34 -> 0 | D12: ='4 Sviluppo Domanda e Gestione'!E34 -> 0 | E12: 0 | F12: 0 | G12: 0 | H12: 0 | I12: 0 | J12: ='4 Sviluppo Domanda e Gestione'!D267 -> 0 | K12: ='4 Sviluppo Domanda e Gestione'!E267 -> 0 | L12: ='4 Sviluppo Domanda e Gestione'!F267 -> 0 | M12: ='4 Sviluppo Domanda e Gestione'!G267 -> 0 | N12: ='4 Sviluppo Domanda e Gestione'!H267 -> 0
A13: 0 | B13: ='4 Sviluppo Domanda e Gestione'!D17 -> f | C13: ='4 Sviluppo Domanda e Gestione'!D35 -> 0 | D13: ='4 Sviluppo Domanda e Gestione'!E35 -> 0 | E13: 0 | F13: 0 | G13: 0 | H13: 0 | I13: 0 | J13: ='4 Sviluppo Domanda e Gestione'!D268 -> 0 | K13: ='4 Sviluppo Domanda e Gestione'!E268 -> 0 | L13: ='4 Sviluppo Domanda e Gestione'!F268 -> 0 | M13: ='4 Sviluppo Domanda e Gestione'!G268 -> 0 | N13: ='4 Sviluppo Domanda e Gestione'!H268 -> 0
A14: 0 | B14: ='4 Sviluppo Domanda e Gestione'!D18 -> g | C14: ='4 Sviluppo Domanda e Gestione'!D36 -> 0 | D14: ='4 Sviluppo Domanda e Gestione'!E36 -> 0 | E14: 0 | F14: 0 | G14: 0 | H14: 0 | I14: 0 | J14: ='4 Sviluppo Domanda e Gestione'!D269 -> 0 | K14: ='4 Sviluppo Domanda e Gestione'!E269 -> 0 | L14: ='4 Sviluppo Domanda e Gestione'!F269 -> 0 | M14: ='4 Sviluppo Domanda e Gestione'!G269 -> 0 | N14: ='4 Sviluppo Domanda e Gestione'!H269 -> 0
A15: 22 | B15: CANONE DI DISPONIBILITA' PER RECUPERO SPESE DI GESTIONE E/O INVESTIMENTO | C15: 1 | D15: 1 | E15: =SUM('4 Sviluppo Domanda e Gestione'!D275:D284) -> 0 | F15: 0 | G15: 0 | H15: 0 | I15: 0
B16: TOTALE RICAVI | F16: =SUM(F5:F15) -> 0 | H16: =SUM(H5:H15) -> 0
B17: TOTALE IVA | F17: =SUM(G5:G15) -> 0 | H17: =SUM(I5:I15) -> 0
B18: IVA MEDIA INIZIO GESTIONE E A REGIME | F18: =F17*100/F16/100 ->  | H18: =H17*100/H16/100 ->  | I18: IVA MEDIA TOTALE SU RICAVI | L18: =(F18+H18)/2 -> 
I19: PER IVA MEDIA TOTALE SU COSTI VEDI FOGLIO DI ELABORAZIONE
A20: 12
A21: IVA% | B21: COSTI PER SERVIZI | C21: Descrizione
A22: 22 | B22: 0
A23: 22 | B23: 0
A24: 22 | B24: 0
A25: 0 | B25: 0
A26: 0 | B26: 0
A27: 0 | B27: 0
A28: 0 | B28: 0
A29: 0 | B29: 0
A30: 0 | B30: 0
A31: 0 | B31: 0
A33: IVA% | B33: ONERI DIVERSI DI GESTIONE | C33: Descrizione
A34: 22 | B34: 0
A35: 22 | B35: 0
A36: 22 | B36: 0
B38: CANONE DI CONCESSIONE | E38: Dati per adeguamento ISTAT
A39: 0 | C39: 0 | E39: =B5 -> Ricavi Istituzionali | H39: ='4 Sviluppo Domanda e Gestione'!$G$26 -> Tasso di crescita percentuale annuo della tariffa (Istat) | L39: ='4 Sviluppo Domanda e Gestione'!G27 -> 0.02
A40: 0 | C40: 0 | E40: Ricavi Commerciali | H40: ='4 Sviluppo Domanda e Gestione'!$G$26 -> Tasso di crescita percentuale annuo della tariffa (Istat) | L40: ='4 Sviluppo Domanda e Gestione'!G28 -> 0.02
A41: 0 | E41: Ricavi Bar | H41: ='4 Sviluppo Domanda e Gestione'!$G$26 -> Tasso di crescita percentuale annuo della tariffa (Istat) | L41: ='4 Sviluppo Domanda e Gestione'!G29 -> 0.02
A42: 0 | E42: Proventi diversi/pubblicità | H42: ='4 Sviluppo Domanda e Gestione'!$G$26 -> Tasso di crescita percentuale annuo della tariffa (Istat) | L42: ='4 Sviluppo Domanda e Gestione'!G30 -> 0.02
A43: 0 | E43: b | H43: ='4 Sviluppo Domanda e Gestione'!$G$26 -> Tasso di crescita percentuale annuo della tariffa (Istat) | L43: ='4 Sviluppo Domanda e Gestione'!G31 -> 0.02
A44: 0 | E44: c | H44: ='4 Sviluppo Domanda e Gestione'!$G$26 -> Tasso di crescita percentuale annuo della tariffa (Istat) | L44: ='4 Sviluppo Domanda e Gestione'!G32 -> 0.02
A45: 0 | E45: d | H45: ='4 Sviluppo Domanda e Gestione'!$G$26 -> Tasso di crescita percentuale annuo della tariffa (Istat) | L45: ='4 Sviluppo Domanda e Gestione'!G33 -> 0.02
A46: 0 | E46: e | H46: ='4 Sviluppo Domanda e Gestione'!$G$26 -> Tasso di crescita percentuale annuo della tariffa (Istat) | L46: ='4 Sviluppo Domanda e Gestione'!G34 -> 0.02
E47: f | H47: ='4 Sviluppo Domanda e Gestione'!$G$26 -> Tasso di crescita percentuale annuo della tariffa (Istat) | L47: ='4 Sviluppo Domanda e Gestione'!G35 -> 0.02
E48: g | H48: ='4 Sviluppo Domanda e Gestione'!$G$26 -> Tasso di crescita percentuale annuo della tariffa (Istat) | L48: ='4 Sviluppo Domanda e Gestione'!G36 -> 0.02
E49: CANONE DI DISPONIBILITA' PER RECUPERO SPESE DI GESTIONE E/O INVESTIMENTO | H49: ='4 Sviluppo Domanda e Gestione'!$G$26 -> Tasso di crescita percentuale annuo della tariffa (Istat) | L49: ='4 Sviluppo Domanda e Gestione'!G274 -> 0.02

Sheet 3B Retta Quota Sociale (hidden)
B3: GLI IMPORTI RETTA INDICATI SONO PER I GIORNI DI PRESENZA, IN CASO DI ASSENZA VENGONO RIDOTTI DI € 3,00 AL GIORNO
B4: DIVISIONE PER CLASSE DI FRAGILITA' | C4: Quota Sociale esclusa IVA | D4: Utenti | E4: Quota Sanitaria Giornaliera
B5: 1° Classe SIDI | D5: =SUM(#REF!) ->  | E5: =SUM(C5*D5) -> 
B6: 2° Classe SIDI | D6: =SUM(#REF!) ->  | E6: =SUM(C6*D6) -> 
B7: 3° Classe SIDI | D7: =SUM(#REF!) -> 
B8: 4° Classe SIDI | D8: =SUM(#REF!) -> 
B9: 5° Classe SIDI | E9: 0
C10: =SUM(C5:C9) -> 0 | D10: =SUM(D5:D9) ->  | E10: =SUM(E5:E9) -> 
C12: Valore Medio Quota Sociale | E12: =SUM(C10/5) -> 0

Sheet Base Costi Ricavi (hidden)
B1: ='[2]1 Descrizione Progetto'!B4 -> Concessione per l'affidamento dei lavori di efficientamento energetico della piscina comunale e del successivo servizio di gestione dell'impianto natatorio
D2: 2025 | E2: =SUM(D2+1) -> 2026 | F2: =SUM(E2+1) -> 2027 | G2: 2028 | H2: 2029 | I2: 2030 | J2: 2031 | K2: 2032 | L2: 2033 | M2: 2034 | N2: 2035 | O2: 2036 | P2: 2037 | Q2: 2038 | R2: 2039 | S2: 2040 | T2: 2041 | U2: 2042 | V2: 2043 | W2: 2044 | X2: 2045 | Y2: 2046 | Z2: 2047 | AA2: 2048 | AB2: 2049 | AC2: 2050 | AD2: 2051 | AE2: 2052 | AF2: 2053 | AG2: 2054 | AH2: 2055 | AI2: 2056 | AJ2: 2057 | AK2: 2058 | AL2: 2059 | AM2: 2060
B3: Ricavi di Gestione NON Adeguati Istat | D3: ='[2]1 Descrizione Progetto'!C13 -> 1 | E3: =D3+1 -> 2 | F3: 3 | G3: 4 | H3: 5 | I3: 6 | J3: 7 | K3: 8 | L3: 9 | M3: 10 | N3: 11 | O3: 12 | P3: 13 | Q3: 14 | R3: 15 | S3: 16 | T3: 17 | U3: 18 | V3: 19 | W3: 20 | X3: 21 | Y3: 22 | Z3: 23 | AA3: 24 | AB3: 25 | AC3: 26 | AD3: 27 | AE3: 28 | AF3: 29 | AG3: 30 | AH3: 31 | AI3: 32 | AJ3: 33 | AK3: 34 | AL3: 35 | AM3: 36 | AN3: 37 | AO3: 38 | AP3: 39 | AQ3: 40 | AR3: 41 | AS3: 42 | AT3: 43 | AU3: 44 | AV3: 45 | AW3: 46 | AX3: 47 | AY3: 48 | AZ3: 49 | BA3: 50 | BB3: 51 | BC3: 52 | BD3: 53 | BE3: 54 | BF3: 55 | BG3: 56 | BH3: 57 | BI3: 58 | BJ3: 59 | BK3: 60
A4: IVA | D4: =IF(D3<='[2]1 Descrizione Progetto'!$C$15,"Costruzione",IF('[2]4 Costi e Ricavi'!D3>'[2]1 Descrizione Progetto'!$C$18,"","Gestione")) -> Costruzione | E4: =IF(E3<='[2]1 Descrizione Progetto'!$C$15,"Costruzione",IF('[2]4 Costi e Ricavi'!E3>'[2]1 Descrizione Progetto'!$C$18,"","Gestione")) -> Gestione | F4: =IF(F3<='[2]1 Descrizione Progetto'!$C$15,"Costruzione",IF('[2]4 Costi e Ricavi'!F3>'[2]1 Descrizione Progetto'!$C$18,"","Gestione")) -> Gestione | G4: =IF(G3<='[2]1 Descrizione Progetto'!$C$15,"Costruzione",IF('[2]4 Costi e Ricavi'!G3>'[2]1 Descrizione Progetto'!$C$18,"","Gestione")) -> Gestione | H4: =IF(H3<='[2]1 Descrizione Progetto'!$C$15,"Costruzione",IF('[2]4 Costi e Ricavi'!H3>'[2]1 Descrizione Progetto'!$C$18,"","Gestione")) -> Gestione | I4: =IF(I3<='[2]1 Descrizione Progetto'!$C$15,"Costruzione",IF('[2]4 Costi e Ricavi'!I3>'[2]1 Descrizione Progetto'!$C$18,"","Gestione")) -> Gestione | J4: =IF(J3<='[2]1 Descrizione Progetto'!$C$15,"Costruzione",IF('[2]4 Costi e Ricavi'!J3>'[2]1 Descrizione Progetto'!$C$18,"","Gestione")) -> Gestione | K4: =IF(K3<='[2]1 Descrizione Progetto'!$C$15,"Costruzione",IF('[2]4 Costi e Ricavi'!K3>'[2]1 Descrizione Progetto'!$C$18,"","Gestione")) -> Gestione | L4: =IF(L3<='[2]1 Descrizione Progetto'!$C$15,"Costruzione",IF('[2]4 Costi e Ricavi'!L3>'[2]1 Descrizione Progetto'!$C$18,"","Gestione")) -> Gestione | M4: =IF(M3<='[2]1 Descrizione Progetto'!$C$15,"Costruzione",IF('[2]4 Costi e Ricavi'!M3>'[2]1 Descrizione Progetto'!$C$18,"","Gestione")) -> Gestione | N4: =IF(N3<='[2]1 Descrizione Progetto'!$C$15,"Costruzione",IF('[2]4 Costi e Ricavi'!N3>'[2]1 Descrizione Progetto'!$C$18,"","Gestione")) -> Gestione | O4: =IF(O3<='[2]1 Descrizione Progetto'!$C$15,"Costruzione",IF('[2]4 Costi e Ricavi'!O3>'[2]1 Descrizione Progetto'!$C$18,"","Gestione")) -> Gestione | P4: =IF(P3<='[2]1 Descrizione Progetto'!$C$15,"Costruzione",IF('[2]4 Costi e Ricavi'!P3>'[2]1 Descrizione Progetto'!$C$18,"","Gestione")) -> Gestione | Q4: =IF(Q3<='[2]1 Descrizione Progetto'!$C$15,"Costruzione",IF('[2]4 Costi e Ricavi'!Q3>'[2]1 Descrizione Progetto'!$C$18,"","Gestione")) -> Gestione | R4: =IF(R3<='[2]1 Descrizione Progetto'!$C$15,"Costruzione",IF('[2]4 Costi e Ricavi'!R3>'[2]1 Descrizione Progetto'!$C$18,"","Gestione")) -> Gestione | S4: =IF(S3<='[2]1 Descrizione Progetto'!$C$15,"Costruzione",IF('[2]4 Costi e Ricavi'!S3>'[2]1 Descrizione Progetto'!$C$18,"","Gestione")) ->  | T4: =IF(T3<='[2]1 Descrizione Progetto'!$C$15,"Costruzione",IF('[2]4 Costi e Ricavi'!T3>'[2]1 Descrizione Progetto'!$C$18,"","Gestione")) ->  | U4: =IF(U3<='[2]1 Descrizione Progetto'!$C$15,"Costruzione",IF('[2]4 Costi e Ricavi'!U3>'[2]1 Descrizione Progetto'!$C$18,"","Gestione")) ->  | V4: =IF(V3<='[2]1 Descrizione Progetto'!$C$15,"Costruzione",IF('[2]4 Costi e Ricavi'!V3>'[2]1 Descrizione Progetto'!$C$18,"","Gestione")) ->  | W4: =IF(W3<='[2]1 Descrizione Progetto'!$C$15,"Costruzione",IF('[2]4 Costi e Ricavi'!W3>'[2]1 Descrizione Progetto'!$C$18,"","Gestione")) ->  | X4: =IF(X3<='[2]1 Descrizione Progetto'!$C$15,"Costruzione",IF('[2]4 Costi e Ricavi'!X3>'[2]1 Descrizione Progetto'!$C$18,"","Gestione")) ->  | Y4: =IF(Y3<='[2]1 Descrizione Progetto'!$C$15,"Costruzione",IF('[2]4 Costi e Ricavi'!Y3>'[2]1 Descrizione Progetto'!$C$18,"","Gestione")) ->  | Z4: =IF(Z3<='[2]1 Descrizione Progetto'!$C$15,"Costruzione",IF('[2]4 Costi e Ricavi'!Z3>'[2]1 Descrizione Progetto'!$C$18,"","Gestione")) ->  | AA4: =IF(AA3<='[2]1 Descrizione Progetto'!$C$15,"Costruzione",IF('[2]4 Costi e Ricavi'!AA3>'[2]1 Descrizione Progetto'!$C$18,"","Gestione")) ->  | AB4: =IF(AB3<='[2]1 Descrizione Progetto'!$C$15,"Costruzione",IF('[2]4 Costi e Ricavi'!AB3>'[2]1 Descrizione Progetto'!$C$18,"","Gestione")) ->  | AC4: =IF(AC3<='[2]1 Descrizione Progetto'!$C$15,"Costruzione",IF('[2]4 Costi e Ricavi'!AC3>'[2]1 Descrizione Progetto'!$C$18,"","Gestione")) ->  | AD4: =IF(AD3<='[2]1 Descrizione Progetto'!$C$15,"Costruzione",IF('[2]4 Costi e Ricavi'!AD3>'[2]1 Descrizione Progetto'!$C$18,"","Gestione")) ->  | AE4: =IF(AE3<='[2]1 Descrizione Progetto'!$C$15,"Costruzione",IF('[2]4 Costi e Ricavi'!AE3>'[2]1 Descrizione Progetto'!$C$18,"","Gestione")) ->  | AF4: =IF(AF3<='[2]1 Descrizione Progetto'!$C$15,"Costruzione",IF('[2]4 Costi e Ricavi'!AF3>'[2]1 Descrizione Progetto'!$C$18,"","Gestione")) ->  | AG4: =IF(AG3<='[2]1 Descrizione Progetto'!$C$15,"Costruzione",IF('[2]4 Costi e Ricavi'!AG3>'[2]1 Descrizione Progetto'!$C$18,"","Gestione")) ->  | AH4: =IF(AH3<='[2]1 Descrizione Progetto'!$C$15,"Costruzione",IF('[2]4 Costi e Ricavi'!AH3>'[2]1 Descrizione Progetto'!$C$18,"","Gestione")) ->  | AI4: =IF(AI3<='[2]1 Descrizione Progetto'!$C$15,"Costruzione",IF('[2]4 Costi e Ricavi'!AI3>'[2]1 Descrizione Progetto'!$C$18,"","Gestione")) ->  | AJ4: =IF(AJ3<='[2]1 Descrizione Progetto'!$C$15,"Costruzione",IF('[2]4 Costi e Ricavi'!AJ3>'[2]1 Descrizione Progetto'!$C$18,"","Gestione")) ->  | AK4: =IF(AK3<='[2]1 Descrizione Progetto'!$C$15,"Costruzione",IF('[2]4 Costi e Ricavi'!AK3>'[2]1 Descrizione Progetto'!$C$18,"","Gestione")) ->  | AL4: =IF(AL3<='[2]1 Descrizione Progetto'!$C$15,"Costruzione",IF('[2]4 Costi e Ricavi'!AL3>'[2]1 Descrizione Progetto'!$C$18,"","Gestione")) ->  | AM4: =IF(AM3<='[2]1 Descrizione Progetto'!$C$15,"Costruzione",IF('[2]4 Costi e Ricavi'!AM3>'[2]1 Descrizione Progetto'!$C$18,"","Gestione")) ->  | AN4: =IF(AN3<='[2]1 Descrizione Progetto'!$C$15,"Costruzione",IF('[2]4 Costi e Ricavi'!AN3>'[2]1 Descrizione Progetto'!$C$18,"","Gestione")) ->  | AO4: =IF(AO3<='[2]1 Descrizione Progetto'!$C$15,"Costruzione",IF('[2]4 Costi e Ricavi'!AO3>'[2]1 Descrizione Progetto'!$C$18,"","Gestione")) ->  | AP4: =IF(AP3<='[2]1 Descrizione Progetto'!$C$15,"Costruzione",IF('[2]4 Costi e Ricavi'!AP3>'[2]1 Descrizione Progetto'!$C$18,"","Gestione")) ->  | AQ4: =IF(AQ3<='[2]1 Descrizione Progetto'!$C$15,"Costruzione",IF('[2]4 Costi e Ricavi'!AQ3>'[2]1 Descrizione Progetto'!$C$18,"","Gestione")) ->  | AR4: =IF(AR3<='[2]1 Descrizione Progetto'!$C$15,"Costruzione",IF('[2]4 Costi e Ricavi'!AR3>'[2]1 Descrizione Progetto'!$C$18,"","Gestione")) ->  | AS4: =IF(AS3<='[2]1 Descrizione Progetto'!$C$15,"Costruzione",IF('[2]4 Costi e Ricavi'!AS3>'[2]1 Descrizione Progetto'!$C$18,"","Gestione")) ->  | AT4: =IF(AT3<='[2]1 Descrizione Progetto'!$C$15,"Costruzione",IF('[2]4 Costi e Ricavi'!AT3>'[2]1 Descrizione Progetto'!$C$18,"","Gestione")) ->  | AU4: =IF(AU3<='[2]1 Descrizione Progetto'!$C$15,"Costruzione",IF('[2]4 Costi e Ricavi'!AU3>'[2]1 Descrizione Progetto'!$C$18,"","Gestione")) ->  | AV4: =IF(AV3<='[2]1 Descrizione Progetto'!$C$15,"Costruzione",IF('[2]4 Costi e Ricavi'!AV3>'[2]1 Descrizione Progetto'!$C$18,"","Gestione")) ->  | AW4: =IF(AW3<='[2]1 Descrizione Progetto'!$C$15,"Costruzione",IF('[2]4 Costi e Ricavi'!AW3>'[2]1 Descrizione Progetto'!$C$18,"","Gestione")) ->  | AX4: =IF(AX3<='[2]1 Descrizione Progetto'!$C$15,"Costruzione",IF('[2]4 Costi e Ricavi'!AX3>'[2]1 Descrizione Progetto'!$C$18,"","Gestione")) ->  | AY4: =IF(AY3<='[2]1 Descrizione Progetto'!$C$15,"Costruzione",IF('[2]4 Costi e Ricavi'!AY3>'[2]1 Descrizione Progetto'!$C$18,"","Gestione")) ->  | AZ4: =IF(AZ3<='[2]1 Descrizione Progetto'!$C$15,"Costruzione",IF('[2]4 Costi e Ricavi'!AZ3>'[2]1 Descrizione Progetto'!$C$18,"","Gestione")) ->  | BA4: =IF(BA3<='[2]1 Descrizione Progetto'!$C$15,"Costruzione",IF('[2]4 Costi e Ricavi'!BA3>'[2]1 Descrizione Progetto'!$C$18,"","Gestione")) ->  | BB4: =IF(BB3<='[2]1 Descrizione Progetto'!$C$15,"Costruzione",IF('[2]4 Costi e Ricavi'!BB3>'[2]1 Descrizione Progetto'!$C$18,"","Gestione")) ->  | BC4: =IF(BC3<='[2]1 Descrizione Progetto'!$C$15,"Costruzione",IF('[2]4 Costi e Ricavi'!BC3>'[2]1 Descrizione Progetto'!$C$18,"","Gestione")) ->  | BD4: =IF(BD3<='[2]1 Descrizione Progetto'!$C$15,"Costruzione",IF('[2]4 Costi e Ricavi'!BD3>'[2]1 Descrizione Progetto'!$C$18,"","Gestione")) ->  | BE4: =IF(BE3<='[2]1 Descrizione Progetto'!$C$15,"Costruzione",IF('[2]4 Costi e Ricavi'!BE3>'[2]1 Descrizione Progetto'!$C$18,"","Gestione")) ->  | BF4: =IF(BF3<='[2]1 Descrizione Progetto'!$C$15,"Costruzione",IF('[2]4 Costi e Ricavi'!BF3>'[2]1 Descrizione Progetto'!$C$18,"","Gestione")) ->  | BG4: =IF(BG3<='[2]1 Descrizione Progetto'!$C$15,"Costruzione",IF('[2]4 Costi e Ricavi'!BG3>'[2]1 Descrizione Progetto'!$C$18,"","Gestione")) ->  | BH4: =IF(BH3<='[2]1 Descrizione Progetto'!$C$15,"Costruzione",IF('[2]4 Costi e Ricavi'!BH3>'[2]1 Descrizione Progetto'!$C$18,"","Gestione")) ->  | BI4: =IF(BI3<='[2]1 Descrizione Progetto'!$C$15,"Costruzione",IF('[2]4 Costi e Ricavi'!BI3>'[2]1 Descrizione Progetto'!$C$18,"","Gestione")) ->  | BJ4: =IF(BJ3<='[2]1 Descrizione Progetto'!$C$15,"Costruzione",IF('[2]4 Costi e Ricavi'!BJ3>'[2]1 Descrizione Progetto'!$C$18,"","Gestione")) ->  | BK4: =IF(BK3<='[2]1 Descrizione Progetto'!$C$15,"Costruzione",IF('[2]4 Costi e Ricavi'!BK3>'[2]1 Descrizione Progetto'!$C$18,"","Gestione")) -> 
A5: 0 | B5: Ricavi Istituzionali | D5: 265400 | E5: 285300 | F5: 308481 | G5: =SUM(F5) -> 308481 | H5: =SUM(G5) -> 308481 | I5: 308481 | J5: 308481 | L5: 0 | M5: 0 | N5: 0 | O5: 0 | P5: 0 | Q5: 0 | R5: 0 | S5: =SUM('[2]Dettaglio Costi Ricavi'!T4) -> 0 | T5: =SUM('[2]Dettaglio Costi Ricavi'!U4) -> 0 | U5: =SUM('[2]Dettaglio Costi Ricavi'!V4) -> 0 | V5: =SUM('[2]Dettaglio Costi Ricavi'!W4) -> 0 | W5: =SUM('[2]Dettaglio Costi Ricavi'!X4) -> 0 | X5: =SUM('[2]Dettaglio Costi Ricavi'!Y4) -> 0 | Y5: =SUM('[2]Dettaglio Costi Ricavi'!Z4) -> 0 | Z5: =SUM('[2]Dettaglio Costi Ricavi'!AA4) -> 0 | AA5: =SUM('[2]Dettaglio Costi Ricavi'!AB4) -> 0 | AB5: =SUM('[2]Dettaglio Costi Ricavi'!AC4) -> 0 | AC5: =SUM('[2]Dettaglio Costi Ricavi'!AD4) -> 0 | AD5: =SUM('[2]Dettaglio Costi Ricavi'!AE4) -> 0 | AE5: =SUM('[2]Dettaglio Costi Ricavi'!AF4) -> 0 | AF5: =SUM('[2]Dettaglio Costi Ricavi'!AG4) -> 0 | AG5: =SUM('[2]Dettaglio Costi Ricavi'!AH4) -> 0 | AH5: =SUM('[2]Dettaglio Costi Ricavi'!AI4) -> 0 | AI5: =SUM('[2]Dettaglio Costi Ricavi'!AJ4) -> 0 | AJ5: =SUM('[2]Dettaglio Costi Ricavi'!AK4) -> 0 | AK5: =SUM('[2]Dettaglio Costi Ricavi'!AL4) -> 0 | AL5: =SUM('[2]Dettaglio Costi Ricavi'!AM4) -> 0 | AM5: 0 | AN5: =AM5 -> 0 | AO5: 0 | AP5: 0 | AQ5: 0 | AR5: 0 | AS5: 0 | AT5: 0 | AU5: 0 | AV5: 0 | AW5: 0 | AX5: 0 | AY5: 0 | AZ5: 0 | BA5: 0 | BB5: 0 | BC5: 0 | BD5: =BC5 -> 0 | BE5: 0 | BF5: 0 | BG5: 0 | BH5: 0 | BI5: 0 | BJ5: 0 | BK5: 0
A6: 0.22 | B6: Ricavi Commerciali | D6: 55250 | E6: 64300 | F6: 77096 | G6: =SUM(F6) -> 77096 | H6: 77096 | I6: 77096 | J6: 77096 | L6: 0 | M6: 0 | N6: 0 | O6: 0 | P6: 0 | Q6: 0 | R6: 0 | S6: =SUM('[2]Dettaglio Costi Ricavi'!T5) -> 0 | T6: =SUM('[2]Dettaglio Costi Ricavi'!U5) -> 0 | U6: =SUM('[2]Dettaglio Costi Ricavi'!V5) -> 0 | V6: =SUM('[2]Dettaglio Costi Ricavi'!W5) -> 0 | W6: =SUM('[2]Dettaglio Costi Ricavi'!X5) -> 0 | X6: =SUM('[2]Dettaglio Costi Ricavi'!Y5) -> 0 | Y6: =SUM('[2]Dettaglio Costi Ricavi'!Z5) -> 0 | Z6: =SUM('[2]Dettaglio Costi Ricavi'!AA5) -> 0 | AA6: =SUM('[2]Dettaglio Costi Ricavi'!AB5) -> 0 | AB6: =SUM('[2]Dettaglio Costi Ricavi'!AC5) -> 0 | AC6: =SUM('[2]Dettaglio Costi Ricavi'!AD5) -> 0 | AD6: =SUM('[2]Dettaglio Costi Ricavi'!AE5) -> 0 | AE6: =SUM('[2]Dettaglio Costi Ricavi'!AF5) -> 0 | AF6: =SUM('[2]Dettaglio Costi Ricavi'!AG5) -> 0 | AG6: =SUM('[2]Dettaglio Costi Ricavi'!AH5) -> 0 | AH6: =SUM('[2]Dettaglio Costi Ricavi'!AI5) -> 0 | AI6: =SUM('[2]Dettaglio Costi Ricavi'!AJ5) -> 0 | AJ6: =SUM('[2]Dettaglio Costi Ricavi'!AK5) -> 0 | AK6: =SUM('[2]Dettaglio Costi Ricavi'!AL5) -> 0 | AL6: =SUM('[2]Dettaglio Costi Ricavi'!AM5) -> 0 | AM6: 0 | AN6: 0 | AO6: 0 | AP6: 0 | AQ6: 0 | AR6: 0 | AS6: 0 | AT6: 0 | AU6: 0 | AV6: 0 | AW6: 0 | AX6: 0 | AY6: 0 | AZ6: 0 | BA6: 0 | BB6: 0 | BC6: 0 | BD6: 0 | BE6: 0 | BF6: 0 | BG6: 0 | BH6: 0 | BI6: 0 | BJ6: 0 | BK6: 0
A7: 0.22 | B7: Ricavi Bar | D7: 24600 | E7: 29500 | F7: 36700 | G7: =SUM(F7) -> 36700 | H7: =SUM(G7) -> 36700 | I7: 36700 | J7: 36700 | L7: 0 | M7: 0 | N7: 0 | O7: 0 | P7: 0 | Q7: 0 | R7: 0 | S7: 0 | T7: 0 | U7: 0 | V7: 0 | W7: 0 | X7: 0 | Y7: 0 | Z7: 0 | AA7: 0 | AB7: 0 | AC7: 0 | AD7: 0 | AE7: 0 | AF7: 0 | AG7: 0 | AH7: 0 | AI7: 0 | AJ7: 0 | AK7: 0 | AL7: 0 | AM7: 0 | AN7: 0 | AO7: 0 | AP7: 0 | AQ7: 0 | AR7: 0 | AS7: 0 | AT7: 0 | AU7: 0 | AV7: 0 | AW7: 0 | AX7: 0 | AY7: 0 | AZ7: 0 | BA7: 0 | BB7: 0 | BC7: 0 | BD7: 0 | BE7: 0 | BF7: 0 | BG7: 0 | BH7: 0 | BI7: 0 | BJ7: 0 | BK7: 0
A8: 0.22 | B8: Proventi diversi/pubblicità | D8: 0 | E8: 2500 | F8: =SUM(E8) -> 2500 | G8: =SUM(F8) -> 2500 | H8: 2500 | I8: 2500 | J8: =SUM(I8) -> 2500 | L8: 0 | M8: 0 | N8: 0 | O8: 0 | P8: 0 | Q8: 0 | R8: 0 | S8: 0 | T8: 0 | U8: 0 | V8: 0 | W8: 0 | X8: 0 | Y8: 0 | Z8: 0 | AA8: 0 | AB8: 0 | AC8: 0 | AD8: 0 | AE8: 0 | AF8: 0 | AG8: 0 | AH8: 0 | AI8: 0 | AJ8: 0 | AK8: 0 | AL8: 0 | AM8: 0 | AN8: 0 | AO8: 0 | AP8: 0 | AQ8: 0 | AR8: 0 | AS8: 0 | AT8: 0 | AU8: 0 | AV8: 0 | AW8: 0 | AX8: 0 | AY8: 0 | AZ8: 0 | BA8: 0 | BB8: 0 | BC8: 0 | BD8: 0 | BE8: 0 | BF8: 0 | BG8: 0 | BH8: 0 | BI8: 0 | BJ8: 0 | BK8: 0
A9: 0.22 | B9: Affitto fisioterapia | D9: 0 | E9: 0 | F9: 0 | G9: 0 | H9: 0 | I9: 0 | J9: 0 | L9: 0 | M9: 0 | N9: 0 | O9: 0 | P9: 0 | Q9: 0 | R9: 0 | S9: 0 | T9: 0 | U9: 0 | V9: 0 | W9: 0 | X9: 0 | Y9: 0 | Z9: 0 | AA9: 0 | AB9: 0 | AC9: 0 | AD9: 0 | AE9: 0 | AF9: 0 | AG9: 0 | AH9: 0 | AI9: 0 | AJ9: 0 | AK9: 0 | AL9: 0 | AM9: 0 | AN9: 0 | AO9: 0 | AP9: 0 | AQ9: 0 | AR9: 0 | AS9: 0 | AT9: 0 | AU9: 0 | AV9: 0 | AW9: 0 | AX9: 0 | AY9: 0 | AZ9: 0 | BA9: 0 | BB9: 0 | BC9: 0 | BD9: 0 | BE9: 0 | BF9: 0 | BG9: 0 | BH9: 0 | BI9: 0 | BJ9: 0 | BK9: 0
A10: 0.22 | B10: Corrispettivi da corsi | D10: 0 | E10: 0 | F10: 0 | G10: 0 | H10: 0 | I10: 0 | J10: 0 | L10: 0 | M10: 0 | N10: 0 | O10: 0 | P10: 0 | Q10: 0 | R10: 0 | S10: 0 | T10: 0 | U10: 0 | V10: 0 | W10: 0 | X10: 0 | Y10: 0 | Z10: 0 | AA10: 0 | AB10: 0 | AC10: 0 | AD10: 0 | AE10: 0 | AF10: 0 | AG10: 0 | AH10: 0 | AI10: 0 | AJ10: 0 | AK10: 0 | AL10: 0 | AM10: 0 | AN10: 0 | AO10: 0 | AP10: 0 | AQ10: 0 | AR10: 0 | AS10: 0 | AT10: 0 | AU10: 0 | AV10: 0 | AW10: 0 | AX10: 0 | AY10: 0 | AZ10: 0 | BA10: 0 | BB10: 0 | BC10: 0 | BD10: 0 | BE10: 0 | BF10: 0 | BG10: 0 | BH10: 0 | BI10: 0 | BJ10: 0 | BK10: 0
A11: 0.22 | B11: Corrispettivi da campus sportivo | D11: 0 | E11: 0 | F11: 0 | G11: 0 | H11: 0 | I11: 0 | J11: 0 | L11: 0 | M11: 0 | N11: 0 | O11: 0 | P11: 0 | Q11: 0 | R11: 0 | S11: 0 | T11: 0 | U11: 0 | V11: 0 | W11: 0 | X11: 0 | Y11: 0 | Z11: 0 | AA11: 0 | AB11: 0 | AC11: 0 | AD11: 0 | AE11: 0 | AF11: 0 | AG11: 0 | AH11: 0 | AI11: 0 | AJ11: 0 | AK11: 0 | AL11: 0 | AM11: 0 | AN11: 0 | AO11: 0 | AP11: 0 | AQ11: 0 | AR11: 0 | AS11: 0 | AT11: 0 | AU11: 0 | AV11: 0 | AW11: 0 | AX11: 0 | AY11: 0 | AZ11: 0 | BA11: 0 | BB11: 0 | BC11: 0 | BD11: 0 | BE11: 0 | BF11: 0 | BG11: 0 | BH11: 0 | BI11: 0 | BJ11: 0 | BK11: 0
A12: 0.22 | B12: Altri ricavi | D12: 0 | E12: 0 | F12: 0 | G12: 0 | H12: 0 | I12: 0 | J12: 0 | L12: 0 | M12: 0 | N12: 0 | O12: 0 | P12: 0 | Q12: 0 | R12: 0 | S12: 0 | T12: 0 | U12: 0 | V12: 0 | W12: 0 | X12: 0 | Y12: 0 | Z12: 0 | AA12: 0 | AB12: 0 | AC12: 0 | AD12: 0 | AE12: 0 | AF12: 0 | AG12: 0 | AH12: 0 | AI12: 0 | AJ12: 0 | AK12: 0 | AL12: 0 | AM12: 0 | AN12: 0 | AO12: 0 | AP12: 0 | AQ12: 0 | AR12: 0 | AS12: 0 | AT12: 0 | AU12: 0 | AV12: 0 | AW12: 0 | AX12: 0 | AY12: 0 | AZ12: 0 | BA12: 0 | BB12: 0 | BC12: 0 | BD12: 0 | BE12: 0 | BF12: 0 | BG12: 0 | BH12: 0 | BI12: 0 | BJ12: 0 | BK12: 0
A13: 0.22 | B13: Proventi diversi/pubblicità | D13: 0 | E13: 0 | F13: =SUM(E13) -> 0 | G13: =SUM(F13) -> 0 | H13: 0 | I13: 0 | J13: 0 | L13: 0 | M13: 0 | N13: 0 | O13: 0 | P13: 0 | Q13: 0 | R13: 0 | S13: 0 | T13: 0 | U13: 0 | V13: 0 | W13: 0 | X13: 0 | Y13: 0 | Z13: 0 | AA13: 0 | AB13: 0 | AC13: 0 | AD13: 0 | AE13: 0 | AF13: 0 | AG13: 0 | AH13: 0 | AI13: 0 | AJ13: 0 | AK13: 0 | AL13: 0 | AM13: 0 | AN13: 0 | AO13: 0 | AP13: 0 | AQ13: 0 | AR13: 0 | AS13: 0 | AT13: 0 | AU13: 0 | AV13: 0 | AW13: 0 | AX13: 0 | AY13: 0 | AZ13: 0 | BA13: 0 | BB13: 0 | BC13: 0 | BD13: 0 | BE13: 0 | BF13: 0 | BG13: 0 | BH13: 0 | BI13: 0 | BJ13: 0 | BK13: 0
A14: 0.22 | B14: Altro | D14: 0 | E14: 0 | F14: 0 | G14: 0 | H14: 0 | I14: 0 | J14: 0 | L14: 0 | M14: 0 | N14: 0 | O14: 0 | P14: 0 | Q14: 0 | R14: 0 | S14: 0 | T14: 0 | U14: 0 | V14: 0 | W14: 0 | X14: 0 | Y14: 0 | Z14: 0 | AA14: 0 | AB14: 0 | AC14: 0 | AD14: 0 | AE14: 0 | AF14: 0 | AG14: 0 | AH14: 0 | AI14: 0 | AJ14: 0 | AK14: 0 | AL14: 0 | AM14: 0 | AN14: 0 | AO14: 0 | AP14: 0 | AQ14: 0 | AR14: 0 | AS14: 0 | AT14: 0 | AU14: 0 | AV14: 0 | AW14: 0 | AX14: 0 | AY14: 0 | AZ14: 0 | BA14: 0 | BB14: 0 | BC14: 0 | BD14: 0 | BE14: 0 | BF14: 0 | BG14: 0 | BH14: 0 | BI14: 0 | BJ14: 0 | BK14: 0
B15: Totale Ricavi di Gestione | D15: =SUM(D5:D14) -> 345250 | E15: 381600 | F15: 424777 | G15: 424777 | H15: 424777 | I15: 424777 | J15: 424777 | K15: 0 | L15: 0 | M15: 0 | N15: 0 | O15: 0 | P15: 0 | Q15: 0 | R15: 0 | S15: 0 | T15: 0 | U15: 0 | V15: 0 | W15: 0 | X15: 0 | Y15: 0 | Z15: 0 | AA15: 0 | AB15: 0 | AC15: 0 | AD15: 0 | AE15: 0 | AF15: 0 | AG15: 0 | AH15: 0 | AI15: 0 | AJ15: 0 | AK15: 0 | AL15: 0 | AM15: 0 | AN15: 0 | AO15: 0 | AP15: 0 | AQ15: 0 | AR15: 0 | AS15: 0 | AT15: 0 | AU15: 0 | AV15: 0 | AW15: 0 | AX15: 0 | AY15: 0 | AZ15: 0 | BA15: 0 | BB15: 0 | BC15: 0 | BD15: 0 | BE15: 0 | BF15: 0 | BG15: 0 | BH15: 0 | BI15: 0 | BJ15: 0 | BK15: 0
B16: IVA Media sui Ricavi | D16: =IF(SUM(D5:D14)=0,0,D5*$A$5/D15+D6*$A$6/D15+D7*$A$7/D15+D8*$A$8/D15+D9*$A$9/D15+D10*$A$10/D15+D11*$A$11/D15+D12*$A$12/D15+D13*$A$13/D15+D14*$A$14/D15) -> 0.05088196959 | E16: 0.05551886792 | F16: 0.06023188638 | G16: 0.06023188638 | H16: 0.06023188638 | I16: 0.06023188638 | J16: 0.06023188638 | K16: 0 | L16: 0 | M16: 0 | N16: 0 | O16: 0 | P16: 0 | Q16: 0 | R16: 0 | S16: 0 | T16: 0 | U16: 0 | V16: 0 | W16: 0 | X16: 0 | Y16: 0 | Z16: 0 | AA16: 0 | AB16: 0 | AC16: 0 | AD16: 0 | AE16: 0 | AF16: 0 | AG16: 0 | AH16: 0 | AI16: 0 | AJ16: =IF(SUM(AJ5:AJ14)=0,0,AJ5*$A$5/AJ15+AJ6*$A$6/AJ15+AJ7*$A$7/AJ15+AJ8*$A$8/AJ15+AJ9*$A$9/AJ15+AJ10*$A$10/AJ15+AJ11*$A$11/AJ15+AJ12*$A$12/AJ15+AJ13*$A$13/AJ15+AJ14*$A$14/AJ15) -> 0 | AK16: 0 | AL16: 0 | AM16: 0 | AN16: 0 | AO16: 0 | AP16: 0 | AQ16: 0 | AR16: 0 | AS16: 0 | AT16: 0 | AU16: 0 | AV16: 0 | AW16: 0 | AX16: 0 | AY16: 0 | AZ16: 0 | BA16: 0 | BB16: 0 | BC16: 0 | BD16: 0 | BE16: 0 | BF16: 0 | BG16: 0 | BH16: 0 | BI16: 0 | BJ16: 0 | BK16: 0
A18: =A3+1 -> 1 | B18: Costi di Gestione NON Adeguati Istat | D18: =D3 -> 1 | E18: 2 | F18: 3 | G18: 4 | H18: 5 | I18: 6 | J18: 7 | K18: 8 | L18: 9 | M18: 10 | N18: 11 | O18: 12 | P18: 13 | Q18: 14 | R18: 15 | S18: 16 | T18: 17 | U18: 18 | V18: 19 | W18: 20 | X18: 21 | Y18: 22 | Z18: 23 | AA18: 24 | AB18: 25 | AC18: 26 | AD18: 27 | AE18: 28 | AF18: 29 | AG18: 30 | AH18: 31 | AI18: 32 | AJ18: 33 | AK18: 34 | AL18: 35 | AM18: 36 | AN18: 37 | AO18: 38 | AP18: 39 | AQ18: 40 | AR18: 41 | AS18: 42 | AT18: 43 | AU18: 44 | AV18: 45 | AW18: 46 | AX18: 47 | AY18: 48 | AZ18: 49 | BA18: 50 | BB18: 51 | BC18: 52 | BD18: 53 | BE18: 54 | BF18: 55 | BG18: 56 | BH18: 57 | BI18: 58 | BJ18: 59 | BK18: 60
A19: IVA | D19: =IF(D18<='[2]1 Descrizione Progetto'!$C$15,"Costruzione",IF('[2]4 Costi e Ricavi'!D18>'[2]1 Descrizione Progetto'!$C$18,"","Gestione")) -> Costruzione | E19: =IF(E18<='[2]1 Descrizione Progetto'!$C$15,"Costruzione",IF('[2]4 Costi e Ricavi'!E18>'[2]1 Descrizione Progetto'!$C$18,"","Gestione")) -> Gestione | F19: =IF(F18<='[2]1 Descrizione Progetto'!$C$15,"Costruzione",IF('[2]4 Costi e Ricavi'!F18>'[2]1 Descrizione Progetto'!$C$18,"","Gestione")) -> Gestione | G19: =IF(G18<='[2]1 Descrizione Progetto'!$C$15,"Costruzione",IF('[2]4 Costi e Ricavi'!G18>'[2]1 Descrizione Progetto'!$C$18,"","Gestione")) -> Gestione | H19: =IF(H18<='[2]1 Descrizione Progetto'!$C$15,"Costruzione",IF('[2]4 Costi e Ricavi'!H18>'[2]1 Descrizione Progetto'!$C$18,"","Gestione")) -> Gestione | I19: =IF(I18<='[2]1 Descrizione Progetto'!$C$15,"Costruzione",IF('[2]4 Costi e Ricavi'!I18>'[2]1 Descrizione Progetto'!$C$18,"","Gestione")) -> Gestione | J19: =IF(J18<='[2]1 Descrizione Progetto'!$C$15,"Costruzione",IF('[2]4 Costi e Ricavi'!J18>'[2]1 Descrizione Progetto'!$C$18,"","Gestione")) -> Gestione | K19: =IF(K18<='[2]1 Descrizione Progetto'!$C$15,"Costruzione",IF('[2]4 Costi e Ricavi'!K18>'[2]1 Descrizione Progetto'!$C$18,"","Gestione")) -> Gestione | L19: =IF(L18<='[2]1 Descrizione Progetto'!$C$15,"Costruzione",IF('[2]4 Costi e Ricavi'!L18>'[2]1 Descrizione Progetto'!$C$18,"","Gestione")) -> Gestione | M19: =IF(M18<='[2]1 Descrizione Progetto'!$C$15,"Costruzione",IF('[2]4 Costi e Ricavi'!M18>'[2]1 Descrizione Progetto'!$C$18,"","Gestione")) -> Gestione | N19: =IF(N18<='[2]1 Descrizione Progetto'!$C$15,"Costruzione",IF('[2]4 Costi e Ricavi'!N18>'[2]1 Descrizione Progetto'!$C$18,"","Gestione")) -> Gestione | O19: =IF(O18<='[2]1 Descrizione Progetto'!$C$15,"Costruzione",IF('[2]4 Costi e Ricavi'!O18>'[2]1 Descrizione Progetto'!$C$18,"","Gestione")) -> Gestione | P19: =IF(P18<='[2]1 Descrizione Progetto'!$C$15,"Costruzione",IF('[2]4 Costi e Ricavi'!P18>'[2]1 Descrizione Progetto'!$C$18,"","Gestione")) -> Gestione | Q19: =IF(Q18<='[2]1 Descrizione Progetto'!$C$15,"Costruzione",IF('[2]4 Costi e Ricavi'!Q18>'[2]1 Descrizione Progetto'!$C$18,"","Gestione")) -> Gestione | R19: =IF(R18<='[2]1 Descrizione Progetto'!$C$15,"Costruzione",IF('[2]4 Costi e Ricavi'!R18>'[2]1 Descrizione Progetto'!$C$18,"","Gestione")) -> Gestione | S19: =IF(S18<='[2]1 Descrizione Progetto'!$C$15,"Costruzione",IF('[2]4 Costi e Ricavi'!S18>'[2]1 Descrizione Progetto'!$C$18,"","Gestione")) ->  | T19: =IF(T18<='[2]1 Descrizione Progetto'!$C$15,"Costruzione",IF('[2]4 Costi e Ricavi'!T18>'[2]1 Descrizione Progetto'!$C$18,"","Gestione")) ->  | U19: =IF(U18<='[2]1 Descrizione Progetto'!$C$15,"Costruzione",IF('[2]4 Costi e Ricavi'!U18>'[2]1 Descrizione Progetto'!$C$18,"","Gestione")) ->  | V19: =IF(V18<='[2]1 Descrizione Progetto'!$C$15,"Costruzione",IF('[2]4 Costi e Ricavi'!V18>'[2]1 Descrizione Progetto'!$C$18,"","Gestione")) ->  | W19: =IF(W18<='[2]1 Descrizione Progetto'!$C$15,"Costruzione",IF('[2]4 Costi e Ricavi'!W18>'[2]1 Descrizione Progetto'!$C$18,"","Gestione")) ->  | X19: =IF(X18<='[2]1 Descrizione Progetto'!$C$15,"Costruzione",IF('[2]4 Costi e Ricavi'!X18>'[2]1 Descrizione Progetto'!$C$18,"","Gestione")) ->  | Y19: =IF(Y18<='[2]1 Descrizione Progetto'!$C$15,"Costruzione",IF('[2]4 Costi e Ricavi'!Y18>'[2]1 Descrizione Progetto'!$C$18,"","Gestione")) ->  | Z19: =IF(Z18<='[2]1 Descrizione Progetto'!$C$15,"Costruzione",IF('[2]4 Costi e Ricavi'!Z18>'[2]1 Descrizione Progetto'!$C$18,"","Gestione")) ->  | AA19: =IF(AA18<='[2]1 Descrizione Progetto'!$C$15,"Costruzione",IF('[2]4 Costi e Ricavi'!AA18>'[2]1 Descrizione Progetto'!$C$18,"","Gestione")) ->  | AB19: =IF(AB18<='[2]1 Descrizione Progetto'!$C$15,"Costruzione",IF('[2]4 Costi e Ricavi'!AB18>'[2]1 Descrizione Progetto'!$C$18,"","Gestione")) ->  | AC19: =IF(AC18<='[2]1 Descrizione Progetto'!$C$15,"Costruzione",IF('[2]4 Costi e Ricavi'!AC18>'[2]1 Descrizione Progetto'!$C$18,"","Gestione")) ->  | AD19: =IF(AD18<='[2]1 Descrizione Progetto'!$C$15,"Costruzione",IF('[2]4 Costi e Ricavi'!AD18>'[2]1 Descrizione Progetto'!$C$18,"","Gestione")) ->  | AE19: =IF(AE18<='[2]1 Descrizione Progetto'!$C$15,"Costruzione",IF('[2]4 Costi e Ricavi'!AE18>'[2]1 Descrizione Progetto'!$C$18,"","Gestione")) ->  | AF19: =IF(AF18<='[2]1 Descrizione Progetto'!$C$15,"Costruzione",IF('[2]4 Costi e Ricavi'!AF18>'[2]1 Descrizione Progetto'!$C$18,"","Gestione")) ->  | AG19: =IF(AG18<='[2]1 Descrizione Progetto'!$C$15,"Costruzione",IF('[2]4 Costi e Ricavi'!AG18>'[2]1 Descrizione Progetto'!$C$18,"","Gestione")) ->  | AH19: =IF(AH18<='[2]1 Descrizione Progetto'!$C$15,"Costruzione",IF('[2]4 Costi e Ricavi'!AH18>'[2]1 Descrizione Progetto'!$C$18,"","Gestione")) ->  | AI19: =IF(AI18<='[2]1 Descrizione Progetto'!$C$15,"Costruzione",IF('[2]4 Costi e Ricavi'!AI18>'[2]1 Descrizione Progetto'!$C$18,"","Gestione")) ->  | AJ19: =IF(AJ18<='[2]1 Descrizione Progetto'!$C$15,"Costruzione",IF('[2]4 Costi e Ricavi'!AJ18>'[2]1 Descrizione Progetto'!$C$18,"","Gestione")) ->  | AK19: =IF(AK18<='[2]1 Descrizione Progetto'!$C$15,"Costruzione",IF('[2]4 Costi e Ricavi'!AK18>'[2]1 Descrizione Progetto'!$C$18,"","Gestione")) ->  | AL19: =IF(AL18<='[2]1 Descrizione Progetto'!$C$15,"Costruzione",IF('[2]4 Costi e Ricavi'!AL18>'[2]1 Descrizione Progetto'!$C$18,"","Gestione")) ->  | AM19: =IF(AM18<='[2]1 Descrizione Progetto'!$C$15,"Costruzione",IF('[2]4 Costi e Ricavi'!AM18>'[2]1 Descrizione Progetto'!$C$18,"","Gestione")) ->  | AN19: =IF(AN18<='[2]1 Descrizione Progetto'!$C$15,"Costruzione",IF('[2]4 Costi e Ricavi'!AN18>'[2]1 Descrizione Progetto'!$C$18,"","Gestione")) ->  | AO19: =IF(AO18<='[2]1 Descrizione Progetto'!$C$15,"Costruzione",IF('[2]4 Costi e Ricavi'!AO18>'[2]1 Descrizione Progetto'!$C$18,"","Gestione")) ->  | AP19: =IF(AP18<='[2]1 Descrizione Progetto'!$C$15,"Costruzione",IF('[2]4 Costi e Ricavi'!AP18>'[2]1 Descrizione Progetto'!$C$18,"","Gestione")) ->  | AQ19: =IF(AQ18<='[2]1 Descrizione Progetto'!$C$15,"Costruzione",IF('[2]4 Costi e Ricavi'!AQ18>'[2]1 Descrizione Progetto'!$C$18,"","Gestione")) ->  | AR19: =IF(AR18<='[2]1 Descrizione Progetto'!$C$15,"Costruzione",IF('[2]4 Costi e Ricavi'!AR18>'[2]1 Descrizione Progetto'!$C$18,"","Gestione")) ->  | AS19: =IF(AS18<='[2]1 Descrizione Progetto'!$C$15,"Costruzione",IF('[2]4 Costi e Ricavi'!AS18>'[2]1 Descrizione Progetto'!$C$18,"","Gestione")) ->  | AT19: =IF(AT18<='[2]1 Descrizione Progetto'!$C$15,"Costruzione",IF('[2]4 Costi e Ricavi'!AT18>'[2]1 Descrizione Progetto'!$C$18,"","Gestione")) ->  | AU19: =IF(AU18<='[2]1 Descrizione Progetto'!$C$15,"Costruzione",IF('[2]4 Costi e Ricavi'!AU18>'[2]1 Descrizione Progetto'!$C$18,"","Gestione")) ->  | AV19: =IF(AV18<='[2]1 Descrizione Progetto'!$C$15,"Costruzione",IF('[2]4 Costi e Ricavi'!AV18>'[2]1 Descrizione Progetto'!$C$18,"","Gestione")) ->  | AW19: =IF(AW18<='[2]1 Descrizione Progetto'!$C$15,"Costruzione",IF('[2]4 Costi e Ricavi'!AW18>'[2]1 Descrizione Progetto'!$C$18,"","Gestione")) ->  | AX19: =IF(AX18<='[2]1 Descrizione Progetto'!$C$15,"Costruzione",IF('[2]4 Costi e Ricavi'!AX18>'[2]1 Descrizione Progetto'!$C$18,"","Gestione")) ->  | AY19: =IF(AY18<='[2]1 Descrizione Progetto'!$C$15,"Costruzione",IF('[2]4 Costi e Ricavi'!AY18>'[2]1 Descrizione Progetto'!$C$18,"","Gestione")) ->  | AZ19: =IF(AZ18<='[2]1 Descrizione Progetto'!$C$15,"Costruzione",IF('[2]4 Costi e Ricavi'!AZ18>'[2]1 Descrizione Progetto'!$C$18,"","Gestione")) ->  | BA19: =IF(BA18<='[2]1 Descrizione Progetto'!$C$15,"Costruzione",IF('[2]4 Costi e Ricavi'!BA18>'[2]1 Descrizione Progetto'!$C$18,"","Gestione")) ->  | BB19: =IF(BB18<='[2]1 Descrizione Progetto'!$C$15,"Costruzione",IF('[2]4 Costi e Ricavi'!BB18>'[2]1 Descrizione Progetto'!$C$18,"","Gestione")) ->  | BC19: =IF(BC18<='[2]1 Descrizione Progetto'!$C$15,"Costruzione",IF('[2]4 Costi e Ricavi'!BC18>'[2]1 Descrizione Progetto'!$C$18,"","Gestione")) ->  | BD19: =IF(BD18<='[2]1 Descrizione Progetto'!$C$15,"Costruzione",IF('[2]4 Costi e Ricavi'!BD18>'[2]1 Descrizione Progetto'!$C$18,"","Gestione")) ->  | BE19: =IF(BE18<='[2]1 Descrizione Progetto'!$C$15,"Costruzione",IF('[2]4 Costi e Ricavi'!BE18>'[2]1 Descrizione Progetto'!$C$18,"","Gestione")) ->  | BF19: =IF(BF18<='[2]1 Descrizione Progetto'!$C$15,"Costruzione",IF('[2]4 Costi e Ricavi'!BF18>'[2]1 Descrizione Progetto'!$C$18,"","Gestione")) ->  | BG19: =IF(BG18<='[2]1 Descrizione Progetto'!$C$15,"Costruzione",IF('[2]4 Costi e Ricavi'!BG18>'[2]1 Descrizione Progetto'!$C$18,"","Gestione")) ->  | BH19: =IF(BH18<='[2]1 Descrizione Progetto'!$C$15,"Costruzione",IF('[2]4 Costi e Ricavi'!BH18>'[2]1 Descrizione Progetto'!$C$18,"","Gestione")) ->  | BI19: =IF(BI18<='[2]1 Descrizione Progetto'!$C$15,"Costruzione",IF('[2]4 Costi e Ricavi'!BI18>'[2]1 Descrizione Progetto'!$C$18,"","Gestione")) ->  | BJ19: =IF(BJ18<='[2]1 Descrizione Progetto'!$C$15,"Costruzione",IF('[2]4 Costi e Ricavi'!BJ18>'[2]1 Descrizione Progetto'!$C$18,"","Gestione")) ->  | BK19: =IF(BK18<='[2]1 Descrizione Progetto'!$C$15,"Costruzione",IF('[2]4 Costi e Ricavi'!BK18>'[2]1 Descrizione Progetto'!$C$18,"","Gestione")) -> 
A20: 0 | B20: Costi del personale | C20: 0.35 | D20: =SUM($F$15*$C20) -> 148671.95 | E20: =SUM(D20) -> 148671.95 | F20: =SUM(E20) -> 148671.95 | G20: 148671.95 | H20: 148671.95 | I20: 148671.95 | J20: 148671.95 | K20: 148671.95 | L20: 148671.95 | M20: 148671.95 | N20: 148671.95 | O20: 148671.95 | P20: 148671.95 | Q20: 148671.95 | R20: 148671.95 | S20: =SUM('[2]Dettaglio Costi Ricavi'!T12) -> 0 | T20: =SUM('[2]Dettaglio Costi Ricavi'!U12) -> 0 | U20: =SUM('[2]Dettaglio Costi Ricavi'!V12) -> 0 | V20: =SUM('[2]Dettaglio Costi Ricavi'!W12) -> 0 | W20: =SUM('[2]Dettaglio Costi Ricavi'!X12) -> 0 | X20: =SUM('[2]Dettaglio Costi Ricavi'!Y12) -> 0 | Y20: =SUM('[2]Dettaglio Costi Ricavi'!Z12) -> 0 | Z20: =SUM('[2]Dettaglio Costi Ricavi'!AA12) -> 0 | AA20: =SUM('[2]Dettaglio Costi Ricavi'!AB12) -> 0 | AB20: =SUM('[2]Dettaglio Costi Ricavi'!AC12) -> 0 | AC20: =SUM('[2]Dettaglio Costi Ricavi'!AD12) -> 0 | AD20: =SUM('[2]Dettaglio Costi Ricavi'!AE12) -> 0 | AE20: =SUM('[2]Dettaglio Costi Ricavi'!AF12) -> 0 | AF20: =SUM('[2]Dettaglio Costi Ricavi'!AG12) -> 0 | AG20: =SUM('[2]Dettaglio Costi Ricavi'!AH12) -> 0 | AH20: =SUM('[2]Dettaglio Costi Ricavi'!AI12) -> 0 | AI20: =SUM('[2]Dettaglio Costi Ricavi'!AJ12) -> 0 | AJ20: =SUM('[2]Dettaglio Costi Ricavi'!AK12) -> 0 | AK20: =SUM('[2]Dettaglio Costi Ricavi'!AL12) -> 0 | AL20: =SUM('[2]Dettaglio Costi Ricavi'!AM12) -> 0
A21: 0.22 | B21: Manutenzioni | C21: 0.038 | D21: =SUM($F$15*C21) -> 16141.526 | E21: =SUM(D21) -> 16141.526 | F21: =SUM(E21) -> 16141.526 | G21: 16141.526 | H21: 16141.526 | I21: 16141.526 | J21: 16141.526 | K21: 16141.526 | L21: 16141.526 | M21: 16141.526 | N21: 16141.526 | O21: 16141.526 | P21: 16141.526 | Q21: 16141.526 | R21: 16141.526 | S21: =SUM('[2]Dettaglio Costi Ricavi'!T8) -> 0 | T21: =SUM('[2]Dettaglio Costi Ricavi'!U8) -> 0 | U21: =SUM('[2]Dettaglio Costi Ricavi'!V8) -> 0 | V21: =SUM('[2]Dettaglio Costi Ricavi'!W8) -> 0 | W21: =SUM('[2]Dettaglio Costi Ricavi'!X8) -> 0 | X21: =SUM('[2]Dettaglio Costi Ricavi'!Y8) -> 0 | Y21: =SUM('[2]Dettaglio Costi Ricavi'!Z8) -> 0 | Z21: =SUM('[2]Dettaglio Costi Ricavi'!AA8) -> 0 | AA21: =SUM('[2]Dettaglio Costi Ricavi'!AB8) -> 0 | AB21: =SUM('[2]Dettaglio Costi Ricavi'!AC8) -> 0 | AC21: =SUM('[2]Dettaglio Costi Ricavi'!AD8) -> 0 | AD21: =SUM('[2]Dettaglio Costi Ricavi'!AE8) -> 0 | AE21: =SUM('[2]Dettaglio Costi Ricavi'!AF8) -> 0 | AF21: =SUM('[2]Dettaglio Costi Ricavi'!AG8) -> 0 | AG21: =SUM('[2]Dettaglio Costi Ricavi'!AH8) -> 0 | AH21: =SUM('[2]Dettaglio Costi Ricavi'!AI8) -> 0 | AI21: =SUM('[2]Dettaglio Costi Ricavi'!AJ8) -> 0 | AJ21: =SUM('[2]Dettaglio Costi Ricavi'!AK8) -> 0 | AK21: =SUM('[2]Dettaglio Costi Ricavi'!AL8) -> 0 | AL21: =SUM('[2]Dettaglio Costi Ricavi'!AM8) -> 0
A22: 0.22 | B22: Acquisti Bar | C22: 0.48 | D22: =SUM(D7*$C$22) -> 11808 | E22: 14160 | F22: 17616 | G22: 17616 | H22: 17616 | I22: 17616 | J22: 17616 | K22: 0 | L22: 0 | M22: 0 | N22: 0 | O22: 0 | P22: 0 | Q22: 0 | R22: 0
A23: 0.22 | B23: Utenze | C23: 0.25 | D23: =SUM($F$15*C23) -> 106194.25 | E23: =SUM(D23) -> 106194.25 | F23: =SUM(E23) -> 106194.25 | G23: 106194.25 | H23: 106194.25 | I23: 106194.25 | J23: 106194.25 | K23: 106194.25 | L23: 106194.25 | M23: 106194.25 | N23: 106194.25 | O23: 106194.25 | P23: 106194.25 | Q23: 106194.25 | R23: 106194.25 | S23: =SUM('[2]Dettaglio Costi Ricavi'!T9) -> 0 | T23: =SUM('[2]Dettaglio Costi Ricavi'!U9) -> 0 | U23: =SUM('[2]Dettaglio Costi Ricavi'!V9) -> 0 | V23: =SUM('[2]Dettaglio Costi Ricavi'!W9) -> 0 | W23: =SUM('[2]Dettaglio Costi Ricavi'!X9) -> 0 | X23: =SUM('[2]Dettaglio Costi Ricavi'!Y9) -> 0 | Y23: =SUM('[2]Dettaglio Costi Ricavi'!Z9) -> 0 | Z23: =SUM('[2]Dettaglio Costi Ricavi'!AA9) -> 0 | AA23: =SUM('[2]Dettaglio Costi Ricavi'!AB9) -> 0 | AB23: =SUM('[2]Dettaglio Costi Ricavi'!AC9) -> 0 | AC23: =SUM('[2]Dettaglio Costi Ricavi'!AD9) -> 0 | AD23: =SUM('[2]Dettaglio Costi Ricavi'!AE9) -> 0 | AE23: =SUM('[2]Dettaglio Costi Ricavi'!AF9) -> 0 | AF23: =SUM('[2]Dettaglio Costi Ricavi'!AG9) -> 0 | AG23: =SUM('[2]Dettaglio Costi Ricavi'!AH9) -> 0 | AH23: =SUM('[2]Dettaglio Costi Ricavi'!AI9) -> 0 | AI23: =SUM('[2]Dettaglio Costi Ricavi'!AJ9) -> 0 | AJ23: =SUM('[2]Dettaglio Costi Ricavi'!AK9) -> 0 | AK23: =SUM('[2]Dettaglio Costi Ricavi'!AL9) -> 0 | AL23: =SUM('[2]Dettaglio Costi Ricavi'!AM9) -> 0
A24: 0.22 | B24: Acquisizione Servizi | C24: 0.12 | D24: 50973.24 | E24: 50973.24 | F24: =SUM(E24) -> 50973.24 | G24: 50973.24 | H24: 50973.24 | I24: 50973.24 | J24: 50973.24 | K24: 50973.24 | L24: 50973.24 | M24: 50973.24 | N24: 50973.24 | O24: 50973.24 | P24: 50973.24 | Q24: 50973.24 | R24: 50973.24 | S24: =SUM('[2]Dettaglio Costi Ricavi'!T10) -> 0 | T24: =SUM('[2]Dettaglio Costi Ricavi'!U10) -> 0 | U24: =SUM('[2]Dettaglio Costi Ricavi'!V10) -> 0 | V24: =SUM('[2]Dettaglio Costi Ricavi'!W10) -> 0 | W24: =SUM('[2]Dettaglio Costi Ricavi'!X10) -> 0 | X24: =SUM('[2]Dettaglio Costi Ricavi'!Y10) -> 0 | Y24: =SUM('[2]Dettaglio Costi Ricavi'!Z10) -> 0 | Z24: =SUM('[2]Dettaglio Costi Ricavi'!AA10) -> 0 | AA24: =SUM('[2]Dettaglio Costi Ricavi'!AB10) -> 0 | AB24: =SUM('[2]Dettaglio Costi Ricavi'!AC10) -> 0 | AC24: =SUM('[2]Dettaglio Costi Ricavi'!AD10) -> 0 | AD24: =SUM('[2]Dettaglio Costi Ricavi'!AE10) -> 0 | AE24: =SUM('[2]Dettaglio Costi Ricavi'!AF10) -> 0 | AF24: =SUM('[2]Dettaglio Costi Ricavi'!AG10) -> 0 | AG24: =SUM('[2]Dettaglio Costi Ricavi'!AH10) -> 0 | AH24: =SUM('[2]Dettaglio Costi Ricavi'!AI10) -> 0 | AI24: =SUM('[2]Dettaglio Costi Ricavi'!AJ10) -> 0 | AJ24: =SUM('[2]Dettaglio Costi Ricavi'!AK10) -> 0 | AK24: =SUM('[2]Dettaglio Costi Ricavi'!AL10) -> 0 | AL24: =SUM('[2]Dettaglio Costi Ricavi'!AM10) -> 0
A25: 0.22 | B25: Costi Amministrativi | C25: 0.025 | D25: 10619.425 | E25: 10619.425 | F25: 10619.425 | G25: 10619.425 | H25: 10619.425 | I25: 10619.425 | J25: 10619.425 | K25: 10619.425 | L25: 10619.425 | M25: 10619.425 | N25: 10619.425 | O25: 10619.425 | P25: 10619.425 | Q25: 10619.425 | R25: 10619.425 | S25: =SUM('[2]Dettaglio Costi Ricavi'!T14) -> 0 | T25: =SUM('[2]Dettaglio Costi Ricavi'!U14) -> 0 | U25: =SUM('[2]Dettaglio Costi Ricavi'!V14) -> 0 | V25: =SUM('[2]Dettaglio Costi Ricavi'!W14) -> 0 | W25: =SUM('[2]Dettaglio Costi Ricavi'!X14) -> 0 | X25: =SUM('[2]Dettaglio Costi Ricavi'!Y14) -> 0 | Y25: =SUM('[2]Dettaglio Costi Ricavi'!Z14) -> 0 | Z25: =SUM('[2]Dettaglio Costi Ricavi'!AA14) -> 0 | AA25: =SUM('[2]Dettaglio Costi Ricavi'!AB14) -> 0 | AB25: =SUM('[2]Dettaglio Costi Ricavi'!AC14) -> 0 | AC25: =SUM('[2]Dettaglio Costi Ricavi'!AD14) -> 0 | AD25: =SUM('[2]Dettaglio Costi Ricavi'!AE14) -> 0 | AE25: =SUM('[2]Dettaglio Costi Ricavi'!AF14) -> 0 | AF25: =SUM('[2]Dettaglio Costi Ricavi'!AG14) -> 0 | AG25: =SUM('[2]Dettaglio Costi Ricavi'!AH14) -> 0 | AH25: =SUM('[2]Dettaglio Costi Ricavi'!AI14) -> 0 | AI25: =SUM('[2]Dettaglio Costi Ricavi'!AJ14) -> 0 | AJ25: =SUM('[2]Dettaglio Costi Ricavi'!AK14) -> 0 | AK25: =SUM('[2]Dettaglio Costi Ricavi'!AL14) -> 0 | AL25: =SUM('[2]Dettaglio Costi Ricavi'!AM14) -> 0 | AM25: 0
A26: 0.22 | B26: Oneri Diversi | C26: 0.05 | D26: 21238.85 | E26: 21238.85 | F26: =SUM(E26) -> 21238.85 | G26: 21238.85 | H26: 21238.85 | I26: 21238.85 | J26: 21238.85 | K26: 21238.85 | L26: 21238.85 | M26: 21238.85 | N26: 21238.85 | O26: 21238.85 | P26: 21238.85 | Q26: 21238.85 | R26: 21238.85 | S26: 0 | T26: =S26 -> 0 | U26: 0 | V26: 0 | W26: 0 | X26: 0 | Y26: 0 | Z26: 0 | AA26: 0 | AB26: 0 | AC26: 0 | AD26: 0 | AE26: 0 | AF26: 0 | AG26: 0 | AH26: 0 | AI26: 0 | AJ26: =AI26 -> 0 | AK26: 0 | AL26: 0 | AM26: 0
A27: 0.22 | B27: Oneri Sicurezza | C27: 0.007 | D27: 2973.439 | E27: 2973.439 | F27: =SUM(E27) -> 2973.439 | G27: 2973.439 | H27: 2973.439 | I27: 2973.439 | J27: 2973.439 | K27: 2973.439 | L27: 2973.439 | M27: 2973.439 | N27: 2973.439 | O27: 2973.439 | P27: 2973.439 | Q27: 2973.439 | R27: 2973.439 | S27: 0 | T27: 0 | U27: 0 | V27: 0 | W27: 0 | X27: 0 | Y27: 0 | Z27: 0 | AA27: 0 | AB27: 0 | AC27: 0 | AD27: 0 | AE27: 0 | AF27: 0 | AG27: 0 | AH27: 0 | AI27: 0 | AJ27: 0 | AK27: 0 | AL27: 0 | AM27: 0
A28: 0.22 | B28: Canone Concessione | D28: 6000 | E28: 6000 | F28: 6000 | G28: =F28 -> 6000 | H28: 6000 | I28: 6000 | J28: 6000 | K28: 6000 | L28: 6000 | M28: 6000 | N28: 6000 | O28: 6000 | P28: 6000 | Q28: 6000 | R28: 6000 | S28: 0 | T28: 0 | U28: 0 | V28: 0 | W28: 0 | X28: 0 | Y28: 0 | Z28: 0 | AA28: 0 | AB28: 0 | AC28: 0 | AD28: 0 | AE28: 0 | AF28: 0 | AG28: 0 | AH28: 0 | AI28: 0 | AJ28: 0 | AK28: 0 | AL28: 0 | AM28: 0
A29: 0.22 | B29: cc | D29: 0 | G29: 0 | H29: 0 | I29: 0 | J29: 0 | K29: 0 | L29: 0 | M29: 0 | N29: 0 | O29: 0 | P29: 0 | Q29: 0 | R29: 0 | S29: 0 | T29: 0 | U29: 0 | V29: 0 | W29: 0 | X29: 0 | Y29: 0 | Z29: 0 | AA29: 0 | AB29: 0 | AC29: 0 | AD29: 0 | AE29: 0 | AF29: 0 | AG29: 0 | AH29: 0 | AI29: 0 | AJ29: 0 | AK29: 0 | AL29: 0 | AM29: 0
A30: 0.22 | B30: dd | D30: 0
B31: Totale Costi di Gestione | D31: =SUM(D20:D29) -> 374620.68 | E31: 376972.68 | F31: 380428.68 | G31: 380428.68 | H31: 380428.68 | I31: 380428.68 | J31: 380428.68 | K31: 362812.68 | L31: 362812.68 | M31: 362812.68 | N31: 362812.68 | O31: 362812.68 | P31: 362812.68 | Q31: 362812.68 | R31: 362812.68 | S31: 0 | T31: 0 | U31: 0 | V31: 0 | W31: 0 | X31: 0 | Y31: 0 | Z31: 0 | AA31: 0 | AB31: 0 | AC31: 0 | AD31: 0 | AE31: 0 | AF31: 0 | AG31: 0 | AH31: 0 | AI31: 0 | AJ31: =SUM(AJ20:AJ29) -> 0 | AK31: 0 | AL31: 0 | AM31: 0 | AN31: 0 | AO31: 0 | AP31: 0 | AQ31: 0 | AR31: 0 | AS31: 0 | AT31: 0 | AU31: 0 | AV31: 0 | AW31: 0 | AX31: 0 | AY31: 0 | AZ31: 0 | BA31: 0 | BB31: 0 | BC31: 0 | BD31: 0 | BE31: 0 | BF31: 0 | BG31: 0 | BH31: 0 | BI31: 0 | BJ31: 0 | BK31: 0

Sheet 3 Costi-Ricavi
B1: 3 | C1: ='2 Descrizione Progetto'!C3 -> Comune di Guardiagrele | D1: Specifica dei Ricavi - importi non rivalutati | N1: =D1 -> Specifica dei Ricavi - importi non rivalutati | S1: =N1 -> Specifica dei Ricavi - importi non rivalutati | X1: =S1 -> Specifica dei Ricavi - importi non rivalutati | AC1: =X1 -> Specifica dei Ricavi - importi non rivalutati | AH1: =AC1 -> Specifica dei Ricavi - importi non rivalutati | AM1: =AH1 -> Specifica dei Ricavi - importi non rivalutati | AR1: =AM1 -> Specifica dei Ricavi - importi non rivalutati | AW1: =AR1 -> Specifica dei Ricavi - importi non rivalutati | BB1: =AW1 -> Specifica dei Ricavi - importi non rivalutati | BG1: =BB1 -> Specifica dei Ricavi - importi non rivalutati
C2: ='2 Descrizione Progetto'!C4 -> Concessione per l'affidamento dei lavori di efficientamento energetico della piscina comunale e del successivo servizio di gestione dell'impianto natatorio
B3: IVA% | C3: RICAVI | D3: ='2 Descrizione Progetto'!D20 -> 1 | E3: =D3+1 -> 2 | F3: 3 | G3: 4 | H3: 5 | I3: 6 | J3: 7 | K3: 8 | L3: 9 | M3: 10 | N3: 11 | O3: 12 | P3: 13 | Q3: 14 | R3: 15 | S3: 16 | T3: 17 | U3: 18 | V3: 19 | W3: 20 | X3: 21 | Y3: 22 | Z3: 23 | AA3: 24 | AB3: 25 | AC3: 26 | AD3: 27 | AE3: 28 | AF3: 29 | AG3: 30 | AH3: 31 | AI3: 32 | AJ3: 33 | AK3: 34 | AL3: 35 | AM3: 36 | AN3: 37 | AO3: 38 | AP3: 39 | AQ3: 40 | AR3: 41 | AS3: 42 | AT3: 43 | AU3: 44 | AV3: 45 | AW3: 46 | AX3: 47 | AY3: 48 | AZ3: 49 | BA3: 50 | BB3: 51 | BC3: 52 | BD3: 53 | BE3: 54 | BF3: 55 | BG3: 56 | BH3: 57 | BI3: 58 | BJ3: 59 | BK3: 60
B5: 0 | C5: Ricavi Istituzionali | D5: =SUM('Base Costi Ricavi'!D5) -> 265400 | E5: =SUM('Base Costi Ricavi'!E5) -> 285300 | F5: =SUM('Base Costi Ricavi'!F5) -> 308481 | G5: =SUM(F5) -> 308481 | H5: =SUM(G5) -> 308481 | I5: =SUM(H5) -> 308481 | J5: =SUM(I5) -> 308481 | K5: =J5 -> 308481 | L5: 308481 | M5: 308481 | N5: 0 | O5: 0 | P5: 0 | Q5: 0 | R5: 0 | S5: 0 | T5: 0 | U5: 0 | V5: 0 | W5: 0 | X5: 0 | Y5: 0 | Z5: 0 | AA5: 0 | AB5: 0 | AC5: 0 | AD5: 0 | AE5: 0 | AF5: 0 | AG5: 0 | AH5: 0 | AI5: 0 | AJ5: 0 | AK5: 0 | AL5: 0 | AM5: 0 | AN5: 0 | AO5: 0 | AP5: 0 | AQ5: 0 | AR5: 0 | AS5: 0 | AT5: 0 | AU5: 0 | AV5: 0 | AW5: 0 | AX5: 0 | AY5: 0 | AZ5: 0 | BA5: 0 | BB5: 0 | BC5: 0 | BD5: 0 | BE5: 0 | BF5: 0 | BG5: 0 | BH5: 0 | BI5: 0 | BJ5: 0 | BK5: 0 | BL5: =SUM(D5:BK5) -> 3018548
B6: 0.22 | C6: Ricavi Commerciali | D6: =SUM('Base Costi Ricavi'!D6) -> 55250 | E6: =SUM('Base Costi Ricavi'!E6) -> 64300 | F6: =SUM('Base Costi Ricavi'!F6) -> 77096 | G6: =SUM(F6) -> 77096 | H6: 77096 | I6: =SUM(H6) -> 77096 | J6: 77096 | K6: =J6 -> 77096 | L6: 77096 | M6: 77096 | N6: 0 | O6: 0 | P6: 0 | Q6: 0 | R6: 0 | S6: 0 | T6: 0 | U6: 0 | V6: 0 | W6: 0 | X6: 0 | Y6: 0 | Z6: 0 | AA6: 0 | AB6: 0 | AC6: 0 | AD6: 0 | AE6: 0 | AF6: 0 | AG6: 0 | AH6: 0 | AI6: 0 | AJ6: 0 | AK6: 0 | AL6: 0 | AM6: 0 | AN6: 0 | AO6: 0 | AP6: 0 | AQ6: 0 | AR6: 0 | AS6: 0 | AT6: 0 | AU6: 0 | AV6: 0 | AW6: 0 | AX6: 0 | AY6: 0 | AZ6: 0 | BA6: 0 | BB6: 0 | BC6: 0 | BD6: 0 | BE6: 0 | BF6: 0 | BG6: 0 | BH6: 0 | BI6: 0 | BJ6: 0 | BK6: 0 | BL6: 736318
B7: 0.22 | C7: Ricavi Bar | D7: =SUM('Base Costi Ricavi'!D7) -> 24600 | E7: =SUM('Base Costi Ricavi'!E7) -> 29500 | F7: =SUM('Base Costi Ricavi'!F7) -> 36700 | G7: 36700 | H7: 36700 | I7: 36700 | J7: 36700 | K7: =J7 -> 36700 | L7: 36700 | M7: 36700 | N7: 0 | O7: 0 | P7: 0 | Q7: 0 | R7: 0 | S7: 0 | T7: 0 | U7: 0 | V7: 0 | W7: 0 | X7: 0 | Y7: 0 | Z7: 0 | AA7: 0 | AB7: 0 | AC7: 0 | AD7: 0 | AE7: 0 | AF7: 0 | AG7: 0 | AH7: 0 | AI7: 0 | AJ7: 0 | AK7: 0 | AL7: 0 | AM7: 0 | AN7: 0 | AO7: 0 | AP7: 0 | AQ7: 0 | AR7: 0 | AS7: 0 | AT7: 0 | AU7: 0 | AV7: 0 | AW7: 0 | AX7: 0 | AY7: 0 | AZ7: 0 | BA7: 0 | BB7: 0 | BC7: 0 | BD7: 0 | BE7: 0 | BF7: 0 | BG7: 0 | BH7: 0 | BI7: 0 | BJ7: 0 | BK7: 0 | BL7: 347700
B8: 0.22 | C8: Proventi diversi/pubblicità | D8: =SUM('Base Costi Ricavi'!D8) -> 0 | E8: =SUM('Base Costi Ricavi'!E8) -> 2500 | F8: =SUM('Base Costi Ricavi'!F8) -> 2500 | G8: 2500 | H8: 2500 | I8: 2500 | J8: 2500 | K8: =J8 -> 2500 | L8: 2500 | M8: 2500 | N8: 0 | O8: 0 | P8: 0 | Q8: 0 | R8: 0 | S8: 0 | T8: 0 | U8: 0 | V8: 0 | W8: 0 | X8: 0 | Y8: 0 | Z8: 0 | AA8: 0 | AB8: 0 | AC8: 0 | AD8: 0 | AE8: 0 | AF8: 0 | AG8: 0 | AH8: 0 | AI8: 0 | AJ8: 0 | AK8: 0 | AL8: 0 | AM8: 0 | AN8: 0 | AO8: 0 | AP8: 0 | AQ8: 0 | AR8: 0 | AS8: 0 | AT8: 0 | AU8: 0 | AV8: 0 | AW8: 0 | AX8: 0 | AY8: 0 | AZ8: 0 | BA8: 0 | BB8: 0 | BC8: 0 | BD8: 0 | BE8: 0 | BF8: 0 | BG8: 0 | BH8: 0 | BI8: 0 | BJ8: 0 | BK8: 0 | BL8: 22500
B9: 0.22 | C9: b | D9: 0 | E9: 0 | F9: 0 | G9: 0 | H9: 0 | I9: 0 | J9: 0 | K9: =J9 -> 0 | L9: 0 | M9: 0 | N9: 0 | O9: 0 | P9: 0 | Q9: 0 | R9: 0 | S9: 0 | T9: 0 | U9: 0 | V9: 0 | W9: 0 | X9: 0 | Y9: 0 | Z9: 0 | AA9: 0 | AB9: 0 | AC9: 0 | AD9: 0 | AE9: 0 | AF9: 0 | AG9: 0 | AH9: 0 | AI9: 0 | AJ9: 0 | AK9: 0 | AL9: 0 | AM9: 0 | AN9: 0 | AO9: 0 | AP9: 0 | AQ9: 0 | AR9: 0 | AS9: 0 | AT9: 0 | AU9: 0 | AV9: 0 | AW9: 0 | AX9: 0 | AY9: 0 | AZ9: 0 | BA9: 0 | BB9: 0 | BC9: 0 | BD9: 0 | BE9: 0 | BF9: 0 | BG9: 0 | BH9: 0 | BI9: 0 | BJ9: 0 | BK9: 0 | BL9: 0
B10: 0.22 | C10: c | D10: 0 | E10: 0 | F10: 0 | G10: 0 | H10: 0 | I10: 0 | J10: 0 | K10: =J10 -> 0 | L10: 0 | M10: 0 | N10: 0 | O10: 0 | P10: 0 | Q10: 0 | R10: 0 | S10: 0 | T10: 0 | U10: 0 | V10: 0 | W10: 0 | X10: 0 | Y10: 0 | Z10: 0 | AA10: 0 | AB10: 0 | AC10: 0 | AD10: 0 | AE10: 0 | AF10: 0 | AG10: 0 | AH10: 0 | AI10: 0 | AJ10: 0 | AK10: 0 | AL10: 0 | AM10: 0 | AN10: 0 | AO10: 0 | AP10: 0 | AQ10: 0 | AR10: 0 | AS10: 0 | AT10: 0 | AU10: 0 | AV10: 0 | AW10: 0 | AX10: 0 | AY10: 0 | AZ10: 0 | BA10: 0 | BB10: 0 | BC10: 0 | BD10: 0 | BE10: 0 | BF10: 0 | BG10: 0 | BH10: 0 | BI10: 0 | BJ10: 0 | BK10: 0 | BL10: 0
B11: 0.22 | C11: d | D11: 0 | E11: 0 | F11: 0 | G11: 0 | H11: 0 | I11: 0 | J11: 0 | K11: =J11 -> 0 | L11: 0 | M11: 0 | N11: 0 | O11: 0 | P11: 0 | Q11: 0 | R11: 0 | S11: 0 | T11: 0 | U11: 0 | V11: 0 | W11: 0 | X11: 0 | Y11: 0 | Z11: 0 | AA11: 0 | AB11: 0 | AC11: 0 | AD11: 0 | AE11: 0 | AF11: 0 | AG11: 0 | AH11: 0 | AI11: 0 | AJ11: 0 | AK11: 0 | AL11: 0 | AM11: 0 | AN11: 0 | AO11: 0 | AP11: 0 | AQ11: 0 | AR11: 0 | AS11: 0 | AT11: 0 | AU11: 0 | AV11: 0 | AW11: 0 | AX11: 0 | AY11: 0 | AZ11: 0 | BA11: 0 | BB11: 0 | BC11: 0 | BD11: 0 | BE11: 0 | BF11: 0 | BG11: 0 | BH11: 0 | BI11: 0 | BJ11: 0 | BK11: 0 | BL11: 0
B12: 0.22 | C12: e | D12: 0 | E12: =D12 -> 0 | F12: 0 | G12: 0 | H12: 0 | I12: 0 | J12: 0 | K12: 0 | L12: 0 | M12: 0 | N12: 0 | O12: 0 | P12: 0 | Q12: 0 | R12: 0 | S12: 0 | T12: 0 | U12: 0 | V12: 0 | W12: 0 | X12: 0 | Y12: 0 | Z12: 0 | AA12: 0 | AB12: 0 | AC12: 0 | AD12: 0 | AE12: 0 | AF12: 0 | AG12: 0 | AH12: 0 | AI12: 0 | AJ12: 0 | AK12: 0 | AL12: 0 | AM12: 0 | AN12: 0 | AO12: 0 | AP12: 0 | AQ12: 0 | AR12: 0 | AS12: 0 | AT12: 0 | AU12: 0 | AV12: 0 | AW12: 0 | AX12: 0 | AY12: 0 | AZ12: 0 | BA12: 0 | BB12: 0 | BC12: 0 | BD12: 0 | BE12: 0 | BF12: 0 | BG12: 0 | BH12: 0 | BI12: 0 | BJ12: 0 | BK12: 0 | BL12: 0
B13: 0.22 | C13: f | D13: 0 | E13: =D13 -> 0 | F13: 0 | G13: 0 | H13: 0 | I13: 0 | J13: 0 | K13: 0 | L13: 0 | M13: 0 | N13: 0 | O13: 0 | P13: 0 | Q13: 0 | R13: 0 | S13: 0 | T13: 0 | U13: 0 | V13: 0 | W13: 0 | X13: 0 | Y13: 0 | Z13: 0 | AA13: 0 | AB13: 0 | AC13: 0 | AD13: 0 | AE13: 0 | AF13: 0 | AG13: 0 | AH13: 0 | AI13: 0 | AJ13: 0 | AK13: 0 | AL13: 0 | AM13: 0 | AN13: 0 | AO13: 0 | AP13: 0 | AQ13: 0 | AR13: 0 | AS13: 0 | AT13: 0 | AU13: 0 | AV13: 0 | AW13: 0 | AX13: 0 | AY13: 0 | AZ13: 0 | BA13: 0 | BB13: 0 | BC13: 0 | BD13: 0 | BE13: 0 | BF13: 0 | BG13: 0 | BH13: 0 | BI13: 0 | BJ13: 0 | BK13: 0 | BL13: 0
B14: 0.22 | C14: g | D14: 0 | E14: =D14 -> 0 | F14: 0 | G14: 0 | H14: 0 | I14: 0 | J14: 0 | K14: 0 | L14: 0 | M14: 0 | N14: 0 | O14: 0 | P14: 0 | Q14: 0 | R14: 0 | S14: 0 | T14: 0 | U14: 0 | V14: 0 | W14: 0 | X14: 0 | Y14: 0 | Z14: 0 | AA14: 0 | AB14: 0 | AC14: 0 | AD14: 0 | AE14: 0 | AF14: 0 | AG14: 0 | AH14: 0 | AI14: 0 | AJ14: 0 | AK14: 0 | AL14: 0 | AM14: 0 | AN14: 0 | AO14: 0 | AP14: 0 | AQ14: 0 | AR14: 0 | AS14: 0 | AT14: 0 | AU14: 0 | AV14: 0 | AW14: 0 | AX14: 0 | AY14: 0 | AZ14: 0 | BA14: 0 | BB14: 0 | BC14: 0 | BD14: 0 | BE14: 0 | BF14: 0 | BG14: 0 | BH14: 0 | BI14: 0 | BJ14: 0 | BK14: 0 | BL14: 0
C15: Totale Ricavi di Gestione | D15: =SUM(D5:D14) -> 345250 | E15: 381600 | F15: 424777 | G15: 424777 | H15: 424777 | I15: 424777 | J15: 424777 | K15: 424777 | L15: 424777 | M15: 424777 | N15: 0 | O15: 0 | P15: 0 | Q15: 0 | R15: 0 | S15: 0 | T15: 0 | U15: 0 | V15: 0 | W15: 0 | X15: 0 | Y15: 0 | Z15: 0 | AA15: 0 | AB15: 0 | AC15: 0 | AD15: 0 | AE15: 0 | AF15: 0 | AG15: 0 | AH15: 0 | AI15: 0 | AJ15: =SUM(AJ5:AJ14) -> 0 | AK15: 0 | AL15: 0 | AM15: 0 | AN15: 0 | AO15: 0 | AP15: 0 | AQ15: 0 | AR15: 0 | AS15: 0 | AT15: 0 | AU15: 0 | AV15: 0 | AW15: 0 | AX15: 0 | AY15: 0 | AZ15: 0 | BA15: 0 | BB15: 0 | BC15: 0 | BD15: 0 | BE15: 0 | BF15: 0 | BG15: 0 | BH15: 0 | BI15: 0 | BJ15: 0 | BK15: 0 | BL15: 4125066
C16: IVA Media sui Ricavi | D16: =D5*$B$5/D15+D6*$B$6/D15+D7*$B$7/D15+D8*$B$8/D15+D9*$B$9/D15+D10*$B$10/D15+D11*$B$11/D15+D12*$B$12/D15+D13*$B$13/D15+D14*$B$14/D15 -> 0.05088196959 | E16: =E5*$B$5/E15+E6*$B$6/E15+E7*$B$7/E15+E8*$B$8/E15+E9*$B$9/E15+E10*$B$10/E15+E11*$B$11/E15+E12*$B$12/E15+E13*$B$13/E15+E14*$B$14/E15 -> 0.05551886792 | F16: =F5*$B$5/F15+F6*$B$6/F15+F7*$B$7/F15+F8*$B$8/F15+F9*$B$9/F15+F10*$B$10/F15+F11*$B$11/F15+F12*$B$12/F15+F13*$B$13/F15+F14*$B$14/F15 -> 0.06023188638 | G16: =G5*$B$5/G15+G6*$B$6/G15+G7*$B$7/G15+G8*$B$8/G15+G9*$B$9/G15+G10*$B$10/G15+G11*$B$11/G15+G12*$B$12/G15+G13*$B$13/G15+G14*$B$14/G15 -> 0.06023188638 | H16: =H5*$B$5/H15+H6*$B$6/H15+H7*$B$7/H15+H8*$B$8/H15+H9*$B$9/H15+H10*$B$10/H15+H11*$B$11/H15+H12*$B$12/H15+H13*$B$13/H15+H14*$B$14/H15 -> 0.06023188638 | I16: =I5*$B$5/I15+I6*$B$6/I15+I7*$B$7/I15+I8*$B$8/I15+I9*$B$9/I15+I10*$B$10/I15+I11*$B$11/I15+I12*$B$12/I15+I13*$B$13/I15+I14*$B$14/I15 -> 0.06023188638 | J16: 0.06023188638 | K16: 0.06023188638 | L16: 0.06023188638 | M16: 0.06023188638
B17: 0 | C17: DISINVESTIMENTI O ALTRI RICAVI NON CARATTERISTICI | D17: 0 | E17: 0 | F17: 0 | G17: 0 | H17: 0 | I17: 0 | J17: 0 | K17: 0 | L17: 0 | M17: 0 | N17: 0 | O17: 0 | P17: 0 | Q17: 0 | R17: 0 | S17: 0 | T17: 0 | U17: 0 | V17: 0 | W17: 0 | X17: 0 | Y17: 0 | Z17: 0 | AA17: 0 | AB17: 0 | AC17: 0 | AD17: 0 | AE17: 0 | AF17: 0 | AG17: 0 | AH17: 0 | AI17: 0 | AJ17: 0 | AK17: 0 | AL17: 0 | AM17: 0 | AN17: 0 | AO17: 0 | AP17: 0 | AQ17: 0 | AR17: 0 | AS17: 0 | AT17: 0 | AU17: 0 | AV17: 0 | AW17: 0 | AX17: 0 | AY17: 0 | AZ17: 0 | BA17: 0 | BB17: 0 | BC17: 0 | BD17: 0 | BE17: 0 | BF17: 0 | BG17: 0 | BH17: 0 | BI17: 0 | BJ17: 0 | BK17: 0 | BL17: =SUM(D17:BK17) -> 0
B19: 3 | C19: =C1 -> Comune di Guardiagrele | D19: Specifica dei Costi - importi non rivalutati - | N19: =D19 -> Specifica dei Costi - importi non rivalutati - | S19: =N19 -> Specifica dei Costi - importi non rivalutati - | X19: =S19 -> Specifica dei Costi - importi non rivalutati - | AC19: =X19 -> Specifica dei Costi - importi non rivalutati - | AH19: =AC19 -> Specifica dei Costi - importi non rivalutati - | AM19: =AH19 -> Specifica dei Costi - importi non rivalutati - | AR19: =AM19 -> Specifica dei Costi - importi non rivalutati - | AW19: =AR19 -> Specifica dei Costi - importi non rivalutati - | BB19: =AW19 -> Specifica dei Costi - importi non rivalutati - | BG19: =BB19 -> Specifica dei Costi - importi non rivalutati -
C20: =C2 -> Concessione per l'affidamento dei lavori di efficientamento energetico della piscina comunale e del successivo servizio di gestione dell'impianto natatorio
B21: IVA% | C21: COSTI | D21: =D3 -> 1 | E21: 2 | F21: 3 | G21: 4 | H21: 5 | I21: 6 | J21: 7 | K21: 8 | L21: 9 | M21: 10 | N21: 11 | O21: 12 | P21: 13 | Q21: 14 | R21: 15 | S21: 16 | T21: 17 | U21: 18 | V21: 19 | W21: 20 | X21: 21 | Y21: 22 | Z21: 23 | AA21: 24 | AB21: 25 | AC21: 26 | AD21: 27 | AE21: 28 | AF21: 29 | AG21: 30 | AH21: 31 | AI21: 32 | AJ21: =AJ3 -> 33 | AK21: 34 | AL21: 35 | AM21: 36 | AN21: 37 | AO21: 38 | AP21: 39 | AQ21: 40 | AR21: 41 | AS21: 42 | AT21: 43 | AU21: 44 | AV21: 45 | AW21: 46 | AX21: 47 | AY21: 48 | AZ21: 49 | BA21: 50 | BB21: 51 | BC21: 52 | BD21: 53 | BE21: 54 | BF21: 55 | BG21: 56 | BH21: 57 | BI21: 58 | BJ21: 59 | BK21: 60
B23: 0 | C23: Costi del personale | D23: =SUM('Base Costi Ricavi'!D20) -> 148671.95 | E23: =SUM('Base Costi Ricavi'!E20) -> 148671.95 | F23: =SUM('Base Costi Ricavi'!F20) -> 148671.95 | G23: =F23 -> 148671.95 | H23: 148671.95 | I23: =SUM(H23) -> 148671.95 | J23: =SUM(I23) -> 148671.95 | K23: =J23 -> 148671.95 | L23: 148671.95 | M23: 148671.95 | N23: 0 | O23: 0 | P23: 0 | Q23: 0 | R23: 0 | S23: 0 | T23: 0 | U23: 0 | V23: 0 | W23: 0 | X23: 0 | Y23: 0 | Z23: 0 | AA23: 0 | AB23: 0 | AC23: 0 | AD23: 0 | AE23: 0 | AF23: 0 | AG23: 0 | AH23: 0 | AI23: 0 | AJ23: 0 | AK23: 0 | AL23: 0 | AM23: 0 | AN23: 0 | AO23: 0 | AP23: 0 | AQ23: 0 | AR23: 0 | AS23: 0 | AT23: 0 | AU23: 0 | AV23: 0 | AW23: 0 | AX23: 0 | AY23: 0 | AZ23: 0 | BA23: 0 | BB23: 0 | BC23: 0 | BD23: 0 | BE23: 0 | BF23: 0 | BG23: 0 | BH23: 0 | BI23: 0 | BJ23: 0 | BK23: 0 | BL23: =SUM(D23:BK23) -> 1486719.5 | BM23: =SUM(D23/$D$34) -> 0.3968599651 | BN23: =SUM(BL23/$BL$34) -> 0.3917550904
B24: 0.22 | C24: Manutenzioni | D24: =SUM('Base Costi Ricavi'!D21) -> 16141.526 | E24: =SUM('Base Costi Ricavi'!E21) -> 16141.526 | F24: =SUM('Base Costi Ricavi'!F21) -> 16141.526 | G24: =F24 -> 16141.526 | H24: 16141.526 | I24: =SUM(H24) -> 16141.526 | J24: 16141.526 | K24: =J24 -> 16141.526 | L24: 16141.526 | M24: 16141.526 | N24: 0 | O24: 0 | P24: 0 | Q24: 0 | R24: 0 | S24: 0 | T24: 0 | U24: 0 | V24: 0 | W24: 0 | X24: 0 | Y24: 0 | Z24: 0 | AA24: 0 | AB24: 0 | AC24: 0 | AD24: 0 | AE24: 0 | AF24: 0 | AG24: 0 | AH24: 0 | AI24: 0 | AJ24: 0 | AK24: 0 | AL24: 0 | AM24: 0 | AN24: 0 | AO24: 0 | AP24: 0 | AQ24: 0 | AR24: 0 | AS24: 0 | AT24: 0 | AU24: 0 | AV24: 0 | AW24: 0 | AX24: 0 | AY24: 0 | AZ24: 0 | BA24: 0 | BB24: 0 | BC24: 0 | BD24: 0 | BE24: 0 | BF24: 0 | BG24: 0 | BH24: 0 | BI24: 0 | BJ24: 0 | BK24: 0 | BL24: 161415.26 | BM24: =SUM(D24/$D$34) -> 0.04308765336 | BN24: =SUM(BL24/$BL$34) -> 0.04253340981
B25: 0.22 | C25: Acquisti Bar | D25: =SUM('Base Costi Ricavi'!D22) -> 11808 | E25: =SUM('Base Costi Ricavi'!E22) -> 14160 | F25: =SUM('Base Costi Ricavi'!F22) -> 17616 | G25: =F25 -> 17616 | H25: 17616 | I25: 17616 | J25: 17616 | K25: =J25 -> 17616 | L25: 17616 | M25: 17616 | N25: 0 | O25: 0 | P25: 0 | Q25: 0 | R25: 0 | S25: 0 | T25: 0 | U25: 0 | V25: 0 | W25: 0 | X25: 0 | Y25: 0 | Z25: 0 | AA25: 0 | AB25: 0 | AC25: 0 | AD25: 0 | AE25: 0 | AF25: 0 | AG25: 0 | AH25: 0 | AI25: 0 | AJ25: 0 | AK25: 0 | AL25: 0 | AM25: 0 | AN25: 0 | AO25: 0 | AP25: 0 | AQ25: 0 | AR25: 0 | AS25: 0 | AT25: 0 | AU25: 0 | AV25: 0 | AW25: 0 | AX25: 0 | AY25: 0 | AZ25: 0 | BA25: 0 | BB25: 0 | BC25: 0 | BD25: 0 | BE25: 0 | BF25: 0 | BG25: 0 | BH25: 0 | BI25: 0 | BJ25: 0 | BK25: 0 | BL25: 166896 | BM25: 0.03151988299 | BN25: 0.0439776014
B26: 0.22 | C26: Utenze | D26: =SUM('Base Costi Ricavi'!D23) -> 106194.25 | E26: =SUM('Base Costi Ricavi'!E23) -> 106194.25 | F26: =SUM('Base Costi Ricavi'!F23) -> 106194.25 | G26: =F26 -> 106194.25 | H26: 106194.25 | I26: 106194.25 | J26: 106194.25 | K26: =J26 -> 106194.25 | L26: 106194.25 | M26: 106194.25 | N26: 0 | O26: 0 | P26: 0 | Q26: 0 | R26: 0 | S26: 0 | T26: 0 | U26: 0 | V26: 0 | W26: 0 | X26: 0 | Y26: 0 | Z26: 0 | AA26: 0 | AB26: 0 | AC26: 0 | AD26: 0 | AE26: 0 | AF26: 0 | AG26: 0 | AH26: 0 | AI26: 0 | AJ26: 0 | AK26: 0 | AL26: 0 | AM26: 0 | AN26: 0 | AO26: 0 | AP26: 0 | AQ26: 0 | AR26: 0 | AS26: 0 | AT26: 0 | AU26: 0 | AV26: 0 | AW26: 0 | AX26: 0 | AY26: 0 | AZ26: 0 | BA26: 0 | BB26: 0 | BC26: 0 | BD26: 0 | BE26: 0 | BF26: 0 | BG26: 0 | BH26: 0 | BI26: 0 | BJ26: 0 | BK26: 0 | BL26: 1061942.5 | BM26: 0.2834714037 | BN26: 0.2798250646
B27: 0.22 | C27: Acquisizione Servizi | D27: =SUM('Base Costi Ricavi'!D24) -> 50973.24 | E27: =SUM('Base Costi Ricavi'!E24) -> 50973.24 | F27: =SUM('Base Costi Ricavi'!F24) -> 50973.24 | G27: =F27 -> 50973.24 | H27: 50973.24 | I27: 50973.24 | J27: 50973.24 | K27: =J27 -> 50973.24 | L27: 50973.24 | M27: 50973.24 | N27: 0 | O27: 0 | P27: 0 | Q27: 0 | R27: 0 | S27: 0 | T27: 0 | U27: 0 | V27: 0 | W27: 0 | X27: 0 | Y27: 0 | Z27: 0 | AA27: 0 | AB27: 0 | AC27: 0 | AD27: 0 | AE27: 0 | AF27: 0 | AG27: 0 | AH27: 0 | AI27: 0 | AJ27: 0 | AK27: 0 | AL27: 0 | AM27: 0 | AN27: 0 | AO27: 0 | AP27: 0 | AQ27: 0 | AR27: 0 | AS27: 0 | AT27: 0 | AU27: 0 | AV27: 0 | AW27: 0 | AX27: 0 | AY27: 0 | AZ27: 0 | BA27: 0 | BB27: 0 | BC27: 0 | BD27: 0 | BE27: 0 | BF27: 0 | BG27: 0 | BH27: 0 | BI27: 0 | BJ27: 0 | BK27: 0 | BL27: 509732.4 | BM27: 0.1360662738 | BN27: 0.134316031
B28: 0.22 | C28: Costi Amministrativi | D28: =SUM('Base Costi Ricavi'!D25) -> 10619.425 | E28: =SUM('Base Costi Ricavi'!E25) -> 10619.425 | F28: =SUM('Base Costi Ricavi'!F25) -> 10619.425 | G28: =F28 -> 10619.425 | H28: 10619.425 | I28: 10619.425 | J28: 10619.425 | K28: =J28 -> 10619.425 | L28: 10619.425 | M28: 10619.425 | N28: 0 | O28: 0 | P28: 0 | Q28: 0 | R28: 0 | S28: 0 | T28: 0 | U28: 0 | V28: 0 | W28: 0 | X28: 0 | Y28: 0 | Z28: 0 | AA28: 0 | AB28: 0 | AC28: 0 | AD28: 0 | AE28: 0 | AF28: 0 | AG28: 0 | AH28: 0 | AI28: 0 | AJ28: 0 | AK28: 0 | AL28: 0 | AM28: 0 | AN28: 0 | AO28: 0 | AP28: 0 | AQ28: 0 | AR28: 0 | AS28: 0 | AT28: 0 | AU28: 0 | AV28: 0 | AW28: 0 | AX28: 0 | AY28: 0 | AZ28: 0 | BA28: 0 | BB28: 0 | BC28: 0 | BD28: 0 | BE28: 0 | BF28: 0 | BG28: 0 | BH28: 0 | BI28: 0 | BJ28: 0 | BK28: 0 | BL28: 106194.25 | BM28: 0.02834714037 | BN28: 0.02798250646
B29: 0.22 | C29: Oneri Diversi | D29: =SUM('Base Costi Ricavi'!D26) -> 21238.85 | E29: =SUM('Base Costi Ricavi'!E26) -> 21238.85 | F29: =SUM('Base Costi Ricavi'!F26) -> 21238.85 | G29: =F29 -> 21238.85 | H29: 21238.85 | I29: 21238.85 | J29: 21238.85 | K29: =J29 -> 21238.85 | L29: 21238.85 | M29: 21238.85 | N29: 0 | O29: 0 | P29: 0 | Q29: 0 | R29: 0 | S29: 0 | T29: 0 | U29: 0 | V29: 0 | W29: 0 | X29: 0 | Y29: 0 | Z29: 0 | AA29: 0 | AB29: 0 | AC29: 0 | AD29: 0 | AE29: 0 | AF29: 0 | AG29: 0 | AH29: 0 | AI29: 0 | AJ29: 0 | AK29: 0 | AL29: 0 | AM29: 0 | AN29: 0 | AO29: 0 | AP29: 0 | AQ29: 0 | AR29: 0 | AS29: 0 | AT29: 0 | AU29: 0 | AV29: 0 | AW29: 0 | AX29: 0 | AY29: 0 | AZ29: 0 | BA29: 0 | BB29: 0 | BC29: 0 | BD29: 0 | BE29: 0 | BF29: 0 | BG29: 0 | BH29: 0 | BI29: 0 | BJ29: 0 | BK29: 0 | BL29: 212388.5 | BM29: 0.05669428073 | BN29: 0.05596501291
B30: 0.22 | C30: Oneri Sicurezza | D30: =SUM('Base Costi Ricavi'!D27) -> 2973.439 | E30: =SUM('Base Costi Ricavi'!E27) -> 2973.439 | F30: =SUM('Base Costi Ricavi'!F27) -> 2973.439 | G30: =F30 -> 2973.439 | H30: 2973.439 | I30: 2973.439 | J30: 2973.439 | K30: =J30 -> 2973.439 | L30: 2973.439 | M30: 2973.439 | N30: 0 | O30: 0 | P30: 0 | Q30: 0 | R30: 0 | S30: 0 | T30: 0 | U30: 0 | V30: 0 | W30: 0 | X30: 0 | Y30: 0 | Z30: 0 | AA30: 0 | AB30: 0 | AC30: 0 | AD30: 0 | AE30: 0 | AF30: 0 | AG30: 0 | AH30: 0 | AI30: 0 | AJ30: 0 | AK30: 0 | AL30: 0 | AM30: 0 | AN30: 0 | AO30: 0 | AP30: 0 | AQ30: 0 | AR30: 0 | AS30: 0 | AT30: 0 | AU30: 0 | AV30: 0 | AW30: 0 | AX30: 0 | AY30: 0 | AZ30: 0 | BA30: 0 | BB30: 0 | BC30: 0 | BD30: 0 | BE30: 0 | BF30: 0 | BG30: 0 | BH30: 0 | BI30: 0 | BJ30: 0 | BK30: 0 | BL30: 29734.39 | BM30: 0.007937199303 | BN30: 0.007835101808
B31: 0.22 | C31: Canone di Concessione | D31: =SUM('Base Costi Ricavi'!D28) -> 6000 | E31: =SUM('Base Costi Ricavi'!E28) -> 6000 | F31: =SUM('Base Costi Ricavi'!F28) -> 6000 | G31: 6000 | H31: 6000 | I31: 6000 | J31: 6000 | K31: =J31 -> 6000 | L31: 6000 | M31: 6000 | N31: 0 | O31: 0 | P31: 0 | Q31: 0 | R31: 0 | S31: 0 | T31: 0 | U31: 0 | V31: 0 | W31: 0 | X31: 0 | Y31: 0 | Z31: 0 | AA31: 0 | AB31: 0 | AC31: 0 | AD31: 0 | AE31: 0 | AF31: 0 | AG31: 0 | AH31: 0 | AI31: 0 | AJ31: 0 | AK31: 0 | AL31: 0 | AM31: 0 | AN31: 0 | AO31: 0 | AP31: 0 | AQ31: 0 | AR31: 0 | AS31: 0 | AT31: 0 | AU31: 0 | AV31: 0 | AW31: 0 | AX31: 0 | AY31: 0 | AZ31: 0 | BA31: 0 | BB31: 0 | BC31: 0 | BD31: 0 | BE31: 0 | BF31: 0 | BG31: 0 | BH31: 0 | BI31: 0 | BJ31: 0 | BK31: 0 | BL31: 60000 | BM31: 0.01601620071 | BN31: 0.01581018169
B32: 0.22 | C32: ee | D32: =SUM('Base Costi Ricavi'!D29) -> 0 | E32: =SUM('Base Costi Ricavi'!E29) -> 0 | F32: =SUM('Base Costi Ricavi'!F29) -> 0 | G32: 0 | H32: 0 | I32: 0 | J32: 0 | K32: =J32 -> 0 | L32: 0 | M32: 0 | N32: 0 | O32: 0 | P32: 0 | Q32: 0 | R32: 0 | S32: 0 | T32: 0 | U32: 0 | V32: 0 | W32: 0 | X32: 0 | Y32: 0 | Z32: 0 | AA32: 0 | AB32: 0 | AC32: 0 | AD32: 0 | AE32: 0 | AF32: 0 | AG32: 0 | AH32: 0 | AI32: 0 | AJ32: 0 | AK32: 0 | AL32: 0 | AM32: 0 | AN32: 0 | AO32: 0 | AP32: 0 | AQ32: 0 | AR32: 0 | AS32: 0 | AT32: 0 | AU32: 0 | AV32: 0 | AW32: 0 | AX32: 0 | AY32: 0 | AZ32: 0 | BA32: 0 | BB32: 0 | BC32: 0 | BD32: 0 | BE32: 0 | BF32: 0 | BG32: 0 | BH32: 0 | BI32: 0 | BJ32: 0 | BK32: 0 | BL32: 0 | BM32: 0 | BN32: 0
B33: 0.22 | C33: ff | D33: =SUM('Base Costi Ricavi'!D30) -> 0 | E33: =SUM('Base Costi Ricavi'!E30) -> 0 | F33: =SUM('Base Costi Ricavi'!F30) -> 0 | G33: 0 | H33: 0 | I33: 0 | J33: 0 | K33: =J33 -> 0 | L33: 0 | M33: 0 | N33: 0 | O33: 0 | P33: 0 | Q33: 0 | R33: 0 | S33: 0 | T33: 0 | U33: 0 | V33: 0 | W33: 0 | X33: 0 | Y33: 0 | Z33: 0 | AA33: 0 | AB33: 0 | AC33: 0 | AD33: 0 | AE33: 0 | AF33: 0 | AG33: 0 | AH33: 0 | AI33: 0 | AJ33: 0 | AK33: 0 | AL33: 0 | AM33: 0 | AN33: 0 | AO33: 0 | AP33: 0 | AQ33: 0 | AR33: 0 | AS33: 0 | AT33: 0 | AU33: 0 | AV33: 0 | AW33: 0 | AX33: 0 | AY33: 0 | AZ33: 0 | BA33: 0 | BB33: 0 | BC33: 0 | BD33: 0 | BE33: 0 | BF33: 0 | BG33: 0 | BH33: 0 | BI33: 0 | BJ33: 0 | BK33: 0 | BL33: 0 | BM33: 0 | BN33: 0
C34: Totale Costi di Gestione | D34: =SUM(D23:D33) -> 374620.68 | E34: 376972.68 | F34: 380428.68 | G34: 380428.68 | H34: 380428.68 | I34: 380428.68 | J34: 380428.68 | K34: 380428.68 | L34: 380428.68 | M34: 380428.68 | N34: 0 | O34: 0 | P34: 0 | Q34: 0 | R34: 0 | S34: 0 | T34: 0 | U34: 0 | V34: 0 | W34: 0 | X34: 0 | Y34: 0 | Z34: 0 | AA34: 0 | AB34: 0 | AC34: 0 | AD34: 0 | AE34: 0 | AF34: 0 | AG34: 0 | AH34: 0 | AI34: 0 | AJ34: 0 | AK34: 0 | AL34: 0 | AM34: 0 | AN34: 0 | AO34: 0 | AP34: 0 | AQ34: 0 | AR34: 0 | AS34: 0 | AT34: 0 | AU34: 0 | AV34: 0 | AW34: 0 | AX34: 0 | AY34: 0 | AZ34: 0 | BA34: 0 | BB34: 0 | BC34: 0 | BD34: 0 | BE34: 0 | BF34: 0 | BG34: 0 | BH34: 0 | BI34: 0 | BJ34: 0 | BK34: 0 | BL34: 3795022.8 | BN34: 1
C35: IVA Media sui Costi - al netto del Costo Personale | D35: =D24*$B$24/(D34-D23)+D25*$B$25/(D34-D23)+D26*$B$26/(D34-D23)+D27*$B$27/(D34-D23)+D28*$B$28/(D34-D23)+D29*$B$29/(D34-D23)+D30*$B$30/(D34-D23)+D31*$B$31/(D34-D23)+D32*$B$32/(D34-D23)+D33*$B$33/(D34-D23) -> 0.22 | E35: 0.22 | F35: 0.22 | G35: 0.22 | H35: 0.22 | I35: 0.22 | J35: 0.22 | K35: 0.22 | L35: 0.22 | M35: 0.22
B36: ='2 Investimento'!F36*100 -> 22 | C36: Costi per nuove attrezzature e migliorie | D36: 0 | E36: =D36 -> 0 | F36: 0 | G36: 0 | H36: 0 | I36: 0 | J36: 0 | K36: =J36 -> 0 | L36: 0 | M36: 0 | N36: 0 | O36: 0 | P36: 0 | Q36: 0 | R36: 0 | S36: 0 | T36: 0 | U36: 0 | V36: 0 | W36: 0 | X36: 0 | Y36: 0 | Z36: 0 | AA36: 0 | AB36: 0 | AC36: 0 | AD36: 0 | AE36: 0 | AF36: 0 | AG36: 0 | AH36: 0 | AI36: 0 | AJ36: 0 | AK36: 0 | AL36: 0 | AM36: 0 | AN36: 0 | AO36: 0 | AP36: 0 | AQ36: 0 | AR36: 0 | AS36: 0 | AT36: 0 | AU36: 0 | AV36: 0 | AW36: 0 | AX36: 0 | AY36: 0 | AZ36: 0 | BA36: 0 | BB36: 0 | BC36: 0 | BD36: 0 | BE36: 0 | BF36: 0 | BG36: 0 | BH36: 0 | BI36: 0 | BJ36: 0 | BK36: 0 | BL36: =SUM(D36:BK36) -> 0
BL37: =SUM(BL34/BL15) -> 0.9199908074

Sheet 4 Sviluppo Domanda e Gestione
B2: 4 | C2: SVILUPPO DOMANDA E GESTIONE
C6: Descrizione dei servizi e caratteristiche territoriali della domanda
C8: Servizio erogato | D8: Descrizione | F8: Unità di misura | K8: TERRITORIO: domanda soddisfatta senza il progetto (media 5 anni precedenti l'esercizio) | L8: TERRITORIO: domanda potenziale | M8: Livello capacità produttiva massima (offerta massima del progetto) | N8: CHECK 1: Capcità produttiva max < Domanda da soddisfare
B9: 1 | C9: ='3 Costi-Ricavi'!C5 -> Ricavi Istituzionali | D9: =C9 -> Ricavi Istituzionali | F9: * | I9: Unità suggerita | K9: 600000 | L9: 1800000 | M9: 900000 | N9: =IF(C9="","",IF(M9<L9-K9,"OK","VERIFICARE")) -> OK
B10: 2 | C10: ='3 Costi-Ricavi'!C6 -> Ricavi Commerciali | D10: Ricavi Commerciali | F10: * | I10: Unità suggerita | K10: 24000 | L10: 49000 | M10: 24000 | N10: OK
B11: 3 | C11: ='3 Costi-Ricavi'!C7 -> Ricavi Bar | D11: =C11 -> Ricavi Bar | F11: * | I11: Unità suggerita | K11: 10000 | L11: 21000 | M11: 10000 | N11: =IF(C11="","",IF(M11<L11-K11,"OK","ERRORE")) -> OK
B12: 4 | C12: ='3 Costi-Ricavi'!C8 -> Proventi diversi/pubblicità | D12: =C12 -> Proventi diversi/pubblicità | F12: * | I12: Unità suggerita
B13: 5 | C13: ='3 Costi-Ricavi'!C9 -> b | D13: =C13 -> b | F13: * | I13: Unità suggerita | N13: =IF(C13="","",IF(M13<L13-K13,"OK","ERRORE")) -> ERRORE
B14: 6 | C14: ='3 Costi-Ricavi'!C10 -> c | D14: c | F14: * | I14: Unità suggerita | N14: =IF(C14="","",IF(M14<L14-K14,"OK","ERRORE")) -> ERRORE
B15: 7 | C15: ='3 Costi-Ricavi'!C11 -> d | D15: d | F15: * | I15: Unità suggerita | N15: ERRORE
B16: 8 | C16: ='3 Costi-Ricavi'!C12 -> e | D16: e | F16: * | I16: Unità suggerita | N16: ERRORE
B17: 9 | C17: ='3 Costi-Ricavi'!C13 -> f | D17: f | F17: * | I17: Unità suggerita | N17: ERRORE
B18: 10 | C18: ='3 Costi-Ricavi'!C14 -> g | D18: g | F18: * | I18: Unità suggerita | N18: ERRORE
C21: Caratterizzazione della domanda del servizio del progetto
C23: Profilo crescita standard
F24: INSERIRE I DATI NELLA COLONNA ISTAT ↓ (solo se i dati Istat variano di anno in anno)
D25: QUANTITÁ | F25: PREZZO
C26: Nome servizio erogato NON TOCCARE | D26: PROGETTO: domanda stimata primo anno di gestione NON TOCCARE | E26: PROGETTO: livello domanda massima stimata NON TOCCARE | F26: Tariffa unitaria - livello iniziale (euro) NON TOCCARE | G26: Tasso di crescita percentuale annuo della tariffa (Istat) | H26: Parametro crescita suggerito sino a regime (0<valore<1) NON TOCCARE | J26: CHECK 2: Domanda massima stimata < Domanda da soddisfare | K26: CHECK 3: Domanda massima stimata < Capacità massima del progetto
B27: 1 | C27: =IF(C9="","",C9) -> Ricavi Istituzionali | D27: 0 | E27: 0 | F27: 1 | G27: ='2 Descrizione Progetto'!D27 -> 0.02 | H27: 1 | J27: =IF(C9="","",IF(E27<=L9-K9,"OK","ERRORE")) -> OK | K27: =IF(C9="","",IF(E27<=M9,"OK","VERIFICARE")) -> OK
B28: 2 | C28: Ricavi Commerciali | D28: 0 | E28: 0 | F28: 1 | G28: =G27 -> 0.02 | H28: 1 | J28: =IF(C10="","",IF(E28<=L10-K10,"OK","VERIFICARE")) -> OK | K28: OK
B29: 3 | C29: =IF(C11="","",C11) -> Ricavi Bar | D29: 0 | E29: 0 | F29: 1 | G29: 0.02 | H29: 1 | J29: =IF(C11="","",IF(E29<=L11-K11,"OK","ERRORE")) -> OK | K29: =IF(C11="","",IF(E29<=M11,"OK","ERRORE")) -> OK
B30: 4 | C30: =IF(C12="","",C12) -> Proventi diversi/pubblicità | D30: 0 | E30: 0 | F30: 1 | G30: 0.02 | H30: 1 | J30: ok | K30: ok
B31: 5 | C31: =IF(C13="","",C13) -> b | D31: ='3 Costi-Ricavi'!D12 -> 0 | E31: 0 | F31: 1 | G31: 0.02 | H31: 1 | J31: =IF(C13="","",IF(E31<=L13-K13,"OK","ERRORE")) -> OK | K31: =IF(C13="","",IF(E31<=M13,"OK","ERRORE")) -> OK
B32: 6 | C32: c | D32: ='3 Costi-Ricavi'!D13 -> 0 | E32: 0 | F32: 1 | G32: 0.02 | H32: 1 | J32: =IF(C14="","",IF(E32<=L14-K14,"OK","ERRORE")) -> OK | K32: =IF(C14="","",IF(E32<=M14,"OK","ERRORE")) -> OK
B33: 7 | C33: d | D33: ='3 Costi-Ricavi'!D14 -> 0 | E33: 0 | F33: 1 | G33: 0.02 | H33: 1 | J33: OK | K33: OK
B34: 8 | C34: e | D34: 0 | E34: 0 | F34: 1 | G34: 0.02 | H34: 1 | J34: OK | K34: OK
B35: 9 | C35: f | D35: 0 | E35: 0 | F35: 1 | G35: 0.02 | H35: 1 | J35: OK | K35: OK
B36: 10 | C36: g | D36: 0 | E36: 0 | F36: 1 | G36: 0.02 | H36: 1 | J36: OK | K36: OK
D40: tempo t logistica | E40: 0 | F40: 1 | G40: =F40+1 -> 2 | H40: 3 | I40: 4 | J40: 5 | K40: 6 | L40: 7 | M40: 8 | N40: 9 | O40: 10 | P40: 11 | Q40: 12 | R40: 13 | S40: 14 | T40: 15 | U40: 16 | V40: 17 | W40: 18 | X40: 19 | Y40: 20 | Z40: 21 | AA40: 22 | AB40: 23 | AC40: 24 | AD40: 25 | AE40: 26 | AF40: 27 | AG40: 28 | AH40: 29 | AI40: 30 | AJ40: 31 | AK40: 32 | AL40: 33 | AM40: 34 | AN40: 35 | AO40: 36 | AP40: 37 | AQ40: 38 | AR40: 39 | AS40: 40 | AT40: 41 | AU40: 42 | AV40: 43 | AW40: 44 | AX40: 45 | AY40: 46 | AZ40: 47 | BA40: 48 | BB40: 49 | BC40: 50 | BD40: 51 | BE40: 52 | BF40: 53 | BG40: 54 | BH40: 55 | BI40: 56 | BJ40: 57 | BK40: 58 | BL40: 59
C41: Ricavo 1 | E41: ='2 Descrizione Progetto'!$D$20 -> 1 | F41: =IF(E41="anno esterno","anno esterno",IF(E41+1<='2 Descrizione Progetto'!$D$22,E41+1,"anno esterno")) -> 2 | G41: =IF(F41="anno esterno","anno esterno",IF(F41+1<='2 Descrizione Progetto'!$D$22,F41+1,"anno esterno")) -> 3 | H41: =IF(G41="anno esterno","anno esterno",IF(G41+1<='2 Descrizione Progetto'!$D$22,G41+1,"anno esterno")) -> 4 | I41: =IF(H41="anno esterno","anno esterno",IF(H41+1<='2 Descrizione Progetto'!$D$22,H41+1,"anno esterno")) -> 5 | J41: =IF(I41="anno esterno","anno esterno",IF(I41+1<='2 Descrizione Progetto'!$D$22,I41+1,"anno esterno")) -> 6 | K41: =IF(J41="anno esterno","anno esterno",IF(J41+1<='2 Descrizione Progetto'!$D$22,J41+1,"anno esterno")) -> 7 | L41: =IF(K41="anno esterno","anno esterno",IF(K41+1<='2 Descrizione Progetto'!$D$22,K41+1,"anno esterno")) -> 8 | M41: =IF(L41="anno esterno","anno esterno",IF(L41+1<='2 Descrizione Progetto'!$D$22,L41+1,"anno esterno")) -> 9 | N41: =IF(M41="anno esterno","anno esterno",IF(M41+1<='2 Descrizione Progetto'!$D$22,M41+1,"anno esterno")) -> 10 | O41: =IF(N41="anno esterno","anno esterno",IF(N41+1<='2 Descrizione Progetto'!$D$22,N41+1,"anno esterno")) -> anno esterno | P41: =IF(O41="anno esterno","anno esterno",IF(O41+1<='2 Descrizione Progetto'!$D$22,O41+1,"anno esterno")) -> anno esterno | Q41: =IF(P41="anno esterno","anno esterno",IF(P41+1<='2 Descrizione Progetto'!$D$22,P41+1,"anno esterno")) -> anno esterno | R41: =IF(Q41="anno esterno","anno esterno",IF(Q41+1<='2 Descrizione Progetto'!$D$22,Q41+1,"anno esterno")) -> anno esterno | S41: =IF(R41="anno esterno","anno esterno",IF(R41+1<='2 Descrizione Progetto'!$D$22,R41+1,"anno esterno")) -> anno esterno | T41: =IF(S41="anno esterno","anno esterno",IF(S41+1<='2 Descrizione Progetto'!$D$22,S41+1,"anno esterno")) -> anno esterno | U41: =IF(T41="anno esterno","anno esterno",IF(T41+1<='2 Descrizione Progetto'!$D$22,T41+1,"anno esterno")) -> anno esterno | V41: =IF(U41="anno esterno","anno esterno",IF(U41+1<='2 Descrizione Progetto'!$D$22,U41+1,"anno esterno")) -> anno esterno | W41: =IF(V41="anno esterno","anno esterno",IF(V41+1<='2 Descrizione Progetto'!$D$22,V41+1,"anno esterno")) -> anno esterno | X41: =IF(W41="anno esterno","anno esterno",IF(W41+1<='2 Descrizione Progetto'!$D$22,W41+1,"anno esterno")) -> anno esterno | Y41: =IF(X41="anno esterno","anno esterno",IF(X41+1<='2 Descrizione Progetto'!$D$22,X41+1,"anno esterno")) -> anno esterno | Z41: =IF(Y41="anno esterno","anno esterno",IF(Y41+1<='2 Descrizione Progetto'!$D$22,Y41+1,"anno esterno")) -> anno esterno | AA41: =IF(Z41="anno esterno","anno esterno",IF(Z41+1<='2 Descrizione Progetto'!$D$22,Z41+1,"anno esterno")) -> anno esterno | AB41: =IF(AA41="anno esterno","anno esterno",IF(AA41+1<='2 Descrizione Progetto'!$D$22,AA41+1,"anno esterno")) -> anno esterno | AC41: =IF(AB41="anno esterno","anno esterno",IF(AB41+1<='2 Descrizione Progetto'!$D$22,AB41+1,"anno esterno")) -> anno esterno | AD41: =IF(AC41="anno esterno","anno esterno",IF(AC41+1<='2 Descrizione Progetto'!$D$22,AC41+1,"anno esterno")) -> anno esterno | AE41: =IF(AD41="anno esterno","anno esterno",IF(AD41+1<='2 Descrizione Progetto'!$D$22,AD41+1,"anno esterno")) -> anno esterno | AF41: =IF(AE41="anno esterno","anno esterno",IF(AE41+1<='2 Descrizione Progetto'!$D$22,AE41+1,"anno esterno")) -> anno esterno | AG41: =IF(AF41="anno esterno","anno esterno",IF(AF41+1<='2 Descrizione Progetto'!$D$22,AF41+1,"anno esterno")) -> anno esterno | AH41: =IF(AG41="anno esterno","anno esterno",IF(AG41+1<='2 Descrizione Progetto'!$D$22,AG41+1,"anno esterno")) -> anno esterno | AI41: =IF(AH41="anno esterno","anno esterno",IF(AH41+1<='2 Descrizione Progetto'!$D$22,AH41+1,"anno esterno")) -> anno esterno | AJ41: =IF(AI41="anno esterno","anno esterno",IF(AI41+1<='2 Descrizione Progetto'!$D$22,AI41+1,"anno esterno")) -> anno esterno | AK41: =IF(AJ41="anno esterno","anno esterno",IF(AJ41+1<='2 Descrizione Progetto'!$D$22,AJ41+1,"anno esterno")) -> anno esterno | AL41: =IF(AK41="anno esterno","anno esterno",IF(AK41+1<='2 Descrizione Progetto'!$D$22,AK41+1,"anno esterno")) -> anno esterno | AM41: =IF(AL41="anno esterno","anno esterno",IF(AL41+1<='2 Descrizione Progetto'!$D$22,AL41+1,"anno esterno")) -> anno esterno | AN41: =IF(AM41="anno esterno","anno esterno",IF(AM41+1<='2 Descrizione Progetto'!$D$22,AM41+1,"anno esterno")) -> anno esterno | AO41: =IF(AN41="anno esterno","anno esterno",IF(AN41+1<='2 Descrizione Progetto'!$D$22,AN41+1,"anno esterno")) -> anno esterno | AP41: =IF(AO41="anno esterno","anno esterno",IF(AO41+1<='2 Descrizione Progetto'!$D$22,AO41+1,"anno esterno")) -> anno esterno | AQ41: =IF(AP41="anno esterno","anno esterno",IF(AP41+1<='2 Descrizione Progetto'!$D$22,AP41+1,"anno esterno")) -> anno esterno | AR41: =IF(AQ41="anno esterno","anno esterno",IF(AQ41+1<='2 Descrizione Progetto'!$D$22,AQ41+1,"anno esterno")) -> anno esterno | AS41: =IF(AR41="anno esterno","anno esterno",IF(AR41+1<='2 Descrizione Progetto'!$D$22,AR41+1,"anno esterno")) -> anno esterno | AT41: =IF(AS41="anno esterno","anno esterno",IF(AS41+1<='2 Descrizione Progetto'!$D$22,AS41+1,"anno esterno")) -> anno esterno | AU41: =IF(AT41="anno esterno","anno esterno",IF(AT41+1<='2 Descrizione Progetto'!$D$22,AT41+1,"anno esterno")) -> anno esterno | AV41: =IF(AU41="anno esterno","anno esterno",IF(AU41+1<='2 Descrizione Progetto'!$D$22,AU41+1,"anno esterno")) -> anno esterno | AW41: =IF(AV41="anno esterno","anno esterno",IF(AV41+1<='2 Descrizione Progetto'!$D$22,AV41+1,"anno esterno")) -> anno esterno | AX41: =IF(AW41="anno esterno","anno esterno",IF(AW41+1<='2 Descrizione Progetto'!$D$22,AW41+1,"anno esterno")) -> anno esterno | AY41: =IF(AX41="anno esterno","anno esterno",IF(AX41+1<='2 Descrizione Progetto'!$D$22,AX41+1,"anno esterno")) -> anno esterno | AZ41: =IF(AY41="anno esterno","anno esterno",IF(AY41+1<='2 Descrizione Progetto'!$D$22,AY41+1,"anno esterno")) -> anno esterno | BA41: =IF(AZ41="anno esterno","anno esterno",IF(AZ41+1<='2 Descrizione Progetto'!$D$22,AZ41+1,"anno esterno")) -> anno esterno | BB41: =IF(BA41="anno esterno","anno esterno",IF(BA41+1<='2 Descrizione Progetto'!$D$22,BA41+1,"anno esterno")) -> anno esterno | BC41: =IF(BB41="anno esterno","anno esterno",IF(BB41+1<='2 Descrizione Progetto'!$D$22,BB41+1,"anno esterno")) -> anno esterno | BD41: =IF(BC41="anno esterno","anno esterno",IF(BC41+1<='2 Descrizione Progetto'!$D$22,BC41+1,"anno esterno")) -> anno esterno | BE41: =IF(BD41="anno esterno","anno esterno",IF(BD41+1<='2 Descrizione Progetto'!$D$22,BD41+1,"anno esterno")) -> anno esterno | BF41: =IF(BE41="anno esterno","anno esterno",IF(BE41+1<='2 Descrizione Progetto'!$D$22,BE41+1,"anno esterno")) -> anno esterno | BG41: =IF(BF41="anno esterno","anno esterno",IF(BF41+1<='2 Descrizione Progetto'!$D$22,BF41+1,"anno esterno")) -> anno esterno | BH41: =IF(BG41="anno esterno","anno esterno",IF(BG41+1<='2 Descrizione Progetto'!$D$22,BG41+1,"anno esterno")) -> anno esterno | BI41: =IF(BH41="anno esterno","anno esterno",IF(BH41+1<='2 Descrizione Progetto'!$D$22,BH41+1,"anno esterno")) -> anno esterno | BJ41: =IF(BI41="anno esterno","anno esterno",IF(BI41+1<='2 Descrizione Progetto'!$D$22,BI41+1,"anno esterno")) -> anno esterno | BK41: =IF(BJ41="anno esterno","anno esterno",IF(BJ41+1<='2 Descrizione Progetto'!$D$22,BJ41+1,"anno esterno")) -> anno esterno | BL41: =IF(BK41="anno esterno","anno esterno",IF(BK41+1<='2 Descrizione Progetto'!$D$22,BK41+1,"anno esterno")) -> anno esterno
C42: Domanda | D42: k-unità fisiche | E42: ='3 Costi-Ricavi'!D5 -> 265400 | F42: ='3 Costi-Ricavi'!E5 -> 285300 | G42: ='3 Costi-Ricavi'!F5 -> 308481 | H42: ='3 Costi-Ricavi'!G5 -> 308481 | I42: ='3 Costi-Ricavi'!H5 -> 308481 | J42: ='3 Costi-Ricavi'!I5 -> 308481 | K42: ='3 Costi-Ricavi'!J5 -> 308481 | L42: ='3 Costi-Ricavi'!K5 -> 308481 | M42: ='3 Costi-Ricavi'!L5 -> 308481 | N42: ='3 Costi-Ricavi'!M5 -> 308481 | O42: ='3 Costi-Ricavi'!N5 -> 0 | P42: ='3 Costi-Ricavi'!O5 -> 0 | Q42: ='3 Costi-Ricavi'!P5 -> 0 | R42: ='3 Costi-Ricavi'!Q5 -> 0 | S42: ='3 Costi-Ricavi'!R5 -> 0 | T42: ='3 Costi-Ricavi'!S5 -> 0 | U42: ='3 Costi-Ricavi'!T5 -> 0 | V42: ='3 Costi-Ricavi'!U5 -> 0 | W42: ='3 Costi-Ricavi'!V5 -> 0 | X42: ='3 Costi-Ricavi'!W5 -> 0 | Y42: ='3 Costi-Ricavi'!X5 -> 0 | Z42: ='3 Costi-Ricavi'!Y5 -> 0 | AA42: ='3 Costi-Ricavi'!Z5 -> 0 | AB42: ='3 Costi-Ricavi'!AA5 -> 0 | AC42: ='3 Costi-Ricavi'!AB5 -> 0 | AD42: ='3 Costi-Ricavi'!AC5 -> 0 | AE42: ='3 Costi-Ricavi'!AD5 -> 0 | AF42: ='3 Costi-Ricavi'!AE5 -> 0 | AG42: ='3 Costi-Ricavi'!AF5 -> 0 | AH42: ='3 Costi-Ricavi'!AG5 -> 0 | AI42: ='3 Costi-Ricavi'!AH5 -> 0 | AJ42: ='3 Costi-Ricavi'!AI5 -> 0 | AK42: ='3 Costi-Ricavi'!AJ5 -> 0 | AL42: ='3 Costi-Ricavi'!AK5 -> 0 | AM42: ='3 Costi-Ricavi'!AL5 -> 0 | AN42: ='3 Costi-Ricavi'!AM5 -> 0 | AO42: ='3 Costi-Ricavi'!AN5 -> 0 | AP42: ='3 Costi-Ricavi'!AO5 -> 0 | AQ42: ='3 Costi-Ricavi'!AP5 -> 0 | AR42: ='3 Costi-Ricavi'!AQ5 -> 0 | AS42: ='3 Costi-Ricavi'!AR5 -> 0 | AT42: ='3 Costi-Ricavi'!AS5 -> 0 | AU42: ='3 Costi-Ricavi'!AT5 -> 0 | AV42: ='3 Costi-Ricavi'!AU5 -> 0 | AW42: ='3 Costi-Ricavi'!AV5 -> 0 | AX42: ='3 Costi-Ricavi'!AW5 -> 0 | AY42: ='3 Costi-Ricavi'!AX5 -> 0 | AZ42: ='3 Costi-Ricavi'!AY5 -> 0 | BA42: ='3 Costi-Ricavi'!AZ5 -> 0 | BB42: ='3 Costi-Ricavi'!BA5 -> 0 | BC42: ='3 Costi-Ricavi'!BB5 -> 0 | BD42: ='3 Costi-Ricavi'!BC5 -> 0 | BE42: ='3 Costi-Ricavi'!BD5 -> 0 | BF42: ='3 Costi-Ricavi'!BE5 -> 0 | BG42: ='3 Costi-Ricavi'!BF5 -> 0 | BH42: ='3 Costi-Ricavi'!BG5 -> 0 | BI42: ='3 Costi-Ricavi'!BH5 -> 0 | BJ42: ='3 Costi-Ricavi'!BI5 -> 0 | BK42: ='3 Costi-Ricavi'!BJ5 -> 0 | BL42: ='3 Costi-Ricavi'!BK5 -> 0
C43: Tariffa unitaria | D43: euro/unità | E43: =F27 -> 1 | F43: =E43*(1+$G$27) -> 1.02 | G43: 1.0404 | H43: 1.061208 | I43: 1.08243216 | J43: 1.104080803 | K43: 1.126162419 | L43: 1.148685668 | M43: 1.171659381 | N43: 1.195092569 | O43: 1.21899442 | P43: 1.243374308 | Q43: 1.268241795 | R43: 1.29360663 | S43: 1.319478763 | T43: 1.345868338 | U43: 1.372785705 | V43: 1.400241419 | W43: 1.428246248 | X43: 1.456811173 | Y43: 1.485947396 | Z43: 1.515666344 | AA43: 1.545979671 | AB43: 1.576899264 | AC43: 1.608437249 | AD43: 1.640605994 | AE43: 1.673418114 | AF43: 1.706886477 | AG43: 1.741024206 | AH43: 1.77584469 | AI43: 1.811361584 | AJ43: 1.847588816 | AK43: 1.884540592 | AL43: 1.922231404 | AM43: 1.960676032 | AN43: 1.999889553 | AO43: 2.039887344 | AP43: 2.080685091 | AQ43: 2.122298792 | AR43: 2.164744768 | AS43: 2.208039664 | AT43: 2.252200457 | AU43: 2.297244466 | AV43: 2.343189355 | AW43: 2.390053142 | AX43: 2.437854205 | AY43: 2.486611289 | AZ43: 2.536343515 | BA43: 2.587070385 | BB43: 2.638811793 | BC43: 2.691588029 | BD43: 2.74541979 | BE43: 2.800328185 | BF43: 2.856334749 | BG43: 2.913461444 | BH43: 2.971730673 | BI43: 3.031165286 | BJ43: 3.091788592 | BK43: 3.153624364 | BL43: 3.216696851
C44: Ricavi | D44: euro | E44: =E42*E43 -> 265400 | F44: 291006 | G44: 320943.6324 | H44: 327362.505 | I44: 333909.7551 | J44: 340587.9503 | K44: 347399.7093 | L44: 354347.7034 | M44: 361434.6575 | N44: 368663.3507 | O44: 0 | P44: 0 | Q44: 0 | R44: 0 | S44: 0 | T44: 0 | U44: 0 | V44: 0 | W44: 0 | X44: 0 | Y44: 0 | Z44: 0 | AA44: 0 | AB44: 0 | AC44: 0 | AD44: 0 | AE44: 0 | AF44: 0 | AG44: 0 | AH44: 0 | AI44: 0 | AJ44: 0 | AK44: 0 | AL44: 0 | AM44: 0 | AN44: 0 | AO44: 0 | AP44: 0 | AQ44: 0 | AR44: 0 | AS44: 0 | AT44: 0 | AU44: 0 | AV44: 0 | AW44: 0 | AX44: 0 | AY44: 0 | AZ44: 0 | BA44: 0 | BB44: 0 | BC44: 0 | BD44: 0 | BE44: 0 | BF44: 0 | BG44: 0 | BH44: 0 | BI44: 0 | BJ44: 0 | BK44: 0 | BL44: 0
C46: Ricavo 1 | E46: ='2 Descrizione Progetto'!$D$20 -> 1 | F46: =IF(E46="anno esterno","anno esterno",IF(E46+1<='2 Descrizione Progetto'!$D$22,E46+1,"anno esterno")) -> 2 | G46: =IF(F46="anno esterno","anno esterno",IF(F46+1<='2 Descrizione Progetto'!$D$22,F46+1,"anno esterno")) -> 3 | H46: =IF(G46="anno esterno","anno esterno",IF(G46+1<='2 Descrizione Progetto'!$D$22,G46+1,"anno esterno")) -> 4 | I46: =IF(H46="anno esterno","anno esterno",IF(H46+1<='2 Descrizione Progetto'!$D$22,H46+1,"anno esterno")) -> 5 | J46: =IF(I46="anno esterno","anno esterno",IF(I46+1<='2 Descrizione Progetto'!$D$22,I46+1,"anno esterno")) -> 6 | K46: =IF(J46="anno esterno","anno esterno",IF(J46+1<='2 Descrizione Progetto'!$D$22,J46+1,"anno esterno")) -> 7 | L46: =IF(K46="anno esterno","anno esterno",IF(K46+1<='2 Descrizione Progetto'!$D$22,K46+1,"anno esterno")) -> 8 | M46: =IF(L46="anno esterno","anno esterno",IF(L46+1<='2 Descrizione Progetto'!$D$22,L46+1,"anno esterno")) -> 9 | N46: =IF(M46="anno esterno","anno esterno",IF(M46+1<='2 Descrizione Progetto'!$D$22,M46+1,"anno esterno")) -> 10 | O46: =IF(N46="anno esterno","anno esterno",IF(N46+1<='2 Descrizione Progetto'!$D$22,N46+1,"anno esterno")) -> anno esterno | P46: =IF(O46="anno esterno","anno esterno",IF(O46+1<='2 Descrizione Progetto'!$D$22,O46+1,"anno esterno")) -> anno esterno | Q46: =IF(P46="anno esterno","anno esterno",IF(P46+1<='2 Descrizione Progetto'!$D$22,P46+1,"anno esterno")) -> anno esterno | R46: =IF(Q46="anno esterno","anno esterno",IF(Q46+1<='2 Descrizione Progetto'!$D$22,Q46+1,"anno esterno")) -> anno esterno | S46: =IF(R46="anno esterno","anno esterno",IF(R46+1<='2 Descrizione Progetto'!$D$22,R46+1,"anno esterno")) -> anno esterno | T46: =IF(S46="anno esterno","anno esterno",IF(S46+1<='2 Descrizione Progetto'!$D$22,S46+1,"anno esterno")) -> anno esterno | U46: =IF(T46="anno esterno","anno esterno",IF(T46+1<='2 Descrizione Progetto'!$D$22,T46+1,"anno esterno")) -> anno esterno | V46: =IF(U46="anno esterno","anno esterno",IF(U46+1<='2 Descrizione Progetto'!$D$22,U46+1,"anno esterno")) -> anno esterno | W46: =IF(V46="anno esterno","anno esterno",IF(V46+1<='2 Descrizione Progetto'!$D$22,V46+1,"anno esterno")) -> anno esterno | X46: =IF(W46="anno esterno","anno esterno",IF(W46+1<='2 Descrizione Progetto'!$D$22,W46+1,"anno esterno")) -> anno esterno | Y46: =IF(X46="anno esterno","anno esterno",IF(X46+1<='2 Descrizione Progetto'!$D$22,X46+1,"anno esterno")) -> anno esterno | Z46: =IF(Y46="anno esterno","anno esterno",IF(Y46+1<='2 Descrizione Progetto'!$D$22,Y46+1,"anno esterno")) -> anno esterno | AA46: =IF(Z46="anno esterno","anno esterno",IF(Z46+1<='2 Descrizione Progetto'!$D$22,Z46+1,"anno esterno")) -> anno esterno | AB46: =IF(AA46="anno esterno","anno esterno",IF(AA46+1<='2 Descrizione Progetto'!$D$22,AA46+1,"anno esterno")) -> anno esterno | AC46: =IF(AB46="anno esterno","anno esterno",IF(AB46+1<='2 Descrizione Progetto'!$D$22,AB46+1,"anno esterno")) -> anno esterno | AD46: =IF(AC46="anno esterno","anno esterno",IF(AC46+1<='2 Descrizione Progetto'!$D$22,AC46+1,"anno esterno")) -> anno esterno | AE46: =IF(AD46="anno esterno","anno esterno",IF(AD46+1<='2 Descrizione Progetto'!$D$22,AD46+1,"anno esterno")) -> anno esterno | AF46: =IF(AE46="anno esterno","anno esterno",IF(AE46+1<='2 Descrizione Progetto'!$D$22,AE46+1,"anno esterno")) -> anno esterno | AG46: =IF(AF46="anno esterno","anno esterno",IF(AF46+1<='2 Descrizione Progetto'!$D$22,AF46+1,"anno esterno")) -> anno esterno | AH46: =IF(AG46="anno esterno","anno esterno",IF(AG46+1<='2 Descrizione Progetto'!$D$22,AG46+1,"anno esterno")) -> anno esterno | AI46: =IF(AH46="anno esterno","anno esterno",IF(AH46+1<='2 Descrizione Progetto'!$D$22,AH46+1,"anno esterno")) -> anno esterno | AJ46: =IF(AI46="anno esterno","anno esterno",IF(AI46+1<='2 Descrizione Progetto'!$D$22,AI46+1,"anno esterno")) -> anno esterno | AK46: =IF(AJ46="anno esterno","anno esterno",IF(AJ46+1<='2 Descrizione Progetto'!$D$22,AJ46+1,"anno esterno")) -> anno esterno | AL46: =IF(AK46="anno esterno","anno esterno",IF(AK46+1<='2 Descrizione Progetto'!$D$22,AK46+1,"anno esterno")) -> anno esterno | AM46: =IF(AL46="anno esterno","anno esterno",IF(AL46+1<='2 Descrizione Progetto'!$D$22,AL46+1,"anno esterno")) -> anno esterno | AN46: =IF(AM46="anno esterno","anno esterno",IF(AM46+1<='2 Descrizione Progetto'!$D$22,AM46+1,"anno esterno")) -> anno esterno | AO46: =IF(AN46="anno esterno","anno esterno",IF(AN46+1<='2 Descrizione Progetto'!$D$22,AN46+1,"anno esterno")) -> anno esterno | AP46: =IF(AO46="anno esterno","anno esterno",IF(AO46+1<='2 Descrizione Progetto'!$D$22,AO46+1,"anno esterno")) -> anno esterno | AQ46: =IF(AP46="anno esterno","anno esterno",IF(AP46+1<='2 Descrizione Progetto'!$D$22,AP46+1,"anno esterno")) -> anno esterno | AR46: =IF(AQ46="anno esterno","anno esterno",IF(AQ46+1<='2 Descrizione Progetto'!$D$22,AQ46+1,"anno esterno")) -> anno esterno | AS46: =IF(AR46="anno esterno","anno esterno",IF(AR46+1<='2 Descrizione Progetto'!$D$22,AR46+1,"anno esterno")) -> anno esterno | AT46: =IF(AS46="anno esterno","anno esterno",IF(AS46+1<='2 Descrizione Progetto'!$D$22,AS46+1,"anno esterno")) -> anno esterno | AU46: =IF(AT46="anno esterno","anno esterno",IF(AT46+1<='2 Descrizione Progetto'!$D$22,AT46+1,"anno esterno")) -> anno esterno | AV46: =IF(AU46="anno esterno","anno esterno",IF(AU46+1<='2 Descrizione Progetto'!$D$22,AU46+1,"anno esterno")) -> anno esterno | AW46: =IF(AV46="anno esterno","anno esterno",IF(AV46+1<='2 Descrizione Progetto'!$D$22,AV46+1,"anno esterno")) -> anno esterno | AX46: =IF(AW46="anno esterno","anno esterno",IF(AW46+1<='2 Descrizione Progetto'!$D$22,AW46+1,"anno esterno")) -> anno esterno | AY46: =IF(AX46="anno esterno","anno esterno",IF(AX46+1<='2 Descrizione Progetto'!$D$22,AX46+1,"anno esterno")) -> anno esterno | AZ46: =IF(AY46="anno esterno","anno esterno",IF(AY46+1<='2 Descrizione Progetto'!$D$22,AY46+1,"anno esterno")) -> anno esterno | BA46: =IF(AZ46="anno esterno","anno esterno",IF(AZ46+1<='2 Descrizione Progetto'!$D$22,AZ46+1,"anno esterno")) -> anno esterno | BB46: =IF(BA46="anno esterno","anno esterno",IF(BA46+1<='2 Descrizione Progetto'!$D$22,BA46+1,"anno esterno")) -> anno esterno | BC46: =IF(BB46="anno esterno","anno esterno",IF(BB46+1<='2 Descrizione Progetto'!$D$22,BB46+1,"anno esterno")) -> anno esterno | BD46: =IF(BC46="anno esterno","anno esterno",IF(BC46+1<='2 Descrizione Progetto'!$D$22,BC46+1,"anno esterno")) -> anno esterno | BE46: =IF(BD46="anno esterno","anno esterno",IF(BD46+1<='2 Descrizione Progetto'!$D$22,BD46+1,"anno esterno")) -> anno esterno | BF46: =IF(BE46="anno esterno","anno esterno",IF(BE46+1<='2 Descrizione Progetto'!$D$22,BE46+1,"anno esterno")) -> anno esterno | BG46: =IF(BF46="anno esterno","anno esterno",IF(BF46+1<='2 Descrizione Progetto'!$D$22,BF46+1,"anno esterno")) -> anno esterno | BH46: =IF(BG46="anno esterno","anno esterno",IF(BG46+1<='2 Descrizione Progetto'!$D$22,BG46+1,"anno esterno")) -> anno esterno | BI46: =IF(BH46="anno esterno","anno esterno",IF(BH46+1<='2 Descrizione Progetto'!$D$22,BH46+1,"anno esterno")) -> anno esterno | BJ46: =IF(BI46="anno esterno","anno esterno",IF(BI46+1<='2 Descrizione Progetto'!$D$22,BI46+1,"anno esterno")) -> anno esterno | BK46: =IF(BJ46="anno esterno","anno esterno",IF(BJ46+1<='2 Descrizione Progetto'!$D$22,BJ46+1,"anno esterno")) -> anno esterno | BL46: =IF(BK46="anno esterno","anno esterno",IF(BK46+1<='2 Descrizione Progetto'!$D$22,BK46+1,"anno esterno")) -> anno esterno
C47: Domanda | D47: k-unità fisiche | E47: ='3 Costi-Ricavi'!D6 -> 55250 | F47: ='3 Costi-Ricavi'!E6 -> 64300 | G47: ='3 Costi-Ricavi'!F6 -> 77096 | H47: ='3 Costi-Ricavi'!G6 -> 77096 | I47: ='3 Costi-Ricavi'!H6 -> 77096 | J47: ='3 Costi-Ricavi'!I6 -> 77096 | K47: ='3 Costi-Ricavi'!J6 -> 77096 | L47: ='3 Costi-Ricavi'!K6 -> 77096 | M47: ='3 Costi-Ricavi'!L6 -> 77096 | N47: ='3 Costi-Ricavi'!M6 -> 77096 | O47: ='3 Costi-Ricavi'!N6 -> 0 | P47: ='3 Costi-Ricavi'!O6 -> 0 | Q47: ='3 Costi-Ricavi'!P6 -> 0 | R47: ='3 Costi-Ricavi'!Q6 -> 0 | S47: ='3 Costi-Ricavi'!R6 -> 0 | T47: ='3 Costi-Ricavi'!S6 -> 0 | U47: ='3 Costi-Ricavi'!T6 -> 0 | V47: ='3 Costi-Ricavi'!U6 -> 0 | W47: ='3 Costi-Ricavi'!V6 -> 0 | X47: ='3 Costi-Ricavi'!W6 -> 0 | Y47: ='3 Costi-Ricavi'!X6 -> 0 | Z47: ='3 Costi-Ricavi'!Y6 -> 0 | AA47: ='3 Costi-Ricavi'!Z6 -> 0 | AB47: ='3 Costi-Ricavi'!AA6 -> 0 | AC47: ='3 Costi-Ricavi'!AB6 -> 0 | AD47: ='3 Costi-Ricavi'!AC6 -> 0 | AE47: ='3 Costi-Ricavi'!AD6 -> 0 | AF47: ='3 Costi-Ricavi'!AE6 -> 0 | AG47: ='3 Costi-Ricavi'!AF6 -> 0 | AH47: ='3 Costi-Ricavi'!AG6 -> 0 | AI47: ='3 Costi-Ricavi'!AH6 -> 0 | AJ47: ='3 Costi-Ricavi'!AI6 -> 0 | AK47: ='3 Costi-Ricavi'!AJ6 -> 0 | AL47: ='3 Costi-Ricavi'!AK6 -> 0 | AM47: ='3 Costi-Ricavi'!AL6 -> 0 | AN47: ='3 Costi-Ricavi'!AM6 -> 0 | AO47: ='3 Costi-Ricavi'!AN6 -> 0 | AP47: ='3 Costi-Ricavi'!AO6 -> 0 | AQ47: ='3 Costi-Ricavi'!AP6 -> 0 | AR47: ='3 Costi-Ricavi'!AQ6 -> 0 | AS47: ='3 Costi-Ricavi'!AR6 -> 0 | AT47: ='3 Costi-Ricavi'!AS6 -> 0 | AU47: ='3 Costi-Ricavi'!AT6 -> 0 | AV47: ='3 Costi-Ricavi'!AU6 -> 0 | AW47: ='3 Costi-Ricavi'!AV6 -> 0 | AX47: ='3 Costi-Ricavi'!AW6 -> 0 | AY47: ='3 Costi-Ricavi'!AX6 -> 0 | AZ47: ='3 Costi-Ricavi'!AY6 -> 0 | BA47: ='3 Costi-Ricavi'!AZ6 -> 0 | BB47: ='3 Costi-Ricavi'!BA6 -> 0 | BC47: ='3 Costi-Ricavi'!BB6 -> 0 | BD47: ='3 Costi-Ricavi'!BC6 -> 0 | BE47: ='3 Costi-Ricavi'!BD6 -> 0 | BF47: ='3 Costi-Ricavi'!BE6 -> 0 | BG47: ='3 Costi-Ricavi'!BF6 -> 0 | BH47: ='3 Costi-Ricavi'!BG6 -> 0 | BI47: ='3 Costi-Ricavi'!BH6 -> 0 | BJ47: ='3 Costi-Ricavi'!BI6 -> 0 | BK47: ='3 Costi-Ricavi'!BJ6 -> 0 | BL47: ='3 Costi-Ricavi'!BK6 -> 0
C48: Tariffa unitaria | D48: euro/unità | E48: =F28 -> 1 | F48: =E48*(1+$G$28) -> 1.02 | G48: 1.0404 | H48: 1.061208 | I48: 1.08243216 | J48: 1.104080803 | K48: 1.126162419 | L48: 1.148685668 | M48: 1.171659381 | N48: 1.195092569 | O48: 1.21899442 | P48: 1.243374308 | Q48: 1.268241795 | R48: 1.29360663 | S48: 1.319478763 | T48: 1.345868338 | U48: 1.372785705 | V48: 1.400241419 | W48: 1.428246248 | X48: 1.456811173 | Y48: 1.485947396 | Z48: 1.515666344 | AA48: 1.545979671 | AB48: 1.576899264 | AC48: 1.608437249 | AD48: 1.640605994 | AE48: 1.673418114 | AF48: 1.706886477 | AG48: 1.741024206 | AH48: 1.77584469 | AI48: 1.811361584 | AJ48: 1.847588816 | AK48: 1.884540592 | AL48: 1.922231404 | AM48: 1.960676032 | AN48: 1.999889553 | AO48: 2.039887344 | AP48: 2.080685091 | AQ48: 2.122298792 | AR48: 2.164744768 | AS48: 2.208039664 | AT48: 2.252200457 | AU48: 2.297244466 | AV48: 2.343189355 | AW48: 2.390053142 | AX48: 2.437854205 | AY48: 2.486611289 | AZ48: 2.536343515 | BA48: 2.587070385 | BB48: 2.638811793 | BC48: 2.691588029 | BD48: 2.74541979 | BE48: 2.800328185 | BF48: 2.856334749 | BG48: 2.913461444 | BH48: 2.971730673 | BI48: 3.031165286 | BJ48: 3.091788592 | BK48: 3.153624364 | BL48: 3.216696851
C49: Ricavi | D49: euro | E49: =E47*E48 -> 55250 | F49: 65586 | G49: 80210.6784 | H49: 81814.89197 | I49: 83451.18981 | J49: 85120.2136 | K49: 86822.61788 | L49: 88559.07023 | M49: 90330.25164 | N49: 92136.85667 | O49: 0 | P49: 0 | Q49: 0 | R49: 0 | S49: 0 | T49: 0 | U49: 0 | V49: 0 | W49: 0 | X49: 0 | Y49: 0 | Z49: 0 | AA49: 0 | AB49: 0 | AC49: 0 | AD49: 0 | AE49: 0 | AF49: 0 | AG49: 0 | AH49: 0 | AI49: 0 | AJ49: 0 | AK49: 0 | AL49: 0 | AM49: 0 | AN49: 0 | AO49: 0 | AP49: 0 | AQ49: 0 | AR49: 0 | AS49: 0 | AT49: 0 | AU49: 0 | AV49: 0 | AW49: 0 | AX49: 0 | AY49: 0 | AZ49: 0 | BA49: 0 | BB49: 0 | BC49: 0 | BD49: 0 | BE49: 0 | BF49: 0 | BG49: 0 | BH49: 0 | BI49: 0 | BJ49: 0 | BK49: 0 | BL49: 0
C51: Ricavo 1 | E51: ='2 Descrizione Progetto'!$D$20 -> 1 | F51: =IF(E51="anno esterno","anno esterno",IF(E51+1<='2 Descrizione Progetto'!$D$22,E51+1,"anno esterno")) -> 2 | G51: =IF(F51="anno esterno","anno esterno",IF(F51+1<='2 Descrizione Progetto'!$D$22,F51+1,"anno esterno")) -> 3 | H51: =IF(G51="anno esterno","anno esterno",IF(G51+1<='2 Descrizione Progetto'!$D$22,G51+1,"anno esterno")) -> 4 | I51: =IF(H51="anno esterno","anno esterno",IF(H51+1<='2 Descrizione Progetto'!$D$22,H51+1,"anno esterno")) -> 5 | J51: =IF(I51="anno esterno","anno esterno",IF(I51+1<='2 Descrizione Progetto'!$D$22,I51+1,"anno esterno")) -> 6 | K51: =IF(J51="anno esterno","anno esterno",IF(J51+1<='2 Descrizione Progetto'!$D$22,J51+1,"anno esterno")) -> 7 | L51: =IF(K51="anno esterno","anno esterno",IF(K51+1<='2 Descrizione Progetto'!$D$22,K51+1,"anno esterno")) -> 8 | M51: =IF(L51="anno esterno","anno esterno",IF(L51+1<='2 Descrizione Progetto'!$D$22,L51+1,"anno esterno")) -> 9 | N51: =IF(M51="anno esterno","anno esterno",IF(M51+1<='2 Descrizione Progetto'!$D$22,M51+1,"anno esterno")) -> 10 | O51: =IF(N51="anno esterno","anno esterno",IF(N51+1<='2 Descrizione Progetto'!$D$22,N51+1,"anno esterno")) -> anno esterno | P51: =IF(O51="anno esterno","anno esterno",IF(O51+1<='2 Descrizione Progetto'!$D$22,O51+1,"anno esterno")) -> anno esterno | Q51: =IF(P51="anno esterno","anno esterno",IF(P51+1<='2 Descrizione Progetto'!$D$22,P51+1,"anno esterno")) -> anno esterno | R51: =IF(Q51="anno esterno","anno esterno",IF(Q51+1<='2 Descrizione Progetto'!$D$22,Q51+1,"anno esterno")) -> anno esterno | S51: =IF(R51="anno esterno","anno esterno",IF(R51+1<='2 Descrizione Progetto'!$D$22,R51+1,"anno esterno")) -> anno esterno | T51: =IF(S51="anno esterno","anno esterno",IF(S51+1<='2 Descrizione Progetto'!$D$22,S51+1,"anno esterno")) -> anno esterno | U51: =IF(T51="anno esterno","anno esterno",IF(T51+1<='2 Descrizione Progetto'!$D$22,T51+1,"anno esterno")) -> anno esterno | V51: =IF(U51="anno esterno","anno esterno",IF(U51+1<='2 Descrizione Progetto'!$D$22,U51+1,"anno esterno")) -> anno esterno | W51: =IF(V51="anno esterno","anno esterno",IF(V51+1<='2 Descrizione Progetto'!$D$22,V51+1,"anno esterno")) -> anno esterno | X51: =IF(W51="anno esterno","anno esterno",IF(W51+1<='2 Descrizione Progetto'!$D$22,W51+1,"anno esterno")) -> anno esterno | Y51: =IF(X51="anno esterno","anno esterno",IF(X51+1<='2 Descrizione Progetto'!$D$22,X51+1,"anno esterno")) -> anno esterno | Z51: =IF(Y51="anno esterno","anno esterno",IF(Y51+1<='2 Descrizione Progetto'!$D$22,Y51+1,"anno esterno")) -> anno esterno | AA51: =IF(Z51="anno esterno","anno esterno",IF(Z51+1<='2 Descrizione Progetto'!$D$22,Z51+1,"anno esterno")) -> anno esterno | AB51: =IF(AA51="anno esterno","anno esterno",IF(AA51+1<='2 Descrizione Progetto'!$D$22,AA51+1,"anno esterno")) -> anno esterno | AC51: =IF(AB51="anno esterno","anno esterno",IF(AB51+1<='2 Descrizione Progetto'!$D$22,AB51+1,"anno esterno")) -> anno esterno | AD51: =IF(AC51="anno esterno","anno esterno",IF(AC51+1<='2 Descrizione Progetto'!$D$22,AC51+1,"anno esterno")) -> anno esterno | AE51: =IF(AD51="anno esterno","anno esterno",IF(AD51+1<='2 Descrizione Progetto'!$D$22,AD51+1,"anno esterno")) -> anno esterno | AF51: =IF(AE51="anno esterno","anno esterno",IF(AE51+1<='2 Descrizione Progetto'!$D$22,AE51+1,"anno esterno")) -> anno esterno | AG51: =IF(AF51="anno esterno","anno esterno",IF(AF51+1<='2 Descrizione Progetto'!$D$22,AF51+1,"anno esterno")) -> anno esterno | AH51: =IF(AG51="anno esterno","anno esterno",IF(AG51+1<='2 Descrizione Progetto'!$D$22,AG51+1,"anno esterno")) -> anno esterno | AI51: =IF(AH51="anno esterno","anno esterno",IF(AH51+1<='2 Descrizione Progetto'!$D$22,AH51+1,"anno esterno")) -> anno esterno | AJ51: =IF(AI51="anno esterno","anno esterno",IF(AI51+1<='2 Descrizione Progetto'!$D$22,AI51+1,"anno esterno")) -> anno esterno | AK51: =IF(AJ51="anno esterno","anno esterno",IF(AJ51+1<='2 Descrizione Progetto'!$D$22,AJ51+1,"anno esterno")) -> anno esterno | AL51: =IF(AK51="anno esterno","anno esterno",IF(AK51+1<='2 Descrizione Progetto'!$D$22,AK51+1,"anno esterno")) -> anno esterno | AM51: =IF(AL51="anno esterno","anno esterno",IF(AL51+1<='2 Descrizione Progetto'!$D$22,AL51+1,"anno esterno")) -> anno esterno | AN51: =IF(AM51="anno esterno","anno esterno",IF(AM51+1<='2 Descrizione Progetto'!$D$22,AM51+1,"anno esterno")) -> anno esterno | AO51: =IF(AN51="anno esterno","anno esterno",IF(AN51+1<='2 Descrizione Progetto'!$D$22,AN51+1,"anno esterno")) -> anno esterno | AP51: =IF(AO51="anno esterno","anno esterno",IF(AO51+1<='2 Descrizione Progetto'!$D$22,AO51+1,"anno esterno")) -> anno esterno | AQ51: =IF(AP51="anno esterno","anno esterno",IF(AP51+1<='2 Descrizione Progetto'!$D$22,AP51+1,"anno esterno")) -> anno esterno | AR51: =IF(AQ51="anno esterno","anno esterno",IF(AQ51+1<='2 Descrizione Progetto'!$D$22,AQ51+1,"anno esterno")) -> anno esterno | AS51: =IF(AR51="anno esterno","anno esterno",IF(AR51+1<='2 Descrizione Progetto'!$D$22,AR51+1,"anno esterno")) -> anno esterno | AT51: =IF(AS51="anno esterno","anno esterno",IF(AS51+1<='2 Descrizione Progetto'!$D$22,AS51+1,"anno esterno")) -> anno esterno | AU51: =IF(AT51="anno esterno","anno esterno",IF(AT51+1<='2 Descrizione Progetto'!$D$22,AT51+1,"anno esterno")) -> anno esterno | AV51: =IF(AU51="anno esterno","anno esterno",IF(AU51+1<='2 Descrizione Progetto'!$D$22,AU51+1,"anno esterno")) -> anno esterno | AW51: =IF(AV51="anno esterno","anno esterno",IF(AV51+1<='2 Descrizione Progetto'!$D$22,AV51+1,"anno esterno")) -> anno esterno | AX51: =IF(AW51="anno esterno","anno esterno",IF(AW51+1<='2 Descrizione Progetto'!$D$22,AW51+1,"anno esterno")) -> anno esterno | AY51: =IF(AX51="anno esterno","anno esterno",IF(AX51+1<='2 Descrizione Progetto'!$D$22,AX51+1,"anno esterno")) -> anno esterno | AZ51: =IF(AY51="anno esterno","anno esterno",IF(AY51+1<='2 Descrizione Progetto'!$D$22,AY51+1,"anno esterno")) -> anno esterno | BA51: =IF(AZ51="anno esterno","anno esterno",IF(AZ51+1<='2 Descrizione Progetto'!$D$22,AZ51+1,"anno esterno")) -> anno esterno | BB51: =IF(BA51="anno esterno","anno esterno",IF(BA51+1<='2 Descrizione Progetto'!$D$22,BA51+1,"anno esterno")) -> anno esterno | BC51: =IF(BB51="anno esterno","anno esterno",IF(BB51+1<='2 Descrizione Progetto'!$D$22,BB51+1,"anno esterno")) -> anno esterno | BD51: =IF(BC51="anno esterno","anno esterno",IF(BC51+1<='2 Descrizione Progetto'!$D$22,BC51+1,"anno esterno")) -> anno esterno | BE51: =IF(BD51="anno esterno","anno esterno",IF(BD51+1<='2 Descrizione Progetto'!$D$22,BD51+1,"anno esterno")) -> anno esterno | BF51: =IF(BE51="anno esterno","anno esterno",IF(BE51+1<='2 Descrizione Progetto'!$D$22,BE51+1,"anno esterno")) -> anno esterno | BG51: =IF(BF51="anno esterno","anno esterno",IF(BF51+1<='2 Descrizione Progetto'!$D$22,BF51+1,"anno esterno")) -> anno esterno | BH51: =IF(BG51="anno esterno","anno esterno",IF(BG51+1<='2 Descrizione Progetto'!$D$22,BG51+1,"anno esterno")) -> anno esterno | BI51: =IF(BH51="anno esterno","anno esterno",IF(BH51+1<='2 Descrizione Progetto'!$D$22,BH51+1,"anno esterno")) -> anno esterno | BJ51: =IF(BI51="anno esterno","anno esterno",IF(BI51+1<='2 Descrizione Progetto'!$D$22,BI51+1,"anno esterno")) -> anno esterno | BK51: =IF(BJ51="anno esterno","anno esterno",IF(BJ51+1<='2 Descrizione Progetto'!$D$22,BJ51+1,"anno esterno")) -> anno esterno | BL51: =IF(BK51="anno esterno","anno esterno",IF(BK51+1<='2 Descrizione Progetto'!$D$22,BK51+1,"anno esterno")) -> anno esterno
C52: Domanda | D52: k-unità fisiche | E52: =SUM('3 Costi-Ricavi'!D7) -> 24600 | F52: =SUM('3 Costi-Ricavi'!E7) -> 29500 | G52: =SUM('3 Costi-Ricavi'!F7) -> 36700 | H52: =SUM('3 Costi-Ricavi'!G7) -> 36700 | I52: =SUM('3 Costi-Ricavi'!H7) -> 36700 | J52: =SUM('3 Costi-Ricavi'!I7) -> 36700 | K52: =SUM('3 Costi-Ricavi'!J7) -> 36700 | L52: =SUM('3 Costi-Ricavi'!K7) -> 36700 | M52: =SUM('3 Costi-Ricavi'!L7) -> 36700 | N52: =SUM('3 Costi-Ricavi'!M7) -> 36700 | O52: =SUM('3 Costi-Ricavi'!N7) -> 0 | P52: =SUM('3 Costi-Ricavi'!O7) -> 0 | Q52: =SUM('3 Costi-Ricavi'!P7) -> 0 | R52: =SUM('3 Costi-Ricavi'!Q7) -> 0 | S52: =SUM('3 Costi-Ricavi'!R7) -> 0 | T52: =SUM('3 Costi-Ricavi'!S7) -> 0 | U52: =SUM('3 Costi-Ricavi'!T7) -> 0 | V52: =SUM('3 Costi-Ricavi'!U7) -> 0 | W52: =SUM('3 Costi-Ricavi'!V7) -> 0 | X52: =SUM('3 Costi-Ricavi'!W7) -> 0 | Y52: =SUM('3 Costi-Ricavi'!X7) -> 0 | Z52: =SUM('3 Costi-Ricavi'!Y7) -> 0 | AA52: =SUM('3 Costi-Ricavi'!Z7) -> 0 | AB52: =SUM('3 Costi-Ricavi'!AA7) -> 0 | AC52: =SUM('3 Costi-Ricavi'!AB7) -> 0 | AD52: =SUM('3 Costi-Ricavi'!AC7) -> 0 | AE52: =SUM('3 Costi-Ricavi'!AD7) -> 0 | AF52: =SUM('3 Costi-Ricavi'!AE7) -> 0 | AG52: =SUM('3 Costi-Ricavi'!AF7) -> 0 | AH52: =SUM('3 Costi-Ricavi'!AG7) -> 0 | AI52: =SUM('3 Costi-Ricavi'!AH7) -> 0 | AJ52: =SUM('3 Costi-Ricavi'!AI7) -> 0 | AK52: =SUM('3 Costi-Ricavi'!AJ7) -> 0 | AL52: =SUM('3 Costi-Ricavi'!AK7) -> 0 | AM52: =SUM('3 Costi-Ricavi'!AL7) -> 0 | AN52: =SUM('3 Costi-Ricavi'!AM7) -> 0 | AO52: =SUM('3 Costi-Ricavi'!AN7) -> 0 | AP52: =SUM('3 Costi-Ricavi'!AO7) -> 0 | AQ52: =SUM('3 Costi-Ricavi'!AP7) -> 0 | AR52: =SUM('3 Costi-Ricavi'!AQ7) -> 0 | AS52: =SUM('3 Costi-Ricavi'!AR7) -> 0 | AT52: =SUM('3 Costi-Ricavi'!AS7) -> 0 | AU52: =SUM('3 Costi-Ricavi'!AT7) -> 0 | AV52: =SUM('3 Costi-Ricavi'!AU7) -> 0 | AW52: =SUM('3 Costi-Ricavi'!AV7) -> 0 | AX52: =SUM('3 Costi-Ricavi'!AW7) -> 0 | AY52: =SUM('3 Costi-Ricavi'!AX7) -> 0 | AZ52: =SUM('3 Costi-Ricavi'!AY7) -> 0 | BA52: =SUM('3 Costi-Ricavi'!AZ7) -> 0 | BB52: =SUM('3 Costi-Ricavi'!BA7) -> 0 | BC52: =SUM('3 Costi-Ricavi'!BB7) -> 0 | BD52: =SUM('3 Costi-Ricavi'!BC7) -> 0 | BE52: =SUM('3 Costi-Ricavi'!BD7) -> 0 | BF52: =SUM('3 Costi-Ricavi'!BE7) -> 0 | BG52: =SUM('3 Costi-Ricavi'!BF7) -> 0 | BH52: =SUM('3 Costi-Ricavi'!BG7) -> 0 | BI52: =SUM('3 Costi-Ricavi'!BH7) -> 0 | BJ52: =SUM('3 Costi-Ricavi'!BI7) -> 0 | BK52: =SUM('3 Costi-Ricavi'!BJ7) -> 0 | BL52: =SUM('3 Costi-Ricavi'!BK7) -> 0
C53: Tariffa unitaria | D53: euro/unità | E53: =F29 -> 1 | F53: =E53*(1+$G$29) -> 1.02 | G53: 1.0404 | H53: 1.061208 | I53: 1.08243216 | J53: 1.104080803 | K53: 1.126162419 | L53: 1.148685668 | M53: 1.171659381 | N53: 1.195092569 | O53: 1.21899442 | P53: 1.243374308 | Q53: 1.268241795 | R53: 1.29360663 | S53: 1.319478763 | T53: 1.345868338 | U53: 1.372785705 | V53: 1.400241419 | W53: 1.428246248 | X53: 1.456811173 | Y53: 1.485947396 | Z53: 1.515666344 | AA53: 1.545979671 | AB53: 1.576899264 | AC53: 1.608437249 | AD53: 1.640605994 | AE53: 1.673418114 | AF53: 1.706886477 | AG53: 1.741024206 | AH53: 1.77584469 | AI53: 1.811361584 | AJ53: 1.847588816 | AK53: 1.884540592 | AL53: 1.922231404 | AM53: 1.960676032 | AN53: 1.999889553 | AO53: 2.039887344 | AP53: 2.080685091 | AQ53: 2.122298792 | AR53: 2.164744768 | AS53: 2.208039664 | AT53: 2.252200457 | AU53: 2.297244466 | AV53: 2.343189355 | AW53: 2.390053142 | AX53: 2.437854205 | AY53: 2.486611289 | AZ53: 2.536343515 | BA53: 2.587070385 | BB53: 2.638811793 | BC53: 2.691588029 | BD53: 2.74541979 | BE53: 2.800328185 | BF53: 2.856334749 | BG53: 2.913461444 | BH53: 2.971730673 | BI53: 3.031165286 | BJ53: 3.091788592 | BK53: 3.153624364 | BL53: 3.216696851
C54: Ricavi | D54: euro | E54: =E52*E53 -> 24600 | F54: 30090 | G54: 38182.68 | H54: 38946.3336 | I54: 39725.26027 | J54: 40519.76548 | K54: 41330.16079 | L54: 42156.764 | M54: 42999.89928 | N54: 43859.89727 | O54: 0 | P54: 0 | Q54: 0 | R54: 0 | S54: 0 | T54: 0 | U54: 0 | V54: 0 | W54: 0 | X54: 0 | Y54: 0 | Z54: 0 | AA54: 0 | AB54: 0 | AC54: 0 | AD54: 0 | AE54: 0 | AF54: 0 | AG54: 0 | AH54: 0 | AI54: 0 | AJ54: 0 | AK54: 0 | AL54: 0 | AM54: 0 | AN54: 0 | AO54: 0 | AP54: 0 | AQ54: 0 | AR54: 0 | AS54: 0 | AT54: 0 | AU54: 0 | AV54: 0 | AW54: 0 | AX54: 0 | AY54: 0 | AZ54: 0 | BA54: 0 | BB54: 0 | BC54: 0 | BD54: 0 | BE54: 0 | BF54: 0 | BG54: 0 | BH54: 0 | BI54: 0 | BJ54: 0 | BK54: 0 | BL54: 0
C56: Ricavo 1 | E56: ='2 Descrizione Progetto'!$D$20 -> 1 | F56: =IF(E56="anno esterno","anno esterno",IF(E56+1<='2 Descrizione Progetto'!$D$22,E56+1,"anno esterno")) -> 2 | G56: =IF(F56="anno esterno","anno esterno",IF(F56+1<='2 Descrizione Progetto'!$D$22,F56+1,"anno esterno")) -> 3 | H56: =IF(G56="anno esterno","anno esterno",IF(G56+1<='2 Descrizione Progetto'!$D$22,G56+1,"anno esterno")) -> 4 | I56: =IF(H56="anno esterno","anno esterno",IF(H56+1<='2 Descrizione Progetto'!$D$22,H56+1,"anno esterno")) -> 5 | J56: =IF(I56="anno esterno","anno esterno",IF(I56+1<='2 Descrizione Progetto'!$D$22,I56+1,"anno esterno")) -> 6 | K56: =IF(J56="anno esterno","anno esterno",IF(J56+1<='2 Descrizione Progetto'!$D$22,J56+1,"anno esterno")) -> 7 | L56: =IF(K56="anno esterno","anno esterno",IF(K56+1<='2 Descrizione Progetto'!$D$22,K56+1,"anno esterno")) -> 8 | M56: =IF(L56="anno esterno","anno esterno",IF(L56+1<='2 Descrizione Progetto'!$D$22,L56+1,"anno esterno")) -> 9 | N56: =IF(M56="anno esterno","anno esterno",IF(M56+1<='2 Descrizione Progetto'!$D$22,M56+1,"anno esterno")) -> 10 | O56: =IF(N56="anno esterno","anno esterno",IF(N56+1<='2 Descrizione Progetto'!$D$22,N56+1,"anno esterno")) -> anno esterno | P56: =IF(O56="anno esterno","anno esterno",IF(O56+1<='2 Descrizione Progetto'!$D$22,O56+1,"anno esterno")) -> anno esterno | Q56: =IF(P56="anno esterno","anno esterno",IF(P56+1<='2 Descrizione Progetto'!$D$22,P56+1,"anno esterno")) -> anno esterno | R56: =IF(Q56="anno esterno","anno esterno",IF(Q56+1<='2 Descrizione Progetto'!$D$22,Q56+1,"anno esterno")) -> anno esterno | S56: =IF(R56="anno esterno","anno esterno",IF(R56+1<='2 Descrizione Progetto'!$D$22,R56+1,"anno esterno")) -> anno esterno | T56: =IF(S56="anno esterno","anno esterno",IF(S56+1<='2 Descrizione Progetto'!$D$22,S56+1,"anno esterno")) -> anno esterno | U56: =IF(T56="anno esterno","anno esterno",IF(T56+1<='2 Descrizione Progetto'!$D$22,T56+1,"anno esterno")) -> anno esterno | V56: =IF(U56="anno esterno","anno esterno",IF(U56+1<='2 Descrizione Progetto'!$D$22,U56+1,"anno esterno")) -> anno esterno | W56: =IF(V56="anno esterno","anno esterno",IF(V56+1<='2 Descrizione Progetto'!$D$22,V56+1,"anno esterno")) -> anno esterno | X56: =IF(W56="anno esterno","anno esterno",IF(W56+1<='2 Descrizione Progetto'!$D$22,W56+1,"anno esterno")) -> anno esterno | Y56: =IF(X56="anno esterno","anno esterno",IF(X56+1<='2 Descrizione Progetto'!$D$22,X56+1,"anno esterno")) -> anno esterno | Z56: =IF(Y56="anno esterno","anno esterno",IF(Y56+1<='2 Descrizione Progetto'!$D$22,Y56+1,"anno esterno")) -> anno esterno | AA56: =IF(Z56="anno esterno","anno esterno",IF(Z56+1<='2 Descrizione Progetto'!$D$22,Z56+1,"anno esterno")) -> anno esterno | AB56: =IF(AA56="anno esterno","anno esterno",IF(AA56+1<='2 Descrizione Progetto'!$D$22,AA56+1,"anno esterno")) -> anno esterno | AC56: =IF(AB56="anno esterno","anno esterno",IF(AB56+1<='2 Descrizione Progetto'!$D$22,AB56+1,"anno esterno")) -> anno esterno | AD56: =IF(AC56="anno esterno","anno esterno",IF(AC56+1<='2 Descrizione Progetto'!$D$22,AC56+1,"anno esterno")) -> anno esterno | AE56: =IF(AD56="anno esterno","anno esterno",IF(AD56+1<='2 Descrizione Progetto'!$D$22,AD56+1,"anno esterno")) -> anno esterno | AF56: =IF(AE56="anno esterno","anno esterno",IF(AE56+1<='2 Descrizione Progetto'!$D$22,AE56+1,"anno esterno")) -> anno esterno | AG56: =IF(AF56="anno esterno","anno esterno",IF(AF56+1<='2 Descrizione Progetto'!$D$22,AF56+1,"anno esterno")) -> anno esterno | AH56: =IF(AG56="anno esterno","anno esterno",IF(AG56+1<='2 Descrizione Progetto'!$D$22,AG56+1,"anno esterno")) -> anno esterno | AI56: =IF(AH56="anno esterno","anno esterno",IF(AH56+1<='2 Descrizione Progetto'!$D$22,AH56+1,"anno esterno")) -> anno esterno | AJ56: =IF(AI56="anno esterno","anno esterno",IF(AI56+1<='2 Descrizione Progetto'!$D$22,AI56+1,"anno esterno")) -> anno esterno | AK56: =IF(AJ56="anno esterno","anno esterno",IF(AJ56+1<='2 Descrizione Progetto'!$D$22,AJ56+1,"anno esterno")) -> anno esterno | AL56: =IF(AK56="anno esterno","anno esterno",IF(AK56+1<='2 Descrizione Progetto'!$D$22,AK56+1,"anno esterno")) -> anno esterno | AM56: =IF(AL56="anno esterno","anno esterno",IF(AL56+1<='2 Descrizione Progetto'!$D$22,AL56+1,"anno esterno")) -> anno esterno | AN56: =IF(AM56="anno esterno","anno esterno",IF(AM56+1<='2 Descrizione Progetto'!$D$22,AM56+1,"anno esterno")) -> anno esterno | AO56: =IF(AN56="anno esterno","anno esterno",IF(AN56+1<='2 Descrizione Progetto'!$D$22,AN56+1,"anno esterno")) -> anno esterno | AP56: =IF(AO56="anno esterno","anno esterno",IF(AO56+1<='2 Descrizione Progetto'!$D$22,AO56+1,"anno esterno")) -> anno esterno | AQ56: =IF(AP56="anno esterno","anno esterno",IF(AP56+1<='2 Descrizione Progetto'!$D$22,AP56+1,"anno esterno")) -> anno esterno | AR56: =IF(AQ56="anno esterno","anno esterno",IF(AQ56+1<='2 Descrizione Progetto'!$D$22,AQ56+1,"anno esterno")) -> anno esterno | AS56: =IF(AR56="anno esterno","anno esterno",IF(AR56+1<='2 Descrizione Progetto'!$D$22,AR56+1,"anno esterno")) -> anno esterno | AT56: =IF(AS56="anno esterno","anno esterno",IF(AS56+1<='2 Descrizione Progetto'!$D$22,AS56+1,"anno esterno")) -> anno esterno | AU56: =IF(AT56="anno esterno","anno esterno",IF(AT56+1<='2 Descrizione Progetto'!$D$22,AT56+1,"anno esterno")) -> anno esterno | AV56: =IF(AU56="anno esterno","anno esterno",IF(AU56+1<='2 Descrizione Progetto'!$D$22,AU56+1,"anno esterno")) -> anno esterno | AW56: =IF(AV56="anno esterno","anno esterno",IF(AV56+1<='2 Descrizione Progetto'!$D$22,AV56+1,"anno esterno")) -> anno esterno | AX56: =IF(AW56="anno esterno","anno esterno",IF(AW56+1<='2 Descrizione Progetto'!$D$22,AW56+1,"anno esterno")) -> anno esterno | AY56: =IF(AX56="anno esterno","anno esterno",IF(AX56+1<='2 Descrizione Progetto'!$D$22,AX56+1,"anno esterno")) -> anno esterno | AZ56: =IF(AY56="anno esterno","anno esterno",IF(AY56+1<='2 Descrizione Progetto'!$D$22,AY56+1,"anno esterno")) -> anno esterno | BA56: =IF(AZ56="anno esterno","anno esterno",IF(AZ56+1<='2 Descrizione Progetto'!$D$22,AZ56+1,"anno esterno")) -> anno esterno | BB56: =IF(BA56="anno esterno","anno esterno",IF(BA56+1<='2 Descrizione Progetto'!$D$22,BA56+1,"anno esterno")) -> anno esterno | BC56: =IF(BB56="anno esterno","anno esterno",IF(BB56+1<='2 Descrizione Progetto'!$D$22,BB56+1,"anno esterno")) -> anno esterno | BD56: =IF(BC56="anno esterno","anno esterno",IF(BC56+1<='2 Descrizione Progetto'!$D$22,BC56+1,"anno esterno")) -> anno esterno | BE56: =IF(BD56="anno esterno","anno esterno",IF(BD56+1<='2 Descrizione Progetto'!$D$22,BD56+1,"anno esterno")) -> anno esterno | BF56: =IF(BE56="anno esterno","anno esterno",IF(BE56+1<='2 Descrizione Progetto'!$D$22,BE56+1,"anno esterno")) -> anno esterno | BG56: =IF(BF56="anno esterno","anno esterno",IF(BF56+1<='2 Descrizione Progetto'!$D$22,BF56+1,"anno esterno")) -> anno esterno | BH56: =IF(BG56="anno esterno","anno esterno",IF(BG56+1<='2 Descrizione Progetto'!$D$22,BG56+1,"anno esterno")) -> anno esterno | BI56: =IF(BH56="anno esterno","anno esterno",IF(BH56+1<='2 Descrizione Progetto'!$D$22,BH56+1,"anno esterno")) -> anno esterno | BJ56: =IF(BI56="anno esterno","anno esterno",IF(BI56+1<='2 Descrizione Progetto'!$D$22,BI56+1,"anno esterno")) -> anno esterno | BK56: =IF(BJ56="anno esterno","anno esterno",IF(BJ56+1<='2 Descrizione Progetto'!$D$22,BJ56+1,"anno esterno")) -> anno esterno | BL56: =IF(BK56="anno esterno","anno esterno",IF(BK56+1<='2 Descrizione Progetto'!$D$22,BK56+1,"anno esterno")) -> anno esterno
C57: Domanda | D57: k-unità fisiche | E57: ='3 Costi-Ricavi'!D8 -> 0 | F57: ='3 Costi-Ricavi'!E8 -> 2500 | G57: ='3 Costi-Ricavi'!F8 -> 2500 | H57: ='3 Costi-Ricavi'!G8 -> 2500 | I57: ='3 Costi-Ricavi'!H8 -> 2500 | J57: ='3 Costi-Ricavi'!I8 -> 2500 | K57: ='3 Costi-Ricavi'!J8 -> 2500 | L57: ='3 Costi-Ricavi'!K8 -> 2500 | M57: ='3 Costi-Ricavi'!L8 -> 2500 | N57: ='3 Costi-Ricavi'!M8 -> 2500 | O57: ='3 Costi-Ricavi'!N8 -> 0 | P57: ='3 Costi-Ricavi'!O8 -> 0 | Q57: ='3 Costi-Ricavi'!P8 -> 0 | R57: ='3 Costi-Ricavi'!Q8 -> 0 | S57: ='3 Costi-Ricavi'!R8 -> 0 | T57: ='3 Costi-Ricavi'!S8 -> 0 | U57: ='3 Costi-Ricavi'!T8 -> 0 | V57: ='3 Costi-Ricavi'!U8 -> 0 | W57: ='3 Costi-Ricavi'!V8 -> 0 | X57: ='3 Costi-Ricavi'!W8 -> 0 | Y57: ='3 Costi-Ricavi'!X8 -> 0 | Z57: ='3 Costi-Ricavi'!Y8 -> 0 | AA57: ='3 Costi-Ricavi'!Z8 -> 0 | AB57: ='3 Costi-Ricavi'!AA8 -> 0 | AC57: ='3 Costi-Ricavi'!AB8 -> 0 | AD57: ='3 Costi-Ricavi'!AC8 -> 0 | AE57: ='3 Costi-Ricavi'!AD8 -> 0 | AF57: ='3 Costi-Ricavi'!AE8 -> 0 | AG57: ='3 Costi-Ricavi'!AF8 -> 0 | AH57: ='3 Costi-Ricavi'!AG8 -> 0 | AI57: ='3 Costi-Ricavi'!AH8 -> 0 | AJ57: ='3 Costi-Ricavi'!AI8 -> 0 | AK57: ='3 Costi-Ricavi'!AJ8 -> 0 | AL57: ='3 Costi-Ricavi'!AK8 -> 0 | AM57: ='3 Costi-Ricavi'!AL8 -> 0 | AN57: ='3 Costi-Ricavi'!AM8 -> 0 | AO57: ='3 Costi-Ricavi'!AN8 -> 0 | AP57: ='3 Costi-Ricavi'!AO8 -> 0 | AQ57: ='3 Costi-Ricavi'!AP8 -> 0 | AR57: ='3 Costi-Ricavi'!AQ8 -> 0 | AS57: ='3 Costi-Ricavi'!AR8 -> 0 | AT57: ='3 Costi-Ricavi'!AS8 -> 0 | AU57: ='3 Costi-Ricavi'!AT8 -> 0 | AV57: ='3 Costi-Ricavi'!AU8 -> 0 | AW57: ='3 Costi-Ricavi'!AV8 -> 0 | AX57: ='3 Costi-Ricavi'!AW8 -> 0 | AY57: ='3 Costi-Ricavi'!AX8 -> 0 | AZ57: ='3 Costi-Ricavi'!AY8 -> 0 | BA57: ='3 Costi-Ricavi'!AZ8 -> 0 | BB57: ='3 Costi-Ricavi'!BA8 -> 0 | BC57: ='3 Costi-Ricavi'!BB8 -> 0 | BD57: ='3 Costi-Ricavi'!BC8 -> 0 | BE57: ='3 Costi-Ricavi'!BD8 -> 0 | BF57: ='3 Costi-Ricavi'!BE8 -> 0 | BG57: ='3 Costi-Ricavi'!BF8 -> 0 | BH57: ='3 Costi-Ricavi'!BG8 -> 0 | BI57: ='3 Costi-Ricavi'!BH8 -> 0 | BJ57: ='3 Costi-Ricavi'!BI8 -> 0 | BK57: ='3 Costi-Ricavi'!BJ8 -> 0 | BL57: ='3 Costi-Ricavi'!BK8 -> 0
C58: Tariffa unitaria | D58: euro/unità | E58: =F30 -> 1 | F58: =E58*(1+$G$30) -> 1.02 | G58: 1.0404 | H58: 1.061208 | I58: 1.08243216 | J58: 1.104080803 | K58: 1.126162419 | L58: 1.148685668 | M58: 1.171659381 | N58: 1.195092569 | O58: 1.21899442 | P58: 1.243374308 | Q58: 1.268241795 | R58: 1.29360663 | S58: 1.319478763 | T58: 1.345868338 | U58: 1.372785705 | V58: 1.400241419 | W58: 1.428246248 | X58: 1.456811173 | Y58: 1.485947396 | Z58: 1.515666344 | AA58: 1.545979671 | AB58: 1.576899264 | AC58: 1.608437249 | AD58: 1.640605994 | AE58: 1.673418114 | AF58: 1.706886477 | AG58: 1.741024206 | AH58: 1.77584469 | AI58: 1.811361584 | AJ58: 1.847588816 | AK58: 1.884540592 | AL58: 1.922231404 | AM58: 1.960676032 | AN58: 1.999889553 | AO58: 2.039887344 | AP58: 2.080685091 | AQ58: 2.122298792 | AR58: 2.164744768 | AS58: 2.208039664 | AT58: 2.252200457 | AU58: 2.297244466 | AV58: 2.343189355 | AW58: 2.390053142 | AX58: 2.437854205 | AY58: 2.486611289 | AZ58: 2.536343515 | BA58: 2.587070385 | BB58: 2.638811793 | BC58: 2.691588029 | BD58: 2.74541979 | BE58: 2.800328185 | BF58: 2.856334749 | BG58: 2.913461444 | BH58: 2.971730673 | BI58: 3.031165286 | BJ58: 3.091788592 | BK58: 3.153624364 | BL58: 3.216696851
C59: Ricavi | D59: euro | E59: =E57*E58 -> 0 | F59: 2550 | G59: 2601 | H59: 2653.02 | I59: 2706.0804 | J59: 2760.202008 | K59: 2815.406048 | L59: 2871.714169 | M59: 2929.148453 | N59: 2987.731422 | O59: 0 | P59: 0 | Q59: 0 | R59: 0 | S59: 0 | T59: 0 | U59: 0 | V59: 0 | W59: 0 | X59: 0 | Y59: 0 | Z59: 0 | AA59: 0 | AB59: 0 | AC59: 0 | AD59: 0 | AE59: 0 | AF59: 0 | AG59: 0 | AH59: 0 | AI59: 0 | AJ59: 0 | AK59: 0 | AL59: 0 | AM59: 0 | AN59: 0 | AO59: 0 | AP59: 0 | AQ59: 0 | AR59: 0 | AS59: 0 | AT59: 0 | AU59: 0 | AV59: 0 | AW59: 0 | AX59: 0 | AY59: 0 | AZ59: 0 | BA59: 0 | BB59: 0 | BC59: 0 | BD59: 0 | BE59: 0 | BF59: 0 | BG59: 0 | BH59: 0 | BI59: 0 | BJ59: 0 | BK59: 0 | BL59: 0
C61: Ricavo 1 | E61: ='2 Descrizione Progetto'!$D$20 -> 1 | F61: =IF(E61="anno esterno","anno esterno",IF(E61+1<='2 Descrizione Progetto'!$D$22,E61+1,"anno esterno")) -> 2 | G61: =IF(F61="anno esterno","anno esterno",IF(F61+1<='2 Descrizione Progetto'!$D$22,F61+1,"anno esterno")) -> 3 | H61: =IF(G61="anno esterno","anno esterno",IF(G61+1<='2 Descrizione Progetto'!$D$22,G61+1,"anno esterno")) -> 4 | I61: =IF(H61="anno esterno","anno esterno",IF(H61+1<='2 Descrizione Progetto'!$D$22,H61+1,"anno esterno")) -> 5 | J61: =IF(I61="anno esterno","anno esterno",IF(I61+1<='2 Descrizione Progetto'!$D$22,I61+1,"anno esterno")) -> 6 | K61: =IF(J61="anno esterno","anno esterno",IF(J61+1<='2 Descrizione Progetto'!$D$22,J61+1,"anno esterno")) -> 7 | L61: =IF(K61="anno esterno","anno esterno",IF(K61+1<='2 Descrizione Progetto'!$D$22,K61+1,"anno esterno")) -> 8 | M61: =IF(L61="anno esterno","anno esterno",IF(L61+1<='2 Descrizione Progetto'!$D$22,L61+1,"anno esterno")) -> 9 | N61: =IF(M61="anno esterno","anno esterno",IF(M61+1<='2 Descrizione Progetto'!$D$22,M61+1,"anno esterno")) -> 10 | O61: =IF(N61="anno esterno","anno esterno",IF(N61+1<='2 Descrizione Progetto'!$D$22,N61+1,"anno esterno")) -> anno esterno | P61: =IF(O61="anno esterno","anno esterno",IF(O61+1<='2 Descrizione Progetto'!$D$22,O61+1,"anno esterno")) -> anno esterno | Q61: =IF(P61="anno esterno","anno esterno",IF(P61+1<='2 Descrizione Progetto'!$D$22,P61+1,"anno esterno")) -> anno esterno | R61: =IF(Q61="anno esterno","anno esterno",IF(Q61+1<='2 Descrizione Progetto'!$D$22,Q61+1,"anno esterno")) -> anno esterno | S61: =IF(R61="anno esterno","anno esterno",IF(R61+1<='2 Descrizione Progetto'!$D$22,R61+1,"anno esterno")) -> anno esterno | T61: =IF(S61="anno esterno","anno esterno",IF(S61+1<='2 Descrizione Progetto'!$D$22,S61+1,"anno esterno")) -> anno esterno | U61: =IF(T61="anno esterno","anno esterno",IF(T61+1<='2 Descrizione Progetto'!$D$22,T61+1,"anno esterno")) -> anno esterno | V61: =IF(U61="anno esterno","anno esterno",IF(U61+1<='2 Descrizione Progetto'!$D$22,U61+1,"anno esterno")) -> anno esterno | W61: =IF(V61="anno esterno","anno esterno",IF(V61+1<='2 Descrizione Progetto'!$D$22,V61+1,"anno esterno")) -> anno esterno | X61: =IF(W61="anno esterno","anno esterno",IF(W61+1<='2 Descrizione Progetto'!$D$22,W61+1,"anno esterno")) -> anno esterno | Y61: =IF(X61="anno esterno","anno esterno",IF(X61+1<='2 Descrizione Progetto'!$D$22,X61+1,"anno esterno")) -> anno esterno | Z61: =IF(Y61="anno esterno","anno esterno",IF(Y61+1<='2 Descrizione Progetto'!$D$22,Y61+1,"anno esterno")) -> anno esterno | AA61: =IF(Z61="anno esterno","anno esterno",IF(Z61+1<='2 Descrizione Progetto'!$D$22,Z61+1,"anno esterno")) -> anno esterno | AB61: =IF(AA61="anno esterno","anno esterno",IF(AA61+1<='2 Descrizione Progetto'!$D$22,AA61+1,"anno esterno")) -> anno esterno | AC61: =IF(AB61="anno esterno","anno esterno",IF(AB61+1<='2 Descrizione Progetto'!$D$22,AB61+1,"anno esterno")) -> anno esterno | AD61: =IF(AC61="anno esterno","anno esterno",IF(AC61+1<='2 Descrizione Progetto'!$D$22,AC61+1,"anno esterno")) -> anno esterno | AE61: =IF(AD61="anno esterno","anno esterno",IF(AD61+1<='2 Descrizione Progetto'!$D$22,AD61+1,"anno esterno")) -> anno esterno | AF61: =IF(AE61="anno esterno","anno esterno",IF(AE61+1<='2 Descrizione Progetto'!$D$22,AE61+1,"anno esterno")) -> anno esterno | AG61: =IF(AF61="anno esterno","anno esterno",IF(AF61+1<='2 Descrizione Progetto'!$D$22,AF61+1,"anno esterno")) -> anno esterno | AH61: =IF(AG61="anno esterno","anno esterno",IF(AG61+1<='2 Descrizione Progetto'!$D$22,AG61+1,"anno esterno")) -> anno esterno | AI61: =IF(AH61="anno esterno","anno esterno",IF(AH61+1<='2 Descrizione Progetto'!$D$22,AH61+1,"anno esterno")) -> anno esterno | AJ61: =IF(AI61="anno esterno","anno esterno",IF(AI61+1<='2 Descrizione Progetto'!$D$22,AI61+1,"anno esterno")) -> anno esterno | AK61: =IF(AJ61="anno esterno","anno esterno",IF(AJ61+1<='2 Descrizione Progetto'!$D$22,AJ61+1,"anno esterno")) -> anno esterno | AL61: =IF(AK61="anno esterno","anno esterno",IF(AK61+1<='2 Descrizione Progetto'!$D$22,AK61+1,"anno esterno")) -> anno esterno | AM61: =IF(AL61="anno esterno","anno esterno",IF(AL61+1<='2 Descrizione Progetto'!$D$22,AL61+1,"anno esterno")) -> anno esterno | AN61: =IF(AM61="anno esterno","anno esterno",IF(AM61+1<='2 Descrizione Progetto'!$D$22,AM61+1,"anno esterno")) -> anno esterno | AO61: =IF(AN61="anno esterno","anno esterno",IF(AN61+1<='2 Descrizione Progetto'!$D$22,AN61+1,"anno esterno")) -> anno esterno | AP61: =IF(AO61="anno esterno","anno esterno",IF(AO61+1<='2 Descrizione Progetto'!$D$22,AO61+1,"anno esterno")) -> anno esterno | AQ61: =IF(AP61="anno esterno","anno esterno",IF(AP61+1<='2 Descrizione Progetto'!$D$22,AP61+1,"anno esterno")) -> anno esterno | AR61: =IF(AQ61="anno esterno","anno esterno",IF(AQ61+1<='2 Descrizione Progetto'!$D$22,AQ61+1,"anno esterno")) -> anno esterno | AS61: =IF(AR61="anno esterno","anno esterno",IF(AR61+1<='2 Descrizione Progetto'!$D$22,AR61+1,"anno esterno")) -> anno esterno | AT61: =IF(AS61="anno esterno","anno esterno",IF(AS61+1<='2 Descrizione Progetto'!$D$22,AS61+1,"anno esterno")) -> anno esterno | AU61: =IF(AT61="anno esterno","anno esterno",IF(AT61+1<='2 Descrizione Progetto'!$D$22,AT61+1,"anno esterno")) -> anno esterno | AV61: =IF(AU61="anno esterno","anno esterno",IF(AU61+1<='2 Descrizione Progetto'!$D$22,AU61+1,"anno esterno")) -> anno esterno | AW61: =IF(AV61="anno esterno","anno esterno",IF(AV61+1<='2 Descrizione Progetto'!$D$22,AV61+1,"anno esterno")) -> anno esterno | AX61: =IF(AW61="anno esterno","anno esterno",IF(AW61+1<='2 Descrizione Progetto'!$D$22,AW61+1,"anno esterno")) -> anno esterno | AY61: =IF(AX61="anno esterno","anno esterno",IF(AX61+1<='2 Descrizione Progetto'!$D$22,AX61+1,"anno esterno")) -> anno esterno | AZ61: =IF(AY61="anno esterno","anno esterno",IF(AY61+1<='2 Descrizione Progetto'!$D$22,AY61+1,"anno esterno")) -> anno esterno | BA61: =IF(AZ61="anno esterno","anno esterno",IF(AZ61+1<='2 Descrizione Progetto'!$D$22,AZ61+1,"anno esterno")) -> anno esterno | BB61: =IF(BA61="anno esterno","anno esterno",IF(BA61+1<='2 Descrizione Progetto'!$D$22,BA61+1,"anno esterno")) -> anno esterno | BC61: =IF(BB61="anno esterno","anno esterno",IF(BB61+1<='2 Descrizione Progetto'!$D$22,BB61+1,"anno esterno")) -> anno esterno | BD61: =IF(BC61="anno esterno","anno esterno",IF(BC61+1<='2 Descrizione Progetto'!$D$22,BC61+1,"anno esterno")) -> anno esterno | BE61: =IF(BD61="anno esterno","anno esterno",IF(BD61+1<='2 Descrizione Progetto'!$D$22,BD61+1,"anno esterno")) -> anno esterno | BF61: =IF(BE61="anno esterno","anno esterno",IF(BE61+1<='2 Descrizione Progetto'!$D$22,BE61+1,"anno esterno")) -> anno esterno | BG61: =IF(BF61="anno esterno","anno esterno",IF(BF61+1<='2 Descrizione Progetto'!$D$22,BF61+1,"anno esterno")) -> anno esterno | BH61: =IF(BG61="anno esterno","anno esterno",IF(BG61+1<='2 Descrizione Progetto'!$D$22,BG61+1,"anno esterno")) -> anno esterno | BI61: =IF(BH61="anno esterno","anno esterno",IF(BH61+1<='2 Descrizione Progetto'!$D$22,BH61+1,"anno esterno")) -> anno esterno | BJ61: =IF(BI61="anno esterno","anno esterno",IF(BI61+1<='2 Descrizione Progetto'!$D$22,BI61+1,"anno esterno")) -> anno esterno | BK61: =IF(BJ61="anno esterno","anno esterno",IF(BJ61+1<='2 Descrizione Progetto'!$D$22,BJ61+1,"anno esterno")) -> anno esterno | BL61: =IF(BK61="anno esterno","anno esterno",IF(BK61+1<='2 Descrizione Progetto'!$D$22,BK61+1,"anno esterno")) -> anno esterno
C62: Domanda | D62: k-unità fisiche | E62: ='3 Costi-Ricavi'!D9 -> 0 | F62: ='3 Costi-Ricavi'!E9 -> 0 | G62: ='3 Costi-Ricavi'!F9 -> 0 | H62: ='3 Costi-Ricavi'!G9 -> 0 | I62: ='3 Costi-Ricavi'!H9 -> 0 | J62: ='3 Costi-Ricavi'!I9 -> 0 | K62: ='3 Costi-Ricavi'!J9 -> 0 | L62: ='3 Costi-Ricavi'!K9 -> 0 | M62: ='3 Costi-Ricavi'!L9 -> 0 | N62: ='3 Costi-Ricavi'!M9 -> 0 | O62: ='3 Costi-Ricavi'!N9 -> 0 | P62: ='3 Costi-Ricavi'!O9 -> 0 | Q62: ='3 Costi-Ricavi'!P9 -> 0 | R62: ='3 Costi-Ricavi'!Q9 -> 0 | S62: ='3 Costi-Ricavi'!R9 -> 0 | T62: ='3 Costi-Ricavi'!S9 -> 0 | U62: ='3 Costi-Ricavi'!T9 -> 0 | V62: ='3 Costi-Ricavi'!U9 -> 0 | W62: ='3 Costi-Ricavi'!V9 -> 0 | X62: ='3 Costi-Ricavi'!W9 -> 0 | Y62: ='3 Costi-Ricavi'!X9 -> 0 | Z62: ='3 Costi-Ricavi'!Y9 -> 0 | AA62: ='3 Costi-Ricavi'!Z9 -> 0 | AB62: ='3 Costi-Ricavi'!AA9 -> 0 | AC62: ='3 Costi-Ricavi'!AB9 -> 0 | AD62: ='3 Costi-Ricavi'!AC9 -> 0 | AE62: ='3 Costi-Ricavi'!AD9 -> 0 | AF62: ='3 Costi-Ricavi'!AE9 -> 0 | AG62: ='3 Costi-Ricavi'!AF9 -> 0 | AH62: ='3 Costi-Ricavi'!AG9 -> 0 | AI62: ='3 Costi-Ricavi'!AH9 -> 0 | AJ62: ='3 Costi-Ricavi'!AI9 -> 0 | AK62: ='3 Costi-Ricavi'!AJ9 -> 0 | AL62: ='3 Costi-Ricavi'!AK9 -> 0 | AM62: ='3 Costi-Ricavi'!AL9 -> 0 | AN62: ='3 Costi-Ricavi'!AM9 -> 0 | AO62: ='3 Costi-Ricavi'!AN9 -> 0 | AP62: ='3 Costi-Ricavi'!AO9 -> 0 | AQ62: ='3 Costi-Ricavi'!AP9 -> 0 | AR62: ='3 Costi-Ricavi'!AQ9 -> 0 | AS62: ='3 Costi-Ricavi'!AR9 -> 0 | AT62: ='3 Costi-Ricavi'!AS9 -> 0 | AU62: ='3 Costi-Ricavi'!AT9 -> 0 | AV62: ='3 Costi-Ricavi'!AU9 -> 0 | AW62: ='3 Costi-Ricavi'!AV9 -> 0 | AX62: ='3 Costi-Ricavi'!AW9 -> 0 | AY62: ='3 Costi-Ricavi'!AX9 -> 0 | AZ62: ='3 Costi-Ricavi'!AY9 -> 0 | BA62: ='3 Costi-Ricavi'!AZ9 -> 0 | BB62: ='3 Costi-Ricavi'!BA9 -> 0 | BC62: ='3 Costi-Ricavi'!BB9 -> 0 | BD62: ='3 Costi-Ricavi'!BC9 -> 0 | BE62: ='3 Costi-Ricavi'!BD9 -> 0 | BF62: ='3 Costi-Ricavi'!BE9 -> 0 | BG62: ='3 Costi-Ricavi'!BF9 -> 0 | BH62: ='3 Costi-Ricavi'!BG9 -> 0 | BI62: ='3 Costi-Ricavi'!BH9 -> 0 | BJ62: ='3 Costi-Ricavi'!BI9 -> 0 | BK62: ='3 Costi-Ricavi'!BJ9 -> 0 | BL62: ='3 Costi-Ricavi'!BK9 -> 0
C63: Tariffa unitaria | D63: euro/unità | E63: =F31 -> 1 | F63: =E63*(1+$G$31) -> 1.02 | G63: 1.0404 | H63: 1.061208 | I63: 1.08243216 | J63: 1.104080803 | K63: 1.126162419 | L63: 1.148685668 | M63: 1.171659381 | N63: 1.195092569 | O63: 1.21899442 | P63: 1.243374308 | Q63: 1.268241795 | R63: 1.29360663 | S63: 1.319478763 | T63: 1.345868338 | U63: 1.372785705 | V63: 1.400241419 | W63: 1.428246248 | X63: 1.456811173 | Y63: 1.485947396 | Z63: 1.515666344 | AA63: 1.545979671 | AB63: 1.576899264 | AC63: 1.608437249 | AD63: 1.640605994 | AE63: 1.673418114 | AF63: 1.706886477 | AG63: 1.741024206 | AH63: 1.77584469 | AI63: 1.811361584 | AJ63: 1.847588816 | AK63: 1.884540592 | AL63: 1.922231404 | AM63: 1.960676032 | AN63: 1.999889553 | AO63: 2.039887344 | AP63: 2.080685091 | AQ63: 2.122298792 | AR63: 2.164744768 | AS63: 2.208039664 | AT63: 2.252200457 | AU63: 2.297244466 | AV63: 2.343189355 | AW63: 2.390053142 | AX63: 2.437854205 | AY63: 2.486611289 | AZ63: 2.536343515 | BA63: 2.587070385 | BB63: 2.638811793 | BC63: 2.691588029 | BD63: 2.74541979 | BE63: 2.800328185 | BF63: 2.856334749 | BG63: 2.913461444 | BH63: 2.971730673 | BI63: 3.031165286 | BJ63: 3.091788592 | BK63: 3.153624364 | BL63: 3.216696851
C64: Ricavi | D64: euro | E64: =E62*E63 -> 0 | F64: 0 | G64: 0 | H64: 0 | I64: 0 | J64: 0 | K64: 0 | L64: 0 | M64: 0 | N64: 0 | O64: 0 | P64: 0 | Q64: 0 | R64: 0 | S64: 0 | T64: 0 | U64: 0 | V64: 0 | W64: 0 | X64: 0 | Y64: 0 | Z64: 0 | AA64: 0 | AB64: 0 | AC64: 0 | AD64: 0 | AE64: 0 | AF64: 0 | AG64: 0 | AH64: 0 | AI64: 0 | AJ64: 0 | AK64: 0 | AL64: 0 | AM64: 0 | AN64: 0 | AO64: 0 | AP64: 0 | AQ64: 0 | AR64: 0 | AS64: 0 | AT64: 0 | AU64: 0 | AV64: 0 | AW64: 0 | AX64: 0 | AY64: 0 | AZ64: 0 | BA64: 0 | BB64: 0 | BC64: 0 | BD64: 0 | BE64: 0 | BF64: 0 | BG64: 0 | BH64: 0 | BI64: 0 | BJ64: 0 | BK64: 0 | BL64: 0
C66: Ricavo 1 | E66: ='2 Descrizione Progetto'!$D$20 -> 1 | F66: =IF(E66="anno esterno","anno esterno",IF(E66+1<='2 Descrizione Progetto'!$D$22,E66+1,"anno esterno")) -> 2 | G66: =IF(F66="anno esterno","anno esterno",IF(F66+1<='2 Descrizione Progetto'!$D$22,F66+1,"anno esterno")) -> 3 | H66: =IF(G66="anno esterno","anno esterno",IF(G66+1<='2 Descrizione Progetto'!$D$22,G66+1,"anno esterno")) -> 4 | I66: =IF(H66="anno esterno","anno esterno",IF(H66+1<='2 Descrizione Progetto'!$D$22,H66+1,"anno esterno")) -> 5 | J66: =IF(I66="anno esterno","anno esterno",IF(I66+1<='2 Descrizione Progetto'!$D$22,I66+1,"anno esterno")) -> 6 | K66: =IF(J66="anno esterno","anno esterno",IF(J66+1<='2 Descrizione Progetto'!$D$22,J66+1,"anno esterno")) -> 7 | L66: =IF(K66="anno esterno","anno esterno",IF(K66+1<='2 Descrizione Progetto'!$D$22,K66+1,"anno esterno")) -> 8 | M66: =IF(L66="anno esterno","anno esterno",IF(L66+1<='2 Descrizione Progetto'!$D$22,L66+1,"anno esterno")) -> 9 | N66: =IF(M66="anno esterno","anno esterno",IF(M66+1<='2 Descrizione Progetto'!$D$22,M66+1,"anno esterno")) -> 10 | O66: =IF(N66="anno esterno","anno esterno",IF(N66+1<='2 Descrizione Progetto'!$D$22,N66+1,"anno esterno")) -> anno esterno | P66: =IF(O66="anno esterno","anno esterno",IF(O66+1<='2 Descrizione Progetto'!$D$22,O66+1,"anno esterno")) -> anno esterno | Q66: =IF(P66="anno esterno","anno esterno",IF(P66+1<='2 Descrizione Progetto'!$D$22,P66+1,"anno esterno")) -> anno esterno | R66: =IF(Q66="anno esterno","anno esterno",IF(Q66+1<='2 Descrizione Progetto'!$D$22,Q66+1,"anno esterno")) -> anno esterno | S66: =IF(R66="anno esterno","anno esterno",IF(R66+1<='2 Descrizione Progetto'!$D$22,R66+1,"anno esterno")) -> anno esterno | T66: =IF(S66="anno esterno","anno esterno",IF(S66+1<='2 Descrizione Progetto'!$D$22,S66+1,"anno esterno")) -> anno esterno | U66: =IF(T66="anno esterno","anno esterno",IF(T66+1<='2 Descrizione Progetto'!$D$22,T66+1,"anno esterno")) -> anno esterno | V66: =IF(U66="anno esterno","anno esterno",IF(U66+1<='2 Descrizione Progetto'!$D$22,U66+1,"anno esterno")) -> anno esterno | W66: =IF(V66="anno esterno","anno esterno",IF(V66+1<='2 Descrizione Progetto'!$D$22,V66+1,"anno esterno")) -> anno esterno | X66: =IF(W66="anno esterno","anno esterno",IF(W66+1<='2 Descrizione Progetto'!$D$22,W66+1,"anno esterno")) -> anno esterno | Y66: =IF(X66="anno esterno","anno esterno",IF(X66+1<='2 Descrizione Progetto'!$D$22,X66+1,"anno esterno")) -> anno esterno | Z66: =IF(Y66="anno esterno","anno esterno",IF(Y66+1<='2 Descrizione Progetto'!$D$22,Y66+1,"anno esterno")) -> anno esterno | AA66: =IF(Z66="anno esterno","anno esterno",IF(Z66+1<='2 Descrizione Progetto'!$D$22,Z66+1,"anno esterno")) -> anno esterno | AB66: =IF(AA66="anno esterno","anno esterno",IF(AA66+1<='2 Descrizione Progetto'!$D$22,AA66+1,"anno esterno")) -> anno esterno | AC66: =IF(AB66="anno esterno","anno esterno",IF(AB66+1<='2 Descrizione Progetto'!$D$22,AB66+1,"anno esterno")) -> anno esterno | AD66: =IF(AC66="anno esterno","anno esterno",IF(AC66+1<='2 Descrizione Progetto'!$D$22,AC66+1,"anno esterno")) -> anno esterno | AE66: =IF(AD66="anno esterno","anno esterno",IF(AD66+1<='2 Descrizione Progetto'!$D$22,AD66+1,"anno esterno")) -> anno esterno | AF66: =IF(AE66="anno esterno","anno esterno",IF(AE66+1<='2 Descrizione Progetto'!$D$22,AE66+1,"anno esterno")) -> anno esterno | AG66: =IF(AF66="anno esterno","anno esterno",IF(AF66+1<='2 Descrizione Progetto'!$D$22,AF66+1,"anno esterno")) -> anno esterno | AH66: =IF(AG66="anno esterno","anno esterno",IF(AG66+1<='2 Descrizione Progetto'!$D$22,AG66+1,"anno esterno")) -> anno esterno | AI66: =IF(AH66="anno esterno","anno esterno",IF(AH66+1<='2 Descrizione Progetto'!$D$22,AH66+1,"anno esterno")) -> anno esterno | AJ66: =IF(AI66="anno esterno","anno esterno",IF(AI66+1<='2 Descrizione Progetto'!$D$22,AI66+1,"anno esterno")) -> anno esterno | AK66: =IF(AJ66="anno esterno","anno esterno",IF(AJ66+1<='2 Descrizione Progetto'!$D$22,AJ66+1,"anno esterno")) -> anno esterno | AL66: =IF(AK66="anno esterno","anno esterno",IF(AK66+1<='2 Descrizione Progetto'!$D$22,AK66+1,"anno esterno")) -> anno esterno | AM66: =IF(AL66="anno esterno","anno esterno",IF(AL66+1<='2 Descrizione Progetto'!$D$22,AL66+1,"anno esterno")) -> anno esterno | AN66: =IF(AM66="anno esterno","anno esterno",IF(AM66+1<='2 Descrizione Progetto'!$D$22,AM66+1,"anno esterno")) -> anno esterno | AO66: =IF(AN66="anno esterno","anno esterno",IF(AN66+1<='2 Descrizione Progetto'!$D$22,AN66+1,"anno esterno")) -> anno esterno | AP66: =IF(AO66="anno esterno","anno esterno",IF(AO66+1<='2 Descrizione Progetto'!$D$22,AO66+1,"anno esterno")) -> anno esterno | AQ66: =IF(AP66="anno esterno","anno esterno",IF(AP66+1<='2 Descrizione Progetto'!$D$22,AP66+1,"anno esterno")) -> anno esterno | AR66: =IF(AQ66="anno esterno","anno esterno",IF(AQ66+1<='2 Descrizione Progetto'!$D$22,AQ66+1,"anno esterno")) -> anno esterno | AS66: =IF(AR66="anno esterno","anno esterno",IF(AR66+1<='2 Descrizione Progetto'!$D$22,AR66+1,"anno esterno")) -> anno esterno | AT66: =IF(AS66="anno esterno","anno esterno",IF(AS66+1<='2 Descrizione Progetto'!$D$22,AS66+1,"anno esterno")) -> anno esterno | AU66: =IF(AT66="anno esterno","anno esterno",IF(AT66+1<='2 Descrizione Progetto'!$D$22,AT66+1,"anno esterno")) -> anno esterno | AV66: =IF(AU66="anno esterno","anno esterno",IF(AU66+1<='2 Descrizione Progetto'!$D$22,AU66+1,"anno esterno")) -> anno esterno | AW66: =IF(AV66="anno esterno","anno esterno",IF(AV66+1<='2 Descrizione Progetto'!$D$22,AV66+1,"anno esterno")) -> anno esterno | AX66: =IF(AW66="anno esterno","anno esterno",IF(AW66+1<='2 Descrizione Progetto'!$D$22,AW66+1,"anno esterno")) -> anno esterno | AY66: =IF(AX66="anno esterno","anno esterno",IF(AX66+1<='2 Descrizione Progetto'!$D$22,AX66+1,"anno esterno")) -> anno esterno | AZ66: =IF(AY66="anno esterno","anno esterno",IF(AY66+1<='2 Descrizione Progetto'!$D$22,AY66+1,"anno esterno")) -> anno esterno | BA66: =IF(AZ66="anno esterno","anno esterno",IF(AZ66+1<='2 Descrizione Progetto'!$D$22,AZ66+1,"anno esterno")) -> anno esterno | BB66: =IF(BA66="anno esterno","anno esterno",IF(BA66+1<='2 Descrizione Progetto'!$D$22,BA66+1,"anno esterno")) -> anno esterno | BC66: =IF(BB66="anno esterno","anno esterno",IF(BB66+1<='2 Descrizione Progetto'!$D$22,BB66+1,"anno esterno")) -> anno esterno | BD66: =IF(BC66="anno esterno","anno esterno",IF(BC66+1<='2 Descrizione Progetto'!$D$22,BC66+1,"anno esterno")) -> anno esterno | BE66: =IF(BD66="anno esterno","anno esterno",IF(BD66+1<='2 Descrizione Progetto'!$D$22,BD66+1,"anno esterno")) -> anno esterno | BF66: =IF(BE66="anno esterno","anno esterno",IF(BE66+1<='2 Descrizione Progetto'!$D$22,BE66+1,"anno esterno")) -> anno esterno | BG66: =IF(BF66="anno esterno","anno esterno",IF(BF66+1<='2 Descrizione Progetto'!$D$22,BF66+1,"anno esterno")) -> anno esterno | BH66: =IF(BG66="anno esterno","anno esterno",IF(BG66+1<='2 Descrizione Progetto'!$D$22,BG66+1,"anno esterno")) -> anno esterno | BI66: =IF(BH66="anno esterno","anno esterno",IF(BH66+1<='2 Descrizione Progetto'!$D$22,BH66+1,"anno esterno")) -> anno esterno | BJ66: =IF(BI66="anno esterno","anno esterno",IF(BI66+1<='2 Descrizione Progetto'!$D$22,BI66+1,"anno esterno")) -> anno esterno | BK66: =IF(BJ66="anno esterno","anno esterno",IF(BJ66+1<='2 Descrizione Progetto'!$D$22,BJ66+1,"anno esterno")) -> anno esterno | BL66: =IF(BK66="anno esterno","anno esterno",IF(BK66+1<='2 Descrizione Progetto'!$D$22,BK66+1,"anno esterno")) -> anno esterno
C67: Domanda | D67: k-unità fisiche | E67: ='3 Costi-Ricavi'!D10 -> 0 | F67: ='3 Costi-Ricavi'!E10 -> 0 | G67: ='3 Costi-Ricavi'!F10 -> 0 | H67: ='3 Costi-Ricavi'!G10 -> 0 | I67: ='3 Costi-Ricavi'!H10 -> 0 | J67: ='3 Costi-Ricavi'!I10 -> 0 | K67: ='3 Costi-Ricavi'!J10 -> 0 | L67: ='3 Costi-Ricavi'!K10 -> 0 | M67: ='3 Costi-Ricavi'!L10 -> 0 | N67: ='3 Costi-Ricavi'!M10 -> 0 | O67: ='3 Costi-Ricavi'!N10 -> 0 | P67: ='3 Costi-Ricavi'!O10 -> 0 | Q67: ='3 Costi-Ricavi'!P10 -> 0 | R67: ='3 Costi-Ricavi'!Q10 -> 0 | S67: ='3 Costi-Ricavi'!R10 -> 0 | T67: ='3 Costi-Ricavi'!S10 -> 0 | U67: ='3 Costi-Ricavi'!T10 -> 0 | V67: ='3 Costi-Ricavi'!U10 -> 0 | W67: ='3 Costi-Ricavi'!V10 -> 0 | X67: ='3 Costi-Ricavi'!W10 -> 0 | Y67: ='3 Costi-Ricavi'!X10 -> 0 | Z67: ='3 Costi-Ricavi'!Y10 -> 0 | AA67: ='3 Costi-Ricavi'!Z10 -> 0 | AB67: ='3 Costi-Ricavi'!AA10 -> 0 | AC67: ='3 Costi-Ricavi'!AB10 -> 0 | AD67: ='3 Costi-Ricavi'!AC10 -> 0 | AE67: ='3 Costi-Ricavi'!AD10 -> 0 | AF67: ='3 Costi-Ricavi'!AE10 -> 0 | AG67: ='3 Costi-Ricavi'!AF10 -> 0 | AH67: ='3 Costi-Ricavi'!AG10 -> 0 | AI67: ='3 Costi-Ricavi'!AH10 -> 0 | AJ67: ='3 Costi-Ricavi'!AI10 -> 0 | AK67: ='3 Costi-Ricavi'!AJ10 -> 0 | AL67: ='3 Costi-Ricavi'!AK10 -> 0 | AM67: ='3 Costi-Ricavi'!AL10 -> 0 | AN67: ='3 Costi-Ricavi'!AM10 -> 0 | AO67: ='3 Costi-Ricavi'!AN10 -> 0 | AP67: ='3 Costi-Ricavi'!AO10 -> 0 | AQ67: ='3 Costi-Ricavi'!AP10 -> 0 | AR67: ='3 Costi-Ricavi'!AQ10 -> 0 | AS67: ='3 Costi-Ricavi'!AR10 -> 0 | AT67: ='3 Costi-Ricavi'!AS10 -> 0 | AU67: ='3 Costi-Ricavi'!AT10 -> 0 | AV67: ='3 Costi-Ricavi'!AU10 -> 0 | AW67: ='3 Costi-Ricavi'!AV10 -> 0 | AX67: ='3 Costi-Ricavi'!AW10 -> 0 | AY67: ='3 Costi-Ricavi'!AX10 -> 0 | AZ67: ='3 Costi-Ricavi'!AY10 -> 0 | BA67: ='3 Costi-Ricavi'!AZ10 -> 0 | BB67: ='3 Costi-Ricavi'!BA10 -> 0 | BC67: ='3 Costi-Ricavi'!BB10 -> 0 | BD67: ='3 Costi-Ricavi'!BC10 -> 0 | BE67: ='3 Costi-Ricavi'!BD10 -> 0 | BF67: ='3 Costi-Ricavi'!BE10 -> 0 | BG67: ='3 Costi-Ricavi'!BF10 -> 0 | BH67: ='3 Costi-Ricavi'!BG10 -> 0 | BI67: ='3 Costi-Ricavi'!BH10 -> 0 | BJ67: ='3 Costi-Ricavi'!BI10 -> 0 | BK67: ='3 Costi-Ricavi'!BJ10 -> 0 | BL67: ='3 Costi-Ricavi'!BK10 -> 0
C68: Tariffa unitaria | D68: euro/unità | E68: =F32 -> 1 | F68: =E68*(1+$G$32) -> 1.02 | G68: 1.0404 | H68: 1.061208 | I68: 1.08243216 | J68: 1.104080803 | K68: 1.126162419 | L68: 1.148685668 | M68: 1.171659381 | N68: 1.195092569 | O68: 1.21899442 | P68: 1.243374308 | Q68: 1.268241795 | R68: 1.29360663 | S68: 1.319478763 | T68: 1.345868338 | U68: 1.372785705 | V68: 1.400241419 | W68: 1.428246248 | X68: 1.456811173 | Y68: 1.485947396 | Z68: 1.515666344 | AA68: 1.545979671 | AB68: 1.576899264 | AC68: 1.608437249 | AD68: 1.640605994 | AE68: 1.673418114 | AF68: 1.706886477 | AG68: 1.741024206 | AH68: 1.77584469 | AI68: 1.811361584 | AJ68: 1.847588816 | AK68: 1.884540592 | AL68: 1.922231404 | AM68: 1.960676032 | AN68: 1.999889553 | AO68: 2.039887344 | AP68: 2.080685091 | AQ68: 2.122298792 | AR68: 2.164744768 | AS68: 2.208039664 | AT68: 2.252200457 | AU68: 2.297244466 | AV68: 2.343189355 | AW68: 2.390053142 | AX68: 2.437854205 | AY68: 2.486611289 | AZ68: 2.536343515 | BA68: 2.587070385 | BB68: 2.638811793 | BC68: 2.691588029 | BD68: 2.74541979 | BE68: 2.800328185 | BF68: 2.856334749 | BG68: 2.913461444 | BH68: 2.971730673 | BI68: 3.031165286 | BJ68: 3.091788592 | BK68: 3.153624364 | BL68: 3.216696851
C69: Ricavi | D69: euro | E69: =E67*E68 -> 0 | F69: 0 | G69: 0 | H69: 0 | I69: 0 | J69: 0 | K69: 0 | L69: 0 | M69: 0 | N69: 0 | O69: 0 | P69: 0 | Q69: 0 | R69: 0 | S69: 0 | T69: 0 | U69: 0 | V69: 0 | W69: 0 | X69: 0 | Y69: 0 | Z69: 0 | AA69: 0 | AB69: 0 | AC69: 0 | AD69: 0 | AE69: 0 | AF69: 0 | AG69: 0 | AH69: 0 | AI69: 0 | AJ69: 0 | AK69: 0 | AL69: 0 | AM69: 0 | AN69: 0 | AO69: 0 | AP69: 0 | AQ69: 0 | AR69: 0 | AS69: 0 | AT69: 0 | AU69: 0 | AV69: 0 | AW69: 0 | AX69: 0 | AY69: 0 | AZ69: 0 | BA69: 0 | BB69: 0 | BC69: 0 | BD69: 0 | BE69: 0 | BF69: 0 | BG69: 0 | BH69: 0 | BI69: 0 | BJ69: 0 | BK69: 0 | BL69: 0
C71: Ricavo 1 | E71: ='2 Descrizione Progetto'!$D$20 -> 1 | F71: =IF(E71="anno esterno","anno esterno",IF(E71+1<='2 Descrizione Progetto'!$D$22,E71+1,"anno esterno")) -> 2 | G71: =IF(F71="anno esterno","anno esterno",IF(F71+1<='2 Descrizione Progetto'!$D$22,F71+1,"anno esterno")) -> 3 | H71: =IF(G71="anno esterno","anno esterno",IF(G71+1<='2 Descrizione Progetto'!$D$22,G71+1,"anno esterno")) -> 4 | I71: =IF(H71="anno esterno","anno esterno",IF(H71+1<='2 Descrizione Progetto'!$D$22,H71+1,"anno esterno")) -> 5 | J71: =IF(I71="anno esterno","anno esterno",IF(I71+1<='2 Descrizione Progetto'!$D$22,I71+1,"anno esterno")) -> 6 | K71: =IF(J71="anno esterno","anno esterno",IF(J71+1<='2 Descrizione Progetto'!$D$22,J71+1,"anno esterno")) -> 7 | L71: =IF(K71="anno esterno","anno esterno",IF(K71+1<='2 Descrizione Progetto'!$D$22,K71+1,"anno esterno")) -> 8 | M71: =IF(L71="anno esterno","anno esterno",IF(L71+1<='2 Descrizione Progetto'!$D$22,L71+1,"anno esterno")) -> 9 | N71: =IF(M71="anno esterno","anno esterno",IF(M71+1<='2 Descrizione Progetto'!$D$22,M71+1,"anno esterno")) -> 10 | O71: =IF(N71="anno esterno","anno esterno",IF(N71+1<='2 Descrizione Progetto'!$D$22,N71+1,"anno esterno")) -> anno esterno | P71: =IF(O71="anno esterno","anno esterno",IF(O71+1<='2 Descrizione Progetto'!$D$22,O71+1,"anno esterno")) -> anno esterno | Q71: =IF(P71="anno esterno","anno esterno",IF(P71+1<='2 Descrizione Progetto'!$D$22,P71+1,"anno esterno")) -> anno esterno | R71: =IF(Q71="anno esterno","anno esterno",IF(Q71+1<='2 Descrizione Progetto'!$D$22,Q71+1,"anno esterno")) -> anno esterno | S71: =IF(R71="anno esterno","anno esterno",IF(R71+1<='2 Descrizione Progetto'!$D$22,R71+1,"anno esterno")) -> anno esterno | T71: =IF(S71="anno esterno","anno esterno",IF(S71+1<='2 Descrizione Progetto'!$D$22,S71+1,"anno esterno")) -> anno esterno | U71: =IF(T71="anno esterno","anno esterno",IF(T71+1<='2 Descrizione Progetto'!$D$22,T71+1,"anno esterno")) -> anno esterno | V71: =IF(U71="anno esterno","anno esterno",IF(U71+1<='2 Descrizione Progetto'!$D$22,U71+1,"anno esterno")) -> anno esterno | W71: =IF(V71="anno esterno","anno esterno",IF(V71+1<='2 Descrizione Progetto'!$D$22,V71+1,"anno esterno")) -> anno esterno | X71: =IF(W71="anno esterno","anno esterno",IF(W71+1<='2 Descrizione Progetto'!$D$22,W71+1,"anno esterno")) -> anno esterno | Y71: =IF(X71="anno esterno","anno esterno",IF(X71+1<='2 Descrizione Progetto'!$D$22,X71+1,"anno esterno")) -> anno esterno | Z71: =IF(Y71="anno esterno","anno esterno",IF(Y71+1<='2 Descrizione Progetto'!$D$22,Y71+1,"anno esterno")) -> anno esterno | AA71: =IF(Z71="anno esterno","anno esterno",IF(Z71+1<='2 Descrizione Progetto'!$D$22,Z71+1,"anno esterno")) -> anno esterno | AB71: =IF(AA71="anno esterno","anno esterno",IF(AA71+1<='2 Descrizione Progetto'!$D$22,AA71+1,"anno esterno")) -> anno esterno | AC71: =IF(AB71="anno esterno","anno esterno",IF(AB71+1<='2 Descrizione Progetto'!$D$22,AB71+1,"anno esterno")) -> anno esterno | AD71: =IF(AC71="anno esterno","anno esterno",IF(AC71+1<='2 Descrizione Progetto'!$D$22,AC71+1,"anno esterno")) -> anno esterno | AE71: =IF(AD71="anno esterno","anno esterno",IF(AD71+1<='2 Descrizione Progetto'!$D$22,AD71+1,"anno esterno")) -> anno esterno | AF71: =IF(AE71="anno esterno","anno esterno",IF(AE71+1<='2 Descrizione Progetto'!$D$22,AE71+1,"anno esterno")) -> anno esterno | AG71: =IF(AF71="anno esterno","anno esterno",IF(AF71+1<='2 Descrizione Progetto'!$D$22,AF71+1,"anno esterno")) -> anno esterno | AH71: =IF(AG71="anno esterno","anno esterno",IF(AG71+1<='2 Descrizione Progetto'!$D$22,AG71+1,"anno esterno")) -> anno esterno | AI71: =IF(AH71="anno esterno","anno esterno",IF(AH71+1<='2 Descrizione Progetto'!$D$22,AH71+1,"anno esterno")) -> anno esterno | AJ71: =IF(AI71="anno esterno","anno esterno",IF(AI71+1<='2 Descrizione Progetto'!$D$22,AI71+1,"anno esterno")) -> anno esterno | AK71: =IF(AJ71="anno esterno","anno esterno",IF(AJ71+1<='2 Descrizione Progetto'!$D$22,AJ71+1,"anno esterno")) -> anno esterno | AL71: =IF(AK71="anno esterno","anno esterno",IF(AK71+1<='2 Descrizione Progetto'!$D$22,AK71+1,"anno esterno")) -> anno esterno | AM71: =IF(AL71="anno esterno","anno esterno",IF(AL71+1<='2 Descrizione Progetto'!$D$22,AL71+1,"anno esterno")) -> anno esterno | AN71: =IF(AM71="anno esterno","anno esterno",IF(AM71+1<='2 Descrizione Progetto'!$D$22,AM71+1,"anno esterno")) -> anno esterno | AO71: =IF(AN71="anno esterno","anno esterno",IF(AN71+1<='2 Descrizione Progetto'!$D$22,AN71+1,"anno esterno")) -> anno esterno | AP71: =IF(AO71="anno esterno","anno esterno",IF(AO71+1<='2 Descrizione Progetto'!$D$22,AO71+1,"anno esterno")) -> anno esterno | AQ71: =IF(AP71="anno esterno","anno esterno",IF(AP71+1<='2 Descrizione Progetto'!$D$22,AP71+1,"anno esterno")) -> anno esterno | AR71: =IF(AQ71="anno esterno","anno esterno",IF(AQ71+1<='2 Descrizione Progetto'!$D$22,AQ71+1,"anno esterno")) -> anno esterno | AS71: =IF(AR71="anno esterno","anno esterno",IF(AR71+1<='2 Descrizione Progetto'!$D$22,AR71+1,"anno esterno")) -> anno esterno | AT71: =IF(AS71="anno esterno","anno esterno",IF(AS71+1<='2 Descrizione Progetto'!$D$22,AS71+1,"anno esterno")) -> anno esterno | AU71: =IF(AT71="anno esterno","anno esterno",IF(AT71+1<='2 Descrizione Progetto'!$D$22,AT71+1,"anno esterno")) -> anno esterno | AV71: =IF(AU71="anno esterno","anno esterno",IF(AU71+1<='2 Descrizione Progetto'!$D$22,AU71+1,"anno esterno")) -> anno esterno | AW71: =IF(AV71="anno esterno","anno esterno",IF(AV71+1<='2 Descrizione Progetto'!$D$22,AV71+1,"anno esterno")) -> anno esterno | AX71: =IF(AW71="anno esterno","anno esterno",IF(AW71+1<='2 Descrizione Progetto'!$D$22,AW71+1,"anno esterno")) -> anno esterno | AY71: =IF(AX71="anno esterno","anno esterno",IF(AX71+1<='2 Descrizione Progetto'!$D$22,AX71+1,"anno esterno")) -> anno esterno | AZ71: =IF(AY71="anno esterno","anno esterno",IF(AY71+1<='2 Descrizione Progetto'!$D$22,AY71+1,"anno esterno")) -> anno esterno | BA71: =IF(AZ71="anno esterno","anno esterno",IF(AZ71+1<='2 Descrizione Progetto'!$D$22,AZ71+1,"anno esterno")) -> anno esterno | BB71: =IF(BA71="anno esterno","anno esterno",IF(BA71+1<='2 Descrizione Progetto'!$D$22,BA71+1,"anno esterno")) -> anno esterno | BC71: =IF(BB71="anno esterno","anno esterno",IF(BB71+1<='2 Descrizione Progetto'!$D$22,BB71+1,"anno esterno")) -> anno esterno | BD71: =IF(BC71="anno esterno","anno esterno",IF(BC71+1<='2 Descrizione Progetto'!$D$22,BC71+1,"anno esterno")) -> anno esterno | BE71: =IF(BD71="anno esterno","anno esterno",IF(BD71+1<='2 Descrizione Progetto'!$D$22,BD71+1,"anno esterno")) -> anno esterno | BF71: =IF(BE71="anno esterno","anno esterno",IF(BE71+1<='2 Descrizione Progetto'!$D$22,BE71+1,"anno esterno")) -> anno esterno | BG71: =IF(BF71="anno esterno","anno esterno",IF(BF71+1<='2 Descrizione Progetto'!$D$22,BF71+1,"anno esterno")) -> anno esterno | BH71: =IF(BG71="anno esterno","anno esterno",IF(BG71+1<='2 Descrizione Progetto'!$D$22,BG71+1,"anno esterno")) -> anno esterno | BI71: =IF(BH71="anno esterno","anno esterno",IF(BH71+1<='2 Descrizione Progetto'!$D$22,BH71+1,"anno esterno")) -> anno esterno | BJ71: =IF(BI71="anno esterno","anno esterno",IF(BI71+1<='2 Descrizione Progetto'!$D$22,BI71+1,"anno esterno")) -> anno esterno | BK71: =IF(BJ71="anno esterno","anno esterno",IF(BJ71+1<='2 Descrizione Progetto'!$D$22,BJ71+1,"anno esterno")) -> anno esterno | BL71: =IF(BK71="anno esterno","anno esterno",IF(BK71+1<='2 Descrizione Progetto'!$D$22,BK71+1,"anno esterno")) -> anno esterno
C72: Domanda | D72: k-unità fisiche | E72: ='3 Costi-Ricavi'!D11 -> 0 | F72: ='3 Costi-Ricavi'!E11 -> 0 | G72: ='3 Costi-Ricavi'!F11 -> 0 | H72: ='3 Costi-Ricavi'!G11 -> 0 | I72: ='3 Costi-Ricavi'!H11 -> 0 | J72: ='3 Costi-Ricavi'!I11 -> 0 | K72: ='3 Costi-Ricavi'!J11 -> 0 | L72: ='3 Costi-Ricavi'!K11 -> 0 | M72: ='3 Costi-Ricavi'!L11 -> 0 | N72: ='3 Costi-Ricavi'!M11 -> 0 | O72: ='3 Costi-Ricavi'!N11 -> 0 | P72: ='3 Costi-Ricavi'!O11 -> 0 | Q72: ='3 Costi-Ricavi'!P11 -> 0 | R72: ='3 Costi-Ricavi'!Q11 -> 0 | S72: ='3 Costi-Ricavi'!R11 -> 0 | T72: ='3 Costi-Ricavi'!S11 -> 0 | U72: ='3 Costi-Ricavi'!T11 -> 0 | V72: ='3 Costi-Ricavi'!U11 -> 0 | W72: ='3 Costi-Ricavi'!V11 -> 0 | X72: ='3 Costi-Ricavi'!W11 -> 0 | Y72: ='3 Costi-Ricavi'!X11 -> 0 | Z72: ='3 Costi-Ricavi'!Y11 -> 0 | AA72: ='3 Costi-Ricavi'!Z11 -> 0 | AB72: ='3 Costi-Ricavi'!AA11 -> 0 | AC72: ='3 Costi-Ricavi'!AB11 -> 0 | AD72: ='3 Costi-Ricavi'!AC11 -> 0 | AE72: ='3 Costi-Ricavi'!AD11 -> 0 | AF72: ='3 Costi-Ricavi'!AE11 -> 0 | AG72: ='3 Costi-Ricavi'!AF11 -> 0 | AH72: ='3 Costi-Ricavi'!AG11 -> 0 | AI72: ='3 Costi-Ricavi'!AH11 -> 0 | AJ72: ='3 Costi-Ricavi'!AI11 -> 0 | AK72: ='3 Costi-Ricavi'!AJ11 -> 0 | AL72: ='3 Costi-Ricavi'!AK11 -> 0 | AM72: ='3 Costi-Ricavi'!AL11 -> 0 | AN72: ='3 Costi-Ricavi'!AM11 -> 0 | AO72: ='3 Costi-Ricavi'!AN11 -> 0 | AP72: ='3 Costi-Ricavi'!AO11 -> 0 | AQ72: ='3 Costi-Ricavi'!AP11 -> 0 | AR72: ='3 Costi-Ricavi'!AQ11 -> 0 | AS72: ='3 Costi-Ricavi'!AR11 -> 0 | AT72: ='3 Costi-Ricavi'!AS11 -> 0 | AU72: ='3 Costi-Ricavi'!AT11 -> 0 | AV72: ='3 Costi-Ricavi'!AU11 -> 0 | AW72: ='3 Costi-Ricavi'!AV11 -> 0 | AX72: ='3 Costi-Ricavi'!AW11 -> 0 | AY72: ='3 Costi-Ricavi'!AX11 -> 0 | AZ72: ='3 Costi-Ricavi'!AY11 -> 0 | BA72: ='3 Costi-Ricavi'!AZ11 -> 0 | BB72: ='3 Costi-Ricavi'!BA11 -> 0 | BC72: ='3 Costi-Ricavi'!BB11 -> 0 | BD72: ='3 Costi-Ricavi'!BC11 -> 0 | BE72: ='3 Costi-Ricavi'!BD11 -> 0 | BF72: ='3 Costi-Ricavi'!BE11 -> 0 | BG72: ='3 Costi-Ricavi'!BF11 -> 0 | BH72: ='3 Costi-Ricavi'!BG11 -> 0 | BI72: ='3 Costi-Ricavi'!BH11 -> 0 | BJ72: ='3 Costi-Ricavi'!BI11 -> 0 | BK72: ='3 Costi-Ricavi'!BJ11 -> 0 | BL72: ='3 Costi-Ricavi'!BK11 -> 0
C73: Tariffa unitaria | D73: euro/unità | E73: =F33 -> 1 | F73: =E73*(1+$G$33) -> 1.02 | G73: 1.0404 | H73: 1.061208 | I73: 1.08243216 | J73: 1.104080803 | K73: 1.126162419 | L73: 1.148685668 | M73: 1.171659381 | N73: 1.195092569 | O73: 1.21899442 | P73: 1.243374308 | Q73: 1.268241795 | R73: 1.29360663 | S73: 1.319478763 | T73: 1.345868338 | U73: 1.372785705 | V73: 1.400241419 | W73: 1.428246248 | X73: 1.456811173 | Y73: 1.485947396 | Z73: 1.515666344 | AA73: 1.545979671 | AB73: 1.576899264 | AC73: 1.608437249 | AD73: 1.640605994 | AE73: 1.673418114 | AF73: 1.706886477 | AG73: 1.741024206 | AH73: 1.77584469 | AI73: 1.811361584 | AJ73: 1.847588816 | AK73: 1.884540592 | AL73: 1.922231404 | AM73: 1.960676032 | AN73: 1.999889553 | AO73: 2.039887344 | AP73: 2.080685091 | AQ73: 2.122298792 | AR73: 2.164744768 | AS73: 2.208039664 | AT73: 2.252200457 | AU73: 2.297244466 | AV73: 2.343189355 | AW73: 2.390053142 | AX73: 2.437854205 | AY73: 2.486611289 | AZ73: 2.536343515 | BA73: 2.587070385 | BB73: 2.638811793 | BC73: 2.691588029 | BD73: 2.74541979 | BE73: 2.800328185 | BF73: 2.856334749 | BG73: 2.913461444 | BH73: 2.971730673 | BI73: 3.031165286 | BJ73: 3.091788592 | BK73: 3.153624364 | BL73: 3.216696851
C74: Ricavi | D74: euro | E74: =E72*E73 -> 0 | F74: 0 | G74: 0 | H74: 0 | I74: 0 | J74: 0 | K74: 0 | L74: 0 | M74: 0 | N74: 0 | O74: 0 | P74: 0 | Q74: 0 | R74: 0 | S74: 0 | T74: 0 | U74: 0 | V74: 0 | W74: 0 | X74: 0 | Y74: 0 | Z74: 0 | AA74: 0 | AB74: 0 | AC74: 0 | AD74: 0 | AE74: 0 | AF74: 0 | AG74: 0 | AH74: 0 | AI74: 0 | AJ74: 0 | AK74: 0 | AL74: 0 | AM74: 0 | AN74: 0 | AO74: 0 | AP74: 0 | AQ74: 0 | AR74: 0 | AS74: 0 | AT74: 0 | AU74: 0 | AV74: 0 | AW74: 0 | AX74: 0 | AY74: 0 | AZ74: 0 | BA74: 0 | BB74: 0 | BC74: 0 | BD74: 0 | BE74: 0 | BF74: 0 | BG74: 0 | BH74: 0 | BI74: 0 | BJ74: 0 | BK74: 0 | BL74: 0
C76: Ricavo 1 | E76: ='2 Descrizione Progetto'!$D$20 -> 1 | F76: =IF(E76="anno esterno","anno esterno",IF(E76+1<='2 Descrizione Progetto'!$D$22,E76+1,"anno esterno")) -> 2 | G76: =IF(F76="anno esterno","anno esterno",IF(F76+1<='2 Descrizione Progetto'!$D$22,F76+1,"anno esterno")) -> 3 | H76: =IF(G76="anno esterno","anno esterno",IF(G76+1<='2 Descrizione Progetto'!$D$22,G76+1,"anno esterno")) -> 4 | I76: =IF(H76="anno esterno","anno esterno",IF(H76+1<='2 Descrizione Progetto'!$D$22,H76+1,"anno esterno")) -> 5 | J76: =IF(I76="anno esterno","anno esterno",IF(I76+1<='2 Descrizione Progetto'!$D$22,I76+1,"anno esterno")) -> 6 | K76: =IF(J76="anno esterno","anno esterno",IF(J76+1<='2 Descrizione Progetto'!$D$22,J76+1,"anno esterno")) -> 7 | L76: =IF(K76="anno esterno","anno esterno",IF(K76+1<='2 Descrizione Progetto'!$D$22,K76+1,"anno esterno")) -> 8 | M76: =IF(L76="anno esterno","anno esterno",IF(L76+1<='2 Descrizione Progetto'!$D$22,L76+1,"anno esterno")) -> 9 | N76: =IF(M76="anno esterno","anno esterno",IF(M76+1<='2 Descrizione Progetto'!$D$22,M76+1,"anno esterno")) -> 10 | O76: =IF(N76="anno esterno","anno esterno",IF(N76+1<='2 Descrizione Progetto'!$D$22,N76+1,"anno esterno")) -> anno esterno | P76: =IF(O76="anno esterno","anno esterno",IF(O76+1<='2 Descrizione Progetto'!$D$22,O76+1,"anno esterno")) -> anno esterno | Q76: =IF(P76="anno esterno","anno esterno",IF(P76+1<='2 Descrizione Progetto'!$D$22,P76+1,"anno esterno")) -> anno esterno | R76: =IF(Q76="anno esterno","anno esterno",IF(Q76+1<='2 Descrizione Progetto'!$D$22,Q76+1,"anno esterno")) -> anno esterno | S76: =IF(R76="anno esterno","anno esterno",IF(R76+1<='2 Descrizione Progetto'!$D$22,R76+1,"anno esterno")) -> anno esterno | T76: =IF(S76="anno esterno","anno esterno",IF(S76+1<='2 Descrizione Progetto'!$D$22,S76+1,"anno esterno")) -> anno esterno | U76: =IF(T76="anno esterno","anno esterno",IF(T76+1<='2 Descrizione Progetto'!$D$22,T76+1,"anno esterno")) -> anno esterno | V76: =IF(U76="anno esterno","anno esterno",IF(U76+1<='2 Descrizione Progetto'!$D$22,U76+1,"anno esterno")) -> anno esterno | W76: =IF(V76="anno esterno","anno esterno",IF(V76+1<='2 Descrizione Progetto'!$D$22,V76+1,"anno esterno")) -> anno esterno | X76: =IF(W76="anno esterno","anno esterno",IF(W76+1<='2 Descrizione Progetto'!$D$22,W76+1,"anno esterno")) -> anno esterno | Y76: =IF(X76="anno esterno","anno esterno",IF(X76+1<='2 Descrizione Progetto'!$D$22,X76+1,"anno esterno")) -> anno esterno | Z76: =IF(Y76="anno esterno","anno esterno",IF(Y76+1<='2 Descrizione Progetto'!$D$22,Y76+1,"anno esterno")) -> anno esterno | AA76: =IF(Z76="anno esterno","anno esterno",IF(Z76+1<='2 Descrizione Progetto'!$D$22,Z76+1,"anno esterno")) -> anno esterno | AB76: =IF(AA76="anno esterno","anno esterno",IF(AA76+1<='2 Descrizione Progetto'!$D$22,AA76+1,"anno esterno")) -> anno esterno | AC76: =IF(AB76="anno esterno","anno esterno",IF(AB76+1<='2 Descrizione Progetto'!$D$22,AB76+1,"anno esterno")) -> anno esterno | AD76: =IF(AC76="anno esterno","anno esterno",IF(AC76+1<='2 Descrizione Progetto'!$D$22,AC76+1,"anno esterno")) -> anno esterno | AE76: =IF(AD76="anno esterno","anno esterno",IF(AD76+1<='2 Descrizione Progetto'!$D$22,AD76+1,"anno esterno")) -> anno esterno | AF76: =IF(AE76="anno esterno","anno esterno",IF(AE76+1<='2 Descrizione Progetto'!$D$22,AE76+1,"anno esterno")) -> anno esterno | AG76: =IF(AF76="anno esterno","anno esterno",IF(AF76+1<='2 Descrizione Progetto'!$D$22,AF76+1,"anno esterno")) -> anno esterno | AH76: =IF(AG76="anno esterno","anno esterno",IF(AG76+1<='2 Descrizione Progetto'!$D$22,AG76+1,"anno esterno")) -> anno esterno | AI76: =IF(AH76="anno esterno","anno esterno",IF(AH76+1<='2 Descrizione Progetto'!$D$22,AH76+1,"anno esterno")) -> anno esterno | AJ76: =IF(AI76="anno esterno","anno esterno",IF(AI76+1<='2 Descrizione Progetto'!$D$22,AI76+1,"anno esterno")) -> anno esterno | AK76: =IF(AJ76="anno esterno","anno esterno",IF(AJ76+1<='2 Descrizione Progetto'!$D$22,AJ76+1,"anno esterno")) -> anno esterno | AL76: =IF(AK76="anno esterno","anno esterno",IF(AK76+1<='2 Descrizione Progetto'!$D$22,AK76+1,"anno esterno")) -> anno esterno | AM76: =IF(AL76="anno esterno","anno esterno",IF(AL76+1<='2 Descrizione Progetto'!$D$22,AL76+1,"anno esterno")) -> anno esterno | AN76: =IF(AM76="anno esterno","anno esterno",IF(AM76+1<='2 Descrizione Progetto'!$D$22,AM76+1,"anno esterno")) -> anno esterno | AO76: =IF(AN76="anno esterno","anno esterno",IF(AN76+1<='2 Descrizione Progetto'!$D$22,AN76+1,"anno esterno")) -> anno esterno | AP76: =IF(AO76="anno esterno","anno esterno",IF(AO76+1<='2 Descrizione Progetto'!$D$22,AO76+1,"anno esterno")) -> anno esterno | AQ76: =IF(AP76="anno esterno","anno esterno",IF(AP76+1<='2 Descrizione Progetto'!$D$22,AP76+1,"anno esterno")) -> anno esterno | AR76: =IF(AQ76="anno esterno","anno esterno",IF(AQ76+1<='2 Descrizione Progetto'!$D$22,AQ76+1,"anno esterno")) -> anno esterno | AS76: =IF(AR76="anno esterno","anno esterno",IF(AR76+1<='2 Descrizione Progetto'!$D$22,AR76+1,"anno esterno")) -> anno esterno | AT76: =IF(AS76="anno esterno","anno esterno",IF(AS76+1<='2 Descrizione Progetto'!$D$22,AS76+1,"anno esterno")) -> anno esterno | AU76: =IF(AT76="anno esterno","anno esterno",IF(AT76+1<='2 Descrizione Progetto'!$D$22,AT76+1,"anno esterno")) -> anno esterno | AV76: =IF(AU76="anno esterno","anno esterno",IF(AU76+1<='2 Descrizione Progetto'!$D$22,AU76+1,"anno esterno")) -> anno esterno | AW76: =IF(AV76="anno esterno","anno esterno",IF(AV76+1<='2 Descrizione Progetto'!$D$22,AV76+1,"anno esterno")) -> anno esterno | AX76: =IF(AW76="anno esterno","anno esterno",IF(AW76+1<='2 Descrizione Progetto'!$D$22,AW76+1,"anno esterno")) -> anno esterno | AY76: =IF(AX76="anno esterno","anno esterno",IF(AX76+1<='2 Descrizione Progetto'!$D$22,AX76+1,"anno esterno")) -> anno esterno | AZ76: =IF(AY76="anno esterno","anno esterno",IF(AY76+1<='2 Descrizione Progetto'!$D$22,AY76+1,"anno esterno")) -> anno esterno | BA76: =IF(AZ76="anno esterno","anno esterno",IF(AZ76+1<='2 Descrizione Progetto'!$D$22,AZ76+1,"anno esterno")) -> anno esterno | BB76: =IF(BA76="anno esterno","anno esterno",IF(BA76+1<='2 Descrizione Progetto'!$D$22,BA76+1,"anno esterno")) -> anno esterno | BC76: =IF(BB76="anno esterno","anno esterno",IF(BB76+1<='2 Descrizione Progetto'!$D$22,BB76+1,"anno esterno")) -> anno esterno | BD76: =IF(BC76="anno esterno","anno esterno",IF(BC76+1<='2 Descrizione Progetto'!$D$22,BC76+1,"anno esterno")) -> anno esterno | BE76: =IF(BD76="anno esterno","anno esterno",IF(BD76+1<='2 Descrizione Progetto'!$D$22,BD76+1,"anno esterno")) -> anno esterno | BF76: =IF(BE76="anno esterno","anno esterno",IF(BE76+1<='2 Descrizione Progetto'!$D$22,BE76+1,"anno esterno")) -> anno esterno | BG76: =IF(BF76="anno esterno","anno esterno",IF(BF76+1<='2 Descrizione Progetto'!$D$22,BF76+1,"anno esterno")) -> anno esterno | BH76: =IF(BG76="anno esterno","anno esterno",IF(BG76+1<='2 Descrizione Progetto'!$D$22,BG76+1,"anno esterno")) -> anno esterno | BI76: =IF(BH76="anno esterno","anno esterno",IF(BH76+1<='2 Descrizione Progetto'!$D$22,BH76+1,"anno esterno")) -> anno esterno | BJ76: =IF(BI76="anno esterno","anno esterno",IF(BI76+1<='2 Descrizione Progetto'!$D$22,BI76+1,"anno esterno")) -> anno esterno | BK76: =IF(BJ76="anno esterno","anno esterno",IF(BJ76+1<='2 Descrizione Progetto'!$D$22,BJ76+1,"anno esterno")) -> anno esterno | BL76: =IF(BK76="anno esterno","anno esterno",IF(BK76+1<='2 Descrizione Progetto'!$D$22,BK76+1,"anno esterno")) -> anno esterno
C77: Domanda | D77: k-unità fisiche | E77: ='3 Costi-Ricavi'!D12 -> 0 | F77: ='3 Costi-Ricavi'!E12 -> 0 | G77: ='3 Costi-Ricavi'!F12 -> 0 | H77: ='3 Costi-Ricavi'!G12 -> 0 | I77: ='3 Costi-Ricavi'!H12 -> 0 | J77: ='3 Costi-Ricavi'!I12 -> 0 | K77: ='3 Costi-Ricavi'!J12 -> 0 | L77: ='3 Costi-Ricavi'!K12 -> 0 | M77: ='3 Costi-Ricavi'!L12 -> 0 | N77: ='3 Costi-Ricavi'!M12 -> 0 | O77: ='3 Costi-Ricavi'!N12 -> 0 | P77: ='3 Costi-Ricavi'!O12 -> 0 | Q77: ='3 Costi-Ricavi'!P12 -> 0 | R77: ='3 Costi-Ricavi'!Q12 -> 0 | S77: ='3 Costi-Ricavi'!R12 -> 0 | T77: ='3 Costi-Ricavi'!S12 -> 0 | U77: ='3 Costi-Ricavi'!T12 -> 0 | V77: ='3 Costi-Ricavi'!U12 -> 0 | W77: ='3 Costi-Ricavi'!V12 -> 0 | X77: ='3 Costi-Ricavi'!W12 -> 0 | Y77: ='3 Costi-Ricavi'!X12 -> 0 | Z77: ='3 Costi-Ricavi'!Y12 -> 0 | AA77: ='3 Costi-Ricavi'!Z12 -> 0 | AB77: ='3 Costi-Ricavi'!AA12 -> 0 | AC77: ='3 Costi-Ricavi'!AB12 -> 0 | AD77: ='3 Costi-Ricavi'!AC12 -> 0 | AE77: ='3 Costi-Ricavi'!AD12 -> 0 | AF77: ='3 Costi-Ricavi'!AE12 -> 0 | AG77: ='3 Costi-Ricavi'!AF12 -> 0 | AH77: ='3 Costi-Ricavi'!AG12 -> 0 | AI77: ='3 Costi-Ricavi'!AH12 -> 0 | AJ77: ='3 Costi-Ricavi'!AI12 -> 0 | AK77: ='3 Costi-Ricavi'!AJ12 -> 0 | AL77: ='3 Costi-Ricavi'!AK12 -> 0 | AM77: ='3 Costi-Ricavi'!AL12 -> 0 | AN77: ='3 Costi-Ricavi'!AM12 -> 0 | AO77: ='3 Costi-Ricavi'!AN12 -> 0 | AP77: ='3 Costi-Ricavi'!AO12 -> 0 | AQ77: ='3 Costi-Ricavi'!AP12 -> 0 | AR77: ='3 Costi-Ricavi'!AQ12 -> 0 | AS77: ='3 Costi-Ricavi'!AR12 -> 0 | AT77: ='3 Costi-Ricavi'!AS12 -> 0 | AU77: ='3 Costi-Ricavi'!AT12 -> 0 | AV77: ='3 Costi-Ricavi'!AU12 -> 0 | AW77: ='3 Costi-Ricavi'!AV12 -> 0 | AX77: ='3 Costi-Ricavi'!AW12 -> 0 | AY77: ='3 Costi-Ricavi'!AX12 -> 0 | AZ77: ='3 Costi-Ricavi'!AY12 -> 0 | BA77: ='3 Costi-Ricavi'!AZ12 -> 0 | BB77: ='3 Costi-Ricavi'!BA12 -> 0 | BC77: ='3 Costi-Ricavi'!BB12 -> 0 | BD77: ='3 Costi-Ricavi'!BC12 -> 0 | BE77: ='3 Costi-Ricavi'!BD12 -> 0 | BF77: ='3 Costi-Ricavi'!BE12 -> 0 | BG77: ='3 Costi-Ricavi'!BF12 -> 0 | BH77: ='3 Costi-Ricavi'!BG12 -> 0 | BI77: ='3 Costi-Ricavi'!BH12 -> 0 | BJ77: ='3 Costi-Ricavi'!BI12 -> 0 | BK77: ='3 Costi-Ricavi'!BJ12 -> 0 | BL77: ='3 Costi-Ricavi'!BK12 -> 0
C78: Tariffa unitaria | D78: euro/unità | E78: =F34 -> 1 | F78: =E78*(1+$G$33) -> 1.02 | G78: 1.0404 | H78: 1.061208 | I78: 1.08243216 | J78: 1.104080803 | K78: 1.126162419 | L78: 1.148685668 | M78: 1.171659381 | N78: 1.195092569 | O78: 1.21899442 | P78: 1.243374308 | Q78: 1.268241795 | R78: 1.29360663 | S78: 1.319478763 | T78: 1.345868338 | U78: 1.372785705 | V78: 1.400241419 | W78: 1.428246248 | X78: 1.456811173 | Y78: 1.485947396 | Z78: 1.515666344 | AA78: 1.545979671 | AB78: 1.576899264 | AC78: 1.608437249 | AD78: 1.640605994 | AE78: 1.673418114 | AF78: 1.706886477 | AG78: 1.741024206 | AH78: 1.77584469 | AI78: 1.811361584 | AJ78: 1.847588816 | AK78: 1.884540592 | AL78: 1.922231404 | AM78: 1.960676032 | AN78: 1.999889553 | AO78: 2.039887344 | AP78: 2.080685091 | AQ78: 2.122298792 | AR78: 2.164744768 | AS78: 2.208039664 | AT78: 2.252200457 | AU78: 2.297244466 | AV78: 2.343189355 | AW78: 2.390053142 | AX78: 2.437854205 | AY78: 2.486611289 | AZ78: 2.536343515 | BA78: 2.587070385 | BB78: 2.638811793 | BC78: 2.691588029 | BD78: 2.74541979 | BE78: 2.800328185 | BF78: 2.856334749 | BG78: 2.913461444 | BH78: 2.971730673 | BI78: 3.031165286 | BJ78: 3.091788592 | BK78: 3.153624364 | BL78: 3.216696851
C79: Ricavi | D79: euro | E79: =E77*E78 -> 0 | F79: 0 | G79: 0 | H79: 0 | I79: 0 | J79: 0 | K79: 0 | L79: 0 | M79: 0 | N79: 0 | O79: 0 | P79: 0 | Q79: 0 | R79: 0 | S79: 0 | T79: 0 | U79: 0 | V79: 0 | W79: 0 | X79: 0 | Y79: 0 | Z79: 0 | AA79: 0 | AB79: 0 | AC79: 0 | AD79: 0 | AE79: 0 | AF79: 0 | AG79: 0 | AH79: 0 | AI79: 0 | AJ79: 0 | AK79: 0 | AL79: 0 | AM79: 0 | AN79: 0 | AO79: 0 | AP79: 0 | AQ79: 0 | AR79: 0 | AS79: 0 | AT79: 0 | AU79: 0 | AV79: 0 | AW79: 0 | AX79: 0 | AY79: 0 | AZ79: 0 | BA79: 0 | BB79: 0 | BC79: 0 | BD79: 0 | BE79: 0 | BF79: 0 | BG79: 0 | BH79: 0 | BI79: 0 | BJ79: 0 | BK79: 0 | BL79: 0
C81: Ricavo 1 | E81: ='2 Descrizione Progetto'!$D$20 -> 1 | F81: =IF(E81="anno esterno","anno esterno",IF(E81+1<='2 Descrizione Progetto'!$D$22,E81+1,"anno esterno")) -> 2 | G81: =IF(F81="anno esterno","anno esterno",IF(F81+1<='2 Descrizione Progetto'!$D$22,F81+1,"anno esterno")) -> 3 | H81: =IF(G81="anno esterno","anno esterno",IF(G81+1<='2 Descrizione Progetto'!$D$22,G81+1,"anno esterno")) -> 4 | I81: =IF(H81="anno esterno","anno esterno",IF(H81+1<='2 Descrizione Progetto'!$D$22,H81+1,"anno esterno")) -> 5 | J81: =IF(I81="anno esterno","anno esterno",IF(I81+1<='2 Descrizione Progetto'!$D$22,I81+1,"anno esterno")) -> 6 | K81: =IF(J81="anno esterno","anno esterno",IF(J81+1<='2 Descrizione Progetto'!$D$22,J81+1,"anno esterno")) -> 7 | L81: =IF(K81="anno esterno","anno esterno",IF(K81+1<='2 Descrizione Progetto'!$D$22,K81+1,"anno esterno")) -> 8 | M81: =IF(L81="anno esterno","anno esterno",IF(L81+1<='2 Descrizione Progetto'!$D$22,L81+1,"anno esterno")) -> 9 | N81: =IF(M81="anno esterno","anno esterno",IF(M81+1<='2 Descrizione Progetto'!$D$22,M81+1,"anno esterno")) -> 10 | O81: =IF(N81="anno esterno","anno esterno",IF(N81+1<='2 Descrizione Progetto'!$D$22,N81+1,"anno esterno")) -> anno esterno | P81: =IF(O81="anno esterno","anno esterno",IF(O81+1<='2 Descrizione Progetto'!$D$22,O81+1,"anno esterno")) -> anno esterno | Q81: =IF(P81="anno esterno","anno esterno",IF(P81+1<='2 Descrizione Progetto'!$D$22,P81+1,"anno esterno")) -> anno esterno | R81: =IF(Q81="anno esterno","anno esterno",IF(Q81+1<='2 Descrizione Progetto'!$D$22,Q81+1,"anno esterno")) -> anno esterno | S81: =IF(R81="anno esterno","anno esterno",IF(R81+1<='2 Descrizione Progetto'!$D$22,R81+1,"anno esterno")) -> anno esterno | T81: =IF(S81="anno esterno","anno esterno",IF(S81+1<='2 Descrizione Progetto'!$D$22,S81+1,"anno esterno")) -> anno esterno | U81: =IF(T81="anno esterno","anno esterno",IF(T81+1<='2 Descrizione Progetto'!$D$22,T81+1,"anno esterno")) -> anno esterno | V81: =IF(U81="anno esterno","anno esterno",IF(U81+1<='2 Descrizione Progetto'!$D$22,U81+1,"anno esterno")) -> anno esterno | W81: =IF(V81="anno esterno","anno esterno",IF(V81+1<='2 Descrizione Progetto'!$D$22,V81+1,"anno esterno")) -> anno esterno | X81: =IF(W81="anno esterno","anno esterno",IF(W81+1<='2 Descrizione Progetto'!$D$22,W81+1,"anno esterno")) -> anno esterno | Y81: =IF(X81="anno esterno","anno esterno",IF(X81+1<='2 Descrizione Progetto'!$D$22,X81+1,"anno esterno")) -> anno esterno | Z81: =IF(Y81="anno esterno","anno esterno",IF(Y81+1<='2 Descrizione Progetto'!$D$22,Y81+1,"anno esterno")) -> anno esterno | AA81: =IF(Z81="anno esterno","anno esterno",IF(Z81+1<='2 Descrizione Progetto'!$D$22,Z81+1,"anno esterno")) -> anno esterno | AB81: =IF(AA81="anno esterno","anno esterno",IF(AA81+1<='2 Descrizione Progetto'!$D$22,AA81+1,"anno esterno")) -> anno esterno | AC81: =IF(AB81="anno esterno","anno esterno",IF(AB81+1<='2 Descrizione Progetto'!$D$22,AB81+1,"anno esterno")) -> anno esterno | AD81: =IF(AC81="anno esterno","anno esterno",IF(AC81+1<='2 Descrizione Progetto'!$D$22,AC81+1,"anno esterno")) -> anno esterno | AE81: =IF(AD81="anno esterno","anno esterno",IF(AD81+1<='2 Descrizione Progetto'!$D$22,AD81+1,"anno esterno")) -> anno esterno | AF81: =IF(AE81="anno esterno","anno esterno",IF(AE81+1<='2 Descrizione Progetto'!$D$22,AE81+1,"anno esterno")) -> anno esterno | AG81: =IF(AF81="anno esterno","anno esterno",IF(AF81+1<='2 Descrizione Progetto'!$D$22,AF81+1,"anno esterno")) -> anno esterno | AH81: =IF(AG81="anno esterno","anno esterno",IF(AG81+1<='2 Descrizione Progetto'!$D$22,AG81+1,"anno esterno")) -> anno esterno | AI81: =IF(AH81="anno esterno","anno esterno",IF(AH81+1<='2 Descrizione Progetto'!$D$22,AH81+1,"anno esterno")) -> anno esterno | AJ81: =IF(AI81="anno esterno","anno esterno",IF(AI81+1<='2 Descrizione Progetto'!$D$22,AI81+1,"anno esterno")) -> anno esterno | AK81: =IF(AJ81="anno esterno","anno esterno",IF(AJ81+1<='2 Descrizione Progetto'!$D$22,AJ81+1,"anno esterno")) -> anno esterno | AL81: =IF(AK81="anno esterno","anno esterno",IF(AK81+1<='2 Descrizione Progetto'!$D$22,AK81+1,"anno esterno")) -> anno esterno | AM81: =IF(AL81="anno esterno","anno esterno",IF(AL81+1<='2 Descrizione Progetto'!$D$22,AL81+1,"anno esterno")) -> anno esterno | AN81: =IF(AM81="anno esterno","anno esterno",IF(AM81+1<='2 Descrizione Progetto'!$D$22,AM81+1,"anno esterno")) -> anno esterno | AO81: =IF(AN81="anno esterno","anno esterno",IF(AN81+1<='2 Descrizione Progetto'!$D$22,AN81+1,"anno esterno")) -> anno esterno | AP81: =IF(AO81="anno esterno","anno esterno",IF(AO81+1<='2 Descrizione Progetto'!$D$22,AO81+1,"anno esterno")) -> anno esterno | AQ81: =IF(AP81="anno esterno","anno esterno",IF(AP81+1<='2 Descrizione Progetto'!$D$22,AP81+1,"anno esterno")) -> anno esterno | AR81: =IF(AQ81="anno esterno","anno esterno",IF(AQ81+1<='2 Descrizione Progetto'!$D$22,AQ81+1,"anno esterno")) -> anno esterno | AS81: =IF(AR81="anno esterno","anno esterno",IF(AR81+1<='2 Descrizione Progetto'!$D$22,AR81+1,"anno esterno")) -> anno esterno | AT81: =IF(AS81="anno esterno","anno esterno",IF(AS81+1<='2 Descrizione Progetto'!$D$22,AS81+1,"anno esterno")) -> anno esterno | AU81: =IF(AT81="anno esterno","anno esterno",IF(AT81+1<='2 Descrizione Progetto'!$D$22,AT81+1,"anno esterno")) -> anno esterno | AV81: =IF(AU81="anno esterno","anno esterno",IF(AU81+1<='2 Descrizione Progetto'!$D$22,AU81+1,"anno esterno")) -> anno esterno | AW81: =IF(AV81="anno esterno","anno esterno",IF(AV81+1<='2 Descrizione Progetto'!$D$22,AV81+1,"anno esterno")) -> anno esterno | AX81: =IF(AW81="anno esterno","anno esterno",IF(AW81+1<='2 Descrizione Progetto'!$D$22,AW81+1,"anno esterno")) -> anno esterno | AY81: =IF(AX81="anno esterno","anno esterno",IF(AX81+1<='2 Descrizione Progetto'!$D$22,AX81+1,"anno esterno")) -> anno esterno | AZ81: =IF(AY81="anno esterno","anno esterno",IF(AY81+1<='2 Descrizione Progetto'!$D$22,AY81+1,"anno esterno")) -> anno esterno | BA81: =IF(AZ81="anno esterno","anno esterno",IF(AZ81+1<='2 Descrizione Progetto'!$D$22,AZ81+1,"anno esterno")) -> anno esterno | BB81: =IF(BA81="anno esterno","anno esterno",IF(BA81+1<='2 Descrizione Progetto'!$D$22,BA81+1,"anno esterno")) -> anno esterno | BC81: =IF(BB81="anno esterno","anno esterno",IF(BB81+1<='2 Descrizione Progetto'!$D$22,BB81+1,"anno esterno")) -> anno esterno | BD81: =IF(BC81="anno esterno","anno esterno",IF(BC81+1<='2 Descrizione Progetto'!$D$22,BC81+1,"anno esterno")) -> anno esterno | BE81: =IF(BD81="anno esterno","anno esterno",IF(BD81+1<='2 Descrizione Progetto'!$D$22,BD81+1,"anno esterno")) -> anno esterno | BF81: =IF(BE81="anno esterno","anno esterno",IF(BE81+1<='2 Descrizione Progetto'!$D$22,BE81+1,"anno esterno")) -> anno esterno | BG81: =IF(BF81="anno esterno","anno esterno",IF(BF81+1<='2 Descrizione Progetto'!$D$22,BF81+1,"anno esterno")) -> anno esterno | BH81: =IF(BG81="anno esterno","anno esterno",IF(BG81+1<='2 Descrizione Progetto'!$D$22,BG81+1,"anno esterno")) -> anno esterno | BI81: =IF(BH81="anno esterno","anno esterno",IF(BH81+1<='2 Descrizione Progetto'!$D$22,BH81+1,"anno esterno")) -> anno esterno | BJ81: =IF(BI81="anno esterno","anno esterno",IF(BI81+1<='2 Descrizione Progetto'!$D$22,BI81+1,"anno esterno")) -> anno esterno | BK81: =IF(BJ81="anno esterno","anno esterno",IF(BJ81+1<='2 Descrizione Progetto'!$D$22,BJ81+1,"anno esterno")) -> anno esterno | BL81: =IF(BK81="anno esterno","anno esterno",IF(BK81+1<='2 Descrizione Progetto'!$D$22,BK81+1,"anno esterno")) -> anno esterno
C82: Domanda | D82: k-unità fisiche | E82: ='3 Costi-Ricavi'!D13 -> 0 | F82: ='3 Costi-Ricavi'!E13 -> 0 | G82: ='3 Costi-Ricavi'!F13 -> 0 | H82: ='3 Costi-Ricavi'!G13 -> 0 | I82: ='3 Costi-Ricavi'!H13 -> 0 | J82: ='3 Costi-Ricavi'!I13 -> 0 | K82: ='3 Costi-Ricavi'!J13 -> 0 | L82: ='3 Costi-Ricavi'!K13 -> 0 | M82: ='3 Costi-Ricavi'!L13 -> 0 | N82: ='3 Costi-Ricavi'!M13 -> 0 | O82: ='3 Costi-Ricavi'!N13 -> 0 | P82: ='3 Costi-Ricavi'!O13 -> 0 | Q82: ='3 Costi-Ricavi'!P13 -> 0 | R82: ='3 Costi-Ricavi'!Q13 -> 0 | S82: ='3 Costi-Ricavi'!R13 -> 0 | T82: ='3 Costi-Ricavi'!S13 -> 0 | U82: ='3 Costi-Ricavi'!T13 -> 0 | V82: ='3 Costi-Ricavi'!U13 -> 0 | W82: ='3 Costi-Ricavi'!V13 -> 0 | X82: ='3 Costi-Ricavi'!W13 -> 0 | Y82: ='3 Costi-Ricavi'!X13 -> 0 | Z82: ='3 Costi-Ricavi'!Y13 -> 0 | AA82: ='3 Costi-Ricavi'!Z13 -> 0 | AB82: ='3 Costi-Ricavi'!AA13 -> 0 | AC82: ='3 Costi-Ricavi'!AB13 -> 0 | AD82: ='3 Costi-Ricavi'!AC13 -> 0 | AE82: ='3 Costi-Ricavi'!AD13 -> 0 | AF82: ='3 Costi-Ricavi'!AE13 -> 0 | AG82: ='3 Costi-Ricavi'!AF13 -> 0 | AH82: ='3 Costi-Ricavi'!AG13 -> 0 | AI82: ='3 Costi-Ricavi'!AH13 -> 0 | AJ82: ='3 Costi-Ricavi'!AI13 -> 0 | AK82: ='3 Costi-Ricavi'!AJ13 -> 0 | AL82: ='3 Costi-Ricavi'!AK13 -> 0 | AM82: ='3 Costi-Ricavi'!AL13 -> 0 | AN82: ='3 Costi-Ricavi'!AM13 -> 0 | AO82: ='3 Costi-Ricavi'!AN13 -> 0 | AP82: ='3 Costi-Ricavi'!AO13 -> 0 | AQ82: ='3 Costi-Ricavi'!AP13 -> 0 | AR82: ='3 Costi-Ricavi'!AQ13 -> 0 | AS82: ='3 Costi-Ricavi'!AR13 -> 0 | AT82: ='3 Costi-Ricavi'!AS13 -> 0 | AU82: ='3 Costi-Ricavi'!AT13 -> 0 | AV82: ='3 Costi-Ricavi'!AU13 -> 0 | AW82: ='3 Costi-Ricavi'!AV13 -> 0 | AX82: ='3 Costi-Ricavi'!AW13 -> 0 | AY82: ='3 Costi-Ricavi'!AX13 -> 0 | AZ82: ='3 Costi-Ricavi'!AY13 -> 0 | BA82: ='3 Costi-Ricavi'!AZ13 -> 0 | BB82: ='3 Costi-Ricavi'!BA13 -> 0 | BC82: ='3 Costi-Ricavi'!BB13 -> 0 | BD82: ='3 Costi-Ricavi'!BC13 -> 0 | BE82: ='3 Costi-Ricavi'!BD13 -> 0 | BF82: ='3 Costi-Ricavi'!BE13 -> 0 | BG82: ='3 Costi-Ricavi'!BF13 -> 0 | BH82: ='3 Costi-Ricavi'!BG13 -> 0 | BI82: ='3 Costi-Ricavi'!BH13 -> 0 | BJ82: ='3 Costi-Ricavi'!BI13 -> 0 | BK82: ='3 Costi-Ricavi'!BJ13 -> 0 | BL82: ='3 Costi-Ricavi'!BK13 -> 0
C83: Tariffa unitaria | D83: euro/unità | E83: =F35 -> 1 | F83: =E83*(1+$G$35) -> 1.02 | G83: 1.0404 | H83: 1.061208 | I83: 1.08243216 | J83: 1.104080803 | K83: 1.126162419 | L83: 1.148685668 | M83: 1.171659381 | N83: 1.195092569 | O83: 1.21899442 | P83: 1.243374308 | Q83: 1.268241795 | R83: 1.29360663 | S83: 1.319478763 | T83: 1.345868338 | U83: 1.372785705 | V83: 1.400241419 | W83: 1.428246248 | X83: 1.456811173 | Y83: 1.485947396 | Z83: 1.515666344 | AA83: 1.545979671 | AB83: 1.576899264 | AC83: 1.608437249 | AD83: 1.640605994 | AE83: 1.673418114 | AF83: 1.706886477 | AG83: 1.741024206 | AH83: 1.77584469 | AI83: 1.811361584 | AJ83: 1.847588816 | AK83: 1.884540592 | AL83: 1.922231404 | AM83: 1.960676032 | AN83: 1.999889553 | AO83: 2.039887344 | AP83: 2.080685091 | AQ83: 2.122298792 | AR83: 2.164744768 | AS83: 2.208039664 | AT83: 2.252200457 | AU83: 2.297244466 | AV83: 2.343189355 | AW83: 2.390053142 | AX83: 2.437854205 | AY83: 2.486611289 | AZ83: 2.536343515 | BA83: 2.587070385 | BB83: 2.638811793 | BC83: 2.691588029 | BD83: 2.74541979 | BE83: 2.800328185 | BF83: 2.856334749 | BG83: 2.913461444 | BH83: 2.971730673 | BI83: 3.031165286 | BJ83: 3.091788592 | BK83: 3.153624364 | BL83: 3.216696851
C84: Ricavi | D84: euro | E84: =E82*E83 -> 0 | F84: 0 | G84: 0 | H84: 0 | I84: 0 | J84: 0 | K84: 0 | L84: 0 | M84: 0 | N84: 0 | O84: 0 | P84: 0 | Q84: 0 | R84: 0 | S84: 0 | T84: 0 | U84: 0 | V84: 0 | W84: 0 | X84: 0 | Y84: 0 | Z84: 0 | AA84: 0 | AB84: 0 | AC84: 0 | AD84: 0 | AE84: 0 | AF84: 0 | AG84: 0 | AH84: 0 | AI84: 0 | AJ84: 0 | AK84: 0 | AL84: 0 | AM84: 0 | AN84: 0 | AO84: 0 | AP84: 0 | AQ84: 0 | AR84: 0 | AS84: 0 | AT84: 0 | AU84: 0 | AV84: 0 | AW84: 0 | AX84: 0 | AY84: 0 | AZ84: 0 | BA84: 0 | BB84: 0 | BC84: 0 | BD84: 0 | BE84: 0 | BF84: 0 | BG84: 0 | BH84: 0 | BI84: 0 | BJ84: 0 | BK84: 0 | BL84: 0
C86: Ricavo 1 | E86: ='2 Descrizione Progetto'!$D$20 -> 1 | F86: =IF(E86="anno esterno","anno esterno",IF(E86+1<='2 Descrizione Progetto'!$D$22,E86+1,"anno esterno")) -> 2 | G86: =IF(F86="anno esterno","anno esterno",IF(F86+1<='2 Descrizione Progetto'!$D$22,F86+1,"anno esterno")) -> 3 | H86: =IF(G86="anno esterno","anno esterno",IF(G86+1<='2 Descrizione Progetto'!$D$22,G86+1,"anno esterno")) -> 4 | I86: =IF(H86="anno esterno","anno esterno",IF(H86+1<='2 Descrizione Progetto'!$D$22,H86+1,"anno esterno")) -> 5 | J86: =IF(I86="anno esterno","anno esterno",IF(I86+1<='2 Descrizione Progetto'!$D$22,I86+1,"anno esterno")) -> 6 | K86: =IF(J86="anno esterno","anno esterno",IF(J86+1<='2 Descrizione Progetto'!$D$22,J86+1,"anno esterno")) -> 7 | L86: =IF(K86="anno esterno","anno esterno",IF(K86+1<='2 Descrizione Progetto'!$D$22,K86+1,"anno esterno")) -> 8 | M86: =IF(L86="anno esterno","anno esterno",IF(L86+1<='2 Descrizione Progetto'!$D$22,L86+1,"anno esterno")) -> 9 | N86: =IF(M86="anno esterno","anno esterno",IF(M86+1<='2 Descrizione Progetto'!$D$22,M86+1,"anno esterno")) -> 10 | O86: =IF(N86="anno esterno","anno esterno",IF(N86+1<='2 Descrizione Progetto'!$D$22,N86+1,"anno esterno")) -> anno esterno | P86: =IF(O86="anno esterno","anno esterno",IF(O86+1<='2 Descrizione Progetto'!$D$22,O86+1,"anno esterno")) -> anno esterno | Q86: =IF(P86="anno esterno","anno esterno",IF(P86+1<='2 Descrizione Progetto'!$D$22,P86+1,"anno esterno")) -> anno esterno | R86: =IF(Q86="anno esterno","anno esterno",IF(Q86+1<='2 Descrizione Progetto'!$D$22,Q86+1,"anno esterno")) -> anno esterno | S86: =IF(R86="anno esterno","anno esterno",IF(R86+1<='2 Descrizione Progetto'!$D$22,R86+1,"anno esterno")) -> anno esterno | T86: =IF(S86="anno esterno","anno esterno",IF(S86+1<='2 Descrizione Progetto'!$D$22,S86+1,"anno esterno")) -> anno esterno | U86: =IF(T86="anno esterno","anno esterno",IF(T86+1<='2 Descrizione Progetto'!$D$22,T86+1,"anno esterno")) -> anno esterno | V86: =IF(U86="anno esterno","anno esterno",IF(U86+1<='2 Descrizione Progetto'!$D$22,U86+1,"anno esterno")) -> anno esterno | W86: =IF(V86="anno esterno","anno esterno",IF(V86+1<='2 Descrizione Progetto'!$D$22,V86+1,"anno esterno")) -> anno esterno | X86: =IF(W86="anno esterno","anno esterno",IF(W86+1<='2 Descrizione Progetto'!$D$22,W86+1,"anno esterno")) -> anno esterno | Y86: =IF(X86="anno esterno","anno esterno",IF(X86+1<='2 Descrizione Progetto'!$D$22,X86+1,"anno esterno")) -> anno esterno | Z86: =IF(Y86="anno esterno","anno esterno",IF(Y86+1<='2 Descrizione Progetto'!$D$22,Y86+1,"anno esterno")) -> anno esterno | AA86: =IF(Z86="anno esterno","anno esterno",IF(Z86+1<='2 Descrizione Progetto'!$D$22,Z86+1,"anno esterno")) -> anno esterno | AB86: =IF(AA86="anno esterno","anno esterno",IF(AA86+1<='2 Descrizione Progetto'!$D$22,AA86+1,"anno esterno")) -> anno esterno | AC86: =IF(AB86="anno esterno","anno esterno",IF(AB86+1<='2 Descrizione Progetto'!$D$22,AB86+1,"anno esterno")) -> anno esterno | AD86: =IF(AC86="anno esterno","anno esterno",IF(AC86+1<='2 Descrizione Progetto'!$D$22,AC86+1,"anno esterno")) -> anno esterno | AE86: =IF(AD86="anno esterno","anno esterno",IF(AD86+1<='2 Descrizione Progetto'!$D$22,AD86+1,"anno esterno")) -> anno esterno | AF86: =IF(AE86="anno esterno","anno esterno",IF(AE86+1<='2 Descrizione Progetto'!$D$22,AE86+1,"anno esterno")) -> anno esterno | AG86: =IF(AF86="anno esterno","anno esterno",IF(AF86+1<='2 Descrizione Progetto'!$D$22,AF86+1,"anno esterno")) -> anno esterno | AH86: =IF(AG86="anno esterno","anno esterno",IF(AG86+1<='2 Descrizione Progetto'!$D$22,AG86+1,"anno esterno")) -> anno esterno | AI86: =IF(AH86="anno esterno","anno esterno",IF(AH86+1<='2 Descrizione Progetto'!$D$22,AH86+1,"anno esterno")) -> anno esterno | AJ86: =IF(AI86="anno esterno","anno esterno",IF(AI86+1<='2 Descrizione Progetto'!$D$22,AI86+1,"anno esterno")) -> anno esterno | AK86: =IF(AJ86="anno esterno","anno esterno",IF(AJ86+1<='2 Descrizione Progetto'!$D$22,AJ86+1,"anno esterno")) -> anno esterno | AL86: =IF(AK86="anno esterno","anno esterno",IF(AK86+1<='2 Descrizione Progetto'!$D$22,AK86+1,"anno esterno")) -> anno esterno | AM86: =IF(AL86="anno esterno","anno esterno",IF(AL86+1<='2 Descrizione Progetto'!$D$22,AL86+1,"anno esterno")) -> anno esterno | AN86: =IF(AM86="anno esterno","anno esterno",IF(AM86+1<='2 Descrizione Progetto'!$D$22,AM86+1,"anno esterno")) -> anno esterno | AO86: =IF(AN86="anno esterno","anno esterno",IF(AN86+1<='2 Descrizione Progetto'!$D$22,AN86+1,"anno esterno")) -> anno esterno | AP86: =IF(AO86="anno esterno","anno esterno",IF(AO86+1<='2 Descrizione Progetto'!$D$22,AO86+1,"anno esterno")) -> anno esterno | AQ86: =IF(AP86="anno esterno","anno esterno",IF(AP86+1<='2 Descrizione Progetto'!$D$22,AP86+1,"anno esterno")) -> anno esterno | AR86: =IF(AQ86="anno esterno","anno esterno",IF(AQ86+1<='2 Descrizione Progetto'!$D$22,AQ86+1,"anno esterno")) -> anno esterno | AS86: =IF(AR86="anno esterno","anno esterno",IF(AR86+1<='2 Descrizione Progetto'!$D$22,AR86+1,"anno esterno")) -> anno esterno | AT86: =IF(AS86="anno esterno","anno esterno",IF(AS86+1<='2 Descrizione Progetto'!$D$22,AS86+1,"anno esterno")) -> anno esterno | AU86: =IF(AT86="anno esterno","anno esterno",IF(AT86+1<='2 Descrizione Progetto'!$D$22,AT86+1,"anno esterno")) -> anno esterno | AV86: =IF(AU86="anno esterno","anno esterno",IF(AU86+1<='2 Descrizione Progetto'!$D$22,AU86+1,"anno esterno")) -> anno esterno | AW86: =IF(AV86="anno esterno","anno esterno",IF(AV86+1<='2 Descrizione Progetto'!$D$22,AV86+1,"anno esterno")) -> anno esterno | AX86: =IF(AW86="anno esterno","anno esterno",IF(AW86+1<='2 Descrizione Progetto'!$D$22,AW86+1,"anno esterno")) -> anno esterno | AY86: =IF(AX86="anno esterno","anno esterno",IF(AX86+1<='2 Descrizione Progetto'!$D$22,AX86+1,"anno esterno")) -> anno esterno | AZ86: =IF(AY86="anno esterno","anno esterno",IF(AY86+1<='2 Descrizione Progetto'!$D$22,AY86+1,"anno esterno")) -> anno esterno | BA86: =IF(AZ86="anno esterno","anno esterno",IF(AZ86+1<='2 Descrizione Progetto'!$D$22,AZ86+1,"anno esterno")) -> anno esterno | BB86: =IF(BA86="anno esterno","anno esterno",IF(BA86+1<='2 Descrizione Progetto'!$D$22,BA86+1,"anno esterno")) -> anno esterno | BC86: =IF(BB86="anno esterno","anno esterno",IF(BB86+1<='2 Descrizione Progetto'!$D$22,BB86+1,"anno esterno")) -> anno esterno | BD86: =IF(BC86="anno esterno","anno esterno",IF(BC86+1<='2 Descrizione Progetto'!$D$22,BC86+1,"anno esterno")) -> anno esterno | BE86: =IF(BD86="anno esterno","anno esterno",IF(BD86+1<='2 Descrizione Progetto'!$D$22,BD86+1,"anno esterno")) -> anno esterno | BF86: =IF(BE86="anno esterno","anno esterno",IF(BE86+1<='2 Descrizione Progetto'!$D$22,BE86+1,"anno esterno")) -> anno esterno | BG86: =IF(BF86="anno esterno","anno esterno",IF(BF86+1<='2 Descrizione Progetto'!$D$22,BF86+1,"anno esterno")) -> anno esterno | BH86: =IF(BG86="anno esterno","anno esterno",IF(BG86+1<='2 Descrizione Progetto'!$D$22,BG86+1,"anno esterno")) -> anno esterno | BI86: =IF(BH86="anno esterno","anno esterno",IF(BH86+1<='2 Descrizione Progetto'!$D$22,BH86+1,"anno esterno")) -> anno esterno | BJ86: =IF(BI86="anno esterno","anno esterno",IF(BI86+1<='2 Descrizione Progetto'!$D$22,BI86+1,"anno esterno")) -> anno esterno | BK86: =IF(BJ86="anno esterno","anno esterno",IF(BJ86+1<='2 Descrizione Progetto'!$D$22,BJ86+1,"anno esterno")) -> anno esterno | BL86: =IF(BK86="anno esterno","anno esterno",IF(BK86+1<='2 Descrizione Progetto'!$D$22,BK86+1,"anno esterno")) -> anno esterno
C87: Domanda | D87: k-unità fisiche | E87: ='3 Costi-Ricavi'!D14 -> 0 | F87: ='3 Costi-Ricavi'!E14 -> 0 | G87: ='3 Costi-Ricavi'!F14 -> 0 | H87: ='3 Costi-Ricavi'!G14 -> 0 | I87: ='3 Costi-Ricavi'!H14 -> 0 | J87: ='3 Costi-Ricavi'!I14 -> 0 | K87: ='3 Costi-Ricavi'!J14 -> 0 | L87: ='3 Costi-Ricavi'!K14 -> 0 | M87: ='3 Costi-Ricavi'!L14 -> 0 | N87: ='3 Costi-Ricavi'!M14 -> 0 | O87: ='3 Costi-Ricavi'!N14 -> 0 | P87: ='3 Costi-Ricavi'!O14 -> 0 | Q87: ='3 Costi-Ricavi'!P14 -> 0 | R87: ='3 Costi-Ricavi'!Q14 -> 0 | S87: ='3 Costi-Ricavi'!R14 -> 0 | T87: ='3 Costi-Ricavi'!S14 -> 0 | U87: ='3 Costi-Ricavi'!T14 -> 0 | V87: ='3 Costi-Ricavi'!U14 -> 0 | W87: ='3 Costi-Ricavi'!V14 -> 0 | X87: ='3 Costi-Ricavi'!W14 -> 0 | Y87: ='3 Costi-Ricavi'!X14 -> 0 | Z87: ='3 Costi-Ricavi'!Y14 -> 0 | AA87: ='3 Costi-Ricavi'!Z14 -> 0 | AB87: ='3 Costi-Ricavi'!AA14 -> 0 | AC87: ='3 Costi-Ricavi'!AB14 -> 0 | AD87: ='3 Costi-Ricavi'!AC14 -> 0 | AE87: ='3 Costi-Ricavi'!AD14 -> 0 | AF87: ='3 Costi-Ricavi'!AE14 -> 0 | AG87: ='3 Costi-Ricavi'!AF14 -> 0 | AH87: ='3 Costi-Ricavi'!AG14 -> 0 | AI87: ='3 Costi-Ricavi'!AH14 -> 0 | AJ87: ='3 Costi-Ricavi'!AI14 -> 0 | AK87: ='3 Costi-Ricavi'!AJ14 -> 0 | AL87: ='3 Costi-Ricavi'!AK14 -> 0 | AM87: ='3 Costi-Ricavi'!AL14 -> 0 | AN87: ='3 Costi-Ricavi'!AM14 -> 0 | AO87: ='3 Costi-Ricavi'!AN14 -> 0 | AP87: ='3 Costi-Ricavi'!AO14 -> 0 | AQ87: ='3 Costi-Ricavi'!AP14 -> 0 | AR87: ='3 Costi-Ricavi'!AQ14 -> 0 | AS87: ='3 Costi-Ricavi'!AR14 -> 0 | AT87: ='3 Costi-Ricavi'!AS14 -> 0 | AU87: ='3 Costi-Ricavi'!AT14 -> 0 | AV87: ='3 Costi-Ricavi'!AU14 -> 0 | AW87: ='3 Costi-Ricavi'!AV14 -> 0 | AX87: ='3 Costi-Ricavi'!AW14 -> 0 | AY87: ='3 Costi-Ricavi'!AX14 -> 0 | AZ87: ='3 Costi-Ricavi'!AY14 -> 0 | BA87: ='3 Costi-Ricavi'!AZ14 -> 0 | BB87: ='3 Costi-Ricavi'!BA14 -> 0 | BC87: ='3 Costi-Ricavi'!BB14 -> 0 | BD87: ='3 Costi-Ricavi'!BC14 -> 0 | BE87: ='3 Costi-Ricavi'!BD14 -> 0 | BF87: ='3 Costi-Ricavi'!BE14 -> 0 | BG87: ='3 Costi-Ricavi'!BF14 -> 0 | BH87: ='3 Costi-Ricavi'!BG14 -> 0 | BI87: ='3 Costi-Ricavi'!BH14 -> 0 | BJ87: ='3 Costi-Ricavi'!BI14 -> 0 | BK87: ='3 Costi-Ricavi'!BJ14 -> 0 | BL87: ='3 Costi-Ricavi'!BK14 -> 0
C88: Tariffa unitaria | D88: euro/unità | E88: =F36 -> 1 | F88: =E88*(1+$G$36) -> 1.02 | G88: 1.0404 | H88: 1.061208 | I88: 1.08243216 | J88: 1.104080803 | K88: 1.126162419 | L88: 1.148685668 | M88: 1.171659381 | N88: 1.195092569 | O88: 1.21899442 | P88: 1.243374308 | Q88: 1.268241795 | R88: 1.29360663 | S88: 1.319478763 | T88: 1.345868338 | U88: 1.372785705 | V88: 1.400241419 | W88: 1.428246248 | X88: 1.456811173 | Y88: 1.485947396 | Z88: 1.515666344 | AA88: 1.545979671 | AB88: 1.576899264 | AC88: 1.608437249 | AD88: 1.640605994 | AE88: 1.673418114 | AF88: 1.706886477 | AG88: 1.741024206 | AH88: 1.77584469 | AI88: 1.811361584 | AJ88: 1.847588816 | AK88: 1.884540592 | AL88: 1.922231404 | AM88: 1.960676032 | AN88: 1.999889553 | AO88: 2.039887344 | AP88: 2.080685091 | AQ88: 2.122298792 | AR88: 2.164744768 | AS88: 2.208039664 | AT88: 2.252200457 | AU88: 2.297244466 | AV88: 2.343189355 | AW88: 2.390053142 | AX88: 2.437854205 | AY88: 2.486611289 | AZ88: 2.536343515 | BA88: 2.587070385 | BB88: 2.638811793 | BC88: 2.691588029 | BD88: 2.74541979 | BE88: 2.800328185 | BF88: 2.856334749 | BG88: 2.913461444 | BH88: 2.971730673 | BI88: 3.031165286 | BJ88: 3.091788592 | BK88: 3.153624364 | BL88: 3.216696851
C89: Ricavi | D89: euro | E89: =E87*E88 -> 0 | F89: 0 | G89: 0 | H89: 0 | I89: 0 | J89: 0 | K89: 0 | L89: 0 | M89: 0 | N89: 0 | O89: 0 | P89: 0 | Q89: 0 | R89: 0 | S89: 0 | T89: 0 | U89: 0 | V89: 0 | W89: 0 | X89: 0 | Y89: 0 | Z89: 0 | AA89: 0 | AB89: 0 | AC89: 0 | AD89: 0 | AE89: 0 | AF89: 0 | AG89: 0 | AH89: 0 | AI89: 0 | AJ89: 0 | AK89: 0 | AL89: 0 | AM89: 0 | AN89: 0 | AO89: 0 | AP89: 0 | AQ89: 0 | AR89: 0 | AS89: 0 | AT89: 0 | AU89: 0 | AV89: 0 | AW89: 0 | AX89: 0 | AY89: 0 | AZ89: 0 | BA89: 0 | BB89: 0 | BC89: 0 | BD89: 0 | BE89: 0 | BF89: 0 | BG89: 0 | BH89: 0 | BI89: 0 | BJ89: 0 | BK89: 0 | BL89: 0
C93: Voci Ricavo Anno per Anno | E93: =IF(COUNTIF(D96:BL145,"VERIFICA 2")>0,"VERIFICA 2: Domanda stimata per l'anno > Domanda da soddisfare","") -> VERIFICA 2: Domanda stimata per l'anno > Domanda da soddisfare
E94: =IF(COUNTIF(D96:BL145,"VERIFICA 3")>0,"VERIFICA 3: Domanda stimata per l'anno > Capacità massima del progetto","") -> VERIFICA 3: Domanda stimata per l'anno > Capacità massima del progetto
B96: 1 | C96: =IF(C9="","",C9) -> Ricavi Istituzionali | D96: ='2 Descrizione Progetto'!$D$20 -> 1 | E96: =IF(D96="anno esterno","anno esterno",IF(D96+1<='2 Descrizione Progetto'!$D$22,D96+1,"anno esterno")) -> 2 | F96: =IF(E96="anno esterno","anno esterno",IF(E96+1<='2 Descrizione Progetto'!$D$22,E96+1,"anno esterno")) -> 3 | G96: =IF(F96="anno esterno","anno esterno",IF(F96+1<='2 Descrizione Progetto'!$D$22,F96+1,"anno esterno")) -> 4 | H96: =IF(G96="anno esterno","anno esterno",IF(G96+1<='2 Descrizione Progetto'!$D$22,G96+1,"anno esterno")) -> 5 | I96: =IF(H96="anno esterno","anno esterno",IF(H96+1<='2 Descrizione Progetto'!$D$22,H96+1,"anno esterno")) -> 6 | J96: =IF(I96="anno esterno","anno esterno",IF(I96+1<='2 Descrizione Progetto'!$D$22,I96+1,"anno esterno")) -> 7 | K96: =IF(J96="anno esterno","anno esterno",IF(J96+1<='2 Descrizione Progetto'!$D$22,J96+1,"anno esterno")) -> 8 | L96: =IF(K96="anno esterno","anno esterno",IF(K96+1<='2 Descrizione Progetto'!$D$22,K96+1,"anno esterno")) -> 9 | M96: =IF(L96="anno esterno","anno esterno",IF(L96+1<='2 Descrizione Progetto'!$D$22,L96+1,"anno esterno")) -> 10 | N96: =IF(M96="anno esterno","anno esterno",IF(M96+1<='2 Descrizione Progetto'!$D$22,M96+1,"anno esterno")) -> anno esterno | O96: =IF(N96="anno esterno","anno esterno",IF(N96+1<='2 Descrizione Progetto'!$D$22,N96+1,"anno esterno")) -> anno esterno | P96: =IF(O96="anno esterno","anno esterno",IF(O96+1<='2 Descrizione Progetto'!$D$22,O96+1,"anno esterno")) -> anno esterno | Q96: =IF(P96="anno esterno","anno esterno",IF(P96+1<='2 Descrizione Progetto'!$D$22,P96+1,"anno esterno")) -> anno esterno | R96: =IF(Q96="anno esterno","anno esterno",IF(Q96+1<='2 Descrizione Progetto'!$D$22,Q96+1,"anno esterno")) -> anno esterno | S96: =IF(R96="anno esterno","anno esterno",IF(R96+1<='2 Descrizione Progetto'!$D$22,R96+1,"anno esterno")) -> anno esterno | T96: =IF(S96="anno esterno","anno esterno",IF(S96+1<='2 Descrizione Progetto'!$D$22,S96+1,"anno esterno")) -> anno esterno | U96: =IF(T96="anno esterno","anno esterno",IF(T96+1<='2 Descrizione Progetto'!$D$22,T96+1,"anno esterno")) -> anno esterno | V96: =IF(U96="anno esterno","anno esterno",IF(U96+1<='2 Descrizione Progetto'!$D$22,U96+1,"anno esterno")) -> anno esterno | W96: =IF(V96="anno esterno","anno esterno",IF(V96+1<='2 Descrizione Progetto'!$D$22,V96+1,"anno esterno")) -> anno esterno | X96: =IF(W96="anno esterno","anno esterno",IF(W96+1<='2 Descrizione Progetto'!$D$22,W96+1,"anno esterno")) -> anno esterno | Y96: =IF(X96="anno esterno","anno esterno",IF(X96+1<='2 Descrizione Progetto'!$D$22,X96+1,"anno esterno")) -> anno esterno | Z96: =IF(Y96="anno esterno","anno esterno",IF(Y96+1<='2 Descrizione Progetto'!$D$22,Y96+1,"anno esterno")) -> anno esterno | AA96: =IF(Z96="anno esterno","anno esterno",IF(Z96+1<='2 Descrizione Progetto'!$D$22,Z96+1,"anno esterno")) -> anno esterno | AB96: =IF(AA96="anno esterno","anno esterno",IF(AA96+1<='2 Descrizione Progetto'!$D$22,AA96+1,"anno esterno")) -> anno esterno | AC96: =IF(AB96="anno esterno","anno esterno",IF(AB96+1<='2 Descrizione Progetto'!$D$22,AB96+1,"anno esterno")) -> anno esterno | AD96: =IF(AC96="anno esterno","anno esterno",IF(AC96+1<='2 Descrizione Progetto'!$D$22,AC96+1,"anno esterno")) -> anno esterno | AE96: =IF(AD96="anno esterno","anno esterno",IF(AD96+1<='2 Descrizione Progetto'!$D$22,AD96+1,"anno esterno")) -> anno esterno | AF96: =IF(AE96="anno esterno","anno esterno",IF(AE96+1<='2 Descrizione Progetto'!$D$22,AE96+1,"anno esterno")) -> anno esterno | AG96: =IF(AF96="anno esterno","anno esterno",IF(AF96+1<='2 Descrizione Progetto'!$D$22,AF96+1,"anno esterno")) -> anno esterno | AH96: =IF(AG96="anno esterno","anno esterno",IF(AG96+1<='2 Descrizione Progetto'!$D$22,AG96+1,"anno esterno")) -> anno esterno | AI96: =IF(AH96="anno esterno","anno esterno",IF(AH96+1<='2 Descrizione Progetto'!$D$22,AH96+1,"anno esterno")) -> anno esterno | AJ96: =IF(AI96="anno esterno","anno esterno",IF(AI96+1<='2 Descrizione Progetto'!$D$22,AI96+1,"anno esterno")) -> anno esterno | AK96: =IF(AJ96="anno esterno","anno esterno",IF(AJ96+1<='2 Descrizione Progetto'!$D$22,AJ96+1,"anno esterno")) -> anno esterno | AL96: =IF(AK96="anno esterno","anno esterno",IF(AK96+1<='2 Descrizione Progetto'!$D$22,AK96+1,"anno esterno")) -> anno esterno | AM96: =IF(AL96="anno esterno","anno esterno",IF(AL96+1<='2 Descrizione Progetto'!$D$22,AL96+1,"anno esterno")) -> anno esterno | AN96: =IF(AM96="anno esterno","anno esterno",IF(AM96+1<='2 Descrizione Progetto'!$D$22,AM96+1,"anno esterno")) -> anno esterno | AO96: =IF(AN96="anno esterno","anno esterno",IF(AN96+1<='2 Descrizione Progetto'!$D$22,AN96+1,"anno esterno")) -> anno esterno | AP96: =IF(AO96="anno esterno","anno esterno",IF(AO96+1<='2 Descrizione Progetto'!$D$22,AO96+1,"anno esterno")) -> anno esterno | AQ96: =IF(AP96="anno esterno","anno esterno",IF(AP96+1<='2 Descrizione Progetto'!$D$22,AP96+1,"anno esterno")) -> anno esterno | AR96: =IF(AQ96="anno esterno","anno esterno",IF(AQ96+1<='2 Descrizione Progetto'!$D$22,AQ96+1,"anno esterno")) -> anno esterno | AS96: =IF(AR96="anno esterno","anno esterno",IF(AR96+1<='2 Descrizione Progetto'!$D$22,AR96+1,"anno esterno")) -> anno esterno | AT96: =IF(AS96="anno esterno","anno esterno",IF(AS96+1<='2 Descrizione Progetto'!$D$22,AS96+1,"anno esterno")) -> anno esterno | AU96: =IF(AT96="anno esterno","anno esterno",IF(AT96+1<='2 Descrizione Progetto'!$D$22,AT96+1,"anno esterno")) -> anno esterno | AV96: =IF(AU96="anno esterno","anno esterno",IF(AU96+1<='2 Descrizione Progetto'!$D$22,AU96+1,"anno esterno")) -> anno esterno | AW96: =IF(AV96="anno esterno","anno esterno",IF(AV96+1<='2 Descrizione Progetto'!$D$22,AV96+1,"anno esterno")) -> anno esterno | AX96: =IF(AW96="anno esterno","anno esterno",IF(AW96+1<='2 Descrizione Progetto'!$D$22,AW96+1,"anno esterno")) -> anno esterno | AY96: =IF(AX96="anno esterno","anno esterno",IF(AX96+1<='2 Descrizione Progetto'!$D$22,AX96+1,"anno esterno")) -> anno esterno | AZ96: =IF(AY96="anno esterno","anno esterno",IF(AY96+1<='2 Descrizione Progetto'!$D$22,AY96+1,"anno esterno")) -> anno esterno | BA96: =IF(AZ96="anno esterno","anno esterno",IF(AZ96+1<='2 Descrizione Progetto'!$D$22,AZ96+1,"anno esterno")) -> anno esterno | BB96: =IF(BA96="anno esterno","anno esterno",IF(BA96+1<='2 Descrizione Progetto'!$D$22,BA96+1,"anno esterno")) -> anno esterno | BC96: =IF(BB96="anno esterno","anno esterno",IF(BB96+1<='2 Descrizione Progetto'!$D$22,BB96+1,"anno esterno")) -> anno esterno | BD96: =IF(BC96="anno esterno","anno esterno",IF(BC96+1<='2 Descrizione Progetto'!$D$22,BC96+1,"anno esterno")) -> anno esterno | BE96: =IF(BD96="anno esterno","anno esterno",IF(BD96+1<='2 Descrizione Progetto'!$D$22,BD96+1,"anno esterno")) -> anno esterno | BF96: =IF(BE96="anno esterno","anno esterno",IF(BE96+1<='2 Descrizione Progetto'!$D$22,BE96+1,"anno esterno")) -> anno esterno | BG96: =IF(BF96="anno esterno","anno esterno",IF(BF96+1<='2 Descrizione Progetto'!$D$22,BF96+1,"anno esterno")) -> anno esterno | BH96: =IF(BG96="anno esterno","anno esterno",IF(BG96+1<='2 Descrizione Progetto'!$D$22,BG96+1,"anno esterno")) -> anno esterno | BI96: =IF(BH96="anno esterno","anno esterno",IF(BH96+1<='2 Descrizione Progetto'!$D$22,BH96+1,"anno esterno")) -> anno esterno | BJ96: =IF(BI96="anno esterno","anno esterno",IF(BI96+1<='2 Descrizione Progetto'!$D$22,BI96+1,"anno esterno")) -> anno esterno | BK96: =IF(BJ96="anno esterno","anno esterno",IF(BJ96+1<='2 Descrizione Progetto'!$D$22,BJ96+1,"anno esterno")) -> anno esterno | BL96: =IF(BK96="anno esterno","anno esterno",IF(BK96+1<='2 Descrizione Progetto'!$D$22,BK96+1,"anno esterno")) -> anno esterno
C97: Domanda (unità)
C98: Tariffa unitaria (euro)
C99: Ricavi (euro) | D99: =D97*D98 -> 0 | E99: 0 | F99: 0 | G99: 0 | H99: 0 | I99: 0 | J99: 0 | K99: 0 | L99: 0 | M99: 0 | N99: 0 | O99: 0 | P99: 0 | Q99: 0 | R99: 0 | S99: 0 | T99: 0 | U99: 0 | V99: 0 | W99: 0 | X99: 0 | Y99: 0 | Z99: 0 | AA99: 0 | AB99: 0 | AC99: 0 | AD99: 0 | AE99: 0 | AF99: 0 | AG99: 0 | AH99: 0 | AI99: 0 | AJ99: 0 | AK99: 0 | AL99: 0 | AM99: 0 | AN99: 0 | AO99: 0 | AP99: 0 | AQ99: 0 | AR99: 0 | AS99: 0 | AT99: 0 | AU99: 0 | AV99: 0 | AW99: 0 | AX99: 0 | AY99: 0 | AZ99: 0 | BA99: 0 | BB99: 0 | BC99: 0 | BD99: 0 | BE99: 0 | BF99: 0 | BG99: 0 | BH99: 0 | BI99: 0 | BJ99: 0 | BK99: 0 | BL99: 0
C100: CHECK 2 e 3 | D100: =IF(D97="","",IF(D97>($L$10-$K$10),"VERIFICA 2",IF(D97<$M$10,"OK","VERIFICA 3"))) -> 
B101: 2 | C101: =IF(C10="","",C10) -> Ricavi Commerciali | D101: ='2 Descrizione Progetto'!$D$20 -> 1 | E101: =IF(D101="anno esterno","anno esterno",IF(D101+1<='2 Descrizione Progetto'!$D$22,D101+1,"anno esterno")) -> 2 | F101: =IF(E101="anno esterno","anno esterno",IF(E101+1<='2 Descrizione Progetto'!$D$22,E101+1,"anno esterno")) -> 3 | G101: =IF(F101="anno esterno","anno esterno",IF(F101+1<='2 Descrizione Progetto'!$D$22,F101+1,"anno esterno")) -> 4 | H101: =IF(G101="anno esterno","anno esterno",IF(G101+1<='2 Descrizione Progetto'!$D$22,G101+1,"anno esterno")) -> 5 | I101: =IF(H101="anno esterno","anno esterno",IF(H101+1<='2 Descrizione Progetto'!$D$22,H101+1,"anno esterno")) -> 6 | J101: =IF(I101="anno esterno","anno esterno",IF(I101+1<='2 Descrizione Progetto'!$D$22,I101+1,"anno esterno")) -> 7 | K101: =IF(J101="anno esterno","anno esterno",IF(J101+1<='2 Descrizione Progetto'!$D$22,J101+1,"anno esterno")) -> 8 | L101: =IF(K101="anno esterno","anno esterno",IF(K101+1<='2 Descrizione Progetto'!$D$22,K101+1,"anno esterno")) -> 9 | M101: =IF(L101="anno esterno","anno esterno",IF(L101+1<='2 Descrizione Progetto'!$D$22,L101+1,"anno esterno")) -> 10 | N101: =IF(M101="anno esterno","anno esterno",IF(M101+1<='2 Descrizione Progetto'!$D$22,M101+1,"anno esterno")) -> anno esterno | O101: =IF(N101="anno esterno","anno esterno",IF(N101+1<='2 Descrizione Progetto'!$D$22,N101+1,"anno esterno")) -> anno esterno | P101: =IF(O101="anno esterno","anno esterno",IF(O101+1<='2 Descrizione Progetto'!$D$22,O101+1,"anno esterno")) -> anno esterno | Q101: =IF(P101="anno esterno","anno esterno",IF(P101+1<='2 Descrizione Progetto'!$D$22,P101+1,"anno esterno")) -> anno esterno | R101: =IF(Q101="anno esterno","anno esterno",IF(Q101+1<='2 Descrizione Progetto'!$D$22,Q101+1,"anno esterno")) -> anno esterno | S101: =IF(R101="anno esterno","anno esterno",IF(R101+1<='2 Descrizione Progetto'!$D$22,R101+1,"anno esterno")) -> anno esterno | T101: =IF(S101="anno esterno","anno esterno",IF(S101+1<='2 Descrizione Progetto'!$D$22,S101+1,"anno esterno")) -> anno esterno | U101: =IF(T101="anno esterno","anno esterno",IF(T101+1<='2 Descrizione Progetto'!$D$22,T101+1,"anno esterno")) -> anno esterno | V101: =IF(U101="anno esterno","anno esterno",IF(U101+1<='2 Descrizione Progetto'!$D$22,U101+1,"anno esterno")) -> anno esterno | W101: =IF(V101="anno esterno","anno esterno",IF(V101+1<='2 Descrizione Progetto'!$D$22,V101+1,"anno esterno")) -> anno esterno | X101: =IF(W101="anno esterno","anno esterno",IF(W101+1<='2 Descrizione Progetto'!$D$22,W101+1,"anno esterno")) -> anno esterno | Y101: =IF(X101="anno esterno","anno esterno",IF(X101+1<='2 Descrizione Progetto'!$D$22,X101+1,"anno esterno")) -> anno esterno | Z101: =IF(Y101="anno esterno","anno esterno",IF(Y101+1<='2 Descrizione Progetto'!$D$22,Y101+1,"anno esterno")) -> anno esterno | AA101: =IF(Z101="anno esterno","anno esterno",IF(Z101+1<='2 Descrizione Progetto'!$D$22,Z101+1,"anno esterno")) -> anno esterno | AB101: =IF(AA101="anno esterno","anno esterno",IF(AA101+1<='2 Descrizione Progetto'!$D$22,AA101+1,"anno esterno")) -> anno esterno | AC101: =IF(AB101="anno esterno","anno esterno",IF(AB101+1<='2 Descrizione Progetto'!$D$22,AB101+1,"anno esterno")) -> anno esterno | AD101: =IF(AC101="anno esterno","anno esterno",IF(AC101+1<='2 Descrizione Progetto'!$D$22,AC101+1,"anno esterno")) -> anno esterno | AE101: =IF(AD101="anno esterno","anno esterno",IF(AD101+1<='2 Descrizione Progetto'!$D$22,AD101+1,"anno esterno")) -> anno esterno | AF101: =IF(AE101="anno esterno","anno esterno",IF(AE101+1<='2 Descrizione Progetto'!$D$22,AE101+1,"anno esterno")) -> anno esterno | AG101: =IF(AF101="anno esterno","anno esterno",IF(AF101+1<='2 Descrizione Progetto'!$D$22,AF101+1,"anno esterno")) -> anno esterno | AH101: =IF(AG101="anno esterno","anno esterno",IF(AG101+1<='2 Descrizione Progetto'!$D$22,AG101+1,"anno esterno")) -> anno esterno | AI101: =IF(AH101="anno esterno","anno esterno",IF(AH101+1<='2 Descrizione Progetto'!$D$22,AH101+1,"anno esterno")) -> anno esterno | AJ101: =IF(AI101="anno esterno","anno esterno",IF(AI101+1<='2 Descrizione Progetto'!$D$22,AI101+1,"anno esterno")) -> anno esterno | AK101: =IF(AJ101="anno esterno","anno esterno",IF(AJ101+1<='2 Descrizione Progetto'!$D$22,AJ101+1,"anno esterno")) -> anno esterno | AL101: =IF(AK101="anno esterno","anno esterno",IF(AK101+1<='2 Descrizione Progetto'!$D$22,AK101+1,"anno esterno")) -> anno esterno | AM101: =IF(AL101="anno esterno","anno esterno",IF(AL101+1<='2 Descrizione Progetto'!$D$22,AL101+1,"anno esterno")) -> anno esterno | AN101: =IF(AM101="anno esterno","anno esterno",IF(AM101+1<='2 Descrizione Progetto'!$D$22,AM101+1,"anno esterno")) -> anno esterno | AO101: =IF(AN101="anno esterno","anno esterno",IF(AN101+1<='2 Descrizione Progetto'!$D$22,AN101+1,"anno esterno")) -> anno esterno | AP101: =IF(AO101="anno esterno","anno esterno",IF(AO101+1<='2 Descrizione Progetto'!$D$22,AO101+1,"anno esterno")) -> anno esterno | AQ101: =IF(AP101="anno esterno","anno esterno",IF(AP101+1<='2 Descrizione Progetto'!$D$22,AP101+1,"anno esterno")) -> anno esterno | AR101: =IF(AQ101="anno esterno","anno esterno",IF(AQ101+1<='2 Descrizione Progetto'!$D$22,AQ101+1,"anno esterno")) -> anno esterno | AS101: =IF(AR101="anno esterno","anno esterno",IF(AR101+1<='2 Descrizione Progetto'!$D$22,AR101+1,"anno esterno")) -> anno esterno | AT101: =IF(AS101="anno esterno","anno esterno",IF(AS101+1<='2 Descrizione Progetto'!$D$22,AS101+1,"anno esterno")) -> anno esterno | AU101: =IF(AT101="anno esterno","anno esterno",IF(AT101+1<='2 Descrizione Progetto'!$D$22,AT101+1,"anno esterno")) -> anno esterno | AV101: =IF(AU101="anno esterno","anno esterno",IF(AU101+1<='2 Descrizione Progetto'!$D$22,AU101+1,"anno esterno")) -> anno esterno | AW101: =IF(AV101="anno esterno","anno esterno",IF(AV101+1<='2 Descrizione Progetto'!$D$22,AV101+1,"anno esterno")) -> anno esterno | AX101: =IF(AW101="anno esterno","anno esterno",IF(AW101+1<='2 Descrizione Progetto'!$D$22,AW101+1,"anno esterno")) -> anno esterno | AY101: =IF(AX101="anno esterno","anno esterno",IF(AX101+1<='2 Descrizione Progetto'!$D$22,AX101+1,"anno esterno")) -> anno esterno | AZ101: =IF(AY101="anno esterno","anno esterno",IF(AY101+1<='2 Descrizione Progetto'!$D$22,AY101+1,"anno esterno")) -> anno esterno | BA101: =IF(AZ101="anno esterno","anno esterno",IF(AZ101+1<='2 Descrizione Progetto'!$D$22,AZ101+1,"anno esterno")) -> anno esterno | BB101: =IF(BA101="anno esterno","anno esterno",IF(BA101+1<='2 Descrizione Progetto'!$D$22,BA101+1,"anno esterno")) -> anno esterno | BC101: =IF(BB101="anno esterno","anno esterno",IF(BB101+1<='2 Descrizione Progetto'!$D$22,BB101+1,"anno esterno")) -> anno esterno | BD101: =IF(BC101="anno esterno","anno esterno",IF(BC101+1<='2 Descrizione Progetto'!$D$22,BC101+1,"anno esterno")) -> anno esterno | BE101: =IF(BD101="anno esterno","anno esterno",IF(BD101+1<='2 Descrizione Progetto'!$D$22,BD101+1,"anno esterno")) -> anno esterno | BF101: =IF(BE101="anno esterno","anno esterno",IF(BE101+1<='2 Descrizione Progetto'!$D$22,BE101+1,"anno esterno")) -> anno esterno | BG101: =IF(BF101="anno esterno","anno esterno",IF(BF101+1<='2 Descrizione Progetto'!$D$22,BF101+1,"anno esterno")) -> anno esterno | BH101: =IF(BG101="anno esterno","anno esterno",IF(BG101+1<='2 Descrizione Progetto'!$D$22,BG101+1,"anno esterno")) -> anno esterno | BI101: =IF(BH101="anno esterno","anno esterno",IF(BH101+1<='2 Descrizione Progetto'!$D$22,BH101+1,"anno esterno")) -> anno esterno | BJ101: =IF(BI101="anno esterno","anno esterno",IF(BI101+1<='2 Descrizione Progetto'!$D$22,BI101+1,"anno esterno")) -> anno esterno | BK101: =IF(BJ101="anno esterno","anno esterno",IF(BJ101+1<='2 Descrizione Progetto'!$D$22,BJ101+1,"anno esterno")) -> anno esterno | BL101: =IF(BK101="anno esterno","anno esterno",IF(BK101+1<='2 Descrizione Progetto'!$D$22,BK101+1,"anno esterno")) -> anno esterno
C102: Domanda (unità) | D102: 0 | E102: 0 | F102: 0 | G102: 0 | H102: 0 | I102: 0 | J102: 0 | K102: 0 | L102: 0 | M102: 19500 | N102: 20000 | O102: 20500 | P102: 21000 | Q102: 21500 | R102: 22000 | S102: 22500 | T102: 23000 | U102: 23500 | V102: 24000 | W102: 24500 | X102: 25000 | Y102: 25500 | Z102: 26000 | AA102: 26500 | AB102: 27000
C103: Tariffa unitaria (euro) | D103: 0 | E103: 0 | F103: 0 | G103: 0 | H103: 0 | I103: 0 | J103: 0 | K103: 0 | L103: 0 | M103: 15 | N103: 15 | O103: 15 | P103: 15 | Q103: 15 | R103: 15 | S103: 15 | T103: 15 | U103: 15 | V103: 15 | W103: 15 | X103: 15 | Y103: 15 | Z103: 15 | AA103: 15 | AB103: 15
C104: Ricavi (euro) | D104: =D102*D103 -> 0 | E104: 0 | F104: 0 | G104: 0 | H104: 0 | I104: 0 | J104: 0 | K104: 0 | L104: 0 | M104: 292500 | N104: 300000 | O104: 307500 | P104: 315000 | Q104: 322500 | R104: 330000 | S104: 337500 | T104: 345000 | U104: 352500 | V104: 360000 | W104: 367500 | X104: 375000 | Y104: 382500 | Z104: 390000 | AA104: 397500 | AB104: 405000 | AC104: 0 | AD104: 0 | AE104: 0 | AF104: 0 | AG104: 0 | AH104: 0 | AI104: 0 | AJ104: 0 | AK104: 0 | AL104: 0 | AM104: 0 | AN104: 0 | AO104: 0 | AP104: 0 | AQ104: 0 | AR104: 0 | AS104: 0 | AT104: 0 | AU104: 0 | AV104: 0 | AW104: 0 | AX104: 0 | AY104: 0 | AZ104: 0 | BA104: 0 | BB104: 0 | BC104: 0 | BD104: 0 | BE104: 0 | BF104: 0 | BG104: 0 | BH104: 0 | BI104: 0 | BJ104: 0 | BK104: 0 | BL104: 0
C105: CHECK 2 e 3 | D105: =IF(D102="","",IF(D102>($L$10-$K$10),"VERIFICA 2",IF(D102<$M$10,"OK","VERIFICA 3"))) -> OK | E105: OK | F105: OK | G105: OK | H105: OK | I105: OK | J105: OK | K105: OK | L105: OK | M105: OK | N105: OK | O105: OK | P105: OK | Q105: OK | R105: OK | S105: OK | T105: OK | U105: OK | V105: VERIFICA 3 | W105: VERIFICA 3 | X105: VERIFICA 3 | Y105: VERIFICA 2 | Z105: VERIFICA 2 | AA105: VERIFICA 2 | AB105: VERIFICA 2
B106: 3 | C106: =IF(C11="","",C11) -> Ricavi Bar | D106: ='2 Descrizione Progetto'!$D$20 -> 1 | E106: =IF(D106="anno esterno","anno esterno",IF(D106+1<='2 Descrizione Progetto'!$D$22,D106+1,"anno esterno")) -> 2 | F106: =IF(E106="anno esterno","anno esterno",IF(E106+1<='2 Descrizione Progetto'!$D$22,E106+1,"anno esterno")) -> 3 | G106: =IF(F106="anno esterno","anno esterno",IF(F106+1<='2 Descrizione Progetto'!$D$22,F106+1,"anno esterno")) -> 4 | H106: =IF(G106="anno esterno","anno esterno",IF(G106+1<='2 Descrizione Progetto'!$D$22,G106+1,"anno esterno")) -> 5 | I106: =IF(H106="anno esterno","anno esterno",IF(H106+1<='2 Descrizione Progetto'!$D$22,H106+1,"anno esterno")) -> 6 | J106: =IF(I106="anno esterno","anno esterno",IF(I106+1<='2 Descrizione Progetto'!$D$22,I106+1,"anno esterno")) -> 7 | K106: =IF(J106="anno esterno","anno esterno",IF(J106+1<='2 Descrizione Progetto'!$D$22,J106+1,"anno esterno")) -> 8 | L106: =IF(K106="anno esterno","anno esterno",IF(K106+1<='2 Descrizione Progetto'!$D$22,K106+1,"anno esterno")) -> 9 | M106: =IF(L106="anno esterno","anno esterno",IF(L106+1<='2 Descrizione Progetto'!$D$22,L106+1,"anno esterno")) -> 10 | N106: =IF(M106="anno esterno","anno esterno",IF(M106+1<='2 Descrizione Progetto'!$D$22,M106+1,"anno esterno")) -> anno esterno | O106: =IF(N106="anno esterno","anno esterno",IF(N106+1<='2 Descrizione Progetto'!$D$22,N106+1,"anno esterno")) -> anno esterno | P106: =IF(O106="anno esterno","anno esterno",IF(O106+1<='2 Descrizione Progetto'!$D$22,O106+1,"anno esterno")) -> anno esterno | Q106: =IF(P106="anno esterno","anno esterno",IF(P106+1<='2 Descrizione Progetto'!$D$22,P106+1,"anno esterno")) -> anno esterno | R106: =IF(Q106="anno esterno","anno esterno",IF(Q106+1<='2 Descrizione Progetto'!$D$22,Q106+1,"anno esterno")) -> anno esterno | S106: =IF(R106="anno esterno","anno esterno",IF(R106+1<='2 Descrizione Progetto'!$D$22,R106+1,"anno esterno")) -> anno esterno | T106: =IF(S106="anno esterno","anno esterno",IF(S106+1<='2 Descrizione Progetto'!$D$22,S106+1,"anno esterno")) -> anno esterno | U106: =IF(T106="anno esterno","anno esterno",IF(T106+1<='2 Descrizione Progetto'!$D$22,T106+1,"anno esterno")) -> anno esterno | V106: =IF(U106="anno esterno","anno esterno",IF(U106+1<='2 Descrizione Progetto'!$D$22,U106+1,"anno esterno")) -> anno esterno | W106: =IF(V106="anno esterno","anno esterno",IF(V106+1<='2 Descrizione Progetto'!$D$22,V106+1,"anno esterno")) -> anno esterno | X106: =IF(W106="anno esterno","anno esterno",IF(W106+1<='2 Descrizione Progetto'!$D$22,W106+1,"anno esterno")) -> anno esterno | Y106: =IF(X106="anno esterno","anno esterno",IF(X106+1<='2 Descrizione Progetto'!$D$22,X106+1,"anno esterno")) -> anno esterno | Z106: =IF(Y106="anno esterno","anno esterno",IF(Y106+1<='2 Descrizione Progetto'!$D$22,Y106+1,"anno esterno")) -> anno esterno | AA106: =IF(Z106="anno esterno","anno esterno",IF(Z106+1<='2 Descrizione Progetto'!$D$22,Z106+1,"anno esterno")) -> anno esterno | AB106: =IF(AA106="anno esterno","anno esterno",IF(AA106+1<='2 Descrizione Progetto'!$D$22,AA106+1,"anno esterno")) -> anno esterno | AC106: =IF(AB106="anno esterno","anno esterno",IF(AB106+1<='2 Descrizione Progetto'!$D$22,AB106+1,"anno esterno")) -> anno esterno | AD106: =IF(AC106="anno esterno","anno esterno",IF(AC106+1<='2 Descrizione Progetto'!$D$22,AC106+1,"anno esterno")) -> anno esterno | AE106: =IF(AD106="anno esterno","anno esterno",IF(AD106+1<='2 Descrizione Progetto'!$D$22,AD106+1,"anno esterno")) -> anno esterno | AF106: =IF(AE106="anno esterno","anno esterno",IF(AE106+1<='2 Descrizione Progetto'!$D$22,AE106+1,"anno esterno")) -> anno esterno | AG106: =IF(AF106="anno esterno","anno esterno",IF(AF106+1<='2 Descrizione Progetto'!$D$22,AF106+1,"anno esterno")) -> anno esterno | AH106: =IF(AG106="anno esterno","anno esterno",IF(AG106+1<='2 Descrizione Progetto'!$D$22,AG106+1,"anno esterno")) -> anno esterno | AI106: =IF(AH106="anno esterno","anno esterno",IF(AH106+1<='2 Descrizione Progetto'!$D$22,AH106+1,"anno esterno")) -> anno esterno | AJ106: =IF(AI106="anno esterno","anno esterno",IF(AI106+1<='2 Descrizione Progetto'!$D$22,AI106+1,"anno esterno")) -> anno esterno | AK106: =IF(AJ106="anno esterno","anno esterno",IF(AJ106+1<='2 Descrizione Progetto'!$D$22,AJ106+1,"anno esterno")) -> anno esterno | AL106: =IF(AK106="anno esterno","anno esterno",IF(AK106+1<='2 Descrizione Progetto'!$D$22,AK106+1,"anno esterno")) -> anno esterno | AM106: =IF(AL106="anno esterno","anno esterno",IF(AL106+1<='2 Descrizione Progetto'!$D$22,AL106+1,"anno esterno")) -> anno esterno | AN106: =IF(AM106="anno esterno","anno esterno",IF(AM106+1<='2 Descrizione Progetto'!$D$22,AM106+1,"anno esterno")) -> anno esterno | AO106: =IF(AN106="anno esterno","anno esterno",IF(AN106+1<='2 Descrizione Progetto'!$D$22,AN106+1,"anno esterno")) -> anno esterno | AP106: =IF(AO106="anno esterno","anno esterno",IF(AO106+1<='2 Descrizione Progetto'!$D$22,AO106+1,"anno esterno")) -> anno esterno | AQ106: =IF(AP106="anno esterno","anno esterno",IF(AP106+1<='2 Descrizione Progetto'!$D$22,AP106+1,"anno esterno")) -> anno esterno | AR106: =IF(AQ106="anno esterno","anno esterno",IF(AQ106+1<='2 Descrizione Progetto'!$D$22,AQ106+1,"anno esterno")) -> anno esterno | AS106: =IF(AR106="anno esterno","anno esterno",IF(AR106+1<='2 Descrizione Progetto'!$D$22,AR106+1,"anno esterno")) -> anno esterno | AT106: =IF(AS106="anno esterno","anno esterno",IF(AS106+1<='2 Descrizione Progetto'!$D$22,AS106+1,"anno esterno")) -> anno esterno | AU106: =IF(AT106="anno esterno","anno esterno",IF(AT106+1<='2 Descrizione Progetto'!$D$22,AT106+1,"anno esterno")) -> anno esterno | AV106: =IF(AU106="anno esterno","anno esterno",IF(AU106+1<='2 Descrizione Progetto'!$D$22,AU106+1,"anno esterno")) -> anno esterno | AW106: =IF(AV106="anno esterno","anno esterno",IF(AV106+1<='2 Descrizione Progetto'!$D$22,AV106+1,"anno esterno")) -> anno esterno | AX106: =IF(AW106="anno esterno","anno esterno",IF(AW106+1<='2 Descrizione Progetto'!$D$22,AW106+1,"anno esterno")) -> anno esterno | AY106: =IF(AX106="anno esterno","anno esterno",IF(AX106+1<='2 Descrizione Progetto'!$D$22,AX106+1,"anno esterno")) -> anno esterno | AZ106: =IF(AY106="anno esterno","anno esterno",IF(AY106+1<='2 Descrizione Progetto'!$D$22,AY106+1,"anno esterno")) -> anno esterno | BA106: =IF(AZ106="anno esterno","anno esterno",IF(AZ106+1<='2 Descrizione Progetto'!$D$22,AZ106+1,"anno esterno")) -> anno esterno | BB106: =IF(BA106="anno esterno","anno esterno",IF(BA106+1<='2 Descrizione Progetto'!$D$22,BA106+1,"anno esterno")) -> anno esterno | BC106: =IF(BB106="anno esterno","anno esterno",IF(BB106+1<='2 Descrizione Progetto'!$D$22,BB106+1,"anno esterno")) -> anno esterno | BD106: =IF(BC106="anno esterno","anno esterno",IF(BC106+1<='2 Descrizione Progetto'!$D$22,BC106+1,"anno esterno")) -> anno esterno | BE106: =IF(BD106="anno esterno","anno esterno",IF(BD106+1<='2 Descrizione Progetto'!$D$22,BD106+1,"anno esterno")) -> anno esterno | BF106: =IF(BE106="anno esterno","anno esterno",IF(BE106+1<='2 Descrizione Progetto'!$D$22,BE106+1,"anno esterno")) -> anno esterno | BG106: =IF(BF106="anno esterno","anno esterno",IF(BF106+1<='2 Descrizione Progetto'!$D$22,BF106+1,"anno esterno")) -> anno esterno | BH106: =IF(BG106="anno esterno","anno esterno",IF(BG106+1<='2 Descrizione Progetto'!$D$22,BG106+1,"anno esterno")) -> anno esterno | BI106: =IF(BH106="anno esterno","anno esterno",IF(BH106+1<='2 Descrizione Progetto'!$D$22,BH106+1,"anno esterno")) -> anno esterno | BJ106: =IF(BI106="anno esterno","anno esterno",IF(BI106+1<='2 Descrizione Progetto'!$D$22,BI106+1,"anno esterno")) -> anno esterno | BK106: =IF(BJ106="anno esterno","anno esterno",IF(BJ106+1<='2 Descrizione Progetto'!$D$22,BJ106+1,"anno esterno")) -> anno esterno | BL106: =IF(BK106="anno esterno","anno esterno",IF(BK106+1<='2 Descrizione Progetto'!$D$22,BK106+1,"anno esterno")) -> anno esterno
C107: Domanda (unità)
C108: Tariffa unitaria (euro)
C109: Ricavi (euro) | D109: =D107*D108 -> 0 | E109: 0 | F109: 0 | G109: 0 | H109: 0 | I109: 0 | J109: 0 | K109: 0 | L109: 0 | M109: 0 | N109: 0 | O109: 0 | P109: 0 | Q109: 0 | R109: 0 | S109: 0 | T109: 0 | U109: 0 | V109: 0 | W109: 0 | X109: 0 | Y109: 0 | Z109: 0 | AA109: 0 | AB109: 0 | AC109: 0 | AD109: 0 | AE109: 0 | AF109: 0 | AG109: 0 | AH109: 0 | AI109: 0 | AJ109: 0 | AK109: 0 | AL109: 0 | AM109: 0 | AN109: 0 | AO109: 0 | AP109: 0 | AQ109: 0 | AR109: 0 | AS109: 0 | AT109: 0 | AU109: 0 | AV109: 0 | AW109: 0 | AX109: 0 | AY109: 0 | AZ109: 0 | BA109: 0 | BB109: 0 | BC109: 0 | BD109: 0 | BE109: 0 | BF109: 0 | BG109: 0 | BH109: 0 | BI109: 0 | BJ109: 0 | BK109: 0 | BL109: 0
C110: CHECK 2 e 3 | D110: =IF(D107="","",IF(D107>($L$10-$K$10),"VERIFICA 2",IF(D107<$M$10,"OK","VERIFICA 3"))) -> 
B111: 4 | C111: =IF(C12="","",C12) -> Proventi diversi/pubblicità | D111: ='2 Descrizione Progetto'!$D$20 -> 1 | E111: =IF(D111="anno esterno","anno esterno",IF(D111+1<='2 Descrizione Progetto'!$D$22,D111+1,"anno esterno")) -> 2 | F111: =IF(E111="anno esterno","anno esterno",IF(E111+1<='2 Descrizione Progetto'!$D$22,E111+1,"anno esterno")) -> 3 | G111: =IF(F111="anno esterno","anno esterno",IF(F111+1<='2 Descrizione Progetto'!$D$22,F111+1,"anno esterno")) -> 4 | H111: =IF(G111="anno esterno","anno esterno",IF(G111+1<='2 Descrizione Progetto'!$D$22,G111+1,"anno esterno")) -> 5 | I111: =IF(H111="anno esterno","anno esterno",IF(H111+1<='2 Descrizione Progetto'!$D$22,H111+1,"anno esterno")) -> 6 | J111: =IF(I111="anno esterno","anno esterno",IF(I111+1<='2 Descrizione Progetto'!$D$22,I111+1,"anno esterno")) -> 7 | K111: =IF(J111="anno esterno","anno esterno",IF(J111+1<='2 Descrizione Progetto'!$D$22,J111+1,"anno esterno")) -> 8 | L111: =IF(K111="anno esterno","anno esterno",IF(K111+1<='2 Descrizione Progetto'!$D$22,K111+1,"anno esterno")) -> 9 | M111: =IF(L111="anno esterno","anno esterno",IF(L111+1<='2 Descrizione Progetto'!$D$22,L111+1,"anno esterno")) -> 10 | N111: =IF(M111="anno esterno","anno esterno",IF(M111+1<='2 Descrizione Progetto'!$D$22,M111+1,"anno esterno")) -> anno esterno | O111: =IF(N111="anno esterno","anno esterno",IF(N111+1<='2 Descrizione Progetto'!$D$22,N111+1,"anno esterno")) -> anno esterno | P111: =IF(O111="anno esterno","anno esterno",IF(O111+1<='2 Descrizione Progetto'!$D$22,O111+1,"anno esterno")) -> anno esterno | Q111: =IF(P111="anno esterno","anno esterno",IF(P111+1<='2 Descrizione Progetto'!$D$22,P111+1,"anno esterno")) -> anno esterno | R111: =IF(Q111="anno esterno","anno esterno",IF(Q111+1<='2 Descrizione Progetto'!$D$22,Q111+1,"anno esterno")) -> anno esterno | S111: =IF(R111="anno esterno","anno esterno",IF(R111+1<='2 Descrizione Progetto'!$D$22,R111+1,"anno esterno")) -> anno esterno | T111: =IF(S111="anno esterno","anno esterno",IF(S111+1<='2 Descrizione Progetto'!$D$22,S111+1,"anno esterno")) -> anno esterno | U111: =IF(T111="anno esterno","anno esterno",IF(T111+1<='2 Descrizione Progetto'!$D$22,T111+1,"anno esterno")) -> anno esterno | V111: =IF(U111="anno esterno","anno esterno",IF(U111+1<='2 Descrizione Progetto'!$D$22,U111+1,"anno esterno")) -> anno esterno | W111: =IF(V111="anno esterno","anno esterno",IF(V111+1<='2 Descrizione Progetto'!$D$22,V111+1,"anno esterno")) -> anno esterno | X111: =IF(W111="anno esterno","anno esterno",IF(W111+1<='2 Descrizione Progetto'!$D$22,W111+1,"anno esterno")) -> anno esterno | Y111: =IF(X111="anno esterno","anno esterno",IF(X111+1<='2 Descrizione Progetto'!$D$22,X111+1,"anno esterno")) -> anno esterno | Z111: =IF(Y111="anno esterno","anno esterno",IF(Y111+1<='2 Descrizione Progetto'!$D$22,Y111+1,"anno esterno")) -> anno esterno | AA111: =IF(Z111="anno esterno","anno esterno",IF(Z111+1<='2 Descrizione Progetto'!$D$22,Z111+1,"anno esterno")) -> anno esterno | AB111: =IF(AA111="anno esterno","anno esterno",IF(AA111+1<='2 Descrizione Progetto'!$D$22,AA111+1,"anno esterno")) -> anno esterno | AC111: =IF(AB111="anno esterno","anno esterno",IF(AB111+1<='2 Descrizione Progetto'!$D$22,AB111+1,"anno esterno")) -> anno esterno | AD111: =IF(AC111="anno esterno","anno esterno",IF(AC111+1<='2 Descrizione Progetto'!$D$22,AC111+1,"anno esterno")) -> anno esterno | AE111: =IF(AD111="anno esterno","anno esterno",IF(AD111+1<='2 Descrizione Progetto'!$D$22,AD111+1,"anno esterno")) -> anno esterno | AF111: =IF(AE111="anno esterno","anno esterno",IF(AE111+1<='2 Descrizione Progetto'!$D$22,AE111+1,"anno esterno")) -> anno esterno | AG111: =IF(AF111="anno esterno","anno esterno",IF(AF111+1<='2 Descrizione Progetto'!$D$22,AF111+1,"anno esterno")) -> anno esterno | AH111: =IF(AG111="anno esterno","anno esterno",IF(AG111+1<='2 Descrizione Progetto'!$D$22,AG111+1,"anno esterno")) -> anno esterno | AI111: =IF(AH111="anno esterno","anno esterno",IF(AH111+1<='2 Descrizione Progetto'!$D$22,AH111+1,"anno esterno")) -> anno esterno | AJ111: =IF(AI111="anno esterno","anno esterno",IF(AI111+1<='2 Descrizione Progetto'!$D$22,AI111+1,"anno esterno")) -> anno esterno | AK111: =IF(AJ111="anno esterno","anno esterno",IF(AJ111+1<='2 Descrizione Progetto'!$D$22,AJ111+1,"anno esterno")) -> anno esterno | AL111: =IF(AK111="anno esterno","anno esterno",IF(AK111+1<='2 Descrizione Progetto'!$D$22,AK111+1,"anno esterno")) -> anno esterno | AM111: =IF(AL111="anno esterno","anno esterno",IF(AL111+1<='2 Descrizione Progetto'!$D$22,AL111+1,"anno esterno")) -> anno esterno | AN111: =IF(AM111="anno esterno","anno esterno",IF(AM111+1<='2 Descrizione Progetto'!$D$22,AM111+1,"anno esterno")) -> anno esterno | AO111: =IF(AN111="anno esterno","anno esterno",IF(AN111+1<='2 Descrizione Progetto'!$D$22,AN111+1,"anno esterno")) -> anno esterno | AP111: =IF(AO111="anno esterno","anno esterno",IF(AO111+1<='2 Descrizione Progetto'!$D$22,AO111+1,"anno esterno")) -> anno esterno | AQ111: =IF(AP111="anno esterno","anno esterno",IF(AP111+1<='2 Descrizione Progetto'!$D$22,AP111+1,"anno esterno")) -> anno esterno | AR111: =IF(AQ111="anno esterno","anno esterno",IF(AQ111+1<='2 Descrizione Progetto'!$D$22,AQ111+1,"anno esterno")) -> anno esterno | AS111: =IF(AR111="anno esterno","anno esterno",IF(AR111+1<='2 Descrizione Progetto'!$D$22,AR111+1,"anno esterno")) -> anno esterno | AT111: =IF(AS111="anno esterno","anno esterno",IF(AS111+1<='2 Descrizione Progetto'!$D$22,AS111+1,"anno esterno")) -> anno esterno | AU111: =IF(AT111="anno esterno","anno esterno",IF(AT111+1<='2 Descrizione Progetto'!$D$22,AT111+1,"anno esterno")) -> anno esterno | AV111: =IF(AU111="anno esterno","anno esterno",IF(AU111+1<='2 Descrizione Progetto'!$D$22,AU111+1,"anno esterno")) -> anno esterno | AW111: =IF(AV111="anno esterno","anno esterno",IF(AV111+1<='2 Descrizione Progetto'!$D$22,AV111+1,"anno esterno")) -> anno esterno | AX111: =IF(AW111="anno esterno","anno esterno",IF(AW111+1<='2 Descrizione Progetto'!$D$22,AW111+1,"anno esterno")) -> anno esterno | AY111: =IF(AX111="anno esterno","anno esterno",IF(AX111+1<='2 Descrizione Progetto'!$D$22,AX111+1,"anno esterno")) -> anno esterno | AZ111: =IF(AY111="anno esterno","anno esterno",IF(AY111+1<='2 Descrizione Progetto'!$D$22,AY111+1,"anno esterno")) -> anno esterno | BA111: =IF(AZ111="anno esterno","anno esterno",IF(AZ111+1<='2 Descrizione Progetto'!$D$22,AZ111+1,"anno esterno")) -> anno esterno | BB111: =IF(BA111="anno esterno","anno esterno",IF(BA111+1<='2 Descrizione Progetto'!$D$22,BA111+1,"anno esterno")) -> anno esterno | BC111: =IF(BB111="anno esterno","anno esterno",IF(BB111+1<='2 Descrizione Progetto'!$D$22,BB111+1,"anno esterno")) -> anno esterno | BD111: =IF(BC111="anno esterno","anno esterno",IF(BC111+1<='2 Descrizione Progetto'!$D$22,BC111+1,"anno esterno")) -> anno esterno | BE111: =IF(BD111="anno esterno","anno esterno",IF(BD111+1<='2 Descrizione Progetto'!$D$22,BD111+1,"anno esterno")) -> anno esterno | BF111: =IF(BE111="anno esterno","anno esterno",IF(BE111+1<='2 Descrizione Progetto'!$D$22,BE111+1,"anno esterno")) -> anno esterno | BG111: =IF(BF111="anno esterno","anno esterno",IF(BF111+1<='2 Descrizione Progetto'!$D$22,BF111+1,"anno esterno")) -> anno esterno | BH111: =IF(BG111="anno esterno","anno esterno",IF(BG111+1<='2 Descrizione Progetto'!$D$22,BG111+1,"anno esterno")) -> anno esterno | BI111: =IF(BH111="anno esterno","anno esterno",IF(BH111+1<='2 Descrizione Progetto'!$D$22,BH111+1,"anno esterno")) -> anno esterno | BJ111: =IF(BI111="anno esterno","anno esterno",IF(BI111+1<='2 Descrizione Progetto'!$D$22,BI111+1,"anno esterno")) -> anno esterno | BK111: =IF(BJ111="anno esterno","anno esterno",IF(BJ111+1<='2 Descrizione Progetto'!$D$22,BJ111+1,"anno esterno")) -> anno esterno | BL111: =IF(BK111="anno esterno","anno esterno",IF(BK111+1<='2 Descrizione Progetto'!$D$22,BK111+1,"anno esterno")) -> anno esterno
C112: Domanda (unità)
C113: Tariffa unitaria (euro)
C114: Ricavi (euro) | D114: =D112*D113 -> 0 | E114: 0 | F114: 0 | G114: 0 | H114: 0 | I114: 0 | J114: 0 | K114: 0 | L114: 0 | M114: 0 | N114: 0 | O114: 0 | P114: 0 | Q114: 0 | R114: 0 | S114: 0 | T114: 0 | U114: 0 | V114: 0 | W114: 0 | X114: 0 | Y114: 0 | Z114: 0 | AA114: 0 | AB114: 0 | AC114: 0 | AD114: 0 | AE114: 0 | AF114: 0 | AG114: 0 | AH114: 0 | AI114: 0 | AJ114: 0 | AK114: 0 | AL114: 0 | AM114: 0 | AN114: 0 | AO114: 0 | AP114: 0 | AQ114: 0 | AR114: 0 | AS114: 0 | AT114: 0 | AU114: 0 | AV114: 0 | AW114: 0 | AX114: 0 | AY114: 0 | AZ114: 0 | BA114: 0 | BB114: 0 | BC114: 0 | BD114: 0 | BE114: 0 | BF114: 0 | BG114: 0 | BH114: 0 | BI114: 0 | BJ114: 0 | BK114: 0 | BL114: 0
C115: CHECK 2 e 3 | D115: =IF(D112="","",IF(D112>($L$10-$K$10),"VERIFICA 2",IF(D112<$M$10,"OK","VERIFICA 3"))) -> 
B116: 5 | C116: =IF(C13="","",C13) -> b | D116: ='2 Descrizione Progetto'!$D$20 -> 1 | E116: =IF(D116="anno esterno","anno esterno",IF(D116+1<='2 Descrizione Progetto'!$D$22,D116+1,"anno esterno")) -> 2 | F116: =IF(E116="anno esterno","anno esterno",IF(E116+1<='2 Descrizione Progetto'!$D$22,E116+1,"anno esterno")) -> 3 | G116: =IF(F116="anno esterno","anno esterno",IF(F116+1<='2 Descrizione Progetto'!$D$22,F116+1,"anno esterno")) -> 4 | H116: =IF(G116="anno esterno","anno esterno",IF(G116+1<='2 Descrizione Progetto'!$D$22,G116+1,"anno esterno")) -> 5 | I116: =IF(H116="anno esterno","anno esterno",IF(H116+1<='2 Descrizione Progetto'!$D$22,H116+1,"anno esterno")) -> 6 | J116: =IF(I116="anno esterno","anno esterno",IF(I116+1<='2 Descrizione Progetto'!$D$22,I116+1,"anno esterno")) -> 7 | K116: =IF(J116="anno esterno","anno esterno",IF(J116+1<='2 Descrizione Progetto'!$D$22,J116+1,"anno esterno")) -> 8 | L116: =IF(K116="anno esterno","anno esterno",IF(K116+1<='2 Descrizione Progetto'!$D$22,K116+1,"anno esterno")) -> 9 | M116: =IF(L116="anno esterno","anno esterno",IF(L116+1<='2 Descrizione Progetto'!$D$22,L116+1,"anno esterno")) -> 10 | N116: =IF(M116="anno esterno","anno esterno",IF(M116+1<='2 Descrizione Progetto'!$D$22,M116+1,"anno esterno")) -> anno esterno | O116: =IF(N116="anno esterno","anno esterno",IF(N116+1<='2 Descrizione Progetto'!$D$22,N116+1,"anno esterno")) -> anno esterno | P116: =IF(O116="anno esterno","anno esterno",IF(O116+1<='2 Descrizione Progetto'!$D$22,O116+1,"anno esterno")) -> anno esterno | Q116: =IF(P116="anno esterno","anno esterno",IF(P116+1<='2 Descrizione Progetto'!$D$22,P116+1,"anno esterno")) -> anno esterno | R116: =IF(Q116="anno esterno","anno esterno",IF(Q116+1<='2 Descrizione Progetto'!$D$22,Q116+1,"anno esterno")) -> anno esterno | S116: =IF(R116="anno esterno","anno esterno",IF(R116+1<='2 Descrizione Progetto'!$D$22,R116+1,"anno esterno")) -> anno esterno | T116: =IF(S116="anno esterno","anno esterno",IF(S116+1<='2 Descrizione Progetto'!$D$22,S116+1,"anno esterno")) -> anno esterno | U116: =IF(T116="anno esterno","anno esterno",IF(T116+1<='2 Descrizione Progetto'!$D$22,T116+1,"anno esterno")) -> anno esterno | V116: =IF(U116="anno esterno","anno esterno",IF(U116+1<='2 Descrizione Progetto'!$D$22,U116+1,"anno esterno")) -> anno esterno | W116: =IF(V116="anno esterno","anno esterno",IF(V116+1<='2 Descrizione Progetto'!$D$22,V116+1,"anno esterno")) -> anno esterno | X116: =IF(W116="anno esterno","anno esterno",IF(W116+1<='2 Descrizione Progetto'!$D$22,W116+1,"anno esterno")) -> anno esterno | Y116: =IF(X116="anno esterno","anno esterno",IF(X116+1<='2 Descrizione Progetto'!$D$22,X116+1,"anno esterno")) -> anno esterno | Z116: =IF(Y116="anno esterno","anno esterno",IF(Y116+1<='2 Descrizione Progetto'!$D$22,Y116+1,"anno esterno")) -> anno esterno | AA116: =IF(Z116="anno esterno","anno esterno",IF(Z116+1<='2 Descrizione Progetto'!$D$22,Z116+1,"anno esterno")) -> anno esterno | AB116: =IF(AA116="anno esterno","anno esterno",IF(AA116+1<='2 Descrizione Progetto'!$D$22,AA116+1,"anno esterno")) -> anno esterno | AC116: =IF(AB116="anno esterno","anno esterno",IF(AB116+1<='2 Descrizione Progetto'!$D$22,AB116+1,"anno esterno")) -> anno esterno | AD116: =IF(AC116="anno esterno","anno esterno",IF(AC116+1<='2 Descrizione Progetto'!$D$22,AC116+1,"anno esterno")) -> anno esterno | AE116: =IF(AD116="anno esterno","anno esterno",IF(AD116+1<='2 Descrizione Progetto'!$D$22,AD116+1,"anno esterno")) -> anno esterno | AF116: =IF(AE116="anno esterno","anno esterno",IF(AE116+1<='2 Descrizione Progetto'!$D$22,AE116+1,"anno esterno")) -> anno esterno | AG116: =IF(AF116="anno esterno","anno esterno",IF(AF116+1<='2 Descrizione Progetto'!$D$22,AF116+1,"anno esterno")) -> anno esterno | AH116: =IF(AG116="anno esterno","anno esterno",IF(AG116+1<='2 Descrizione Progetto'!$D$22,AG116+1,"anno esterno")) -> anno esterno | AI116: =IF(AH116="anno esterno","anno esterno",IF(AH116+1<='2 Descrizione Progetto'!$D$22,AH116+1,"anno esterno")) -> anno esterno | AJ116: =IF(AI116="anno esterno","anno esterno",IF(AI116+1<='2 Descrizione Progetto'!$D$22,AI116+1,"anno esterno")) -> anno esterno | AK116: =IF(AJ116="anno esterno","anno esterno",IF(AJ116+1<='2 Descrizione Progetto'!$D$22,AJ116+1,"anno esterno")) -> anno esterno | AL116: =IF(AK116="anno esterno","anno esterno",IF(AK116+1<='2 Descrizione Progetto'!$D$22,AK116+1,"anno esterno")) -> anno esterno | AM116: =IF(AL116="anno esterno","anno esterno",IF(AL116+1<='2 Descrizione Progetto'!$D$22,AL116+1,"anno esterno")) -> anno esterno | AN116: =IF(AM116="anno esterno","anno esterno",IF(AM116+1<='2 Descrizione Progetto'!$D$22,AM116+1,"anno esterno")) -> anno esterno | AO116: =IF(AN116="anno esterno","anno esterno",IF(AN116+1<='2 Descrizione Progetto'!$D$22,AN116+1,"anno esterno")) -> anno esterno | AP116: =IF(AO116="anno esterno","anno esterno",IF(AO116+1<='2 Descrizione Progetto'!$D$22,AO116+1,"anno esterno")) -> anno esterno | AQ116: =IF(AP116="anno esterno","anno esterno",IF(AP116+1<='2 Descrizione Progetto'!$D$22,AP116+1,"anno esterno")) -> anno esterno | AR116: =IF(AQ116="anno esterno","anno esterno",IF(AQ116+1<='2 Descrizione Progetto'!$D$22,AQ116+1,"anno esterno")) -> anno esterno | AS116: =IF(AR116="anno esterno","anno esterno",IF(AR116+1<='2 Descrizione Progetto'!$D$22,AR116+1,"anno esterno")) -> anno esterno | AT116: =IF(AS116="anno esterno","anno esterno",IF(AS116+1<='2 Descrizione Progetto'!$D$22,AS116+1,"anno esterno")) -> anno esterno | AU116: =IF(AT116="anno esterno","anno esterno",IF(AT116+1<='2 Descrizione Progetto'!$D$22,AT116+1,"anno esterno")) -> anno esterno | AV116: =IF(AU116="anno esterno","anno esterno",IF(AU116+1<='2 Descrizione Progetto'!$D$22,AU116+1,"anno esterno")) -> anno esterno | AW116: =IF(AV116="anno esterno","anno esterno",IF(AV116+1<='2 Descrizione Progetto'!$D$22,AV116+1,"anno esterno")) -> anno esterno | AX116: =IF(AW116="anno esterno","anno esterno",IF(AW116+1<='2 Descrizione Progetto'!$D$22,AW116+1,"anno esterno")) -> anno esterno | AY116: =IF(AX116="anno esterno","anno esterno",IF(AX116+1<='2 Descrizione Progetto'!$D$22,AX116+1,"anno esterno")) -> anno esterno | AZ116: =IF(AY116="anno esterno","anno esterno",IF(AY116+1<='2 Descrizione Progetto'!$D$22,AY116+1,"anno esterno")) -> anno esterno | BA116: =IF(AZ116="anno esterno","anno esterno",IF(AZ116+1<='2 Descrizione Progetto'!$D$22,AZ116+1,"anno esterno")) -> anno esterno | BB116: =IF(BA116="anno esterno","anno esterno",IF(BA116+1<='2 Descrizione Progetto'!$D$22,BA116+1,"anno esterno")) -> anno esterno | BC116: =IF(BB116="anno esterno","anno esterno",IF(BB116+1<='2 Descrizione Progetto'!$D$22,BB116+1,"anno esterno")) -> anno esterno | BD116: =IF(BC116="anno esterno","anno esterno",IF(BC116+1<='2 Descrizione Progetto'!$D$22,BC116+1,"anno esterno")) -> anno esterno | BE116: =IF(BD116="anno esterno","anno esterno",IF(BD116+1<='2 Descrizione Progetto'!$D$22,BD116+1,"anno esterno")) -> anno esterno | BF116: =IF(BE116="anno esterno","anno esterno",IF(BE116+1<='2 Descrizione Progetto'!$D$22,BE116+1,"anno esterno")) -> anno esterno | BG116: =IF(BF116="anno esterno","anno esterno",IF(BF116+1<='2 Descrizione Progetto'!$D$22,BF116+1,"anno esterno")) -> anno esterno | BH116: =IF(BG116="anno esterno","anno esterno",IF(BG116+1<='2 Descrizione Progetto'!$D$22,BG116+1,"anno esterno")) -> anno esterno | BI116: =IF(BH116="anno esterno","anno esterno",IF(BH116+1<='2 Descrizione Progetto'!$D$22,BH116+1,"anno esterno")) -> anno esterno | BJ116: =IF(BI116="anno esterno","anno esterno",IF(BI116+1<='2 Descrizione Progetto'!$D$22,BI116+1,"anno esterno")) -> anno esterno | BK116: =IF(BJ116="anno esterno","anno esterno",IF(BJ116+1<='2 Descrizione Progetto'!$D$22,BJ116+1,"anno esterno")) -> anno esterno | BL116: =IF(BK116="anno esterno","anno esterno",IF(BK116+1<='2 Descrizione Progetto'!$D$22,BK116+1,"anno esterno")) -> anno esterno
C117: Domanda (unità)
C118: Tariffa unitaria (euro)
C119: Ricavi (euro) | D119: =D117*D118 -> 0 | E119: 0 | F119: 0 | G119: 0 | H119: 0 | I119: 0 | J119: 0 | K119: 0 | L119: 0 | M119: 0 | N119: 0 | O119: 0 | P119: 0 | Q119: 0 | R119: 0 | S119: 0 | T119: 0 | U119: 0 | V119: 0 | W119: 0 | X119: 0 | Y119: 0 | Z119: 0 | AA119: 0 | AB119: 0 | AC119: 0 | AD119: 0 | AE119: 0 | AF119: 0 | AG119: 0 | AH119: 0 | AI119: 0 | AJ119: 0 | AK119: 0 | AL119: 0 | AM119: 0 | AN119: 0 | AO119: 0 | AP119: 0 | AQ119: 0 | AR119: 0 | AS119: 0 | AT119: 0 | AU119: 0 | AV119: 0 | AW119: 0 | AX119: 0 | AY119: 0 | AZ119: 0 | BA119: 0 | BB119: 0 | BC119: 0 | BD119: 0 | BE119: 0 | BF119: 0 | BG119: 0 | BH119: 0 | BI119: 0 | BJ119: 0 | BK119: 0 | BL119: 0
C120: CHECK 2 e 3 | D120: =IF(D117="","",IF(D117>($L$10-$K$10),"VERIFICA 2",IF(D117<$M$10,"OK","VERIFICA 3"))) -> 
B121: 6 | C121: =IF(C14="","",C14) -> c | D121: ='2 Descrizione Progetto'!$D$20 -> 1 | E121: =IF(D121="anno esterno","anno esterno",IF(D121+1<='2 Descrizione Progetto'!$D$22,D121+1,"anno esterno")) -> 2 | F121: =IF(E121="anno esterno","anno esterno",IF(E121+1<='2 Descrizione Progetto'!$D$22,E121+1,"anno esterno")) -> 3 | G121: =IF(F121="anno esterno","anno esterno",IF(F121+1<='2 Descrizione Progetto'!$D$22,F121+1,"anno esterno")) -> 4 | H121: =IF(G121="anno esterno","anno esterno",IF(G121+1<='2 Descrizione Progetto'!$D$22,G121+1,"anno esterno")) -> 5 | I121: =IF(H121="anno esterno","anno esterno",IF(H121+1<='2 Descrizione Progetto'!$D$22,H121+1,"anno esterno")) -> 6 | J121: =IF(I121="anno esterno","anno esterno",IF(I121+1<='2 Descrizione Progetto'!$D$22,I121+1,"anno esterno")) -> 7 | K121: =IF(J121="anno esterno","anno esterno",IF(J121+1<='2 Descrizione Progetto'!$D$22,J121+1,"anno esterno")) -> 8 | L121: =IF(K121="anno esterno","anno esterno",IF(K121+1<='2 Descrizione Progetto'!$D$22,K121+1,"anno esterno")) -> 9 | M121: =IF(L121="anno esterno","anno esterno",IF(L121+1<='2 Descrizione Progetto'!$D$22,L121+1,"anno esterno")) -> 10 | N121: =IF(M121="anno esterno","anno esterno",IF(M121+1<='2 Descrizione Progetto'!$D$22,M121+1,"anno esterno")) -> anno esterno | O121: =IF(N121="anno esterno","anno esterno",IF(N121+1<='2 Descrizione Progetto'!$D$22,N121+1,"anno esterno")) -> anno esterno | P121: =IF(O121="anno esterno","anno esterno",IF(O121+1<='2 Descrizione Progetto'!$D$22,O121+1,"anno esterno")) -> anno esterno | Q121: =IF(P121="anno esterno","anno esterno",IF(P121+1<='2 Descrizione Progetto'!$D$22,P121+1,"anno esterno")) -> anno esterno | R121: =IF(Q121="anno esterno","anno esterno",IF(Q121+1<='2 Descrizione Progetto'!$D$22,Q121+1,"anno esterno")) -> anno esterno | S121: =IF(R121="anno esterno","anno esterno",IF(R121+1<='2 Descrizione Progetto'!$D$22,R121+1,"anno esterno")) -> anno esterno | T121: =IF(S121="anno esterno","anno esterno",IF(S121+1<='2 Descrizione Progetto'!$D$22,S121+1,"anno esterno")) -> anno esterno | U121: =IF(T121="anno esterno","anno esterno",IF(T121+1<='2 Descrizione Progetto'!$D$22,T121+1,"anno esterno")) -> anno esterno | V121: =IF(U121="anno esterno","anno esterno",IF(U121+1<='2 Descrizione Progetto'!$D$22,U121+1,"anno esterno")) -> anno esterno | W121: =IF(V121="anno esterno","anno esterno",IF(V121+1<='2 Descrizione Progetto'!$D$22,V121+1,"anno esterno")) -> anno esterno | X121: =IF(W121="anno esterno","anno esterno",IF(W121+1<='2 Descrizione Progetto'!$D$22,W121+1,"anno esterno")) -> anno esterno | Y121: =IF(X121="anno esterno","anno esterno",IF(X121+1<='2 Descrizione Progetto'!$D$22,X121+1,"anno esterno")) -> anno esterno | Z121: =IF(Y121="anno esterno","anno esterno",IF(Y121+1<='2 Descrizione Progetto'!$D$22,Y121+1,"anno esterno")) -> anno esterno | AA121: =IF(Z121="anno esterno","anno esterno",IF(Z121+1<='2 Descrizione Progetto'!$D$22,Z121+1,"anno esterno")) -> anno esterno | AB121: =IF(AA121="anno esterno","anno esterno",IF(AA121+1<='2 Descrizione Progetto'!$D$22,AA121+1,"anno esterno")) -> anno esterno | AC121: =IF(AB121="anno esterno","anno esterno",IF(AB121+1<='2 Descrizione Progetto'!$D$22,AB121+1,"anno esterno")) -> anno esterno | AD121: =IF(AC121="anno esterno","anno esterno",IF(AC121+1<='2 Descrizione Progetto'!$D$22,AC121+1,"anno esterno")) -> anno esterno | AE121: =IF(AD121="anno esterno","anno esterno",IF(AD121+1<='2 Descrizione Progetto'!$D$22,AD121+1,"anno esterno")) -> anno esterno | AF121: =IF(AE121="anno esterno","anno esterno",IF(AE121+1<='2 Descrizione Progetto'!$D$22,AE121+1,"anno esterno")) -> anno esterno | AG121: =IF(AF121="anno esterno","anno esterno",IF(AF121+1<='2 Descrizione Progetto'!$D$22,AF121+1,"anno esterno")) -> anno esterno | AH121: =IF(AG121="anno esterno","anno esterno",IF(AG121+1<='2 Descrizione Progetto'!$D$22,AG121+1,"anno esterno")) -> anno esterno | AI121: =IF(AH121="anno esterno","anno esterno",IF(AH121+1<='2 Descrizione Progetto'!$D$22,AH121+1,"anno esterno")) -> anno esterno | AJ121: =IF(AI121="anno esterno","anno esterno",IF(AI121+1<='2 Descrizione Progetto'!$D$22,AI121+1,"anno esterno")) -> anno esterno | AK121: =IF(AJ121="anno esterno","anno esterno",IF(AJ121+1<='2 Descrizione Progetto'!$D$22,AJ121+1,"anno esterno")) -> anno esterno | AL121: =IF(AK121="anno esterno","anno esterno",IF(AK121+1<='2 Descrizione Progetto'!$D$22,AK121+1,"anno esterno")) -> anno esterno | AM121: =IF(AL121="anno esterno","anno esterno",IF(AL121+1<='2 Descrizione Progetto'!$D$22,AL121+1,"anno esterno")) -> anno esterno | AN121: =IF(AM121="anno esterno","anno esterno",IF(AM121+1<='2 Descrizione Progetto'!$D$22,AM121+1,"anno esterno")) -> anno esterno | AO121: =IF(AN121="anno esterno","anno esterno",IF(AN121+1<='2 Descrizione Progetto'!$D$22,AN121+1,"anno esterno")) -> anno esterno | AP121: =IF(AO121="anno esterno","anno esterno",IF(AO121+1<='2 Descrizione Progetto'!$D$22,AO121+1,"anno esterno")) -> anno esterno | AQ121: =IF(AP121="anno esterno","anno esterno",IF(AP121+1<='2 Descrizione Progetto'!$D$22,AP121+1,"anno esterno")) -> anno esterno | AR121: =IF(AQ121="anno esterno","anno esterno",IF(AQ121+1<='2 Descrizione Progetto'!$D$22,AQ121+1,"anno esterno")) -> anno esterno | AS121: =IF(AR121="anno esterno","anno esterno",IF(AR121+1<='2 Descrizione Progetto'!$D$22,AR121+1,"anno esterno")) -> anno esterno | AT121: =IF(AS121="anno esterno","anno esterno",IF(AS121+1<='2 Descrizione Progetto'!$D$22,AS121+1,"anno esterno")) -> anno esterno | AU121: =IF(AT121="anno esterno","anno esterno",IF(AT121+1<='2 Descrizione Progetto'!$D$22,AT121+1,"anno esterno")) -> anno esterno | AV121: =IF(AU121="anno esterno","anno esterno",IF(AU121+1<='2 Descrizione Progetto'!$D$22,AU121+1,"anno esterno")) -> anno esterno | AW121: =IF(AV121="anno esterno","anno esterno",IF(AV121+1<='2 Descrizione Progetto'!$D$22,AV121+1,"anno esterno")) -> anno esterno | AX121: =IF(AW121="anno esterno","anno esterno",IF(AW121+1<='2 Descrizione Progetto'!$D$22,AW121+1,"anno esterno")) -> anno esterno | AY121: =IF(AX121="anno esterno","anno esterno",IF(AX121+1<='2 Descrizione Progetto'!$D$22,AX121+1,"anno esterno")) -> anno esterno | AZ121: =IF(AY121="anno esterno","anno esterno",IF(AY121+1<='2 Descrizione Progetto'!$D$22,AY121+1,"anno esterno")) -> anno esterno | BA121: =IF(AZ121="anno esterno","anno esterno",IF(AZ121+1<='2 Descrizione Progetto'!$D$22,AZ121+1,"anno esterno")) -> anno esterno | BB121: =IF(BA121="anno esterno","anno esterno",IF(BA121+1<='2 Descrizione Progetto'!$D$22,BA121+1,"anno esterno")) -> anno esterno | BC121: =IF(BB121="anno esterno","anno esterno",IF(BB121+1<='2 Descrizione Progetto'!$D$22,BB121+1,"anno esterno")) -> anno esterno | BD121: =IF(BC121="anno esterno","anno esterno",IF(BC121+1<='2 Descrizione Progetto'!$D$22,BC121+1,"anno esterno")) -> anno esterno | BE121: =IF(BD121="anno esterno","anno esterno",IF(BD121+1<='2 Descrizione Progetto'!$D$22,BD121+1,"anno esterno")) -> anno esterno | BF121: =IF(BE121="anno esterno","anno esterno",IF(BE121+1<='2 Descrizione Progetto'!$D$22,BE121+1,"anno esterno")) -> anno esterno | BG121: =IF(BF121="anno esterno","anno esterno",IF(BF121+1<='2 Descrizione Progetto'!$D$22,BF121+1,"anno esterno")) -> anno esterno | BH121: =IF(BG121="anno esterno","anno esterno",IF(BG121+1<='2 Descrizione Progetto'!$D$22,BG121+1,"anno esterno")) -> anno esterno | BI121: =IF(BH121="anno esterno","anno esterno",IF(BH121+1<='2 Descrizione Progetto'!$D$22,BH121+1,"anno esterno")) -> anno esterno | BJ121: =IF(BI121="anno esterno","anno esterno",IF(BI121+1<='2 Descrizione Progetto'!$D$22,BI121+1,"anno esterno")) -> anno esterno | BK121: =IF(BJ121="anno esterno","anno esterno",IF(BJ121+1<='2 Descrizione Progetto'!$D$22,BJ121+1,"anno esterno")) -> anno esterno | BL121: =IF(BK121="anno esterno","anno esterno",IF(BK121+1<='2 Descrizione Progetto'!$D$22,BK121+1,"anno esterno")) -> anno esterno
C122: Domanda (unità)
C123: Tariffa unitaria (euro)
C124: Ricavi (euro) | D124: =D122*D123 -> 0 | E124: 0 | F124: 0 | G124: 0 | H124: 0 | I124: 0 | J124: 0 | K124: 0 | L124: 0 | M124: 0 | N124: 0 | O124: 0 | P124: 0 | Q124: 0 | R124: 0 | S124: 0 | T124: 0 | U124: 0 | V124: 0 | W124: 0 | X124: 0 | Y124: 0 | Z124: 0 | AA124: 0 | AB124: 0 | AC124: 0 | AD124: 0 | AE124: 0 | AF124: 0 | AG124: 0 | AH124: 0 | AI124: 0 | AJ124: 0 | AK124: 0 | AL124: 0 | AM124: 0 | AN124: 0 | AO124: 0 | AP124: 0 | AQ124: 0 | AR124: 0 | AS124: 0 | AT124: 0 | AU124: 0 | AV124: 0 | AW124: 0 | AX124: 0 | AY124: 0 | AZ124: 0 | BA124: 0 | BB124: 0 | BC124: 0 | BD124: 0 | BE124: 0 | BF124: 0 | BG124: 0 | BH124: 0 | BI124: 0 | BJ124: 0 | BK124: 0 | BL124: 0
C125: CHECK 2 e 3 | D125: =IF(D122="","",IF(D122>($L$10-$K$10),"VERIFICA 2",IF(D122<$M$10,"OK","VERIFICA 3"))) -> 
B126: 7 | C126: =IF(C15="","",C15) -> d | D126: ='2 Descrizione Progetto'!$D$20 -> 1 | E126: =IF(D126="anno esterno","anno esterno",IF(D126+1<='2 Descrizione Progetto'!$D$22,D126+1,"anno esterno")) -> 2 | F126: =IF(E126="anno esterno","anno esterno",IF(E126+1<='2 Descrizione Progetto'!$D$22,E126+1,"anno esterno")) -> 3 | G126: =IF(F126="anno esterno","anno esterno",IF(F126+1<='2 Descrizione Progetto'!$D$22,F126+1,"anno esterno")) -> 4 | H126: =IF(G126="anno esterno","anno esterno",IF(G126+1<='2 Descrizione Progetto'!$D$22,G126+1,"anno esterno")) -> 5 | I126: =IF(H126="anno esterno","anno esterno",IF(H126+1<='2 Descrizione Progetto'!$D$22,H126+1,"anno esterno")) -> 6 | J126: =IF(I126="anno esterno","anno esterno",IF(I126+1<='2 Descrizione Progetto'!$D$22,I126+1,"anno esterno")) -> 7 | K126: =IF(J126="anno esterno","anno esterno",IF(J126+1<='2 Descrizione Progetto'!$D$22,J126+1,"anno esterno")) -> 8 | L126: =IF(K126="anno esterno","anno esterno",IF(K126+1<='2 Descrizione Progetto'!$D$22,K126+1,"anno esterno")) -> 9 | M126: =IF(L126="anno esterno","anno esterno",IF(L126+1<='2 Descrizione Progetto'!$D$22,L126+1,"anno esterno")) -> 10 | N126: =IF(M126="anno esterno","anno esterno",IF(M126+1<='2 Descrizione Progetto'!$D$22,M126+1,"anno esterno")) -> anno esterno | O126: =IF(N126="anno esterno","anno esterno",IF(N126+1<='2 Descrizione Progetto'!$D$22,N126+1,"anno esterno")) -> anno esterno | P126: =IF(O126="anno esterno","anno esterno",IF(O126+1<='2 Descrizione Progetto'!$D$22,O126+1,"anno esterno")) -> anno esterno | Q126: =IF(P126="anno esterno","anno esterno",IF(P126+1<='2 Descrizione Progetto'!$D$22,P126+1,"anno esterno")) -> anno esterno | R126: =IF(Q126="anno esterno","anno esterno",IF(Q126+1<='2 Descrizione Progetto'!$D$22,Q126+1,"anno esterno")) -> anno esterno | S126: =IF(R126="anno esterno","anno esterno",IF(R126+1<='2 Descrizione Progetto'!$D$22,R126+1,"anno esterno")) -> anno esterno | T126: =IF(S126="anno esterno","anno esterno",IF(S126+1<='2 Descrizione Progetto'!$D$22,S126+1,"anno esterno")) -> anno esterno | U126: =IF(T126="anno esterno","anno esterno",IF(T126+1<='2 Descrizione Progetto'!$D$22,T126+1,"anno esterno")) -> anno esterno | V126: =IF(U126="anno esterno","anno esterno",IF(U126+1<='2 Descrizione Progetto'!$D$22,U126+1,"anno esterno")) -> anno esterno | W126: =IF(V126="anno esterno","anno esterno",IF(V126+1<='2 Descrizione Progetto'!$D$22,V126+1,"anno esterno")) -> anno esterno | X126: =IF(W126="anno esterno","anno esterno",IF(W126+1<='2 Descrizione Progetto'!$D$22,W126+1,"anno esterno")) -> anno esterno | Y126: =IF(X126="anno esterno","anno esterno",IF(X126+1<='2 Descrizione Progetto'!$D$22,X126+1,"anno esterno")) -> anno esterno | Z126: =IF(Y126="anno esterno","anno esterno",IF(Y126+1<='2 Descrizione Progetto'!$D$22,Y126+1,"anno esterno")) -> anno esterno | AA126: =IF(Z126="anno esterno","anno esterno",IF(Z126+1<='2 Descrizione Progetto'!$D$22,Z126+1,"anno esterno")) -> anno esterno | AB126: =IF(AA126="anno esterno","anno esterno",IF(AA126+1<='2 Descrizione Progetto'!$D$22,AA126+1,"anno esterno")) -> anno esterno | AC126: =IF(AB126="anno esterno","anno esterno",IF(AB126+1<='2 Descrizione Progetto'!$D$22,AB126+1,"anno esterno")) -> anno esterno | AD126: =IF(AC126="anno esterno","anno esterno",IF(AC126+1<='2 Descrizione Progetto'!$D$22,AC126+1,"anno esterno")) -> anno esterno | AE126: =IF(AD126="anno esterno","anno esterno",IF(AD126+1<='2 Descrizione Progetto'!$D$22,AD126+1,"anno esterno")) -> anno esterno | AF126: =IF(AE126="anno esterno","anno esterno",IF(AE126+1<='2 Descrizione Progetto'!$D$22,AE126+1,"anno esterno")) -> anno esterno | AG126: =IF(AF126="anno esterno","anno esterno",IF(AF126+1<='2 Descrizione Progetto'!$D$22,AF126+1,"anno esterno")) -> anno esterno | AH126: =IF(AG126="anno esterno","anno esterno",IF(AG126+1<='2 Descrizione Progetto'!$D$22,AG126+1,"anno esterno")) -> anno esterno | AI126: =IF(AH126="anno esterno","anno esterno",IF(AH126+1<='2 Descrizione Progetto'!$D$22,AH126+1,"anno esterno")) -> anno esterno | AJ126: =IF(AI126="anno esterno","anno esterno",IF(AI126+1<='2 Descrizione Progetto'!$D$22,AI126+1,"anno esterno")) -> anno esterno | AK126: =IF(AJ126="anno esterno","anno esterno",IF(AJ126+1<='2 Descrizione Progetto'!$D$22,AJ126+1,"anno esterno")) -> anno esterno | AL126: =IF(AK126="anno esterno","anno esterno",IF(AK126+1<='2 Descrizione Progetto'!$D$22,AK126+1,"anno esterno")) -> anno esterno | AM126: =IF(AL126="anno esterno","anno esterno",IF(AL126+1<='2 Descrizione Progetto'!$D$22,AL126+1,"anno esterno")) -> anno esterno | AN126: =IF(AM126="anno esterno","anno esterno",IF(AM126+1<='2 Descrizione Progetto'!$D$22,AM126+1,"anno esterno")) -> anno esterno | AO126: =IF(AN126="anno esterno","anno esterno",IF(AN126+1<='2 Descrizione Progetto'!$D$22,AN126+1,"anno esterno")) -> anno esterno | AP126: =IF(AO126="anno esterno","anno esterno",IF(AO126+1<='2 Descrizione Progetto'!$D$22,AO126+1,"anno esterno")) -> anno esterno | AQ126: =IF(AP126="anno esterno","anno esterno",IF(AP126+1<='2 Descrizione Progetto'!$D$22,AP126+1,"anno esterno")) -> anno esterno | AR126: =IF(AQ126="anno esterno","anno esterno",IF(AQ126+1<='2 Descrizione Progetto'!$D$22,AQ126+1,"anno esterno")) -> anno esterno | AS126: =IF(AR126="anno esterno","anno esterno",IF(AR126+1<='2 Descrizione Progetto'!$D$22,AR126+1,"anno esterno")) -> anno esterno | AT126: =IF(AS126="anno esterno","anno esterno",IF(AS126+1<='2 Descrizione Progetto'!$D$22,AS126+1,"anno esterno")) -> anno esterno | AU126: =IF(AT126="anno esterno","anno esterno",IF(AT126+1<='2 Descrizione Progetto'!$D$22,AT126+1,"anno esterno")) -> anno esterno | AV126: =IF(AU126="anno esterno","anno esterno",IF(AU126+1<='2 Descrizione Progetto'!$D$22,AU126+1,"anno esterno")) -> anno esterno | AW126: =IF(AV126="anno esterno","anno esterno",IF(AV126+1<='2 Descrizione Progetto'!$D$22,AV126+1,"anno esterno")) -> anno esterno | AX126: =IF(AW126="anno esterno","anno esterno",IF(AW126+1<='2 Descrizione Progetto'!$D$22,AW126+1,"anno esterno")) -> anno esterno | AY126: =IF(AX126="anno esterno","anno esterno",IF(AX126+1<='2 Descrizione Progetto'!$D$22,AX126+1,"anno esterno")) -> anno esterno | AZ126: =IF(AY126="anno esterno","anno esterno",IF(AY126+1<='2 Descrizione Progetto'!$D$22,AY126+1,"anno esterno")) -> anno esterno | BA126: =IF(AZ126="anno esterno","anno esterno",IF(AZ126+1<='2 Descrizione Progetto'!$D$22,AZ126+1,"anno esterno")) -> anno esterno | BB126: =IF(BA126="anno esterno","anno esterno",IF(BA126+1<='2 Descrizione Progetto'!$D$22,BA126+1,"anno esterno")) -> anno esterno | BC126: =IF(BB126="anno esterno","anno esterno",IF(BB126+1<='2 Descrizione Progetto'!$D$22,BB126+1,"anno esterno")) -> anno esterno | BD126: =IF(BC126="anno esterno","anno esterno",IF(BC126+1<='2 Descrizione Progetto'!$D$22,BC126+1,"anno esterno")) -> anno esterno | BE126: =IF(BD126="anno esterno","anno esterno",IF(BD126+1<='2 Descrizione Progetto'!$D$22,BD126+1,"anno esterno")) -> anno esterno | BF126: =IF(BE126="anno esterno","anno esterno",IF(BE126+1<='2 Descrizione Progetto'!$D$22,BE126+1,"anno esterno")) -> anno esterno | BG126: =IF(BF126="anno esterno","anno esterno",IF(BF126+1<='2 Descrizione Progetto'!$D$22,BF126+1,"anno esterno")) -> anno esterno | BH126: =IF(BG126="anno esterno","anno esterno",IF(BG126+1<='2 Descrizione Progetto'!$D$22,BG126+1,"anno esterno")) -> anno esterno | BI126: =IF(BH126="anno esterno","anno esterno",IF(BH126+1<='2 Descrizione Progetto'!$D$22,BH126+1,"anno esterno")) -> anno esterno | BJ126: =IF(BI126="anno esterno","anno esterno",IF(BI126+1<='2 Descrizione Progetto'!$D$22,BI126+1,"anno esterno")) -> anno esterno | BK126: =IF(BJ126="anno esterno","anno esterno",IF(BJ126+1<='2 Descrizione Progetto'!$D$22,BJ126+1,"anno esterno")) -> anno esterno | BL126: =IF(BK126="anno esterno","anno esterno",IF(BK126+1<='2 Descrizione Progetto'!$D$22,BK126+1,"anno esterno")) -> anno esterno
C127: Domanda (unità)
C128: Tariffa unitaria (euro)
C129: Ricavi (euro) | D129: =D127*D128 -> 0 | E129: 0 | F129: 0 | G129: 0 | H129: 0 | I129: 0 | J129: 0 | K129: 0 | L129: 0 | M129: 0 | N129: 0 | O129: 0 | P129: 0 | Q129: 0 | R129: 0 | S129: 0 | T129: 0 | U129: 0 | V129: 0 | W129: 0 | X129: 0 | Y129: 0 | Z129: 0 | AA129: 0 | AB129: 0 | AC129: 0 | AD129: 0 | AE129: 0 | AF129: 0 | AG129: 0 | AH129: 0 | AI129: 0 | AJ129: 0 | AK129: 0 | AL129: 0 | AM129: 0 | AN129: 0 | AO129: 0 | AP129: 0 | AQ129: 0 | AR129: 0 | AS129: 0 | AT129: 0 | AU129: 0 | AV129: 0 | AW129: 0 | AX129: 0 | AY129: 0 | AZ129: 0 | BA129: 0 | BB129: 0 | BC129: 0 | BD129: 0 | BE129: 0 | BF129: 0 | BG129: 0 | BH129: 0 | BI129: 0 | BJ129: 0 | BK129: 0 | BL129: 0
C130: CHECK 2 e 3 | D130: =IF(D127="","",IF(D127>($L$10-$K$10),"VERIFICA 2",IF(D127<$M$10,"OK","VERIFICA 3"))) -> 
B131: 8 | C131: =IF(C16="","",C16) -> e | D131: ='2 Descrizione Progetto'!$D$20 -> 1 | E131: =IF(D131="anno esterno","anno esterno",IF(D131+1<='2 Descrizione Progetto'!$D$22,D131+1,"anno esterno")) -> 2 | F131: =IF(E131="anno esterno","anno esterno",IF(E131+1<='2 Descrizione Progetto'!$D$22,E131+1,"anno esterno")) -> 3 | G131: =IF(F131="anno esterno","anno esterno",IF(F131+1<='2 Descrizione Progetto'!$D$22,F131+1,"anno esterno")) -> 4 | H131: =IF(G131="anno esterno","anno esterno",IF(G131+1<='2 Descrizione Progetto'!$D$22,G131+1,"anno esterno")) -> 5 | I131: =IF(H131="anno esterno","anno esterno",IF(H131+1<='2 Descrizione Progetto'!$D$22,H131+1,"anno esterno")) -> 6 | J131: =IF(I131="anno esterno","anno esterno",IF(I131+1<='2 Descrizione Progetto'!$D$22,I131+1,"anno esterno")) -> 7 | K131: =IF(J131="anno esterno","anno esterno",IF(J131+1<='2 Descrizione Progetto'!$D$22,J131+1,"anno esterno")) -> 8 | L131: =IF(K131="anno esterno","anno esterno",IF(K131+1<='2 Descrizione Progetto'!$D$22,K131+1,"anno esterno")) -> 9 | M131: =IF(L131="anno esterno","anno esterno",IF(L131+1<='2 Descrizione Progetto'!$D$22,L131+1,"anno esterno")) -> 10 | N131: =IF(M131="anno esterno","anno esterno",IF(M131+1<='2 Descrizione Progetto'!$D$22,M131+1,"anno esterno")) -> anno esterno | O131: =IF(N131="anno esterno","anno esterno",IF(N131+1<='2 Descrizione Progetto'!$D$22,N131+1,"anno esterno")) -> anno esterno | P131: =IF(O131="anno esterno","anno esterno",IF(O131+1<='2 Descrizione Progetto'!$D$22,O131+1,"anno esterno")) -> anno esterno | Q131: =IF(P131="anno esterno","anno esterno",IF(P131+1<='2 Descrizione Progetto'!$D$22,P131+1,"anno esterno")) -> anno esterno | R131: =IF(Q131="anno esterno","anno esterno",IF(Q131+1<='2 Descrizione Progetto'!$D$22,Q131+1,"anno esterno")) -> anno esterno | S131: =IF(R131="anno esterno","anno esterno",IF(R131+1<='2 Descrizione Progetto'!$D$22,R131+1,"anno esterno")) -> anno esterno | T131: =IF(S131="anno esterno","anno esterno",IF(S131+1<='2 Descrizione Progetto'!$D$22,S131+1,"anno esterno")) -> anno esterno | U131: =IF(T131="anno esterno","anno esterno",IF(T131+1<='2 Descrizione Progetto'!$D$22,T131+1,"anno esterno")) -> anno esterno | V131: =IF(U131="anno esterno","anno esterno",IF(U131+1<='2 Descrizione Progetto'!$D$22,U131+1,"anno esterno")) -> anno esterno | W131: =IF(V131="anno esterno","anno esterno",IF(V131+1<='2 Descrizione Progetto'!$D$22,V131+1,"anno esterno")) -> anno esterno | X131: =IF(W131="anno esterno","anno esterno",IF(W131+1<='2 Descrizione Progetto'!$D$22,W131+1,"anno esterno")) -> anno esterno | Y131: =IF(X131="anno esterno","anno esterno",IF(X131+1<='2 Descrizione Progetto'!$D$22,X131+1,"anno esterno")) -> anno esterno | Z131: =IF(Y131="anno esterno","anno esterno",IF(Y131+1<='2 Descrizione Progetto'!$D$22,Y131+1,"anno esterno")) -> anno esterno | AA131: =IF(Z131="anno esterno","anno esterno",IF(Z131+1<='2 Descrizione Progetto'!$D$22,Z131+1,"anno esterno")) -> anno esterno | AB131: =IF(AA131="anno esterno","anno esterno",IF(AA131+1<='2 Descrizione Progetto'!$D$22,AA131+1,"anno esterno")) -> anno esterno | AC131: =IF(AB131="anno esterno","anno esterno",IF(AB131+1<='2 Descrizione Progetto'!$D$22,AB131+1,"anno esterno")) -> anno esterno | AD131: =IF(AC131="anno esterno","anno esterno",IF(AC131+1<='2 Descrizione Progetto'!$D$22,AC131+1,"anno esterno")) -> anno esterno | AE131: =IF(AD131="anno esterno","anno esterno",IF(AD131+1<='2 Descrizione Progetto'!$D$22,AD131+1,"anno esterno")) -> anno esterno | AF131: =IF(AE131="anno esterno","anno esterno",IF(AE131+1<='2 Descrizione Progetto'!$D$22,AE131+1,"anno esterno")) -> anno esterno | AG131: =IF(AF131="anno esterno","anno esterno",IF(AF131+1<='2 Descrizione Progetto'!$D$22,AF131+1,"anno esterno")) -> anno esterno | AH131: =IF(AG131="anno esterno","anno esterno",IF(AG131+1<='2 Descrizione Progetto'!$D$22,AG131+1,"anno esterno")) -> anno esterno | AI131: =IF(AH131="anno esterno","anno esterno",IF(AH131+1<='2 Descrizione Progetto'!$D$22,AH131+1,"anno esterno")) -> anno esterno | AJ131: =IF(AI131="anno esterno","anno esterno",IF(AI131+1<='2 Descrizione Progetto'!$D$22,AI131+1,"anno esterno")) -> anno esterno | AK131: =IF(AJ131="anno esterno","anno esterno",IF(AJ131+1<='2 Descrizione Progetto'!$D$22,AJ131+1,"anno esterno")) -> anno esterno | AL131: =IF(AK131="anno esterno","anno esterno",IF(AK131+1<='2 Descrizione Progetto'!$D$22,AK131+1,"anno esterno")) -> anno esterno | AM131: =IF(AL131="anno esterno","anno esterno",IF(AL131+1<='2 Descrizione Progetto'!$D$22,AL131+1,"anno esterno")) -> anno esterno | AN131: =IF(AM131="anno esterno","anno esterno",IF(AM131+1<='2 Descrizione Progetto'!$D$22,AM131+1,"anno esterno")) -> anno esterno | AO131: =IF(AN131="anno esterno","anno esterno",IF(AN131+1<='2 Descrizione Progetto'!$D$22,AN131+1,"anno esterno")) -> anno esterno | AP131: =IF(AO131="anno esterno","anno esterno",IF(AO131+1<='2 Descrizione Progetto'!$D$22,AO131+1,"anno esterno")) -> anno esterno | AQ131: =IF(AP131="anno esterno","anno esterno",IF(AP131+1<='2 Descrizione Progetto'!$D$22,AP131+1,"anno esterno")) -> anno esterno | AR131: =IF(AQ131="anno esterno","anno esterno",IF(AQ131+1<='2 Descrizione Progetto'!$D$22,AQ131+1,"anno esterno")) -> anno esterno | AS131: =IF(AR131="anno esterno","anno esterno",IF(AR131+1<='2 Descrizione Progetto'!$D$22,AR131+1,"anno esterno")) -> anno esterno | AT131: =IF(AS131="anno esterno","anno esterno",IF(AS131+1<='2 Descrizione Progetto'!$D$22,AS131+1,"anno esterno")) -> anno esterno | AU131: =IF(AT131="anno esterno","anno esterno",IF(AT131+1<='2 Descrizione Progetto'!$D$22,AT131+1,"anno esterno")) -> anno esterno | AV131: =IF(AU131="anno esterno","anno esterno",IF(AU131+1<='2 Descrizione Progetto'!$D$22,AU131+1,"anno esterno")) -> anno esterno | AW131: =IF(AV131="anno esterno","anno esterno",IF(AV131+1<='2 Descrizione Progetto'!$D$22,AV131+1,"anno esterno")) -> anno esterno | AX131: =IF(AW131="anno esterno","anno esterno",IF(AW131+1<='2 Descrizione Progetto'!$D$22,AW131+1,"anno esterno")) -> anno esterno | AY131: =IF(AX131="anno esterno","anno esterno",IF(AX131+1<='2 Descrizione Progetto'!$D$22,AX131+1,"anno esterno")) -> anno esterno | AZ131: =IF(AY131="anno esterno","anno esterno",IF(AY131+1<='2 Descrizione Progetto'!$D$22,AY131+1,"anno esterno")) -> anno esterno | BA131: =IF(AZ131="anno esterno","anno esterno",IF(AZ131+1<='2 Descrizione Progetto'!$D$22,AZ131+1,"anno esterno")) -> anno esterno | BB131: =IF(BA131="anno esterno","anno esterno",IF(BA131+1<='2 Descrizione Progetto'!$D$22,BA131+1,"anno esterno")) -> anno esterno | BC131: =IF(BB131="anno esterno","anno esterno",IF(BB131+1<='2 Descrizione Progetto'!$D$22,BB131+1,"anno esterno")) -> anno esterno | BD131: =IF(BC131="anno esterno","anno esterno",IF(BC131+1<='2 Descrizione Progetto'!$D$22,BC131+1,"anno esterno")) -> anno esterno | BE131: =IF(BD131="anno esterno","anno esterno",IF(BD131+1<='2 Descrizione Progetto'!$D$22,BD131+1,"anno esterno")) -> anno esterno | BF131: =IF(BE131="anno esterno","anno esterno",IF(BE131+1<='2 Descrizione Progetto'!$D$22,BE131+1,"anno esterno")) -> anno esterno | BG131: =IF(BF131="anno esterno","anno esterno",IF(BF131+1<='2 Descrizione Progetto'!$D$22,BF131+1,"anno esterno")) -> anno esterno | BH131: =IF(BG131="anno esterno","anno esterno",IF(BG131+1<='2 Descrizione Progetto'!$D$22,BG131+1,"anno esterno")) -> anno esterno | BI131: =IF(BH131="anno esterno","anno esterno",IF(BH131+1<='2 Descrizione Progetto'!$D$22,BH131+1,"anno esterno")) -> anno esterno | BJ131: =IF(BI131="anno esterno","anno esterno",IF(BI131+1<='2 Descrizione Progetto'!$D$22,BI131+1,"anno esterno")) -> anno esterno | BK131: =IF(BJ131="anno esterno","anno esterno",IF(BJ131+1<='2 Descrizione Progetto'!$D$22,BJ131+1,"anno esterno")) -> anno esterno | BL131: =IF(BK131="anno esterno","anno esterno",IF(BK131+1<='2 Descrizione Progetto'!$D$22,BK131+1,"anno esterno")) -> anno esterno
C132: Domanda (unità)
C133: Tariffa unitaria (euro)
C134: Ricavi (euro) | D134: =D132*D133 -> 0 | E134: 0 | F134: 0 | G134: 0 | H134: 0 | I134: 0 | J134: 0 | K134: 0 | L134: 0 | M134: 0 | N134: 0 | O134: 0 | P134: 0 | Q134: 0 | R134: 0 | S134: 0 | T134: 0 | U134: 0 | V134: 0 | W134: 0 | X134: 0 | Y134: 0 | Z134: 0 | AA134: 0 | AB134: 0 | AC134: 0 | AD134: 0 | AE134: 0 | AF134: 0 | AG134: 0 | AH134: 0 | AI134: 0 | AJ134: 0 | AK134: 0 | AL134: 0 | AM134: 0 | AN134: 0 | AO134: 0 | AP134: 0 | AQ134: 0 | AR134: 0 | AS134: 0 | AT134: 0 | AU134: 0 | AV134: 0 | AW134: 0 | AX134: 0 | AY134: 0 | AZ134: 0 | BA134: 0 | BB134: 0 | BC134: 0 | BD134: 0 | BE134: 0 | BF134: 0 | BG134: 0 | BH134: 0 | BI134: 0 | BJ134: 0 | BK134: 0 | BL134: 0
C135: CHECK 2 e 3 | D135: =IF(D132="","",IF(D132>($L$10-$K$10),"VERIFICA 2",IF(D132<$M$10,"OK","VERIFICA 3"))) -> 
B136: 9 | C136: =IF(C17="","",C17) -> f | D136: ='2 Descrizione Progetto'!$D$20 -> 1 | E136: =IF(D136="anno esterno","anno esterno",IF(D136+1<='2 Descrizione Progetto'!$D$22,D136+1,"anno esterno")) -> 2 | F136: =IF(E136="anno esterno","anno esterno",IF(E136+1<='2 Descrizione Progetto'!$D$22,E136+1,"anno esterno")) -> 3 | G136: =IF(F136="anno esterno","anno esterno",IF(F136+1<='2 Descrizione Progetto'!$D$22,F136+1,"anno esterno")) -> 4 | H136: =IF(G136="anno esterno","anno esterno",IF(G136+1<='2 Descrizione Progetto'!$D$22,G136+1,"anno esterno")) -> 5 | I136: =IF(H136="anno esterno","anno esterno",IF(H136+1<='2 Descrizione Progetto'!$D$22,H136+1,"anno esterno")) -> 6 | J136: =IF(I136="anno esterno","anno esterno",IF(I136+1<='2 Descrizione Progetto'!$D$22,I136+1,"anno esterno")) -> 7 | K136: =IF(J136="anno esterno","anno esterno",IF(J136+1<='2 Descrizione Progetto'!$D$22,J136+1,"anno esterno")) -> 8 | L136: =IF(K136="anno esterno","anno esterno",IF(K136+1<='2 Descrizione Progetto'!$D$22,K136+1,"anno esterno")) -> 9 | M136: =IF(L136="anno esterno","anno esterno",IF(L136+1<='2 Descrizione Progetto'!$D$22,L136+1,"anno esterno")) -> 10 | N136: =IF(M136="anno esterno","anno esterno",IF(M136+1<='2 Descrizione Progetto'!$D$22,M136+1,"anno esterno")) -> anno esterno | O136: =IF(N136="anno esterno","anno esterno",IF(N136+1<='2 Descrizione Progetto'!$D$22,N136+1,"anno esterno")) -> anno esterno | P136: =IF(O136="anno esterno","anno esterno",IF(O136+1<='2 Descrizione Progetto'!$D$22,O136+1,"anno esterno")) -> anno esterno | Q136: =IF(P136="anno esterno","anno esterno",IF(P136+1<='2 Descrizione Progetto'!$D$22,P136+1,"anno esterno")) -> anno esterno | R136: =IF(Q136="anno esterno","anno esterno",IF(Q136+1<='2 Descrizione Progetto'!$D$22,Q136+1,"anno esterno")) -> anno esterno | S136: =IF(R136="anno esterno","anno esterno",IF(R136+1<='2 Descrizione Progetto'!$D$22,R136+1,"anno esterno")) -> anno esterno | T136: =IF(S136="anno esterno","anno esterno",IF(S136+1<='2 Descrizione Progetto'!$D$22,S136+1,"anno esterno")) -> anno esterno | U136: =IF(T136="anno esterno","anno esterno",IF(T136+1<='2 Descrizione Progetto'!$D$22,T136+1,"anno esterno")) -> anno esterno | V136: =IF(U136="anno esterno","anno esterno",IF(U136+1<='2 Descrizione Progetto'!$D$22,U136+1,"anno esterno")) -> anno esterno | W136: =IF(V136="anno esterno","anno esterno",IF(V136+1<='2 Descrizione Progetto'!$D$22,V136+1,"anno esterno")) -> anno esterno | X136: =IF(W136="anno esterno","anno esterno",IF(W136+1<='2 Descrizione Progetto'!$D$22,W136+1,"anno esterno")) -> anno esterno | Y136: =IF(X136="anno esterno","anno esterno",IF(X136+1<='2 Descrizione Progetto'!$D$22,X136+1,"anno esterno")) -> anno esterno | Z136: =IF(Y136="anno esterno","anno esterno",IF(Y136+1<='2 Descrizione Progetto'!$D$22,Y136+1,"anno esterno")) -> anno esterno | AA136: =IF(Z136="anno esterno","anno esterno",IF(Z136+1<='2 Descrizione Progetto'!$D$22,Z136+1,"anno esterno")) -> anno esterno | AB136: =IF(AA136="anno esterno","anno esterno",IF(AA136+1<='2 Descrizione Progetto'!$D$22,AA136+1,"anno esterno")) -> anno esterno | AC136: =IF(AB136="anno esterno","anno esterno",IF(AB136+1<='2 Descrizione Progetto'!$D$22,AB136+1,"anno esterno")) -> anno esterno | AD136: =IF(AC136="anno esterno","anno esterno",IF(AC136+1<='2 Descrizione Progetto'!$D$22,AC136+1,"anno esterno")) -> anno esterno | AE136: =IF(AD136="anno esterno","anno esterno",IF(AD136+1<='2 Descrizione Progetto'!$D$22,AD136+1,"anno esterno")) -> anno esterno | AF136: =IF(AE136="anno esterno","anno esterno",IF(AE136+1<='2 Descrizione Progetto'!$D$22,AE136+1,"anno esterno")) -> anno esterno | AG136: =IF(AF136="anno esterno","anno esterno",IF(AF136+1<='2 Descrizione Progetto'!$D$22,AF136+1,"anno esterno")) -> anno esterno | AH136: =IF(AG136="anno esterno","anno esterno",IF(AG136+1<='2 Descrizione Progetto'!$D$22,AG136+1,"anno esterno")) -> anno esterno | AI136: =IF(AH136="anno esterno","anno esterno",IF(AH136+1<='2 Descrizione Progetto'!$D$22,AH136+1,"anno esterno")) -> anno esterno | AJ136: =IF(AI136="anno esterno","anno esterno",IF(AI136+1<='2 Descrizione Progetto'!$D$22,AI136+1,"anno esterno")) -> anno esterno | AK136: =IF(AJ136="anno esterno","anno esterno",IF(AJ136+1<='2 Descrizione Progetto'!$D$22,AJ136+1,"anno esterno")) -> anno esterno | AL136: =IF(AK136="anno esterno","anno esterno",IF(AK136+1<='2 Descrizione Progetto'!$D$22,AK136+1,"anno esterno")) -> anno esterno | AM136: =IF(AL136="anno esterno","anno esterno",IF(AL136+1<='2 Descrizione Progetto'!$D$22,AL136+1,"anno esterno")) -> anno esterno | AN136: =IF(AM136="anno esterno","anno esterno",IF(AM136+1<='2 Descrizione Progetto'!$D$22,AM136+1,"anno esterno")) -> anno esterno | AO136: =IF(AN136="anno esterno","anno esterno",IF(AN136+1<='2 Descrizione Progetto'!$D$22,AN136+1,"anno esterno")) -> anno esterno | AP136: =IF(AO136="anno esterno","anno esterno",IF(AO136+1<='2 Descrizione Progetto'!$D$22,AO136+1,"anno esterno")) -> anno esterno | AQ136: =IF(AP136="anno esterno","anno esterno",IF(AP136+1<='2 Descrizione Progetto'!$D$22,AP136+1,"anno esterno")) -> anno esterno | AR136: =IF(AQ136="anno esterno","anno esterno",IF(AQ136+1<='2 Descrizione Progetto'!$D$22,AQ136+1,"anno esterno")) -> anno esterno | AS136: =IF(AR136="anno esterno","anno esterno",IF(AR136+1<='2 Descrizione Progetto'!$D$22,AR136+1,"anno esterno")) -> anno esterno | AT136: =IF(AS136="anno esterno","anno esterno",IF(AS136+1<='2 Descrizione Progetto'!$D$22,AS136+1,"anno esterno")) -> anno esterno | AU136: =IF(AT136="anno esterno","anno esterno",IF(AT136+1<='2 Descrizione Progetto'!$D$22,AT136+1,"anno esterno")) -> anno esterno | AV136: =IF(AU136="anno esterno","anno esterno",IF(AU136+1<='2 Descrizione Progetto'!$D$22,AU136+1,"anno esterno")) -> anno esterno | AW136: =IF(AV136="anno esterno","anno esterno",IF(AV136+1<='2 Descrizione Progetto'!$D$22,AV136+1,"anno esterno")) -> anno esterno | AX136: =IF(AW136="anno esterno","anno esterno",IF(AW136+1<='2 Descrizione Progetto'!$D$22,AW136+1,"anno esterno")) -> anno esterno | AY136: =IF(AX136="anno esterno","anno esterno",IF(AX136+1<='2 Descrizione Progetto'!$D$22,AX136+1,"anno esterno")) -> anno esterno | AZ136: =IF(AY136="anno esterno","anno esterno",IF(AY136+1<='2 Descrizione Progetto'!$D$22,AY136+1,"anno esterno")) -> anno esterno | BA136: =IF(AZ136="anno esterno","anno esterno",IF(AZ136+1<='2 Descrizione Progetto'!$D$22,AZ136+1,"anno esterno")) -> anno esterno | BB136: =IF(BA136="anno esterno","anno esterno",IF(BA136+1<='2 Descrizione Progetto'!$D$22,BA136+1,"anno esterno")) -> anno esterno | BC136: =IF(BB136="anno esterno","anno esterno",IF(BB136+1<='2 Descrizione Progetto'!$D$22,BB136+1,"anno esterno")) -> anno esterno | BD136: =IF(BC136="anno esterno","anno esterno",IF(BC136+1<='2 Descrizione Progetto'!$D$22,BC136+1,"anno esterno")) -> anno esterno | BE136: =IF(BD136="anno esterno","anno esterno",IF(BD136+1<='2 Descrizione Progetto'!$D$22,BD136+1,"anno esterno")) -> anno esterno | BF136: =IF(BE136="anno esterno","anno esterno",IF(BE136+1<='2 Descrizione Progetto'!$D$22,BE136+1,"anno esterno")) -> anno esterno | BG136: =IF(BF136="anno esterno","anno esterno",IF(BF136+1<='2 Descrizione Progetto'!$D$22,BF136+1,"anno esterno")) -> anno esterno | BH136: =IF(BG136="anno esterno","anno esterno",IF(BG136+1<='2 Descrizione Progetto'!$D$22,BG136+1,"anno esterno")) -> anno esterno | BI136: =IF(BH136="anno esterno","anno esterno",IF(BH136+1<='2 Descrizione Progetto'!$D$22,BH136+1,"anno esterno")) -> anno esterno | BJ136: =IF(BI136="anno esterno","anno esterno",IF(BI136+1<='2 Descrizione Progetto'!$D$22,BI136+1,"anno esterno")) -> anno esterno | BK136: =IF(BJ136="anno esterno","anno esterno",IF(BJ136+1<='2 Descrizione Progetto'!$D$22,BJ136+1,"anno esterno")) -> anno esterno | BL136: =IF(BK136="anno esterno","anno esterno",IF(BK136+1<='2 Descrizione Progetto'!$D$22,BK136+1,"anno esterno")) -> anno esterno
C137: Domanda (unità)
C138: Tariffa unitaria (euro)
C139: Ricavi (euro) | D139: =D137*D138 -> 0 | E139: 0 | F139: 0 | G139: 0 | H139: 0 | I139: 0 | J139: 0 | K139: 0 | L139: 0 | M139: 0 | N139: 0 | O139: 0 | P139: 0 | Q139: 0 | R139: 0 | S139: 0 | T139: 0 | U139: 0 | V139: 0 | W139: 0 | X139: 0 | Y139: 0 | Z139: 0 | AA139: 0 | AB139: 0 | AC139: 0 | AD139: 0 | AE139: 0 | AF139: 0 | AG139: 0 | AH139: 0 | AI139: 0 | AJ139: 0 | AK139: 0 | AL139: 0 | AM139: 0 | AN139: 0 | AO139: 0 | AP139: 0 | AQ139: 0 | AR139: 0 | AS139: 0 | AT139: 0 | AU139: 0 | AV139: 0 | AW139: 0 | AX139: 0 | AY139: 0 | AZ139: 0 | BA139: 0 | BB139: 0 | BC139: 0 | BD139: 0 | BE139: 0 | BF139: 0 | BG139: 0 | BH139: 0 | BI139: 0 | BJ139: 0 | BK139: 0 | BL139: 0
C140: CHECK 2 e 3 | D140: =IF(D137="","",IF(D137>($L$10-$K$10),"VERIFICA 2",IF(D137<$M$10,"OK","VERIFICA 3"))) -> 
B141: 10 | C141: =IF(C18="","",C18) -> g | D141: ='2 Descrizione Progetto'!$D$20 -> 1 | E141: =IF(D141="anno esterno","anno esterno",IF(D141+1<='2 Descrizione Progetto'!$D$22,D141+1,"anno esterno")) -> 2 | F141: =IF(E141="anno esterno","anno esterno",IF(E141+1<='2 Descrizione Progetto'!$D$22,E141+1,"anno esterno")) -> 3 | G141: =IF(F141="anno esterno","anno esterno",IF(F141+1<='2 Descrizione Progetto'!$D$22,F141+1,"anno esterno")) -> 4 | H141: =IF(G141="anno esterno","anno esterno",IF(G141+1<='2 Descrizione Progetto'!$D$22,G141+1,"anno esterno")) -> 5 | I141: =IF(H141="anno esterno","anno esterno",IF(H141+1<='2 Descrizione Progetto'!$D$22,H141+1,"anno esterno")) -> 6 | J141: =IF(I141="anno esterno","anno esterno",IF(I141+1<='2 Descrizione Progetto'!$D$22,I141+1,"anno esterno")) -> 7 | K141: =IF(J141="anno esterno","anno esterno",IF(J141+1<='2 Descrizione Progetto'!$D$22,J141+1,"anno esterno")) -> 8 | L141: =IF(K141="anno esterno","anno esterno",IF(K141+1<='2 Descrizione Progetto'!$D$22,K141+1,"anno esterno")) -> 9 | M141: =IF(L141="anno esterno","anno esterno",IF(L141+1<='2 Descrizione Progetto'!$D$22,L141+1,"anno esterno")) -> 10 | N141: =IF(M141="anno esterno","anno esterno",IF(M141+1<='2 Descrizione Progetto'!$D$22,M141+1,"anno esterno")) -> anno esterno | O141: =IF(N141="anno esterno","anno esterno",IF(N141+1<='2 Descrizione Progetto'!$D$22,N141+1,"anno esterno")) -> anno esterno | P141: =IF(O141="anno esterno","anno esterno",IF(O141+1<='2 Descrizione Progetto'!$D$22,O141+1,"anno esterno")) -> anno esterno | Q141: =IF(P141="anno esterno","anno esterno",IF(P141+1<='2 Descrizione Progetto'!$D$22,P141+1,"anno esterno")) -> anno esterno | R141: =IF(Q141="anno esterno","anno esterno",IF(Q141+1<='2 Descrizione Progetto'!$D$22,Q141+1,"anno esterno")) -> anno esterno | S141: =IF(R141="anno esterno","anno esterno",IF(R141+1<='2 Descrizione Progetto'!$D$22,R141+1,"anno esterno")) -> anno esterno | T141: =IF(S141="anno esterno","anno esterno",IF(S141+1<='2 Descrizione Progetto'!$D$22,S141+1,"anno esterno")) -> anno esterno | U141: =IF(T141="anno esterno","anno esterno",IF(T141+1<='2 Descrizione Progetto'!$D$22,T141+1,"anno esterno")) -> anno esterno | V141: =IF(U141="anno esterno","anno esterno",IF(U141+1<='2 Descrizione Progetto'!$D$22,U141+1,"anno esterno")) -> anno esterno | W141: =IF(V141="anno esterno","anno esterno",IF(V141+1<='2 Descrizione Progetto'!$D$22,V141+1,"anno esterno")) -> anno esterno | X141: =IF(W141="anno esterno","anno esterno",IF(W141+1<='2 Descrizione Progetto'!$D$22,W141+1,"anno esterno")) -> anno esterno | Y141: =IF(X141="anno esterno","anno esterno",IF(X141+1<='2 Descrizione Progetto'!$D$22,X141+1,"anno esterno")) -> anno esterno | Z141: =IF(Y141="anno esterno","anno esterno",IF(Y141+1<='2 Descrizione Progetto'!$D$22,Y141+1,"anno esterno")) -> anno esterno | AA141: =IF(Z141="anno esterno","anno esterno",IF(Z141+1<='2 Descrizione Progetto'!$D$22,Z141+1,"anno esterno")) -> anno esterno | AB141: =IF(AA141="anno esterno","anno esterno",IF(AA141+1<='2 Descrizione Progetto'!$D$22,AA141+1,"anno esterno")) -> anno esterno | AC141: =IF(AB141="anno esterno","anno esterno",IF(AB141+1<='2 Descrizione Progetto'!$D$22,AB141+1,"anno esterno")) -> anno esterno | AD141: =IF(AC141="anno esterno","anno esterno",IF(AC141+1<='2 Descrizione Progetto'!$D$22,AC141+1,"anno esterno")) -> anno esterno | AE141: =IF(AD141="anno esterno","anno esterno",IF(AD141+1<='2 Descrizione Progetto'!$D$22,AD141+1,"anno esterno")) -> anno esterno | AF141: =IF(AE141="anno esterno","anno esterno",IF(AE141+1<='2 Descrizione Progetto'!$D$22,AE141+1,"anno esterno")) -> anno esterno | AG141: =IF(AF141="anno esterno","anno esterno",IF(AF141+1<='2 Descrizione Progetto'!$D$22,AF141+1,"anno esterno")) -> anno esterno | AH141: =IF(AG141="anno esterno","anno esterno",IF(AG141+1<='2 Descrizione Progetto'!$D$22,AG141+1,"anno esterno")) -> anno esterno | AI141: =IF(AH141="anno esterno","anno esterno",IF(AH141+1<='2 Descrizione Progetto'!$D$22,AH141+1,"anno esterno")) -> anno esterno | AJ141: =IF(AI141="anno esterno","anno esterno",IF(AI141+1<='2 Descrizione Progetto'!$D$22,AI141+1,"anno esterno")) -> anno esterno | AK141: =IF(AJ141="anno esterno","anno esterno",IF(AJ141+1<='2 Descrizione Progetto'!$D$22,AJ141+1,"anno esterno")) -> anno esterno | AL141: =IF(AK141="anno esterno","anno esterno",IF(AK141+1<='2 Descrizione Progetto'!$D$22,AK141+1,"anno esterno")) -> anno esterno | AM141: =IF(AL141="anno esterno","anno esterno",IF(AL141+1<='2 Descrizione Progetto'!$D$22,AL141+1,"anno esterno")) -> anno esterno | AN141: =IF(AM141="anno esterno","anno esterno",IF(AM141+1<='2 Descrizione Progetto'!$D$22,AM141+1,"anno esterno")) -> anno esterno | AO141: =IF(AN141="anno esterno","anno esterno",IF(AN141+1<='2 Descrizione Progetto'!$D$22,AN141+1,"anno esterno")) -> anno esterno | AP141: =IF(AO141="anno esterno","anno esterno",IF(AO141+1<='2 Descrizione Progetto'!$D$22,AO141+1,"anno esterno")) -> anno esterno | AQ141: =IF(AP141="anno esterno","anno esterno",IF(AP141+1<='2 Descrizione Progetto'!$D$22,AP141+1,"anno esterno")) -> anno esterno | AR141: =IF(AQ141="anno esterno","anno esterno",IF(AQ141+1<='2 Descrizione Progetto'!$D$22,AQ141+1,"anno esterno")) -> anno esterno | AS141: =IF(AR141="anno esterno","anno esterno",IF(AR141+1<='2 Descrizione Progetto'!$D$22,AR141+1,"anno esterno")) -> anno esterno | AT141: =IF(AS141="anno esterno","anno esterno",IF(AS141+1<='2 Descrizione Progetto'!$D$22,AS141+1,"anno esterno")) -> anno esterno | AU141: =IF(AT141="anno esterno","anno esterno",IF(AT141+1<='2 Descrizione Progetto'!$D$22,AT141+1,"anno esterno")) -> anno esterno | AV141: =IF(AU141="anno esterno","anno esterno",IF(AU141+1<='2 Descrizione Progetto'!$D$22,AU141+1,"anno esterno")) -> anno esterno | AW141: =IF(AV141="anno esterno","anno esterno",IF(AV141+1<='2 Descrizione Progetto'!$D$22,AV141+1,"anno esterno")) -> anno esterno | AX141: =IF(AW141="anno esterno","anno esterno",IF(AW141+1<='2 Descrizione Progetto'!$D$22,AW141+1,"anno esterno")) -> anno esterno | AY141: =IF(AX141="anno esterno","anno esterno",IF(AX141+1<='2 Descrizione Progetto'!$D$22,AX141+1,"anno esterno")) -> anno esterno | AZ141: =IF(AY141="anno esterno","anno esterno",IF(AY141+1<='2 Descrizione Progetto'!$D$22,AY141+1,"anno esterno")) -> anno esterno | BA141: =IF(AZ141="anno esterno","anno esterno",IF(AZ141+1<='2 Descrizione Progetto'!$D$22,AZ141+1,"anno esterno")) -> anno esterno | BB141: =IF(BA141="anno esterno","anno esterno",IF(BA141+1<='2 Descrizione Progetto'!$D$22,BA141+1,"anno esterno")) -> anno esterno | BC141: =IF(BB141="anno esterno","anno esterno",IF(BB141+1<='2 Descrizione Progetto'!$D$22,BB141+1,"anno esterno")) -> anno esterno | BD141: =IF(BC141="anno esterno","anno esterno",IF(BC141+1<='2 Descrizione Progetto'!$D$22,BC141+1,"anno esterno")) -> anno esterno | BE141: =IF(BD141="anno esterno","anno esterno",IF(BD141+1<='2 Descrizione Progetto'!$D$22,BD141+1,"anno esterno")) -> anno esterno | BF141: =IF(BE141="anno esterno","anno esterno",IF(BE141+1<='2 Descrizione Progetto'!$D$22,BE141+1,"anno esterno")) -> anno esterno | BG141: =IF(BF141="anno esterno","anno esterno",IF(BF141+1<='2 Descrizione Progetto'!$D$22,BF141+1,"anno esterno")) -> anno esterno | BH141: =IF(BG141="anno esterno","anno esterno",IF(BG141+1<='2 Descrizione Progetto'!$D$22,BG141+1,"anno esterno")) -> anno esterno | BI141: =IF(BH141="anno esterno","anno esterno",IF(BH141+1<='2 Descrizione Progetto'!$D$22,BH141+1,"anno esterno")) -> anno esterno | BJ141: =IF(BI141="anno esterno","anno esterno",IF(BI141+1<='2 Descrizione Progetto'!$D$22,BI141+1,"anno esterno")) -> anno esterno | BK141: =IF(BJ141="anno esterno","anno esterno",IF(BJ141+1<='2 Descrizione Progetto'!$D$22,BJ141+1,"anno esterno")) -> anno esterno | BL141: =IF(BK141="anno esterno","anno esterno",IF(BK141+1<='2 Descrizione Progetto'!$D$22,BK141+1,"anno esterno")) -> anno esterno
C142: Domanda (unità)
C143: Tariffa unitaria (euro)
C144: Ricavi (euro) | D144: =D142*D143 -> 0 | E144: 0 | F144: 0 | G144: 0 | H144: 0 | I144: 0 | J144: 0 | K144: 0 | L144: 0 | M144: 0 | N144: 0 | O144: 0 | P144: 0 | Q144: 0 | R144: 0 | S144: 0 | T144: 0 | U144: 0 | V144: 0 | W144: 0 | X144: 0 | Y144: 0 | Z144: 0 | AA144: 0 | AB144: 0 | AC144: 0 | AD144: 0 | AE144: 0 | AF144: 0 | AG144: 0 | AH144: 0 | AI144: 0 | AJ144: 0 | AK144: 0 | AL144: 0 | AM144: 0 | AN144: 0 | AO144: 0 | AP144: 0 | AQ144: 0 | AR144: 0 | AS144: 0 | AT144: 0 | AU144: 0 | AV144: 0 | AW144: 0 | AX144: 0 | AY144: 0 | AZ144: 0 | BA144: 0 | BB144: 0 | BC144: 0 | BD144: 0 | BE144: 0 | BF144: 0 | BG144: 0 | BH144: 0 | BI144: 0 | BJ144: 0 | BK144: 0 | BL144: 0
C145: CHECK 2 e 3 | D145: =IF(D142="","",IF(D142>($L$10-$K$10),"VERIFICA 2",IF(D142<$M$10,"OK","VERIFICA 3"))) -> 
B149: 4 | C149: Sviluppo della Domanda e della Gestione
G150: Composizione flusso ricavi totali
C151: ='2 Descrizione Progetto'!C3 -> Comune di Guardiagrele | G151: Rivalutazione media annua (ISTAT) | I151: =G27 -> 0.02 | AK151: =M151 -> 
C153: Ricavi Rivalutati Istat | D153: Scelta profilo | E153: =E213 -> 1 | F153: 2 | G153: 3 | H153: 4 | I153: 5 | J153: 6 | K153: 7 | L153: 8 | M153: 9 | N153: 10 | O153: 0 | P153: 0 | Q153: 0 | R153: 0 | S153: 0 | T153: 0 | U153: 0 | V153: 0 | W153: 0 | X153: 0 | Y153: 0 | Z153: 0 | AA153: 0 | AB153: 0 | AC153: 0 | AD153: 0 | AE153: 0 | AF153: 0 | AG153: 0 | AH153: 0 | AI153: 0 | AJ153: 0 | AK153: 0 | AL153: 0 | AM153: 0 | AN153: 0 | AO153: 0 | AP153: 0 | AQ153: 0 | AR153: 0 | AS153: 0 | AT153: 0 | AU153: 0 | AV153: 0 | AW153: 0 | AX153: 0 | AY153: 0 | AZ153: 0 | BA153: 0 | BB153: 0 | BC153: 0 | BD153: 0 | BE153: 0 | BF153: 0 | BG153: 0 | BH153: 0 | BI153: 0 | BJ153: 0 | BK153: 0 | BL153: 0
